Workbook

Sheet Forside
B1: Navn på filen: | C1: EU - Elpriser - Industri (2007-2017)
B3: Sidst opdateret | C3: 2016-12-08
B4: Opdateret af | C4: b014318
B6: Datakilder: | C6: =LEFT(B57,34) -> Danmarks Statistik, DNVALA: Valuta
C7: ="Eurostat: "&RIGHT('Baggrundsdata - BVT - deflator'!A55,13) -> Eurostat: , nama_10_a10
C8: ="Eurostat: "&RIGHT('Level 1'!A36,10) -> Eurostat: nrg_pc_205
B11: Kode til at låse arkene op: | C11: ens1256
B14: Oversigt over ark:
B15: Forside | C15: Formål, oversigt og smådata
B16: ='Udvalgte lande, 10 års oversigt'!E1 -> Udvalgte lande, 10 års oversigt | C16: Her findes sammenligning af relevante lande for en 10 års periode.
B17: ='Alle lande, valgt år'!F1 -> Alle lande, valgt år | C17: Her findes resultattabellerne for alle EU lande i de enheder du vælger.
B18: ='Baggrundstabeller for alle land'!E1 -> Baggrundstabeller for alle lande, valgt år | C18: Her findes baggrundstabeller for resultattabellerne.
B19: ='Baggrundsdata - BVT - deflator'!C2 -> Baggrundsdata - BVT deflator | C19: BVT deflatorerne der bruges i til beregning af priser i det valte år for resultattabellerne. Og kontrol af at man har hentet korrekt data
B20: Level 1 | C20: Rådata fra Eurostat og samling af dette
B21: Level 2 | C21: Rådata fra Eurostat og samling af dette
B22: Afgifter og moms | C22: Bearbejelse af rådata fra Eurostat
B23: Oversættelse af landenavne | C23: Lavpraktisk oversættelses-, hjælpe- og og kontrolark
B24: ='Sådan opdateres arket'!B3 -> Sådan foretages opdatering | C24: Her er en beskrivelse af hvordan og hvornår arkene skal opdateres.
B28: Arkene har farvekoder, de er opdelt således:
B29: Beskrivelser og forklaringer
B30: Resultattabeller
B31: Baggrundstabeller og rådata
B33: Formålet med dette ark er at give et overblik over elprisen for industrien forbrugere i de europæiske lande. Særligt at kunne sammenligne den danske elpris med de øvrige elpriser. For at gøre det mere overskueligt træffes valg omkring enheder en rullemenuer øverst i de to ark med resultattabeller. Når man vælger tilpasses tabeller og figurer til valgene. Rådata opdateres halvårligt, når eurostat opdaterer deres databank. På forsiden findes også tabeller med grundlæggende oplysninger, der bruges til enhedsomregning. Det drejer sig om de udvalgte sammenligningslande og valutakursomregning. Det er vigigt kun at hente data 10 år tilbage, dvs. at man skal have hele år, og således 20xx S1 som det første data, for halvårsopdateringer har man således kun data for fx 6,5 år mens man for årsopdateringerne har data for 7 år
B36: Tabel 1
B37: Sammenligningslande
B38: Disse lande bruges til grundlag for sammenligning over tid. De er valgt på baggrund af Natinalbankens effektive kronekurs indeks og udgøres af de europæiske lande som danmark har mest samhandel med.
B39: EU-28
B40: Belgien
B41: Danmark
B42: Tyskland
B43: Frankrig
B44: Italien
B45: Holland
B46: Sverige
B47: UK
B52: Tabel 2
B53: Valutakurser efter opgørelsesmetode, kurstype, valuta og tid
B54: Enhed: DKK pr. 100 enheder valuta og indekstal
E55: 2007 | F55: 2008 | G55: 2009 | H55: 2010 | I55: 2011 | J55: 2012 | K55: 2013 | L55: 2014 | M55: 2015 | N55: 2016 | O55: 2017
B56: Årsgennemsnit | C56: Valutakurser (DKK pr. 100 enheder valuta) | D56: Euro (Jan. 1999-) | E56: 745.5974 | F56: 744.6251 | G56: 744.6251 | H56: 744.7366 | I56: 745.0529 | J56: 744.3751 | K56: 745.7982 | L56: 745.4741 | M56: 745.6103 | N56: 744.7488444
B57: Danmarks Statistik, DNVALA: Valutakurser efter valuta, kurstype og opgørelsesmetode (årsobservationer)
B58: OBS! Årstallene skal være formateret som tal!
B59: Bemærk: Når der ikke er data for året bruges gennemsnit for de tilgængelige måneder.

Sheet Udvalgte lande, 10 års oversigt
D1: NAVN PÅ ARK: | E1: Udvalgte lande, 10 års oversigt
D2: Data hentes fra: | E2: 'Forside', 'Level 1', 'Level 2', 'Afgifter og moms' og 'Baggrundsdata -BVT-deflator'
D4: Sådan bruges arket:
D5: ="Arket 'Udvalgte lande, 10 års oversigt' viser figurer og tabeller (de grå-blå) for elprisen for industielle forbrugere på level 1 og 2 for hvert interval. Prisen vises for udvalgte lande for årene "&E47&" til "&M47&". Landene er valgt på baggrund af Nationalbankens effektive kronekursindeks og udgøres af de europæiske lande Danmark har mest samhandel med." -> Arket 'Udvalgte lande, 10 års oversigt' viser figurer og tabeller (de grå-blå) for elprisen for industielle forbrugere på level 1 og 2 for hvert interval. Prisen vises for udvalgte lande for årene 2007 til 2015. Landene er valgt på baggrund af Nationalbankens effektive kronekursindeks og udgøres af de europæiske lande Danmark har mest samhandel med.
D6: Pristypen, basisået, valuta og enhed kan ændres. Dette gøres i de farvede rullemenuer nedenfor. Rent teknisk styrer hver menu en tabel længere nede i tilsvarende farve. Disse tabeller ganges på rådata (arkene level1 og 2) for hvert level, heraf fremkommer resultattabellerne med som følge af de valg man traf i rullemenuerne. Til hver resultattabel er tilkoblet en figur der viser prisudviklingen grafisk.
D12: Vælg | F12: Vises i
D13: Vælg pristype | E13: faste priser | F13: Tabel B
D14: Vælg Basisår (kun ved fast pris) | E14: 2016 | F14: Tabel B
D15: Vælg valuta | E15: DKK øre | F15: Tabel C
D19: Resultattabeller:
D20: Valgene truffet ovenfor giver tabeller og figurer der er:
D21: ="Oppgjort i "&$E$13&" med basisår "&$E$14 -> Oppgjort i faste priser med basisår 2016
D22: ="Vist i "&E15&" / kWh" -> Vist i DKK øre / kWh
D26: IA: <0,02 GWh | Q26: IB: 0,02 < 0,5 GWh | AD26: IC: 0,5 < 2 GWh | AQ26: ID: 2 < 20 GWh | BD26: IE:20 < 70 GWh | BQ26: IF: 70 < 150 GWh | CD26: IG: > 150 GWh
B27: Level 1: Elspris ekskl. PSO og afgifter | D27: ="Figur XX: "&$B$27&" for intervalet "&D26&". Priserne er vist i "&$E$15&" / kWh i "&$E$13&" med basisår "&$E$14&". " -> Figur XX: Level 1: Elspris ekskl. PSO og afgifter for intervalet IA: <0,02 GWh. Priserne er vist i DKK øre / kWh i faste priser med basisår 2016. | Q27: ="Figur XX: "&$B$27&" for intervalet "&Q26&". Priserne er vist i "&$E$15&" / kWh i "&$E$13&" med basisår "&$E$14&". " -> Figur XX: Level 1: Elspris ekskl. PSO og afgifter for intervalet IB: 0,02 < 0,5 GWh. Priserne er vist i DKK øre / kWh i faste priser med basisår 2016. | AD27: ="Figur XX: "&$B$27&" for intervalet "&AD26&". Priserne er vist i "&$E$15&" / kWh i "&$E$13&" med basisår "&$E$14&". " -> Figur XX: Level 1: Elspris ekskl. PSO og afgifter for intervalet IC: 0,5 < 2 GWh. Priserne er vist i DKK øre / kWh i faste priser med basisår 2016. | AQ27: ="Figur XX: "&$B$27&" for intervalet "&AQ26&". Priserne er vist i "&$E$15&" / kWh i "&$E$13&" med basisår "&$E$14&". " -> Figur XX: Level 1: Elspris ekskl. PSO og afgifter for intervalet ID: 2 < 20 GWh. Priserne er vist i DKK øre / kWh i faste priser med basisår 2016. | BD27: ="Figur XX: "&$B$27&" for intervalet "&BD26&". Priserne er vist i "&$E$15&" / kWh i "&$E$13&" med basisår "&$E$14&". " -> Figur XX: Level 1: Elspris ekskl. PSO og afgifter for intervalet IE:20 < 70 GWh. Priserne er vist i DKK øre / kWh i faste priser med basisår 2016. | BQ27: ="Figur XX: "&$B$27&" for intervalet "&BQ26&". Priserne er vist i "&$E$15&" / kWh i "&$E$13&" med basisår "&$E$14&". " -> Figur XX: Level 1: Elspris ekskl. PSO og afgifter for intervalet IF: 70 < 150 GWh. Priserne er vist i DKK øre / kWh i faste priser med basisår 2016. | CD27: ="Figur XX: "&$B$27&" for intervalet "&CD26&". Priserne er vist i "&$E$15&" / kWh i "&$E$13&" med basisår "&$E$14&". " -> Figur XX: Level 1: Elspris ekskl. PSO og afgifter for intervalet IG: > 150 GWh. Priserne er vist i DKK øre / kWh i faste priser med basisår 2016. | CR27: =B27 -> Level 1: Elspris ekskl. PSO og afgifter
D46: Kilde: Eurostat | Q46: Kilde: Eurostat | AD46: Kilde: Eurostat | AQ46: Kilde: Eurostat | BD46: Kilde: Eurostat | BQ46: Kilde: Eurostat
D47: =$E$15&"/kWh" -> DKK øre/kWh | E47: ='Level 1'!B$5 -> 2007 | F47: ='Level 1'!C$5 -> 2008 | G47: ='Level 1'!D$5 -> 2009 | H47: ='Level 1'!E$5 -> 2010 | I47: ='Level 1'!F$5 -> 2011 | J47: ='Level 1'!G$5 -> 2012 | K47: ='Level 1'!H$5 -> 2013 | L47: ='Level 1'!I$5 -> 2014 | M47: ='Level 1'!J$5 -> 2015 | N47: ='Level 1'!K$5 -> 2016 | O47: ='Level 1'!L$5 -> 2017 | Q47: =$E$15&"/kWh" -> DKK øre/kWh | R47: ='Level 1'!O$5 -> 2007 | S47: ='Level 1'!P$5 -> 2008 | T47: ='Level 1'!Q$5 -> 2009 | U47: ='Level 1'!R$5 -> 2010 | V47: ='Level 1'!S$5 -> 2011 | W47: ='Level 1'!T$5 -> 2012 | X47: ='Level 1'!U$5 -> 2013 | Y47: ='Level 1'!V$5 -> 2014 | Z47: ='Level 1'!W$5 -> 2015 | AA47: ='Level 1'!X$5 -> 2016 | AB47: ='Level 1'!Y$5 -> 2017 | AD47: =$E$15&"/kWh" -> DKK øre/kWh | AE47: ='Level 1'!AB$5 -> 2007 | AF47: ='Level 1'!AC$5 -> 2008 | AG47: ='Level 1'!AD$5 -> 2009 | AH47: ='Level 1'!AE$5 -> 2010 | AI47: ='Level 1'!AF$5 -> 2011 | AJ47: ='Level 1'!AG$5 -> 2012 | AK47: ='Level 1'!AH$5 -> 2013 | AL47: ='Level 1'!AI$5 -> 2014 | AM47: ='Level 1'!AJ$5 -> 2015 | AN47: ='Level 1'!AK$5 -> 2016 | AO47: ='Level 1'!AL$5 -> 2017 | AQ47: =$E$15&"/kWh" -> DKK øre/kWh | AR47: ='Level 1'!AO$5 -> 2007 | AS47: ='Level 1'!AP$5 -> 2008 | AT47: ='Level 1'!AQ$5 -> 2009 | AU47: ='Level 1'!AR$5 -> 2010 | AV47: ='Level 1'!AS$5 -> 2011 | AW47: ='Level 1'!AT$5 -> 2012 | AX47: ='Level 1'!AU$5 -> 2013 | AY47: ='Level 1'!AV$5 -> 2014 | AZ47: ='Level 1'!AW$5 -> 2015 | BA47: ='Level 1'!AX$5 -> 2016 | BB47: ='Level 1'!AY$5 -> 2017 | BD47: =$E$15&"/kWh" -> DKK øre/kWh | BE47: ='Level 1'!BB$5 -> 2007 | BF47: ='Level 1'!BC$5 -> 2008 | BG47: ='Level 1'!BD$5 -> 2009 | BH47: ='Level 1'!BE$5 -> 2010 | BI47: ='Level 1'!BF$5 -> 2011 | BJ47: ='Level 1'!BG$5 -> 2012 | BK47: ='Level 1'!BH$5 -> 2013 | BL47: ='Level 1'!BI$5 -> 2014 | BM47: ='Level 1'!BJ$5 -> 2015 | BN47: ='Level 1'!BK$5 -> 2016 | BO47: ='Level 1'!BL$5 -> 2017 | BQ47: =$E$15&"/kWh" -> DKK øre/kWh | BR47: ='Level 1'!BO$5 -> 2007 | BS47: ='Level 1'!BP$5 -> 2008 | BT47: ='Level 1'!BQ$5 -> 2009 | BU47: ='Level 1'!BR$5 -> 2010 | BV47: ='Level 1'!BS$5 -> 2011 | BW47: ='Level 1'!BT$5 -> 2012 | BX47: ='Level 1'!BU$5 -> 2013 | BY47: ='Level 1'!BV$5 -> 2014 | BZ47: ='Level 1'!BW$5 -> 2015 | CA47: ='Level 1'!BX$5 -> 2016 | CB47: ='Level 1'!BY$5 -> 2017 | CD47: =$E$15&"/kWh" -> DKK øre/kWh | CE47: ='Level 1'!CB$5 -> 2007 | CF47: ='Level 1'!CC$5 -> 2008 | CG47: ='Level 1'!CD$5 -> 2009 | CH47: ='Level 1'!CE$5 -> 2010 | CI47: ='Level 1'!CF$5 -> 2011 | CJ47: ='Level 1'!CG$5 -> 2012 | CK47: ='Level 1'!CH$5 -> 2013 | CL47: ='Level 1'!CI$5 -> 2014 | CM47: ='Level 1'!CJ$5 -> 2015 | CN47: ='Level 1'!CK$5 -> 2016 | CO47: ='Level 1'!CL$5 -> 2017
D48: ='Oversættelse af landenavne'!$B$6 -> EU-28 | E48: =IFERROR('Level 1'!B6/E109*R$109,"*") -> 108.3126621 | F48: =IFERROR('Level 1'!C6/F109*S$109,"*") -> 114.511406 | G48: =IFERROR('Level 1'!D6/G109*T$109,"*") -> 122.4832177 | H48: =IFERROR('Level 1'!E6/H109*U$109,"*") -> 122.6195351 | I48: =IFERROR('Level 1'!F6/I109*V$109,"*") -> 122.0400663 | J48: =IFERROR('Level 1'!G6/J109*W$109,"*") -> 121.812796 | K48: =IFERROR('Level 1'!H6/K109*X$109,"*") -> 120.8702996 | L48: =IFERROR('Level 1'!I6/L109*Y$109,"*") -> 117.807371 | M48: =IFERROR('Level 1'!J6/M109*Z$109,"*") -> 113.4738022 | N48: =IFERROR('Level 1'!K6/N109*AA$109,"*") -> 104.1158885 | O48: =IFERROR('Level 1'!L6/O109*AB$109,"*") -> * | Q48: ='Oversættelse af landenavne'!$B$6 -> EU-28 | R48: =IFERROR('Level 1'!O6/E109*R$109,"*") -> 84.59824386 | S48: =IFERROR('Level 1'!P6/F109*S$109,"*") -> 88.18550163 | T48: =IFERROR('Level 1'!Q6/G109*T$109,"*") -> 91.5454277 | U48: =IFERROR('Level 1'!R6/H109*U$109,"*") -> 89.27599071 | V48: =IFERROR('Level 1'!S6/I109*V$109,"*") -> 91.6329156 | W48: =IFERROR('Level 1'!T6/J109*W$109,"*") -> 91.30936078 | X48: =IFERROR('Level 1'!U6/K109*X$109,"*") -> 90.67274958 | Y48: =IFERROR('Level 1'!V6/L109*Y$109,"*") -> 87.89241798 | Z48: =IFERROR('Level 1'!W6/M109*Z$109,"*") -> 84.07028654 | AA48: =IFERROR('Level 1'!X6/N109*AA$109,"*") -> 77.60282959 | AB48: =IFERROR('Level 1'!Y6/O109*AB$109,"*") -> * | AD48: ='Oversættelse af landenavne'!$B$6 -> EU-28 | AE48: =IFERROR('Level 1'!AB6/E109*R109,"*") -> 71.56372319 | AF48: =IFERROR('Level 1'!AC6/F109*S109,"*") -> 75.46201207 | AG48: =IFERROR('Level 1'!AD6/G109*T109,"*") -> 78.9927998 | AH48: =IFERROR('Level 1'!AE6/H109*U109,"*") -> 75.65621166 | AI48: =IFERROR('Level 1'!AF6/I109*V109,"*") -> 76.49105977 | AJ48: =IFERROR('Level 1'!AG6/J109*W109,"*") -> 76.23849357 | AK48: =IFERROR('Level 1'!AH6/K109*X109,"*") -> 74.73292877 | AL48: =IFERROR('Level 1'!AI6/L109*Y109,"*") -> 71.22044811 | AM48: =IFERROR('Level 1'!AJ6/M109*Z109,"*") -> 67.81593109 | AN48: =IFERROR('Level 1'!AK6/N109*AA109,"*") -> 62.48442805 | AO48: =IFERROR('Level 1'!AL6/O109*AB109,"*") -> * | AQ48: ='Oversættelse af landenavne'!$B$6 -> EU-28 | AR48: =IFERROR('Level 1'!AO6/E109*R$109,"*") -> 62.90207396 | AS48: =IFERROR('Level 1'!AP6/F109*S$109,"*") -> 68.01207411 | AT48: =IFERROR('Level 1'!AQ6/G109*T$109,"*") -> 70.32852802 | AU48: =IFERROR('Level 1'!AR6/H109*U$109,"*") -> 66.89470745 | AV48: =IFERROR('Level 1'!AS6/I109*V$109,"*") -> 67.27427796 | AW48: =IFERROR('Level 1'!AT6/J109*W$109,"*") -> 68.40164262 | AX48: =IFERROR('Level 1'!AU6/K109*X$109,"*") -> 66.84311796 | AY48: =IFERROR('Level 1'!AV6/L109*Y$109,"*") -> 63.21947912 | AZ48: =IFERROR('Level 1'!AW6/M109*Z$109,"*") -> 60.49380399 | BA48: =IFERROR('Level 1'!AX6/N109*AA$109,"*") -> 54.88798984 | BB48: =IFERROR('Level 1'!AY6/O109*AB$109,"*") -> * | BD48: ='Oversættelse af landenavne'!$B$6 -> EU-28 | BE48: =IFERROR('Level 1'!BB6/E109*R109,"*") -> 57.85645306 | BF48: =IFERROR('Level 1'!BC6/F109*S109,"*") -> 63.19891194 | BG48: =IFERROR('Level 1'!BD6/G109*T109,"*") -> 64.79184703 | BH48: =IFERROR('Level 1'!BE6/H109*U109,"*") -> 60.66614996 | BI48: =IFERROR('Level 1'!BF6/I109*V109,"*") -> 61.39035028 | BJ48: =IFERROR('Level 1'!BG6/J109*W109,"*") -> 61.77046105 | BK48: =IFERROR('Level 1'!BH6/K109*X109,"*") -> 60.35505019 | BL48: =IFERROR('Level 1'!BI6/L109*Y109,"*") -> 56.67681482 | BM48: =IFERROR('Level 1'!BJ6/M109*Z109,"*") -> 54.28341347 | BN48: =IFERROR('Level 1'!BK6/N109*AA109,"*") -> 48.18525024 | BO48: =IFERROR('Level 1'!BL6/O109*AB109,"*") -> * | BQ48: ='Oversættelse af landenavne'!$B$6 -> EU-28 | BR48: =IFERROR('Level 1'!BO6/E109*R$109,"*") -> 51.46533324 | BS48: =IFERROR('Level 1'!BP6/F109*S$109,"*") -> 60.26916106 | BT48: =IFERROR('Level 1'!BQ6/G109*T$109,"*") -> 60.10046084 | BU48: =IFERROR('Level 1'!BR6/H109*U$109,"*") -> 57.46882378 | BV48: =IFERROR('Level 1'!BS6/I109*V$109,"*") -> 57.60488632 | BW48: =IFERROR('Level 1'!BT6/J109*W$109,"*") -> 57.10853946 | BX48: =IFERROR('Level 1'!BU6/K109*X$109,"*") -> 55.82942267 | BY48: =IFERROR('Level 1'!BV6/L109*Y$109,"*") -> 52.57779622 | BZ48: =IFERROR('Level 1'!BW6/M109*Z$109,"*") -> 50.21982461 | CA48: =IFERROR('Level 1'!BX6/N109*AA$109,"*") -> 43.04648321 | CB48: =IFERROR('Level 1'!BY6/O109*AB$109,"*") -> * | CD48: ='Oversættelse af landenavne'!$B$6 -> EU-28 | CE48: =IFERROR('Level 1'!CB6/E109*R109,"*") -> * | CF48: =IFERROR('Level 1'!CC6/F109*S109,"*") -> * | CG48: =IFERROR('Level 1'!CD6/G109*T109,"*") -> * | CH48: =IFERROR('Level 1'!CE6/H109*U109,"*") -> * | CI48: =IFERROR('Level 1'!CF6/I109*V109,"*") -> * | CJ48: =IFERROR('Level 1'!CG6/J109*W109,"*") -> * | CK48: =IFERROR('Level 1'!CH6/K109*X109,"*") -> * | CL48: =IFERROR('Level 1'!CI6/L109*Y109,"*") -> * | CM48: =IFERROR('Level 1'!CJ6/M109*Z109,"*") -> * | CN48: =IFERROR('Level 1'!CK6/N109*AA109,"*") -> * | CO48: =IFERROR('Level 1'!CL6/O109*AB109,"*") -> *
D49: ='Oversættelse af landenavne'!$B$7 -> Belgien | E49: =IFERROR('Level 1'!B7/E110*R$109,"*") -> 110.1790746 | F49: =IFERROR('Level 1'!C7/F110*S$109,"*") -> 128.247656 | G49: =IFERROR('Level 1'!D7/G110*T$109,"*") -> 113.9524631 | H49: =IFERROR('Level 1'!E7/H110*U$109,"*") -> 116.7015407 | I49: =IFERROR('Level 1'!F7/I110*V$109,"*") -> 127.4291113 | J49: =IFERROR('Level 1'!G7/J110*W$109,"*") -> 126.501025 | K49: =IFERROR('Level 1'!H7/K110*X$109,"*") -> 119.867558 | L49: =IFERROR('Level 1'!I7/L110*Y$109,"*") -> 119.9482926 | M49: =IFERROR('Level 1'!J7/M110*Z$109,"*") -> 114.7658268 | N49: =IFERROR('Level 1'!K7/N110*AA$109,"*") -> 113.0528746 | O49: =IFERROR('Level 1'!L7/O110*AB$109,"*") -> * | Q49: ='Oversættelse af landenavne'!$B$7 -> Belgien | R49: =IFERROR('Level 1'!O7/E110*R$109,"*") -> 90.68132834 | S49: =IFERROR('Level 1'!P7/F110*S$109,"*") -> 107.0312752 | T49: =IFERROR('Level 1'!Q7/G110*T$109,"*") -> 97.14181615 | U49: =IFERROR('Level 1'!R7/H110*U$109,"*") -> 93.61816061 | V49: =IFERROR('Level 1'!S7/I110*V$109,"*") -> 101.2018259 | W49: =IFERROR('Level 1'!T7/J110*W$109,"*") -> 102.7313549 | X49: =IFERROR('Level 1'!U7/K110*X$109,"*") -> 95.61137594 | Y49: =IFERROR('Level 1'!V7/L110*Y$109,"*") -> 94.46449477 | Z49: =IFERROR('Level 1'!W7/M110*Z$109,"*") -> 92.05332374 | AA49: =IFERROR('Level 1'!X7/N110*AA$109,"*") -> 87.50798922 | AB49: =IFERROR('Level 1'!Y7/O110*AB$109,"*") -> * | AD49: ='Oversættelse af landenavne'!$B$7 -> Belgien | AE49: =IFERROR('Level 1'!AB7/E110*R109,"*") -> 71.68783417 | AF49: =IFERROR('Level 1'!AC7/F110*S109,"*") -> 76.23862911 | AG49: =IFERROR('Level 1'!AD7/G110*T109,"*") -> 82.33535828 | AH49: =IFERROR('Level 1'!AE7/H110*U109,"*") -> 75.67334166 | AI49: =IFERROR('Level 1'!AF7/I110*V109,"*") -> 78.52409796 | AJ49: =IFERROR('Level 1'!AG7/J110*W109,"*") -> 73.85990185 | AK49: =IFERROR('Level 1'!AH7/K110*X109,"*") -> 69.98004024 | AL49: =IFERROR('Level 1'!AI7/L110*Y109,"*") -> 68.07056126 | AM49: =IFERROR('Level 1'!AJ7/M110*Z109,"*") -> 68.36313013 | AN49: =IFERROR('Level 1'!AK7/N110*AA109,"*") -> 63.30365178 | AO49: =IFERROR('Level 1'!AL7/O110*AB109,"*") -> * | AQ49: ='Oversættelse af landenavne'!$B$7 -> Belgien | AR49: =IFERROR('Level 1'!AO7/E110*R$109,"*") -> 62.86342317 | AS49: =IFERROR('Level 1'!AP7/F110*S$109,"*") -> 69.92324727 | AT49: =IFERROR('Level 1'!AQ7/G110*T$109,"*") -> 74.85032571 | AU49: =IFERROR('Level 1'!AR7/H110*U$109,"*") -> 67.16259979 | AV49: =IFERROR('Level 1'!AS7/I110*V$109,"*") -> 69.37412773 | AW49: =IFERROR('Level 1'!AT7/J110*W$109,"*") -> 66.74832574 | AX49: =IFERROR('Level 1'!AU7/K110*X$109,"*") -> 61.69091975 | AY49: =IFERROR('Level 1'!AV7/L110*Y$109,"*") -> 60.63778688 | AZ49: =IFERROR('Level 1'!AW7/M110*Z$109,"*") -> 59.37589795 | BA49: =IFERROR('Level 1'!AX7/N110*AA$109,"*") -> 55.85616333 | BB49: =IFERROR('Level 1'!AY7/O110*AB$109,"*") -> * | BD49: ='Oversættelse af landenavne'!$B$7 -> Belgien | BE49: =IFERROR('Level 1'!BB7/E110*R109,"*") -> 55.63581034 | BF49: =IFERROR('Level 1'!BC7/F110*S109,"*") -> 60.22315099 | BG49: =IFERROR('Level 1'!BD7/G110*T109,"*") -> 69.410384 | BH49: =IFERROR('Level 1'!BE7/H110*U109,"*") -> 57.40736264 | BI49: =IFERROR('Level 1'!BF7/I110*V109,"*") -> 60.14527845 | BJ49: =IFERROR('Level 1'!BG7/J110*W109,"*") -> 54.57361665 | BK49: =IFERROR('Level 1'!BH7/K110*X109,"*") -> 50.3077036 | BL49: =IFERROR('Level 1'!BI7/L110*Y109,"*") -> 50.24707168 | BM49: =IFERROR('Level 1'!BJ7/M110*Z109,"*") -> 49.07254391 | BN49: =IFERROR('Level 1'!BK7/N110*AA109,"*") -> 43.71675717 | BO49: =IFERROR('Level 1'!BL7/O110*AB109,"*") -> * | BQ49: ='Oversættelse af landenavne'!$B$7 -> Belgien | BR49: =IFERROR('Level 1'!BO7/E110*R109,"*") -> 47.81990345 | BS49: =IFERROR('Level 1'!BP7/F110*S109,"*") -> 56.17800445 | BT49: =IFERROR('Level 1'!BQ7/G110*T109,"*") -> 61.27092236 | BU49: =IFERROR('Level 1'!BR7/H110*U109,"*") -> 52.87097664 | BV49: =IFERROR('Level 1'!BS7/I110*V109,"*") -> 54.97870043 | BW49: =IFERROR('Level 1'!BT7/J110*W109,"*") -> 52.79572262 | BX49: =IFERROR('Level 1'!BU7/K110*X109,"*") -> 45.53286461 | BY49: =IFERROR('Level 1'!BV7/L110*Y109,"*") -> 47.17536391 | BZ49: =IFERROR('Level 1'!BW7/M110*Z109,"*") -> 44.40971215 | CA49: =IFERROR('Level 1'!BX7/N110*AA109,"*") -> 38.42904037 | CB49: =IFERROR('Level 1'!BY7/O110*AB109,"*") -> * | CD49: ='Oversættelse af landenavne'!$B$7 -> Belgien | CE49: =IFERROR('Level 1'!CB7/E110*R$109,"*") -> * | CF49: =IFERROR('Level 1'!CC7/F110*S$109,"*") -> * | CG49: =IFERROR('Level 1'!CD7/G110*T$109,"*") -> * | CH49: =IFERROR('Level 1'!CE7/H110*U$109,"*") -> * | CI49: =IFERROR('Level 1'!CF7/I110*V$109,"*") -> * | CJ49: =IFERROR('Level 1'!CG7/J110*W$109,"*") -> * | CK49: =IFERROR('Level 1'!CH7/K110*X$109,"*") -> * | CL49: =IFERROR('Level 1'!CI7/L110*Y$109,"*") -> * | CM49: =IFERROR('Level 1'!CJ7/M110*Z$109,"*") -> * | CN49: =IFERROR('Level 1'!CK7/N110*AA$109,"*") -> 42.52515902 | CO49: =IFERROR('Level 1'!CL7/O110*AB$109,"*") -> *
D50: ='Oversættelse af landenavne'!$B$10 -> Danmark | E50: =IFERROR('Level 1'!B10/E111*R$109,"*") -> 76.76307698 | F50: =IFERROR('Level 1'!C10/F111*S$109,"*") -> 86.39521002 | G50: =IFERROR('Level 1'!D10/G111*T$109,"*") -> 72.64050523 | H50: =IFERROR('Level 1'!E10/H111*U$109,"*") -> 72.16467338 | I50: =IFERROR('Level 1'!F10/I111*V$109,"*") -> 81.07887922 | J50: =IFERROR('Level 1'!G10/J111*W$109,"*") -> 71.59501049 | K50: =IFERROR('Level 1'!H10/K111*X$109,"*") -> 67.24032489 | L50: =IFERROR('Level 1'!I10/L111*Y$109,"*") -> 64.85328681 | M50: =IFERROR('Level 1'!J10/M111*Z$109,"*") -> 60.62492813 | N50: =IFERROR('Level 1'!K10/N111*AA$109,"*") -> 59.28200802 | O50: =IFERROR('Level 1'!L10/O111*AB$109,"*") -> * | Q50: ='Oversættelse af landenavne'!$B$10 -> Danmark | R50: =IFERROR('Level 1'!O10/E111*R$109,"*") -> 73.67490721 | S50: =IFERROR('Level 1'!P10/F111*S$109,"*") -> 71.11184685 | T50: =IFERROR('Level 1'!Q10/G111*T$109,"*") -> 56.19596689 | U50: =IFERROR('Level 1'!R10/H111*U$109,"*") -> 65.36126983 | V50: =IFERROR('Level 1'!S10/I111*V$109,"*") -> 65.48368725 | W50: =IFERROR('Level 1'!T10/J111*W$109,"*") -> 55.71976513 | X50: =IFERROR('Level 1'!U10/K111*X$109,"*") -> 56.74126153 | Y50: =IFERROR('Level 1'!V10/L111*Y$109,"*") -> 55.60491002 | Z50: =IFERROR('Level 1'!W10/M111*Z$109,"*") -> 49.79095903 | AA50: =IFERROR('Level 1'!X10/N111*AA$109,"*") -> 49.07894885 | AB50: =IFERROR('Level 1'!Y10/O111*AB$109,"*") -> * | AD50: ='Oversættelse af landenavne'!$B$10 -> Danmark | AE50: =IFERROR('Level 1'!AB10/E111*R109,"*") -> 67.49856769 | AF50: =IFERROR('Level 1'!AC10/F111*S109,"*") -> 64.75430459 | AG50: =IFERROR('Level 1'!AD10/G111*T109,"*") -> 51.88607516 | AH50: =IFERROR('Level 1'!AE10/H111*U109,"*") -> 60.13722782 | AI50: =IFERROR('Level 1'!AF10/I111*V109,"*") -> 59.60022981 | AJ50: =IFERROR('Level 1'!AG10/J111*W109,"*") -> 49.54171397 | AK50: =IFERROR('Level 1'!AH10/K111*X109,"*") -> 50.29514542 | AL50: =IFERROR('Level 1'!AI10/L111*Y109,"*") -> 50.44569157 | AM50: =IFERROR('Level 1'!AJ10/M111*Z109,"*") -> 45.07233137 | AN50: =IFERROR('Level 1'!AK10/N111*AA109,"*") -> 44.83388044 | AO50: =IFERROR('Level 1'!AL10/O111*AB109,"*") -> * | AQ50: ='Oversættelse af landenavne'!$B$10 -> Danmark | AR50: =IFERROR('Level 1'!AO10/E111*R$109,"*") -> 67.145634 | AS50: =IFERROR('Level 1'!AP10/F111*S$109,"*") -> 64.58589287 | AT50: =IFERROR('Level 1'!AQ10/G111*T$109,"*") -> 51.55132629 | AU50: =IFERROR('Level 1'!AR10/H111*U$109,"*") -> 59.77275977 | AV50: =IFERROR('Level 1'!AS10/I111*V$109,"*") -> 59.23755092 | AW50: =IFERROR('Level 1'!AT10/J111*W$109,"*") -> 49.18979967 | AX50: =IFERROR('Level 1'!AU10/K111*X$109,"*") -> 49.94774994 | AY50: =IFERROR('Level 1'!AV10/L111*Y$109,"*") -> 49.98709437 | AZ50: =IFERROR('Level 1'!AW10/M111*Z$109,"*") -> 45.33657452 | BA50: =IFERROR('Level 1'!AX10/N111*AA$109,"*") -> 44.68493067 | BB50: =IFERROR('Level 1'!AY10/O111*AB$109,"*") -> * | BD50: ='Oversættelse af landenavne'!$B$10 -> Danmark | BE50: =IFERROR('Level 1'!BB10/E111*R109,"*") -> 62.46926264 | BF50: =IFERROR('Level 1'!BC10/F111*S109,"*") -> 60.33349706 | BG50: =IFERROR('Level 1'!BD10/G111*T109,"*") -> 46.19534434 | BH50: =IFERROR('Level 1'!BE10/H111*U109,"*") -> 54.38673196 | BI50: =IFERROR('Level 1'!BF10/I111*V109,"*") -> 53.03171226 | BJ50: =IFERROR('Level 1'!BG10/J111*W109,"*") -> 42.77713898 | BK50: =IFERROR('Level 1'!BH10/K111*X109,"*") -> 43.15423836 | BL50: =IFERROR('Level 1'!BI10/L111*Y109,"*") -> 40.85336688 | BM50: =IFERROR('Level 1'!BJ10/M111*Z109,"*") -> 35.93706823 | BN50: =IFERROR('Level 1'!BK10/N111*AA109,"*") -> 35.22662034 | BO50: =IFERROR('Level 1'!BL10/O111*AB109,"*") -> * | BQ50: ='Oversættelse af landenavne'!$B$10 -> Danmark | BR50: =IFERROR('Level 1'!BO10/E111*R$109,"*") -> 62.46926264 | BS50: =IFERROR('Level 1'!BP10/F111*S$109,"*") -> 60.33349706 | BT50: =IFERROR('Level 1'!BQ10/G111*T$109,"*") -> 46.15350073 | BU50: =IFERROR('Level 1'!BR10/H111*U$109,"*") -> 54.38673196 | BV50: =IFERROR('Level 1'!BS10/I111*V$109,"*") -> 53.03171226 | BW50: =IFERROR('Level 1'!BT10/J111*W$109,"*") -> 42.77713898 | BX50: =IFERROR('Level 1'!BU10/K111*X$109,"*") -> 43.15423836 | BY50: =IFERROR('Level 1'!BV10/L111*Y$109,"*") -> 39.2482767 | BZ50: =IFERROR('Level 1'!BW10/M111*Z$109,"*") -> 35.06884074 | CA50: =IFERROR('Level 1'!BX10/N111*AA$109,"*") -> 33.96054731 | CB50: =IFERROR('Level 1'!BY10/O111*AB$109,"*") -> * | CD50: ='Oversættelse af landenavne'!$B$10 -> Danmark | CE50: =IFERROR('Level 1'!CB10/E111*R$109,"*") -> * | CF50: =IFERROR('Level 1'!CC10/F111*S$109,"*") -> * | CG50: =IFERROR('Level 1'!CD10/G111*T$109,"*") -> * | CH50: =IFERROR('Level 1'!CE10/H111*U$109,"*") -> * | CI50: =IFERROR('Level 1'!CF10/I111*V$109,"*") -> * | CJ50: =IFERROR('Level 1'!CG10/J111*W$109,"*") -> * | CK50: =IFERROR('Level 1'!CH10/K111*X$109,"*") -> * | CL50: =IFERROR('Level 1'!CI10/L111*Y$109,"*") -> * | CM50: =IFERROR('Level 1'!CJ10/M111*Z$109,"*") -> * | CN50: =IFERROR('Level 1'!CK10/N111*AA$109,"*") -> * | CO50: =IFERROR('Level 1'!CL10/O111*AB$109,"*") -> *
D51: ='Oversættelse af landenavne'!$B$11 -> Tyskland | E51: =IFERROR('Level 1'!B11/E112*R$109,"*") -> 127.8135813 | F51: =IFERROR('Level 1'!C11/F112*S$109,"*") -> 132.7997859 | G51: =IFERROR('Level 1'!D11/G112*T$109,"*") -> 136.5147466 | H51: =IFERROR('Level 1'!E11/H112*U$109,"*") -> 133.0437876 | I51: =IFERROR('Level 1'!F11/I112*V$109,"*") -> 136.196857 | J51: =IFERROR('Level 1'!G11/J112*W$109,"*") -> 134.2108978 | K51: =IFERROR('Level 1'!H11/K112*X$109,"*") -> 124.5598806 | L51: =IFERROR('Level 1'!I11/L112*Y$109,"*") -> 110.0705664 | M51: =IFERROR('Level 1'!J11/M112*Z$109,"*") -> 102.2470569 | N51: =IFERROR('Level 1'!K11/N112*AA$109,"*") -> 95.84917628 | O51: =IFERROR('Level 1'!L11/O112*AB$109,"*") -> * | Q51: ='Oversættelse af landenavne'!$B$11 -> Tyskland | R51: =IFERROR('Level 1'!O11/E112*R$109,"*") -> 94.65439747 | S51: =IFERROR('Level 1'!P11/F112*S$109,"*") -> 96.20511821 | T51: =IFERROR('Level 1'!Q11/G112*T$109,"*") -> 96.04578279 | U51: =IFERROR('Level 1'!R11/H112*U$109,"*") -> 91.39241165 | V51: =IFERROR('Level 1'!S11/I112*V$109,"*") -> 90.37323128 | W51: =IFERROR('Level 1'!T11/J112*W$109,"*") -> 87.40914881 | X51: =IFERROR('Level 1'!U11/K112*X$109,"*") -> 86.33452529 | Y51: =IFERROR('Level 1'!V11/L112*Y$109,"*") -> 82.76714568 | Z51: =IFERROR('Level 1'!W11/M112*Z$109,"*") -> 77.70471449 | AA51: =IFERROR('Level 1'!X11/N112*AA$109,"*") -> 73.58118583 | AB51: =IFERROR('Level 1'!Y11/O112*AB$109,"*") -> * | AD51: ='Oversættelse af landenavne'!$B$11 -> Tyskland | AE51: =IFERROR('Level 1'!AB11/E112*R109,"*") -> 75.4048453 | AF51: =IFERROR('Level 1'!AC11/F112*S109,"*") -> 80.27768408 | AG51: =IFERROR('Level 1'!AD11/G112*T109,"*") -> 80.89607762 | AH51: =IFERROR('Level 1'!AE11/H112*U109,"*") -> 76.12577185 | AI51: =IFERROR('Level 1'!AF11/I112*V109,"*") -> 73.93426242 | AJ51: =IFERROR('Level 1'!AG11/J112*W109,"*") -> 71.78157519 | AK51: =IFERROR('Level 1'!AH11/K112*X109,"*") -> 70.0599711 | AL51: =IFERROR('Level 1'!AI11/L112*Y109,"*") -> 64.34415279 | AM51: =IFERROR('Level 1'!AJ11/M112*Z109,"*") -> 61.8131667 | AN51: =IFERROR('Level 1'!AK11/N112*AA109,"*") -> 58.68620894 | AO51: =IFERROR('Level 1'!AL11/O112*AB109,"*") -> * | AQ51: ='Oversættelse af landenavne'!$B$11 -> Tyskland | AR51: =IFERROR('Level 1'!AO11/E112*R$109,"*") -> 65.32789853 | AS51: =IFERROR('Level 1'!AP11/F112*S$109,"*") -> 71.31049597 | AT51: =IFERROR('Level 1'!AQ11/G112*T$109,"*") -> 70.14062395 | AU51: =IFERROR('Level 1'!AR11/H112*U$109,"*") -> 65.96184046 | AV51: =IFERROR('Level 1'!AS11/I112*V$109,"*") -> 65.55038831 | AW51: =IFERROR('Level 1'!AT11/J112*W$109,"*") -> 62.99612577 | AX51: =IFERROR('Level 1'!AU11/K112*X$109,"*") -> 61.52575366 | AY51: =IFERROR('Level 1'!AV11/L112*Y$109,"*") -> 55.85321737 | AZ51: =IFERROR('Level 1'!AW11/M112*Z$109,"*") -> 53.00993519 | BA51: =IFERROR('Level 1'!AX11/N112*AA$109,"*") -> 49.97264746 | BB51: =IFERROR('Level 1'!AY11/O112*AB$109,"*") -> * | BD51: ='Oversættelse af landenavne'!$B$11 -> Tyskland | BE51: =IFERROR('Level 1'!BB11/E112*R$109,"*") -> 59.90185026 | BF51: =IFERROR('Level 1'!BC11/F112*S$109,"*") -> 67.85172341 | BG51: =IFERROR('Level 1'!BD11/G112*T$109,"*") -> 64.53272203 | BH51: =IFERROR('Level 1'!BE11/H112*U$109,"*") -> 58.66040403 | BI51: =IFERROR('Level 1'!BF11/I112*V$109,"*") -> 58.4816317 | BJ51: =IFERROR('Level 1'!BG11/J112*W$109,"*") -> 57.93538302 | BK51: =IFERROR('Level 1'!BH11/K112*X$109,"*") -> 55.45256636 | BL51: =IFERROR('Level 1'!BI11/L112*Y$109,"*") -> 49.23184571 | BM51: =IFERROR('Level 1'!BJ11/M112*Z$109,"*") -> 47.0267865 | BN51: =IFERROR('Level 1'!BK11/N112*AA$109,"*") -> 40.66328691 | BO51: =IFERROR('Level 1'!BL11/O112*AB$109,"*") -> * | BQ51: ='Oversættelse af landenavne'!$B$11 -> Tyskland | BR51: =IFERROR('Level 1'!BO11/E112*R$109,"*") -> 60.37555289 | BS51: =IFERROR('Level 1'!BP11/F112*S$109,"*") -> 65.37507145 | BT51: =IFERROR('Level 1'!BQ11/G112*T$109,"*") -> 63.52832169 | BU51: =IFERROR('Level 1'!BR11/H112*U$109,"*") -> 56.91801579 | BV51: =IFERROR('Level 1'!BS11/I112*V$109,"*") -> 59.50906725 | BW51: =IFERROR('Level 1'!BT11/J112*W$109,"*") -> 52.42929491 | BX51: =IFERROR('Level 1'!BU11/K112*X$109,"*") -> 49.89540151 | BY51: =IFERROR('Level 1'!BV11/L112*Y$109,"*") -> 46.50539856 | BZ51: =IFERROR('Level 1'!BW11/M112*Z$109,"*") -> 42.26313309 | CA51: =IFERROR('Level 1'!BX11/N112*AA$109,"*") -> 33.43922312 | CB51: =IFERROR('Level 1'!BY11/O112*AB$109,"*") -> * | CD51: ='Oversættelse af landenavne'!$B$11 -> Tyskland | CE51: =IFERROR('Level 1'!CB11/E112*R$109,"*") -> * | CF51: =IFERROR('Level 1'!CC11/F112*S$109,"*") -> * | CG51: =IFERROR('Level 1'!CD11/G112*T$109,"*") -> * | CH51: =IFERROR('Level 1'!CE11/H112*U$109,"*") -> * | CI51: =IFERROR('Level 1'!CF11/I112*V$109,"*") -> * | CJ51: =IFERROR('Level 1'!CG11/J112*W$109,"*") -> * | CK51: =IFERROR('Level 1'!CH11/K112*X$109,"*") -> * | CL51: =IFERROR('Level 1'!CI11/L112*Y$109,"*") -> * | CM51: =IFERROR('Level 1'!CJ11/M112*Z$109,"*") -> * | CN51: =IFERROR('Level 1'!CK11/N112*AA$109,"*") -> * | CO51: =IFERROR('Level 1'!CL11/O112*AB$109,"*") -> *
D52: ='Oversættelse af landenavne'!$B$16 -> Frankrig | E52: =IFERROR('Level 1'!B16/E113*R$109,"*") -> 78.26825056 | F52: =IFERROR('Level 1'!C16/F113*S$109,"*") -> 76.86709592 | G52: =IFERROR('Level 1'!D16/G113*T$109,"*") -> 78.81947391 | H52: =IFERROR('Level 1'!E16/H113*U$109,"*") -> 81.31290463 | I52: =IFERROR('Level 1'!F16/I113*V$109,"*") -> 84.11251386 | J52: =IFERROR('Level 1'!G16/J113*W$109,"*") -> 83.88697928 | K52: =IFERROR('Level 1'!H16/K113*X$109,"*") -> 85.10945392 | L52: =IFERROR('Level 1'!I16/L113*Y$109,"*") -> 84.88134474 | M52: =IFERROR('Level 1'!J16/M113*Z$109,"*") -> 89.3709589 | N52: =IFERROR('Level 1'!K16/N113*AA$109,"*") -> 83.70977012 | O52: =IFERROR('Level 1'!L16/O113*AB$109,"*") -> * | Q52: ='Oversættelse af landenavne'!$B$16 -> Frankrig | R52: =IFERROR('Level 1'!O16/E113*R109,"*") -> 54.01725894 | S52: =IFERROR('Level 1'!P16/F113*S109,"*") -> 58.78770177 | T52: =IFERROR('Level 1'!Q16/G113*T109,"*") -> 62.84255353 | U52: =IFERROR('Level 1'!R16/H113*U109,"*") -> 64.00314165 | V52: =IFERROR('Level 1'!S16/I113*V109,"*") -> 67.24336829 | W52: =IFERROR('Level 1'!T16/J113*W109,"*") -> 66.63990873 | X52: =IFERROR('Level 1'!U16/K113*X109,"*") -> 69.43643877 | Y52: =IFERROR('Level 1'!V16/L113*Y109,"*") -> 70.13598062 | Z52: =IFERROR('Level 1'!W16/M113*Z109,"*") -> 70.12299056 | AA52: =IFERROR('Level 1'!X16/N113*AA109,"*") -> 66.72949646 | AB52: =IFERROR('Level 1'!Y16/O113*AB109,"*") -> * | AD52: ='Oversættelse af landenavne'!$B$16 -> Frankrig | AE52: =IFERROR('Level 1'!AB16/E113*R109,"*") -> 42.17563761 | AF52: =IFERROR('Level 1'!AC16/F113*S109,"*") -> 45.93036457 | AG52: =IFERROR('Level 1'!AD16/G113*T109,"*") -> 49.62707617 | AH52: =IFERROR('Level 1'!AE16/H113*U109,"*") -> 51.34317957 | AI52: =IFERROR('Level 1'!AF16/I113*V109,"*") -> 54.02790863 | AJ52: =IFERROR('Level 1'!AG16/J113*W109,"*") -> 55.78349379 | AK52: =IFERROR('Level 1'!AH16/K113*X109,"*") -> 55.37287749 | AL52: =IFERROR('Level 1'!AI16/L113*Y109,"*") -> 56.30742671 | AM52: =IFERROR('Level 1'!AJ16/M113*Z109,"*") -> 55.0265448 | AN52: =IFERROR('Level 1'!AK16/N113*AA109,"*") -> 53.17506749 | AO52: =IFERROR('Level 1'!AL16/O113*AB109,"*") -> * | AQ52: ='Oversættelse af landenavne'!$B$16 -> Frankrig | AR52: =IFERROR('Level 1'!AO16/E113*R$109,"*") -> 38.20139484 | AS52: =IFERROR('Level 1'!AP16/F113*S$109,"*") -> 41.22260111 | AT52: =IFERROR('Level 1'!AQ16/G113*T$109,"*") -> 46.23444616 | AU52: =IFERROR('Level 1'!AR16/H113*U$109,"*") -> 46.96689638 | AV52: =IFERROR('Level 1'!AS16/I113*V$109,"*") -> 48.31416577 | AW52: =IFERROR('Level 1'!AT16/J113*W$109,"*") -> 49.23884649 | AX52: =IFERROR('Level 1'!AU16/K113*X$109,"*") -> 48.47521801 | AY52: =IFERROR('Level 1'!AV16/L113*Y$109,"*") -> 48.93474465 | AZ52: =IFERROR('Level 1'!AW16/M113*Z$109,"*") -> 49.66730655 | BA52: =IFERROR('Level 1'!AX16/N113*AA$109,"*") -> 46.69575255 | BB52: =IFERROR('Level 1'!AY16/O113*AB$109,"*") -> * | BD52: ='Oversættelse af landenavne'!$B$16 -> Frankrig | BE52: =IFERROR('Level 1'!BB16/E113*R$109,"*") -> 39.01246479 | BF52: =IFERROR('Level 1'!BC16/F113*S$109,"*") -> 42.33031016 | BG52: =IFERROR('Level 1'!BD16/G113*T$109,"*") -> 46.62893802 | BH52: =IFERROR('Level 1'!BE16/H113*U$109,"*") -> 46.02912141 | BI52: =IFERROR('Level 1'!BF16/I113*V$109,"*") -> 45.82654984 | BJ52: =IFERROR('Level 1'!BG16/J113*W$109,"*") -> 46.35150209 | BK52: =IFERROR('Level 1'!BH16/K113*X$109,"*") -> 45.02638827 | BL52: =IFERROR('Level 1'!BI16/L113*Y$109,"*") -> 44.96190043 | BM52: =IFERROR('Level 1'!BJ16/M113*Z$109,"*") -> 45.21385505 | BN52: =IFERROR('Level 1'!BK16/N113*AA$109,"*") -> 42.07830971 | BO52: =IFERROR('Level 1'!BL16/O113*AB$109,"*") -> * | BQ52: ='Oversættelse af landenavne'!$B$16 -> Frankrig | BR52: =IFERROR('Level 1'!BO16/E113*R$109,"*") -> 36.01150596 | BS52: =IFERROR('Level 1'!BP16/F113*S$109,"*") -> 39.04674404 | BT52: =IFERROR('Level 1'!BQ16/G113*T$109,"*") -> 38.81799916 | BU52: =IFERROR('Level 1'!BR16/H113*U$109,"*") -> 41.88728196 | BV52: =IFERROR('Level 1'!BS16/I113*V$109,"*") -> 42.21173293 | BW52: =IFERROR('Level 1'!BT16/J113*W$109,"*") -> 43.27166806 | BX52: =IFERROR('Level 1'!BU16/K113*X$109,"*") -> 42.07572283 | BY52: =IFERROR('Level 1'!BV16/L113*Y$109,"*") -> 41.60026302 | BZ52: =IFERROR('Level 1'!BW16/M113*Z$109,"*") -> 41.32652027 | CA52: =IFERROR('Level 1'!BX16/N113*AA$109,"*") -> 38.20561572 | CB52: =IFERROR('Level 1'!BY16/O113*AB$109,"*") -> * | CD52: ='Oversættelse af landenavne'!$B$16 -> Frankrig | CE52: =IFERROR('Level 1'!CB16/E113*R$109,"*") -> * | CF52: =IFERROR('Level 1'!CC16/F113*S$109,"*") -> * | CG52: =IFERROR('Level 1'!CD16/G113*T$109,"*") -> * | CH52: =IFERROR('Level 1'!CE16/H113*U$109,"*") -> * | CI52: =IFERROR('Level 1'!CF16/I113*V$109,"*") -> * | CJ52: =IFERROR('Level 1'!CG16/J113*W$109,"*") -> * | CK52: =IFERROR('Level 1'!CH16/K113*X$109,"*") -> * | CL52: =IFERROR('Level 1'!CI16/L113*Y$109,"*") -> * | CM52: =IFERROR('Level 1'!CJ16/M113*Z$109,"*") -> * | CN52: =IFERROR('Level 1'!CK16/N113*AA$109,"*") -> * | CO52: =IFERROR('Level 1'!CL16/O113*AB$109,"*") -> *
D53: ='Oversættelse af landenavne'!$B$18 -> Italien | E53: =IFERROR('Level 1'!B18/E114*R$109,"*") -> * | F53: =IFERROR('Level 1'!C18/F114*S$109,"*") -> * | G53: =IFERROR('Level 1'!D18/G114*T$109,"*") -> * | H53: =IFERROR('Level 1'!E18/H114*U$109,"*") -> 172.2917942 | I53: =IFERROR('Level 1'!F18/I114*V$109,"*") -> 144.7345856 | J53: =IFERROR('Level 1'!G18/J114*W$109,"*") -> 131.7611557 | K53: =IFERROR('Level 1'!H18/K114*X$109,"*") -> 137.5686835 | L53: =IFERROR('Level 1'!I18/L114*Y$109,"*") -> 132.0124002 | M53: =IFERROR('Level 1'!J18/M114*Z$109,"*") -> 125.2611055 | N53: =IFERROR('Level 1'!K18/N114*AA$109,"*") -> 120.9472123 | O53: =IFERROR('Level 1'!L18/O114*AB$109,"*") -> * | Q53: ='Oversættelse af landenavne'!$B$18 -> Italien | R53: =IFERROR('Level 1'!O18/E114*R$109,"*") -> * | S53: =IFERROR('Level 1'!P18/F114*S$109,"*") -> * | T53: =IFERROR('Level 1'!Q18/G114*T$109,"*") -> * | U53: =IFERROR('Level 1'!R18/H114*U$109,"*") -> 92.48768466 | V53: =IFERROR('Level 1'!S18/I114*V$109,"*") -> 106.0608818 | W53: =IFERROR('Level 1'!T18/J114*W$109,"*") -> 105.3088138 | X53: =IFERROR('Level 1'!U18/K114*X$109,"*") -> 100.1192191 | Y53: =IFERROR('Level 1'!V18/L114*Y$109,"*") -> 93.20083032 | Z53: =IFERROR('Level 1'!W18/M114*Z$109,"*") -> 83.49487257 | AA53: =IFERROR('Level 1'!X18/N114*AA$109,"*") -> 75.44305794 | AB53: =IFERROR('Level 1'!Y18/O114*AB$109,"*") -> * | AD53: ='Oversættelse af landenavne'!$B$18 -> Italien | AE53: =IFERROR('Level 1'!AB18/E114*R109,"*") -> * | AF53: =IFERROR('Level 1'!AC18/F114*S109,"*") -> * | AG53: =IFERROR('Level 1'!AD18/G114*T109,"*") -> * | AH53: =IFERROR('Level 1'!AE18/H114*U109,"*") -> 87.9184464 | AI53: =IFERROR('Level 1'!AF18/I114*V109,"*") -> 91.04272318 | AJ53: =IFERROR('Level 1'!AG18/J114*W109,"*") -> 93.3340273 | AK53: =IFERROR('Level 1'!AH18/K114*X109,"*") -> 85.3756355 | AL53: =IFERROR('Level 1'!AI18/L114*Y109,"*") -> 80.80690128 | AM53: =IFERROR('Level 1'!AJ18/M114*Z109,"*") -> 69.99885309 | AN53: =IFERROR('Level 1'!AK18/N114*AA109,"*") -> 62.7078527 | AO53: =IFERROR('Level 1'!AL18/O114*AB109,"*") -> * | AQ53: ='Oversættelse af landenavne'!$B$18 -> Italien | AR53: =IFERROR('Level 1'!AO18/E114*R109,"*") -> * | AS53: =IFERROR('Level 1'!AP18/F114*S109,"*") -> * | AT53: =IFERROR('Level 1'!AQ18/G114*T109,"*") -> * | AU53: =IFERROR('Level 1'!AR18/H114*U109,"*") -> 82.32506854 | AV53: =IFERROR('Level 1'!AS18/I114*V109,"*") -> 79.56511492 | AW53: =IFERROR('Level 1'!AT18/J114*W109,"*") -> 89.29109295 | AX53: =IFERROR('Level 1'!AU18/K114*X109,"*") -> 78.44196051 | AY53: =IFERROR('Level 1'!AV18/L114*Y109,"*") -> 72.88539923 | AZ53: =IFERROR('Level 1'!AW18/M114*Z109,"*") -> 64.47262785 | BA53: =IFERROR('Level 1'!AX18/N114*AA109,"*") -> 57.64356056 | BB53: =IFERROR('Level 1'!AY18/O114*AB109,"*") -> * | BD53: ='Oversættelse af landenavne'!$B$18 -> Italien | BE53: =IFERROR('Level 1'!BB18/E114*R$109,"*") -> * | BF53: =IFERROR('Level 1'!BC18/F114*S$109,"*") -> * | BG53: =IFERROR('Level 1'!BD18/G114*T$109,"*") -> * | BH53: =IFERROR('Level 1'!BE18/H114*U$109,"*") -> 75.47121116 | BI53: =IFERROR('Level 1'!BF18/I114*V$109,"*") -> 74.97407161 | BJ53: =IFERROR('Level 1'!BG18/J114*W$109,"*") -> 74.73652929 | BK53: =IFERROR('Level 1'!BH18/K114*X$109,"*") -> 70.02249802 | BL53: =IFERROR('Level 1'!BI18/L114*Y$109,"*") -> 66.17675874 | BM53: =IFERROR('Level 1'!BJ18/M114*Z$109,"*") -> 57.59304132 | BN53: =IFERROR('Level 1'!BK18/N114*AA$109,"*") -> 51.53662004 | BO53: =IFERROR('Level 1'!BL18/O114*AB$109,"*") -> * | BQ53: ='Oversættelse af landenavne'!$B$18 -> Italien | BR53: =IFERROR('Level 1'!BO18/E114*R$109,"*") -> * | BS53: =IFERROR('Level 1'!BP18/F114*S$109,"*") -> * | BT53: =IFERROR('Level 1'!BQ18/G114*T$109,"*") -> * | BU53: =IFERROR('Level 1'!BR18/H114*U$109,"*") -> 73.58049188 | BV53: =IFERROR('Level 1'!BS18/I114*V$109,"*") -> 63.57427764 | BW53: =IFERROR('Level 1'!BT18/J114*W$109,"*") -> 69.15342947 | BX53: =IFERROR('Level 1'!BU18/K114*X$109,"*") -> 62.63165764 | BY53: =IFERROR('Level 1'!BV18/L114*Y$109,"*") -> 55.90533742 | BZ53: =IFERROR('Level 1'!BW18/M114*Z$109,"*") -> 50.37511447 | CA53: =IFERROR('Level 1'!BX18/N114*AA$109,"*") -> 42.07830971 | CB53: =IFERROR('Level 1'!BY18/O114*AB$109,"*") -> * | CD53: ='Oversættelse af landenavne'!$B$18 -> Italien | CE53: =IFERROR('Level 1'!CB18/E114*R$109,"*") -> * | CF53: =IFERROR('Level 1'!CC18/F114*S$109,"*") -> * | CG53: =IFERROR('Level 1'!CD18/G114*T$109,"*") -> * | CH53: =IFERROR('Level 1'!CE18/H114*U$109,"*") -> 77.91339023 | CI53: =IFERROR('Level 1'!CF18/I114*V$109,"*") -> 64.08007055 | CJ53: =IFERROR('Level 1'!CG18/J114*W$109,"*") -> 67.53625573 | CK53: =IFERROR('Level 1'!CH18/K114*X$109,"*") -> 64.72699898 | CL53: =IFERROR('Level 1'!CI18/L114*Y$109,"*") -> 51.50871427 | CM53: =IFERROR('Level 1'!CJ18/M114*Z$109,"*") -> 49.77362057 | CN53: =IFERROR('Level 1'!CK18/N114*AA$109,"*") -> 41.11013621 | CO53: =IFERROR('Level 1'!CL18/O114*AB$109,"*") -> *
D54: ='Oversættelse af landenavne'!$B$25 -> Holland | E54: =IFERROR('Level 1'!B25/E115*R$109,"*") -> 103.4488065 | F54: =IFERROR('Level 1'!C25/F115*S$109,"*") -> 95.67569403 | G54: =IFERROR('Level 1'!D25/G115*T$109,"*") -> 93.54433572 | H54: =IFERROR('Level 1'!E25/H115*U$109,"*") -> 87.88754802 | I54: =IFERROR('Level 1'!F25/I115*V$109,"*") -> 84.6815754 | J54: =IFERROR('Level 1'!G25/J115*W$109,"*") -> 88.79570623 | K54: =IFERROR('Level 1'!H25/K115*X$109,"*") -> 85.78024812 | L54: =IFERROR('Level 1'!I25/L115*Y$109,"*") -> 90.81934156 | M54: =IFERROR('Level 1'!J25/M115*Z$109,"*") -> 97.45889797 | N54: =IFERROR('Level 1'!K25/N115*AA$109,"*") -> 75.59200771 | O54: =IFERROR('Level 1'!L25/O115*AB$109,"*") -> * | Q54: ='Oversættelse af landenavne'!$B$25 -> Holland | R54: =IFERROR('Level 1'!O25/E115*R$109,"*") -> 84.68741128 | S54: =IFERROR('Level 1'!P25/F115*S$109,"*") -> 80.416225 | T54: =IFERROR('Level 1'!Q25/G115*T$109,"*") -> 85.77175835 | U54: =IFERROR('Level 1'!R25/H115*U$109,"*") -> 76.95973121 | V54: =IFERROR('Level 1'!S25/I115*V$109,"*") -> 75.38442165 | W54: =IFERROR('Level 1'!T25/J115*W$109,"*") -> 74.65092005 | X54: =IFERROR('Level 1'!U25/K115*X$109,"*") -> 71.3633997 | Y54: =IFERROR('Level 1'!V25/L115*Y$109,"*") -> 70.26073439 | Z54: =IFERROR('Level 1'!W25/M115*Z$109,"*") -> 66.28404095 | AA54: =IFERROR('Level 1'!X25/N115*AA$109,"*") -> 59.20753313 | AB54: =IFERROR('Level 1'!Y25/O115*AB$109,"*") -> * | AD54: ='Oversættelse af landenavne'!$B$25 -> Holland | AE54: =IFERROR('Level 1'!AB25/E115*R109,"*") -> 72.9565175 | AF54: =IFERROR('Level 1'!AC25/F115*S109,"*") -> 72.10001051 | AG54: =IFERROR('Level 1'!AD25/G115*T109,"*") -> 75.03075947 | AH54: =IFERROR('Level 1'!AE25/H115*U109,"*") -> 66.96194135 | AI54: =IFERROR('Level 1'!AF25/I115*V109,"*") -> 65.11881439 | AJ54: =IFERROR('Level 1'!AG25/J115*W109,"*") -> 63.89935751 | AK54: =IFERROR('Level 1'!AH25/K115*X109,"*") -> 61.49924025 | AL54: =IFERROR('Level 1'!AI25/L115*Y109,"*") -> 57.91050884 | AM54: =IFERROR('Level 1'!AJ25/M115*Z109,"*") -> 53.73166463 | AN54: =IFERROR('Level 1'!AK25/N115*AA109,"*") -> 48.55762466 | AO54: =IFERROR('Level 1'!AL25/O115*AB109,"*") -> * | AQ54: ='Oversættelse af landenavne'!$B$25 -> Holland | AR54: =IFERROR('Level 1'!AO25/E115*R$109,"*") -> 62.91294405 | AS54: =IFERROR('Level 1'!AP25/F115*S$109,"*") -> 62.8815652 | AT54: =IFERROR('Level 1'!AQ25/G115*T$109,"*") -> 68.07840383 | AU54: =IFERROR('Level 1'!AR25/H115*U$109,"*") -> 60.37425036 | AV54: =IFERROR('Level 1'!AS25/I115*V$109,"*") -> 58.72702118 | AW54: =IFERROR('Level 1'!AT25/J115*W$109,"*") -> 56.84602747 | AX54: =IFERROR('Level 1'!AU25/K115*X$109,"*") -> 57.3638811 | AY54: =IFERROR('Level 1'!AV25/L115*Y$109,"*") -> 53.95693054 | AZ54: =IFERROR('Level 1'!AW25/M115*Z$109,"*") -> 49.90974706 | BA54: =IFERROR('Level 1'!AX25/N115*AA$109,"*") -> 45.65310416 | BB54: =IFERROR('Level 1'!AY25/O115*AB$109,"*") -> * | BD54: ='Oversættelse af landenavne'!$B$25 -> Holland | BE54: =IFERROR('Level 1'!BB25/E115*R109,"*") -> 60.78370648 | BF54: =IFERROR('Level 1'!BC25/F115*S109,"*") -> 61.07710357 | BG54: =IFERROR('Level 1'!BD25/G115*T109,"*") -> 65.34433138 | BH54: =IFERROR('Level 1'!BE25/H115*U109,"*") -> 54.40657735 | BI54: =IFERROR('Level 1'!BF25/I115*V109,"*") -> 53.53611034 | BJ54: =IFERROR('Level 1'!BG25/J115*W109,"*") -> 52.61402945 | BK54: =IFERROR('Level 1'!BH25/K115*X109,"*") -> 55.08753661 | BL54: =IFERROR('Level 1'!BI25/L115*Y109,"*") -> 50.49284288 | BM54: =IFERROR('Level 1'!BJ25/M115*Z109,"*") -> 47.36180201 | BN54: =IFERROR('Level 1'!BK25/N115*AA109,"*") -> 42.22725948 | BO54: =IFERROR('Level 1'!BL25/O115*AB109,"*") -> * | BQ54: ='Oversættelse af landenavne'!$B$25 -> Holland | BR54: =IFERROR('Level 1'!BO25/E115*R$109,"*") -> 55.92261694 | BS54: =IFERROR('Level 1'!BP25/F115*S$109,"*") -> 58.84114024 | BT54: =IFERROR('Level 1'!BQ25/G115*T$109,"*") -> 63.78200427 | BU54: =IFERROR('Level 1'!BR25/H115*U$109,"*") -> 55.25910206 | BV54: =IFERROR('Level 1'!BS25/I115*V$109,"*") -> 55.51175551 | BW54: =IFERROR('Level 1'!BT25/J115*W$109,"*") -> 52.3852728 | BX54: =IFERROR('Level 1'!BU25/K115*X$109,"*") -> 56.1498307 | BY54: =IFERROR('Level 1'!BV25/L115*Y$109,"*") -> 53.27917426 | BZ54: =IFERROR('Level 1'!BW25/M115*Z$109,"*") -> 50.13456574 | CA54: =IFERROR('Level 1'!BX25/N115*AA$109,"*") -> 43.49333252 | CB54: =IFERROR('Level 1'!BY25/O115*AB$109,"*") -> * | CD54: ='Oversættelse af landenavne'!$B$25 -> Holland | CE54: =IFERROR('Level 1'!CB25/E115*R$109,"*") -> * | CF54: =IFERROR('Level 1'!CC25/F115*S$109,"*") -> * | CG54: =IFERROR('Level 1'!CD25/G115*T$109,"*") -> 49.40859486 | CH54: =IFERROR('Level 1'!CE25/H115*U$109,"*") -> 48.32265096 | CI54: =IFERROR('Level 1'!CF25/I115*V$109,"*") -> 49.11996231 | CJ54: =IFERROR('Level 1'!CG25/J115*W$109,"*") -> 46.28509547 | CK54: =IFERROR('Level 1'!CH25/K115*X$109,"*") -> 54.97371938 | CL54: =IFERROR('Level 1'!CI25/L115*Y$109,"*") -> 48.61018655 | CM54: =IFERROR('Level 1'!CJ25/M115*Z$109,"*") -> 48.37348607 | CN54: =IFERROR('Level 1'!CK25/N115*AA$109,"*") -> 42.30173436 | CO54: =IFERROR('Level 1'!CL25/O115*AB$109,"*") -> *
D55: ='Oversættelse af landenavne'!$B$33 -> Sverige | E55: =IFERROR('Level 1'!B33/$E$116*$R$109,"*") -> 79.76770557 | F55: =IFERROR('Level 1'!C33/$E$116*$R$109,"*") -> 95.98951432 | G55: =IFERROR('Level 1'!D33/$E$116*$R$109,"*") -> 96.19909841 | H55: =IFERROR('Level 1'!E33/$E$116*$R$109,"*") -> 117.534759 | I55: =IFERROR('Level 1'!F33/$E$116*$R$109,"*") -> 128.9361336 | J55: =IFERROR('Level 1'!G33/$E$116*$R$109,"*") -> 144.3615228 | K55: =IFERROR('Level 1'!H33/$E$116*$R$109,"*") -> 123.5707809 | L55: =IFERROR('Level 1'!I33/$E$116*$R$109,"*") -> 114.7263322 | M55: =IFERROR('Level 1'!J33/$E$116*$R$109,"*") -> 113.5107444 | N55: =IFERROR('Level 1'!K33/$E$116*$R$109,"*") -> 104.2890444 | O55: =IFERROR('Level 1'!L33/$E$116*$R$109,"*") -> * | Q55: ='Oversættelse af landenavne'!$B$33 -> Sverige | R55: =IFERROR('Level 1'!O33/E116*R$109,"*") -> 61.74347362 | S55: =IFERROR('Level 1'!P33/F116*S$109,"*") -> 69.99350673 | T55: =IFERROR('Level 1'!Q33/G116*T$109,"*") -> 69.70488632 | U55: =IFERROR('Level 1'!R33/H116*U$109,"*") -> 74.53690893 | V55: =IFERROR('Level 1'!S33/I116*V$109,"*") -> 73.39206148 | W55: =IFERROR('Level 1'!T33/J116*W$109,"*") -> 65.62205037 | X55: =IFERROR('Level 1'!U33/K116*X$109,"*") -> 62.1222357 | Y55: =IFERROR('Level 1'!V33/L116*Y$109,"*") -> 58.07295088 | Z55: =IFERROR('Level 1'!W33/M116*Z$109,"*") -> 52.29302864 | AA55: =IFERROR('Level 1'!X33/N116*AA$109,"*") -> 52.87716796 | AB55: =IFERROR('Level 1'!Y33/O116*AB$109,"*") -> * | AD55: ='Oversættelse af landenavne'!$B$33 -> Sverige | AE55: =IFERROR('Level 1'!AB33/E116*R109,"*") -> 53.15052583 | AF55: =IFERROR('Level 1'!AC33/F116*S109,"*") -> 61.39189506 | AG55: =IFERROR('Level 1'!AD33/G116*T109,"*") -> 61.2020724 | AH55: =IFERROR('Level 1'!AE33/H116*U109,"*") -> 66.23703586 | AI55: =IFERROR('Level 1'!AF33/I116*V109,"*") -> 64.82459976 | AJ55: =IFERROR('Level 1'!AG33/J116*W109,"*") -> 56.84595888 | AK55: =IFERROR('Level 1'!AH33/K116*X109,"*") -> 54.79280812 | AL55: =IFERROR('Level 1'!AI33/L116*Y109,"*") -> 50.06542192 | AM55: =IFERROR('Level 1'!AJ33/M116*Z109,"*") -> 44.48423243 | AN55: =IFERROR('Level 1'!AK33/N116*AA109,"*") -> 45.5041544 | AO55: =IFERROR('Level 1'!AL33/O116*AB109,"*") -> * | AQ55: ='Oversættelse af landenavne'!$B$33 -> Sverige | AR55: =IFERROR('Level 1'!AO33/E116*R109,"*") -> 45.89891624 | AS55: =IFERROR('Level 1'!AP33/F116*S109,"*") -> 54.6033682 | AT55: =IFERROR('Level 1'!AQ33/G116*T109,"*") -> 53.79052871 | AU55: =IFERROR('Level 1'!AR33/H116*U109,"*") -> 58.42300901 | AV55: =IFERROR('Level 1'!AS33/I116*V109,"*") -> 56.33295628 | AW55: =IFERROR('Level 1'!AT33/J116*W109,"*") -> 49.62283831 | AX55: =IFERROR('Level 1'!AU33/K116*X109,"*") -> 48.06823621 | AY55: =IFERROR('Level 1'!AV33/L116*Y109,"*") -> 44.92297212 | AZ55: =IFERROR('Level 1'!AW33/M116*Z109,"*") -> 38.82192997 | BA55: =IFERROR('Level 1'!AX33/N116*AA109,"*") -> 39.09931433 | BB55: =IFERROR('Level 1'!AY33/O116*AB109,"*") -> * | BD55: ='Oversættelse af landenavne'!$B$33 -> Sverige | BE55: =IFERROR('Level 1'!BB33/E116*R109,"*") -> 41.37189984 | BF55: =IFERROR('Level 1'!BC33/F116*S109,"*") -> 49.07978423 | BG55: =IFERROR('Level 1'!BD33/G116*T109,"*") -> 48.97075184 | BH55: =IFERROR('Level 1'!BE33/H116*U109,"*") -> 55.95329068 | BI55: =IFERROR('Level 1'!BF33/I116*V109,"*") -> 50.15376929 | BJ55: =IFERROR('Level 1'!BG33/J116*W109,"*") -> 43.30260781 | BK55: =IFERROR('Level 1'!BH33/K116*X109,"*") -> 42.76685413 | BL55: =IFERROR('Level 1'!BI33/L116*Y109,"*") -> 39.48666806 | BM55: =IFERROR('Level 1'!BJ33/M116*Z109,"*") -> 33.89979776 | BN55: =IFERROR('Level 1'!BK33/N116*AA109,"*") -> 34.03502219 | BO55: =IFERROR('Level 1'!BL33/O116*AB109,"*") -> * | BQ55: ='Oversættelse af landenavne'!$B$33 -> Sverige | BR55: =IFERROR('Level 1'!BO33/E116*R$109,"*") -> 40.40781302 | BS55: =IFERROR('Level 1'!BP33/F116*S$109,"*") -> 49.4592671 | BT55: =IFERROR('Level 1'!BQ33/G116*T$109,"*") -> 44.92395805 | BU55: =IFERROR('Level 1'!BR33/H116*U$109,"*") -> 52.5118799 | BV55: =IFERROR('Level 1'!BS33/I116*V$109,"*") -> 46.17331141 | BW55: =IFERROR('Level 1'!BT33/J116*W$109,"*") -> 36.7656837 | BX55: =IFERROR('Level 1'!BU33/K116*X$109,"*") -> 37.96358848 | BY55: =IFERROR('Level 1'!BV33/L116*Y$109,"*") -> 34.45441362 | BZ55: =IFERROR('Level 1'!BW33/M116*Z$109,"*") -> 27.75638463 | CA55: =IFERROR('Level 1'!BX33/N116*AA$109,"*") -> 28.15150632 | CB55: =IFERROR('Level 1'!BY33/O116*AB$109,"*") -> * | CD55: ='Oversættelse af landenavne'!$B$33 -> Sverige | CE55: =IFERROR('Level 1'!CB33/E116*R$109,"*") -> * | CF55: =IFERROR('Level 1'!CC33/F116*S$109,"*") -> * | CG55: =IFERROR('Level 1'!CD33/G116*T$109,"*") -> * | CH55: =IFERROR('Level 1'!CE33/H116*U$109,"*") -> * | CI55: =IFERROR('Level 1'!CF33/I116*V$109,"*") -> * | CJ55: =IFERROR('Level 1'!CG33/J116*W$109,"*") -> * | CK55: =IFERROR('Level 1'!CH33/K116*X$109,"*") -> * | CL55: =IFERROR('Level 1'!CI33/L116*Y$109,"*") -> * | CM55: =IFERROR('Level 1'!CJ33/M116*Z$109,"*") -> * | CN55: =IFERROR('Level 1'!CK33/N116*AA$109,"*") -> * | CO55: =IFERROR('Level 1'!CL33/O116*AB$109,"*") -> *
D56: ='Oversættelse af landenavne'!$B$34 -> UK | E56: =IFERROR('Level 1'!B34/$E$117*$R$109,"*") -> 128.7560479 | F56: =IFERROR('Level 1'!C34/$E$117*$R$109,"*") -> 117.4153136 | G56: =IFERROR('Level 1'!D34/$E$117*$R$109,"*") -> 121.3777388 | H56: =IFERROR('Level 1'!E34/$E$117*$R$109,"*") -> 127.4807846 | I56: =IFERROR('Level 1'!F34/$E$117*$R$109,"*") -> 124.0649008 | J56: =IFERROR('Level 1'!G34/$E$117*$R$109,"*") -> 137.7284361 | K56: =IFERROR('Level 1'!H34/$E$117*$R$109,"*") -> 136.908624 | L56: =IFERROR('Level 1'!I34/$E$117*$R$109,"*") -> 152.3484189 | M56: =IFERROR('Level 1'!J34/$E$117*$R$109,"*") -> 163.2792471 | N56: =IFERROR('Level 1'!K34/$E$117*$R$109,"*") -> 146.1087378 | O56: =IFERROR('Level 1'!L34/$E$117*$R$109,"*") -> * | Q56: ='Oversættelse af landenavne'!$B$34 -> UK | R56: =IFERROR('Level 1'!O34/E117*R$109,"*") -> 106.4389402 | S56: =IFERROR('Level 1'!P34/F117*S$109,"*") -> 112.5558568 | T56: =IFERROR('Level 1'!Q34/G117*T$109,"*") -> 125.7111965 | U56: =IFERROR('Level 1'!R34/H117*U$109,"*") -> 119.6700461 | V56: =IFERROR('Level 1'!S34/I117*V$109,"*") -> 118.9984813 | W56: =IFERROR('Level 1'!T34/J117*W$109,"*") -> 122.9379033 | X56: =IFERROR('Level 1'!U34/K117*X$109,"*") -> 126.93049 | Y56: =IFERROR('Level 1'!V34/L117*Y$109,"*") -> 131.3246945 | Z56: =IFERROR('Level 1'!W34/M117*Z$109,"*") -> 134.8922955 | AA56: =IFERROR('Level 1'!X34/N117*AA$109,"*") -> 109.7015048 | AB56: =IFERROR('Level 1'!Y34/O117*AB$109,"*") -> * | AD56: ='Oversættelse af landenavne'!$B$34 -> UK | AE56: =IFERROR('Level 1'!AB34/E117*R109,"*") -> 97.2388264 | AF56: =IFERROR('Level 1'!AC34/F117*S109,"*") -> 101.9828944 | AG56: =IFERROR('Level 1'!AD34/G117*T109,"*") -> 114.3843554 | AH56: =IFERROR('Level 1'!AE34/H117*U109,"*") -> 100.472207 | AI56: =IFERROR('Level 1'!AF34/I117*V109,"*") -> 101.9911763 | AJ56: =IFERROR('Level 1'!AG34/J117*W109,"*") -> 108.0831076 | AK56: =IFERROR('Level 1'!AH34/K117*X109,"*") -> 113.2686955 | AL56: =IFERROR('Level 1'!AI34/L117*Y109,"*") -> 117.3087092 | AM56: =IFERROR('Level 1'!AJ34/M117*Z109,"*") -> 120.3149569 | AN56: =IFERROR('Level 1'!AK34/N117*AA109,"*") -> 97.93447304 | AO56: =IFERROR('Level 1'!AL34/O117*AB109,"*") -> * | AQ56: ='Oversættelse af landenavne'!$B$34 -> UK | AR56: =IFERROR('Level 1'!AO34/E117*R109,"*") -> 87.62880656 | AS56: =IFERROR('Level 1'!AP34/F117*S109,"*") -> 93.36028431 | AT56: =IFERROR('Level 1'!AQ34/G117*T109,"*") -> 103.3365006 | AU56: =IFERROR('Level 1'!AR34/H117*U109,"*") -> 89.23830673 | AV56: =IFERROR('Level 1'!AS34/I117*V109,"*") -> 91.93422496 | AW56: =IFERROR('Level 1'!AT34/J117*W109,"*") -> 98.19598709 | AX56: =IFERROR('Level 1'!AU34/K117*X109,"*") -> 104.3264301 | AY56: =IFERROR('Level 1'!AV34/L117*Y109,"*") -> 107.363373 | AZ56: =IFERROR('Level 1'!AW34/M117*Z109,"*") -> 111.5104105 | BA56: =IFERROR('Level 1'!AX34/N117*AA109,"*") -> 90.4869846 | BB56: =IFERROR('Level 1'!AY34/O117*AB109,"*") -> * | BD56: ='Oversættelse af landenavne'!$B$34 -> UK | BE56: =IFERROR('Level 1'!BB34/E117*R$109,"*") -> 82.57329849 | BF56: =IFERROR('Level 1'!BC34/F117*S$109,"*") -> 91.51258215 | BG56: =IFERROR('Level 1'!BD34/G117*T$109,"*") -> 101.383597 | BH56: =IFERROR('Level 1'!BE34/H117*U$109,"*") -> 83.38402065 | BI56: =IFERROR('Level 1'!BF34/I117*V$109,"*") -> 86.77411382 | BJ56: =IFERROR('Level 1'!BG34/J117*W$109,"*") -> 96.6526317 | BK56: =IFERROR('Level 1'!BH34/K117*X$109,"*") -> 103.6309206 | BL56: =IFERROR('Level 1'!BI34/L117*Y$109,"*") -> 107.4558878 | BM56: =IFERROR('Level 1'!BJ34/M117*Z$109,"*") -> 109.5169283 | BN56: =IFERROR('Level 1'!BK34/N117*AA$109,"*") -> 89.74223576 | BO56: =IFERROR('Level 1'!BL34/O117*AB$109,"*") -> * | BQ56: ='Oversættelse af landenavne'!$B$34 -> UK | BR56: =IFERROR('Level 1'!BO34/E117*R$109,"*") -> 78.15542206 | BS56: =IFERROR('Level 1'!BP34/F117*S$109,"*") -> 93.61690961 | BT56: =IFERROR('Level 1'!BQ34/G117*T$109,"*") -> 100.0444631 | BU56: =IFERROR('Level 1'!BR34/H117*U$109,"*") -> 81.9072638 | BV56: =IFERROR('Level 1'!BS34/I117*V$109,"*") -> 84.29936664 | BW56: =IFERROR('Level 1'!BT34/J117*W$109,"*") -> 91.49203709 | BX56: =IFERROR('Level 1'!BU34/K117*X$109,"*") -> 101.4947127 | BY56: =IFERROR('Level 1'!BV34/L117*Y$109,"*") -> 104.4029009 | BZ56: =IFERROR('Level 1'!BW34/M117*Z$109,"*") -> 106.6928286 | CA56: =IFERROR('Level 1'!BX34/N117*AA$109,"*") -> 87.80588876 | CB56: =IFERROR('Level 1'!BY34/O117*AB$109,"*") -> * | CD56: ='Oversættelse af landenavne'!$B$34 -> UK | CE56: =IFERROR('Level 1'!CB34/E117*R$109,"*") -> 69.82066551 | CF56: =IFERROR('Level 1'!CC34/F117*S$109,"*") -> 82.47937157 | CG56: =IFERROR('Level 1'!CD34/G117*T$109,"*") -> 88.55023028 | CH56: =IFERROR('Level 1'!CE34/H117*U$109,"*") -> 83.64772723 | CI56: =IFERROR('Level 1'!CF34/I117*V$109,"*") -> 84.35202084 | CJ56: =IFERROR('Level 1'!CG34/J117*W$109,"*") -> 94.53051803 | CK56: =IFERROR('Level 1'!CH34/K117*X$109,"*") -> 98.31524056 | CL56: =IFERROR('Level 1'!CI34/L117*Y$109,"*") -> 102.1362894 | CM56: =IFERROR('Level 1'!CJ34/M117*Z$109,"*") -> 103.7026053 | CN56: =IFERROR('Level 1'!CK34/N117*AA$109,"*") -> 85.720592 | CO56: =IFERROR('Level 1'!CL34/O117*AB$109,"*") -> *
D57: Kilde: Eurostat | Q57: Kilde: Eurostat | AD57: Kilde: Eurostat | AQ57: Kilde: Eurostat | BD57: Kilde: Eurostat | BQ57: Kilde: Eurostat | CD57: Kilde: Eurostat
B62: Level 2: Elpris inkl. PSO og ikke-refunderbare afgifter | D62: ="Figur XX: "&$B$62&" for forbrugsinterval "&D26&". Priserne er vist i "&$E$15&" / kWh i "&$E$13&" med basisår "&$E$14&". " -> Figur XX: Level 2: Elpris inkl. PSO og ikke-refunderbare afgifter for forbrugsinterval IA: <0,02 GWh. Priserne er vist i DKK øre / kWh i faste priser med basisår 2016. | Q62: ="Figur XX: "&$B$62&" for forbrugsinterval "&Q26&". Priserne er vist i "&$E$15&" / kWh i "&$E$13&" med basisår "&$E$14&". " -> Figur XX: Level 2: Elpris inkl. PSO og ikke-refunderbare afgifter for forbrugsinterval IB: 0,02 < 0,5 GWh. Priserne er vist i DKK øre / kWh i faste priser med basisår 2016. | AD62: ="Figur XX: "&$B$62&" for forbrugsinterval "&AD26&". Priserne er vist i "&$E$15&" / kWh i "&$E$13&" med basisår "&$E$14&". " -> Figur XX: Level 2: Elpris inkl. PSO og ikke-refunderbare afgifter for forbrugsinterval IC: 0,5 < 2 GWh. Priserne er vist i DKK øre / kWh i faste priser med basisår 2016. | AQ62: ="Figur XX: "&$B$62&" for forbrugsinterval "&AQ26&". Priserne er vist i "&$E$15&" / kWh i "&$E$13&" med basisår "&$E$14&". " -> Figur XX: Level 2: Elpris inkl. PSO og ikke-refunderbare afgifter for forbrugsinterval ID: 2 < 20 GWh. Priserne er vist i DKK øre / kWh i faste priser med basisår 2016. | BD62: ="Figur XX: "&$B$62&" for forbrugsinterval "&BD26&". Priserne er vist i "&$E$15&" / kWh i "&$E$13&" med basisår "&$E$14&". " -> Figur XX: Level 2: Elpris inkl. PSO og ikke-refunderbare afgifter for forbrugsinterval IE:20 < 70 GWh. Priserne er vist i DKK øre / kWh i faste priser med basisår 2016. | BQ62: ="Figur XX: "&$B$62&" for forbrugsinterval "&BQ26&". Priserne er vist i "&$E$15&" / kWh i "&$E$13&" med basisår "&$E$14&". " -> Figur XX: Level 2: Elpris inkl. PSO og ikke-refunderbare afgifter for forbrugsinterval IF: 70 < 150 GWh. Priserne er vist i DKK øre / kWh i faste priser med basisår 2016. | CD62: ="Figur XX: "&$B$62&" for forbrugsinterval "&CD26&". Priserne er vist i "&$E$15&" / kWh i "&$E$13&" med basisår "&$E$14&". " -> Figur XX: Level 2: Elpris inkl. PSO og ikke-refunderbare afgifter for forbrugsinterval IG: > 150 GWh. Priserne er vist i DKK øre / kWh i faste priser med basisår 2016. | CR62: =B62 -> Level 2: Elpris inkl. PSO og ikke-refunderbare afgifter
D81: Kilde: Eurostat | Q81: Kilde: Eurostat | AD81: Kilde: Eurostat | AQ81: Kilde: Eurostat | BD81: Kilde: Eurostat | BQ81: Kilde: Eurostat
D82: =$E$15&"/kWh" -> DKK øre/kWh | E82: ='Level 1'!B$5 -> 2007 | F82: ='Level 1'!C$5 -> 2008 | G82: ='Level 1'!D$5 -> 2009 | H82: ='Level 1'!E$5 -> 2010 | I82: ='Level 1'!F$5 -> 2011 | J82: ='Level 1'!G$5 -> 2012 | K82: ='Level 1'!H$5 -> 2013 | L82: ='Level 1'!I$5 -> 2014 | M82: ='Level 1'!J$5 -> 2015 | N82: ='Level 1'!K$5 -> 2016 | O82: ='Level 1'!L$5 -> 2017 | Q82: =$E$15&"/kWh" -> DKK øre/kWh | R82: ='Level 1'!O5 -> 2007 | S82: ='Level 1'!P5 -> 2008 | T82: ='Level 1'!Q5 -> 2009 | U82: ='Level 1'!R5 -> 2010 | V82: ='Level 1'!S5 -> 2011 | W82: ='Level 1'!T5 -> 2012 | X82: ='Level 1'!U5 -> 2013 | Y82: ='Level 1'!V5 -> 2014 | Z82: ='Level 1'!W5 -> 2015 | AA82: ='Level 1'!X5 -> 2016 | AB82: ='Level 1'!Y5 -> 2017 | AD82: =$E$15&"/kWh" -> DKK øre/kWh | AE82: ='Level 1'!AB5 -> 2007 | AF82: ='Level 1'!AC5 -> 2008 | AG82: ='Level 1'!AD5 -> 2009 | AH82: ='Level 1'!AE5 -> 2010 | AI82: ='Level 1'!AF5 -> 2011 | AJ82: ='Level 1'!AG5 -> 2012 | AK82: ='Level 1'!AH5 -> 2013 | AL82: ='Level 1'!AI5 -> 2014 | AM82: ='Level 1'!AJ5 -> 2015 | AN82: ='Level 1'!AK5 -> 2016 | AO82: ='Level 1'!AL5 -> 2017 | AQ82: =$E$15&"/kWh" -> DKK øre/kWh | AR82: ='Level 1'!AO5 -> 2007 | AS82: ='Level 1'!AP5 -> 2008 | AT82: ='Level 1'!AQ5 -> 2009 | AU82: ='Level 1'!AR5 -> 2010 | AV82: ='Level 1'!AS5 -> 2011 | AW82: ='Level 1'!AT5 -> 2012 | AX82: ='Level 1'!AU5 -> 2013 | AY82: ='Level 1'!AV5 -> 2014 | AZ82: ='Level 1'!AW5 -> 2015 | BA82: ='Level 1'!AX5 -> 2016 | BB82: ='Level 1'!AY5 -> 2017 | BD82: =$E$15&"/kWh" -> DKK øre/kWh | BE82: ='Level 1'!BB5 -> 2007 | BF82: ='Level 1'!BC5 -> 2008 | BG82: ='Level 1'!BD5 -> 2009 | BH82: ='Level 1'!BE5 -> 2010 | BI82: ='Level 1'!BF5 -> 2011 | BJ82: ='Level 1'!BG5 -> 2012 | BK82: ='Level 1'!BH5 -> 2013 | BL82: ='Level 1'!BI5 -> 2014 | BM82: ='Level 1'!BJ5 -> 2015 | BN82: ='Level 1'!BK5 -> 2016 | BO82: ='Level 1'!BL5 -> 2017 | BQ82: =$E$15&"/kWh" -> DKK øre/kWh | BR82: ='Level 1'!BO5 -> 2007 | BS82: ='Level 1'!BP5 -> 2008 | BT82: ='Level 1'!BQ5 -> 2009 | BU82: ='Level 1'!BR5 -> 2010 | BV82: ='Level 1'!BS5 -> 2011 | BW82: ='Level 1'!BT5 -> 2012 | BX82: ='Level 1'!BU5 -> 2013 | BY82: ='Level 1'!BV5 -> 2014 | BZ82: ='Level 1'!BW5 -> 2015 | CA82: ='Level 1'!BX5 -> 2016 | CB82: ='Level 1'!BY5 -> 2017 | CD82: =$E$15&"/kWh" -> DKK øre/kWh | CE82: ='Level 1'!CB5 -> 2007 | CF82: ='Level 1'!CC5 -> 2008 | CG82: ='Level 1'!CD5 -> 2009 | CH82: ='Level 1'!CE5 -> 2010 | CI82: ='Level 1'!CF5 -> 2011 | CJ82: ='Level 1'!CG5 -> 2012 | CK82: ='Level 1'!CH5 -> 2013 | CL82: ='Level 1'!CI5 -> 2014 | CM82: ='Level 1'!CJ5 -> 2015 | CN82: ='Level 1'!CK5 -> 2016 | CO82: ='Level 1'!CL5 -> 2017
D83: ='Oversættelse af landenavne'!$B$6 -> EU-28 | E83: =IFERROR('Level 2'!B6/E109*R$109,"*") -> 122.1881196 | F83: =IFERROR('Level 2'!C6/F109*S$109,"*") -> 127.6115778 | G83: =IFERROR('Level 2'!D6/G109*T$109,"*") -> 135.5430225 | H83: =IFERROR('Level 2'!E6/H109*U$109,"*") -> 139.3951167 | I83: =IFERROR('Level 2'!F6/I109*V$109,"*") -> 142.2840692 | J83: =IFERROR('Level 2'!G6/J109*W$109,"*") -> 144.5597582 | K83: =IFERROR('Level 2'!H6/K109*X$109,"*") -> 151.0678496 | L83: =IFERROR('Level 2'!I6/L109*Y$109,"*") -> 150.4418652 | M83: =IFERROR('Level 2'!J6/M109*Z$109,"*") -> 146.7108922 | N83: =IFERROR('Level 2'!K6/N109*AA$109,"*") -> 138.4488102 | O83: =IFERROR('Level 2'!L6/O109*AB$109,"*") -> * | Q83: ='Oversættelse af landenavne'!$B$6 -> EU-28 | R83: =IFERROR('Level 2'!O6/E109*R$109,"*") -> 93.42808045 | S83: =IFERROR('Level 2'!P6/F109*S$109,"*") -> 98.2303618 | T83: =IFERROR('Level 2'!Q6/G109*T$109,"*") -> 102.4497307 | U83: =IFERROR('Level 2'!R6/H109*U$109,"*") -> 101.8161531 | V83: =IFERROR('Level 2'!S6/I109*V$109,"*") -> 107.556552 | W83: =IFERROR('Level 2'!T6/J109*W$109,"*") -> 109.4747794 | X83: =IFERROR('Level 2'!U6/K109*X$109,"*") -> 113.3008872 | Y83: =IFERROR('Level 2'!V6/L109*Y$109,"*") -> 115.2060707 | Z83: =IFERROR('Level 2'!W6/M109*Z$109,"*") -> 110.9436431 | AA83: =IFERROR('Level 2'!X6/N109*AA$109,"*") -> 105.3819615 | AB83: =IFERROR('Level 2'!Y6/O109*AB$109,"*") -> * | AD83: ='Oversættelse af landenavne'!$B$6 -> EU-28 | AE83: =IFERROR('Level 2'!AB6/E109*R109,"*") -> 79.30034191 | AF83: =IFERROR('Level 2'!AC6/F109*S109,"*") -> 84.00014322 | AG83: =IFERROR('Level 2'!AD6/G109*T109,"*") -> 88.41783691 | AH83: =IFERROR('Level 2'!AE6/H109*U109,"*") -> 86.78456771 | AI83: =IFERROR('Level 2'!AF6/I109*V109,"*") -> 91.26259847 | AJ83: =IFERROR('Level 2'!AG6/J109*W109,"*") -> 92.75616403 | AK83: =IFERROR('Level 2'!AH6/K109*X109,"*") -> 95.1583273 | AL83: =IFERROR('Level 2'!AI6/L109*Y109,"*") -> 96.12986881 | AM83: =IFERROR('Level 2'!AJ6/M109*Z109,"*") -> 91.81410682 | AN83: =IFERROR('Level 2'!AK6/N109*AA109,"*") -> 87.06113992 | AO83: =IFERROR('Level 2'!AL6/O109*AB109,"*") -> * | AQ83: ='Oversættelse af landenavne'!$B$6 -> EU-28 | AR83: =IFERROR('Level 2'!AO6/E109*R109,"*") -> 70.1341306 | AS83: =IFERROR('Level 2'!AP6/F109*S109,"*") -> 75.62942641 | AT83: =IFERROR('Level 2'!AQ6/G109*T109,"*") -> 78.73921136 | AU83: =IFERROR('Level 2'!AR6/H109*U109,"*") -> 76.48668599 | AV83: =IFERROR('Level 2'!AS6/I109*V109,"*") -> 80.19423103 | AW83: =IFERROR('Level 2'!AT6/J109*W109,"*") -> 83.87439962 | AX83: =IFERROR('Level 2'!AU6/K109*X109,"*") -> 85.26602644 | AY83: =IFERROR('Level 2'!AV6/L109*Y109,"*") -> 85.05463587 | AZ83: =IFERROR('Level 2'!AW6/M109*Z109,"*") -> 81.84681339 | BA83: =IFERROR('Level 2'!AX6/N109*AA109,"*") -> 75.96438213 | BB83: =IFERROR('Level 2'!AY6/O109*AB109,"*") -> * | BD83: ='Oversættelse af landenavne'!$B$6 -> EU-28 | BE83: =IFERROR('Level 2'!BB6/E109*R$109,"*") -> 63.82710446 | BF83: =IFERROR('Level 2'!BC6/F109*S$109,"*") -> 69.85363181 | BG83: =IFERROR('Level 2'!BD6/G109*T$109,"*") -> 72.10364712 | BH83: =IFERROR('Level 2'!BE6/H109*U$109,"*") -> 68.97089329 | BI83: =IFERROR('Level 2'!BF6/I109*V$109,"*") -> 73.28164467 | BJ83: =IFERROR('Level 2'!BG6/J109*W$109,"*") -> 74.42998951 | BK83: =IFERROR('Level 2'!BH6/K109*X$109,"*") -> 75.57397459 | BL83: =IFERROR('Level 2'!BI6/L109*Y$109,"*") -> 74.09764385 | BM83: =IFERROR('Level 2'!BJ6/M109*Z$109,"*") -> 71.41949103 | BN83: =IFERROR('Level 2'!BK6/N109*AA$109,"*") -> 64.94209924 | BO83: =IFERROR('Level 2'!BL6/O109*AB$109,"*") -> * | BQ83: ='Oversættelse af landenavne'!$B$6 -> EU-28 | BR83: =IFERROR('Level 2'!BO6/E109*R$109,"*") -> 56.2586731 | BS83: =IFERROR('Level 2'!BP6/F109*S$109,"*") -> 65.71012698 | BT83: =IFERROR('Level 2'!BQ6/G109*T$109,"*") -> 65.76393606 | BU83: =IFERROR('Level 2'!BR6/H109*U$109,"*") -> 64.19566588 | BV83: =IFERROR('Level 2'!BS6/I109*V$109,"*") -> 67.19198526 | BW83: =IFERROR('Level 2'!BT6/J109*W$109,"*") -> 67.39691814 | BX83: =IFERROR('Level 2'!BU6/K109*X$109,"*") -> 68.5252096 | BY83: =IFERROR('Level 2'!BV6/L109*Y$109,"*") -> 66.96377495 | BZ83: =IFERROR('Level 2'!BW6/M109*Z$109,"*") -> 63.94402095 | CA83: =IFERROR('Level 2'!BX6/N109*AA$109,"*") -> 55.48378891 | CB83: =IFERROR('Level 2'!BY6/O109*AB$109,"*") -> * | CD83: ='Oversættelse af landenavne'!$B$6 -> EU-28 | CE83: =IFERROR('Level 2'!CB6/E109*R$109,"*") -> * | CF83: =IFERROR('Level 2'!CC6/F109*S$109,"*") -> * | CG83: =IFERROR('Level 2'!CD6/G109*T$109,"*") -> * | CH83: =IFERROR('Level 2'!CE6/H109*U$109,"*") -> * | CI83: =IFERROR('Level 2'!CF6/I109*V$109,"*") -> * | CJ83: =IFERROR('Level 2'!CG6/J109*W$109,"*") -> * | CK83: =IFERROR('Level 2'!CH6/K109*X$109,"*") -> * | CL83: =IFERROR('Level 2'!CI6/L109*Y$109,"*") -> * | CM83: =IFERROR('Level 2'!CJ6/M109*Z$109,"*") -> * | CN83: =IFERROR('Level 2'!CK6/N109*AA$109,"*") -> * | CO83: =IFERROR('Level 2'!CL6/O109*AB$109,"*") -> *
D84: ='Oversættelse af landenavne'!$B$7 -> Belgien | E84: =IFERROR('Level 2'!B7/E110*R$109,"*") -> 120.6843258 | F84: =IFERROR('Level 2'!C7/F110*S$109,"*") -> 139.9703256 | G84: =IFERROR('Level 2'!D7/G110*T$109,"*") -> 125.4867756 | H84: =IFERROR('Level 2'!E7/H110*U$109,"*") -> 129.8289586 | I84: =IFERROR('Level 2'!F7/I110*V$109,"*") -> 140.956869 | J84: =IFERROR('Level 2'!G7/J110*W$109,"*") -> 137.9413866 | K84: =IFERROR('Level 2'!H7/K110*X$109,"*") -> 134.2302737 | L84: =IFERROR('Level 2'!I7/L110*Y$109,"*") -> 135.4585208 | M84: =IFERROR('Level 2'!J7/M110*Z$109,"*") -> 134.13162 | N84: =IFERROR('Level 2'!K7/N110*AA$109,"*") -> 145.5983991 | O84: =IFERROR('Level 2'!L7/O110*AB$109,"*") -> * | Q84: ='Oversættelse af landenavne'!$B$7 -> Belgien | R84: =IFERROR('Level 2'!O7/E110*R$109,"*") -> 99.58978135 | S84: =IFERROR('Level 2'!P7/F110*S$109,"*") -> 117.1854185 | T84: =IFERROR('Level 2'!Q7/G110*T$109,"*") -> 106.5492341 | U84: =IFERROR('Level 2'!R7/H110*U$109,"*") -> 104.457313 | V84: =IFERROR('Level 2'!S7/I110*V$109,"*") -> 113.112563 | W84: =IFERROR('Level 2'!T7/J110*W$109,"*") -> 113.7852177 | X84: =IFERROR('Level 2'!U7/K110*X$109,"*") -> 109.8976942 | Y84: =IFERROR('Level 2'!V7/L110*Y$109,"*") -> 109.7092667 | Z84: =IFERROR('Level 2'!W7/M110*Z$109,"*") -> 109.238115 | AA84: =IFERROR('Level 2'!X7/N110*AA$109,"*") -> 111.1910025 | AB84: =IFERROR('Level 2'!Y7/O110*AB$109,"*") -> * | AD84: ='Oversættelse af landenavne'!$B$7 -> Belgien | AE84: =IFERROR('Level 2'!AB7/E110*R109,"*") -> 79.75586709 | AF84: =IFERROR('Level 2'!AC7/F110*S109,"*") -> 83.79232111 | AG84: =IFERROR('Level 2'!AD7/G110*T109,"*") -> 89.57497995 | AH84: =IFERROR('Level 2'!AE7/H110*U109,"*") -> 84.74611366 | AI84: =IFERROR('Level 2'!AF7/I110*V109,"*") -> 88.54173778 | AJ84: =IFERROR('Level 2'!AG7/J110*W109,"*") -> 84.37266653 | AK84: =IFERROR('Level 2'!AH7/K110*X109,"*") -> 83.15859585 | AL84: =IFERROR('Level 2'!AI7/L110*Y109,"*") -> 82.67065379 | AM84: =IFERROR('Level 2'!AJ7/M110*Z109,"*") -> 82.01319407 | AN84: =IFERROR('Level 2'!AK7/N110*AA109,"*") -> 83.03949616 | AO84: =IFERROR('Level 2'!AL7/O110*AB109,"*") -> * | AQ84: ='Oversættelse af landenavne'!$B$7 -> Belgien | AR84: =IFERROR('Level 2'!AO7/E110*R109,"*") -> 70.67933006 | AS84: =IFERROR('Level 2'!AP7/F110*S109,"*") -> 78.26120238 | AT84: =IFERROR('Level 2'!AQ7/G110*T109,"*") -> 81.6809292 | AU84: =IFERROR('Level 2'!AR7/H110*U109,"*") -> 75.47261662 | AV84: =IFERROR('Level 2'!AS7/I110*V109,"*") -> 78.52409796 | AW84: =IFERROR('Level 2'!AT7/J110*W109,"*") -> 76.14024419 | AX84: =IFERROR('Level 2'!AU7/K110*X109,"*") -> 73.79991143 | AY84: =IFERROR('Level 2'!AV7/L110*Y109,"*") -> 73.22799654 | AZ84: =IFERROR('Level 2'!AW7/M110*Z109,"*") -> 72.49951314 | BA84: =IFERROR('Level 2'!AX7/N110*AA109,"*") -> 70.52771557 | BB84: =IFERROR('Level 2'!AY7/O110*AB109,"*") -> * | BD84: ='Oversættelse af landenavne'!$B$7 -> Belgien | BE84: =IFERROR('Level 2'!BB7/E110*R$109,"*") -> 61.26662499 | BF84: =IFERROR('Level 2'!BC7/F110*S$109,"*") -> 66.99257989 | BG84: =IFERROR('Level 2'!BD7/G110*T$109,"*") -> 75.09573661 | BH84: =IFERROR('Level 2'!BE7/H110*U$109,"*") -> 64.39259418 | BI84: =IFERROR('Level 2'!BF7/I110*V$109,"*") -> 68.70365577 | BJ84: =IFERROR('Level 2'!BG7/J110*W$109,"*") -> 62.34224055 | BK84: =IFERROR('Level 2'!BH7/K110*X$109,"*") -> 58.44402924 | BL84: =IFERROR('Level 2'!BI7/L110*Y$109,"*") -> 58.89336025 | BM84: =IFERROR('Level 2'!BJ7/M110*Z$109,"*") -> 58.0221726 | BN84: =IFERROR('Level 2'!BK7/N110*AA$109,"*") -> 53.91981634 | BO84: =IFERROR('Level 2'!BL7/O110*AB$109,"*") -> * | BQ84: ='Oversættelse af landenavne'!$B$7 -> Belgien | BR84: =IFERROR('Level 2'!BO7/E110*R$109,"*") -> 51.68583589 | BS84: =IFERROR('Level 2'!BP7/F110*S$109,"*") -> 60.51209003 | BT84: =IFERROR('Level 2'!BQ7/G110*T$109,"*") -> 66.05643498 | BU84: =IFERROR('Level 2'!BR7/H110*U$109,"*") -> 58.81243795 | BV84: =IFERROR('Level 2'!BS7/I110*V$109,"*") -> 61.52566189 | BW84: =IFERROR('Level 2'!BT7/J110*W$109,"*") -> 58.78645249 | BX84: =IFERROR('Level 2'!BU7/K110*X$109,"*") -> 50.42229974 | BY84: =IFERROR('Level 2'!BV7/L110*Y$109,"*") -> 52.48448846 | BZ84: =IFERROR('Level 2'!BW7/M110*Z$109,"*") -> 49.11014739 | CA84: =IFERROR('Level 2'!BX7/N110*AA$109,"*") -> 42.07830971 | CB84: =IFERROR('Level 2'!BY7/O110*AB$109,"*") -> * | CD84: ='Oversættelse af landenavne'!$B$7 -> Belgien | CE84: =IFERROR('Level 2'!CB7/E110*R$109,"*") -> * | CF84: =IFERROR('Level 2'!CC7/F110*S$109,"*") -> * | CG84: =IFERROR('Level 2'!CD7/G110*T$109,"*") -> * | CH84: =IFERROR('Level 2'!CE7/H110*U$109,"*") -> * | CI84: =IFERROR('Level 2'!CF7/I110*V$109,"*") -> * | CJ84: =IFERROR('Level 2'!CG7/J110*W$109,"*") -> * | CK84: =IFERROR('Level 2'!CH7/K110*X$109,"*") -> * | CL84: =IFERROR('Level 2'!CI7/L110*Y$109,"*") -> * | CM84: =IFERROR('Level 2'!CJ7/M110*Z$109,"*") -> * | CN84: =IFERROR('Level 2'!CK7/N110*AA$109,"*") -> 43.86570694 | CO84: =IFERROR('Level 2'!CL7/O110*AB$109,"*") -> *
D85: ='Oversættelse af landenavne'!$B$10 -> Danmark | E85: =IFERROR('Level 2'!B10/E111*R$109,"*") -> 155.5555227 | F85: =IFERROR('Level 2'!C10/F111*S$109,"*") -> 162.9383347 | G85: =IFERROR('Level 2'!D10/G111*T$109,"*") -> 156.034818 | H85: =IFERROR('Level 2'!E10/H111*U$109,"*") -> 150.8087787 | I85: =IFERROR('Level 2'!F10/I111*V$109,"*") -> 165.9457379 | J85: =IFERROR('Level 2'!G10/J111*W$109,"*") -> 163.483746 | K85: =IFERROR('Level 2'!H10/K111*X$109,"*") -> 138.6493955 | L85: =IFERROR('Level 2'!I10/L111*Y$109,"*") -> 140.5218242 | M85: =IFERROR('Level 2'!J10/M111*Z$109,"*") -> 135.1414961 | N85: =IFERROR('Level 2'!K10/N111*AA$109,"*") -> 136.2890385 | O85: =IFERROR('Level 2'!L10/O111*AB$109,"*") -> * | Q85: ='Oversættelse af landenavne'!$B$10 -> Danmark | R85: =IFERROR('Level 2'!O10/E111*R$109,"*") -> 85.32171889 | S85: =IFERROR('Level 2'!P10/F111*S$109,"*") -> 87.8267096 | T85: =IFERROR('Level 2'!Q10/G111*T$109,"*") -> 79.12626462 | U85: =IFERROR('Level 2'!R10/H111*U$109,"*") -> 82.41027515 | V85: =IFERROR('Level 2'!S10/I111*V$109,"*") -> 83.33554783 | W85: =IFERROR('Level 2'!T10/J111*W$109,"*") -> 82.85626828 | X85: =IFERROR('Level 2'!U10/K111*X$109,"*") -> 84.72589732 | Y85: =IFERROR('Level 2'!V10/L111*Y$109,"*") -> 78.1526055 | Z85: =IFERROR('Level 2'!W10/M111*Z$109,"*") -> 72.93110906 | AA85: =IFERROR('Level 2'!X10/N111*AA$109,"*") -> 74.84725887 | AB85: =IFERROR('Level 2'!Y10/O111*AB$109,"*") -> * | AD85: ='Oversættelse af landenavne'!$B$10 -> Danmark | AE85: =IFERROR('Level 2'!AB10/E111*R109,"*") -> 78.96891252 | AF85: =IFERROR('Level 2'!AC10/F111*S109,"*") -> 81.30075563 | AG85: =IFERROR('Level 2'!AD10/G111*T109,"*") -> 74.60715485 | AH85: =IFERROR('Level 2'!AE10/H111*U109,"*") -> 77.06474379 | AI85: =IFERROR('Level 2'!AF10/I111*V109,"*") -> 77.33119743 | AJ85: =IFERROR('Level 2'!AG10/J111*W109,"*") -> 76.60001395 | AK85: =IFERROR('Level 2'!AH10/K111*X109,"*") -> 78.16398272 | AL85: =IFERROR('Level 2'!AI10/L111*Y109,"*") -> 73.03160347 | AM85: =IFERROR('Level 2'!AJ10/M111*Z109,"*") -> 68.13698336 | AN85: =IFERROR('Level 2'!AK10/N111*AA109,"*") -> 70.60219045 | AO85: =IFERROR('Level 2'!AL10/O111*AB109,"*") -> * | AQ85: ='Oversættelse af landenavne'!$B$10 -> Danmark | AR85: =IFERROR('Level 2'!AO10/E111*R109,"*") -> 77.38071093 | AS85: =IFERROR('Level 2'!AP10/F111*S109,"*") -> 80.03766776 | AT85: =IFERROR('Level 2'!AQ10/G111*T109,"*") -> 73.18447214 | AU85: =IFERROR('Level 2'!AR10/H111*U109,"*") -> 75.03992131 | AV85: =IFERROR('Level 2'!AS10/I111*V109,"*") -> 75.27601709 | AW85: =IFERROR('Level 2'!AT10/J111*W109,"*") -> 74.60583288 | AX85: =IFERROR('Level 2'!AU10/K111*X109,"*") -> 76.15680884 | AY85: =IFERROR('Level 2'!AV10/L111*Y109,"*") -> 72.57300628 | AZ85: =IFERROR('Level 2'!AW10/M111*Z109,"*") -> 68.06148531 | BA85: =IFERROR('Level 2'!AX10/N111*AA109,"*") -> 70.08086626 | BB85: =IFERROR('Level 2'!AY10/O111*AB109,"*") -> * | BD85: ='Oversættelse af landenavne'!$B$10 -> Danmark | BE85: =IFERROR('Level 2'!BB10/E111*R$109,"*") -> 71.55730509 | BF85: =IFERROR('Level 2'!BC10/F111*S$109,"*") -> 74.73269873 | BG85: =IFERROR('Level 2'!BD10/G111*T$109,"*") -> 66.74055636 | BH85: =IFERROR('Level 2'!BE10/H111*U$109,"*") -> 69.0869432 | BI85: =IFERROR('Level 2'!BF10/I111*V$109,"*") -> 68.46571362 | BJ85: =IFERROR('Level 2'!BG10/J111*W$109,"*") -> 67.56754676 | BK85: =IFERROR('Level 2'!BH10/K111*X$109,"*") -> 68.82290429 | BL85: =IFERROR('Level 2'!BI10/L111*Y$109,"*") -> 63.43927879 | BM85: =IFERROR('Level 2'!BJ10/M111*Z$109,"*") -> 58.20899077 | BN85: =IFERROR('Level 2'!BK10/N111*AA$109,"*") -> 60.10123175 | BO85: =IFERROR('Level 2'!BL10/O111*AB$109,"*") -> * | BQ85: ='Oversættelse af landenavne'!$B$10 -> Danmark | BR85: =IFERROR('Level 2'!BO10/E111*R$109,"*") -> 70.32203718 | BS85: =IFERROR('Level 2'!BP10/F111*S$109,"*") -> 73.63802258 | BT85: =IFERROR('Level 2'!BQ10/G111*T$109,"*") -> 65.5689353 | BU85: =IFERROR('Level 2'!BR10/H111*U$109,"*") -> 68.47949646 | BV85: =IFERROR('Level 2'!BS10/I111*V$109,"*") -> 67.82095116 | BW85: =IFERROR('Level 2'!BT10/J111*W$109,"*") -> 66.94192133 | BX85: =IFERROR('Level 2'!BU10/K111*X$109,"*") -> 68.16671283 | BY85: =IFERROR('Level 2'!BV10/L111*Y$109,"*") -> 61.79597217 | BZ85: =IFERROR('Level 2'!BW10/M111*Z$109,"*") -> 57.22751622 | CA85: =IFERROR('Level 2'!BX10/N111*AA$109,"*") -> 58.53725917 | CB85: =IFERROR('Level 2'!BY10/O111*AB$109,"*") -> * | CD85: ='Oversættelse af landenavne'!$B$10 -> Danmark | CE85: =IFERROR('Level 2'!CB10/E111*R$109,"*") -> * | CF85: =IFERROR('Level 2'!CC10/F111*S$109,"*") -> * | CG85: =IFERROR('Level 2'!CD10/G111*T$109,"*") -> * | CH85: =IFERROR('Level 2'!CE10/H111*U$109,"*") -> * | CI85: =IFERROR('Level 2'!CF10/I111*V$109,"*") -> * | CJ85: =IFERROR('Level 2'!CG10/J111*W$109,"*") -> * | CK85: =IFERROR('Level 2'!CH10/K111*X$109,"*") -> * | CL85: =IFERROR('Level 2'!CI10/L111*Y$109,"*") -> * | CM85: =IFERROR('Level 2'!CJ10/M111*Z$109,"*") -> * | CN85: =IFERROR('Level 2'!CK10/N111*AA$109,"*") -> * | CO85: =IFERROR('Level 2'!CL10/O111*AB$109,"*") -> *
D86: ='Oversættelse af landenavne'!$B$11 -> Tyskland | E86: =IFERROR('Level 2'!B11/E112*R$109,"*") -> 150.0776047 | F86: =IFERROR('Level 2'!C11/F112*S$109,"*") -> 153.6805239 | G86: =IFERROR('Level 2'!D11/G112*T$109,"*") -> 156.0168533 | H86: =IFERROR('Level 2'!E11/H112*U$109,"*") -> 162.0421062 | I86: =IFERROR('Level 2'!F11/I112*V$109,"*") -> 172.4447833 | J86: =IFERROR('Level 2'!G11/J112*W$109,"*") -> 176.1138478 | K86: =IFERROR('Level 2'!H11/K112*X$109,"*") -> 190.0153437 | L86: =IFERROR('Level 2'!I11/L112*Y$109,"*") -> 177.2969634 | M86: =IFERROR('Level 2'!J11/M112*Z$109,"*") -> 166.9184156 | N86: =IFERROR('Level 2'!K11/N112*AA$109,"*") -> 164.0681704 | O86: =IFERROR('Level 2'!L11/O112*AB$109,"*") -> * | Q86: ='Oversættelse af landenavne'!$B$11 -> Tyskland | R86: =IFERROR('Level 2'!O11/E112*R$109,"*") -> 105.5926217 | S86: =IFERROR('Level 2'!P11/F112*S$109,"*") -> 108.1186681 | T86: =IFERROR('Level 2'!Q11/G112*T$109,"*") -> 110.6932878 | U86: =IFERROR('Level 2'!R11/H112*U$109,"*") -> 111.8862162 | V86: =IFERROR('Level 2'!S11/I112*V$109,"*") -> 119.1414268 | W86: =IFERROR('Level 2'!T11/J112*W$109,"*") -> 120.8910229 | X86: =IFERROR('Level 2'!U11/K112*X$109,"*") -> 132.2605233 | Y86: =IFERROR('Level 2'!V11/L112*Y$109,"*") -> 142.2036936 | Z86: =IFERROR('Level 2'!W11/M112*Z$109,"*") -> 132.4676741 | AA86: =IFERROR('Level 2'!X11/N112*AA$109,"*") -> 129.9586734 | AB86: =IFERROR('Level 2'!Y11/O112*AB$109,"*") -> * | AD86: ='Oversættelse af landenavne'!$B$11 -> Tyskland | AE86: =IFERROR('Level 2'!AB11/E112*R109,"*") -> 84.83583394 | AF86: =IFERROR('Level 2'!AC11/F112*S109,"*") -> 90.99560893 | AG86: =IFERROR('Level 2'!AD11/G112*T109,"*") -> 94.83213237 | AH86: =IFERROR('Level 2'!AE11/H112*U109,"*") -> 95.83135312 | AI86: =IFERROR('Level 2'!AF11/I112*V109,"*") -> 102.3736785 | AJ86: =IFERROR('Level 2'!AG11/J112*W109,"*") -> 104.2108147 | AK86: =IFERROR('Level 2'!AH11/K112*X109,"*") -> 113.8821853 | AL86: =IFERROR('Level 2'!AI11/L112*Y109,"*") -> 120.9763551 | AM86: =IFERROR('Level 2'!AJ11/M112*Z109,"*") -> 114.4039004 | AN86: =IFERROR('Level 2'!AK11/N112*AA109,"*") -> 112.0847011 | AO86: =IFERROR('Level 2'!AL11/O112*AB109,"*") -> * | AQ86: ='Oversættelse af landenavne'!$B$11 -> Tyskland | AR86: =IFERROR('Level 2'!AO11/E112*R109,"*") -> 74.93114267 | AS86: =IFERROR('Level 2'!AP11/F112*S109,"*") -> 81.81491633 | AT86: =IFERROR('Level 2'!AQ11/G112*T109,"*") -> 84.0766787 | AU86: =IFERROR('Level 2'!AR11/H112*U109,"*") -> 85.08662565 | AV86: =IFERROR('Level 2'!AS11/I112*V109,"*") -> 92.88017403 | AW86: =IFERROR('Level 2'!AT11/J112*W109,"*") -> 93.68446982 | AX86: =IFERROR('Level 2'!AU11/K112*X109,"*") -> 101.2594823 | AY86: =IFERROR('Level 2'!AV11/L112*Y109,"*") -> 105.2408601 | AZ86: =IFERROR('Level 2'!AW11/M112*Z109,"*") -> 99.69373865 | BA86: =IFERROR('Level 2'!AX11/N112*AA109,"*") -> 95.70022651 | BB86: =IFERROR('Level 2'!AY11/O112*AB109,"*") -> * | BD86: ='Oversættelse af landenavne'!$B$11 -> Tyskland | BE86: =IFERROR('Level 2'!BB11/E112*R$109,"*") -> 68.21317816 | BF86: =IFERROR('Level 2'!BC11/F112*S$109,"*") -> 76.81891152 | BG86: =IFERROR('Level 2'!BD11/G112*T$109,"*") -> 77.12957633 | BH86: =IFERROR('Level 2'!BE11/H112*U$109,"*") -> 76.12577185 | BI86: =IFERROR('Level 2'!BF11/I112*V$109,"*") -> 86.01690453 | BJ86: =IFERROR('Level 2'!BG11/J112*W$109,"*") -> 84.57513286 | BK86: =IFERROR('Level 2'!BH11/K112*X$109,"*") -> 88.95433158 | BL86: =IFERROR('Level 2'!BI11/L112*Y$109,"*") -> 88.60953244 | BM86: =IFERROR('Level 2'!BJ11/M112*Z$109,"*") -> 85.17412304 | BN86: =IFERROR('Level 2'!BK11/N112*AA$109,"*") -> 76.03885702 | BO86: =IFERROR('Level 2'!BL11/O112*AB$109,"*") -> * | BQ86: ='Oversættelse af landenavne'!$B$11 -> Tyskland | BR86: =IFERROR('Level 2'!BO11/E112*R$109,"*") -> 68.08398653 | BS86: =IFERROR('Level 2'!BP11/F112*S$109,"*") -> 73.10393359 | BT86: =IFERROR('Level 2'!BQ11/G112*T$109,"*") -> 72.73532483 | BU86: =IFERROR('Level 2'!BR11/H112*U$109,"*") -> 71.60385952 | BV86: =IFERROR('Level 2'!BS11/I112*V$109,"*") -> 82.72911076 | BW86: =IFERROR('Level 2'!BT11/J112*W$109,"*") -> 74.97996461 | BX86: =IFERROR('Level 2'!BU11/K112*X$109,"*") -> 80.77736044 | BY86: =IFERROR('Level 2'!BV11/L112*Y$109,"*") -> 81.63761758 | BZ86: =IFERROR('Level 2'!BW11/M112*Z$109,"*") -> 74.35110249 | CA86: =IFERROR('Level 2'!BX11/N112*AA$109,"*") -> 59.28200802 | CB86: =IFERROR('Level 2'!BY11/O112*AB$109,"*") -> * | CD86: ='Oversættelse af landenavne'!$B$11 -> Tyskland | CE86: =IFERROR('Level 2'!CB11/E112*R$109,"*") -> * | CF86: =IFERROR('Level 2'!CC11/F112*S$109,"*") -> * | CG86: =IFERROR('Level 2'!CD11/G112*T$109,"*") -> * | CH86: =IFERROR('Level 2'!CE11/H112*U$109,"*") -> * | CI86: =IFERROR('Level 2'!CF11/I112*V$109,"*") -> * | CJ86: =IFERROR('Level 2'!CG11/J112*W$109,"*") -> * | CK86: =IFERROR('Level 2'!CH11/K112*X$109,"*") -> * | CL86: =IFERROR('Level 2'!CI11/L112*Y$109,"*") -> * | CM86: =IFERROR('Level 2'!CJ11/M112*Z$109,"*") -> * | CN86: =IFERROR('Level 2'!CK11/N112*AA$109,"*") -> * | CO86: =IFERROR('Level 2'!CL11/O112*AB$109,"*") -> *
D87: ='Oversættelse af landenavne'!$B$16 -> Frankrig | E87: =IFERROR('Level 2'!B16/E113*R$109,"*") -> 86.37895011 | F87: =IFERROR('Level 2'!C16/F113*S$109,"*") -> 86.6386722 | G87: =IFERROR('Level 2'!D16/G113*T$109,"*") -> 88.99736394 | H87: =IFERROR('Level 2'!E16/H113*U$109,"*") -> 94.09008859 | I87: =IFERROR('Level 2'!F16/I113*V$109,"*") -> 99.38803048 | J87: =IFERROR('Level 2'!G16/J113*W$109,"*") -> 100.518083 | K87: =IFERROR('Level 2'!H16/K113*X$109,"*") -> 105.0360258 | L87: =IFERROR('Level 2'!I16/L113*Y$109,"*") -> 106.9611905 | M87: =IFERROR('Level 2'!J16/M113*Z$109,"*") -> 113.7139777 | N87: =IFERROR('Level 2'!K16/N113*AA$109,"*") -> 109.1801806 | O87: =IFERROR('Level 2'!L16/O113*AB$109,"*") -> * | Q87: ='Oversættelse af landenavne'!$B$16 -> Frankrig | R87: =IFERROR('Level 2'!O16/E113*R$109,"*") -> 60.10028359 | S87: =IFERROR('Level 2'!P16/F113*S$109,"*") -> 65.43395608 | T87: =IFERROR('Level 2'!Q16/G113*T$109,"*") -> 69.62781354 | U87: =IFERROR('Level 2'!R16/H113*U$109,"*") -> 71.50534141 | V87: =IFERROR('Level 2'!S16/I113*V$109,"*") -> 77.69912903 | W87: =IFERROR('Level 2'!T16/J113*W$109,"*") -> 78.11229048 | X87: =IFERROR('Level 2'!U16/K113*X$109,"*") -> 84.99449293 | Y87: =IFERROR('Level 2'!V16/L113*Y$109,"*") -> 88.47218471 | Z87: =IFERROR('Level 2'!W16/M113*Z$109,"*") -> 90.72963902 | AA87: =IFERROR('Level 2'!X16/N113*AA$109,"*") -> 89.0719618 | AB87: =IFERROR('Level 2'!Y16/O113*AB$109,"*") -> * | AD87: ='Oversættelse af landenavne'!$B$16 -> Frankrig | AE87: =IFERROR('Level 2'!AB16/E113*R109,"*") -> 46.55541536 | AF87: =IFERROR('Level 2'!AC16/F113*S109,"*") -> 50.16339559 | AG87: =IFERROR('Level 2'!AD16/G113*T109,"*") -> 54.16373257 | AH87: =IFERROR('Level 2'!AE16/H113*U109,"*") -> 58.37649184 | AI87: =IFERROR('Level 2'!AF16/I113*V109,"*") -> 64.40593137 | AJ87: =IFERROR('Level 2'!AG16/J113*W109,"*") -> 67.14038176 | AK87: =IFERROR('Level 2'!AH16/K113*X109,"*") -> 69.8579624 | AL87: =IFERROR('Level 2'!AI16/L113*Y109,"*") -> 73.23021506 | AM87: =IFERROR('Level 2'!AJ16/M113*Z109,"*") -> 73.85936088 | AN87: =IFERROR('Level 2'!AK16/N113*AA109,"*") -> 73.95356025 | AO87: =IFERROR('Level 2'!AL16/O113*AB109,"*") -> * | AQ87: ='Oversættelse af landenavne'!$B$16 -> Frankrig | AR87: =IFERROR('Level 2'!AO16/E113*R109,"*") -> 42.90560057 | AS87: =IFERROR('Level 2'!AP16/F113*S109,"*") -> 45.29738797 | AT87: =IFERROR('Level 2'!AQ16/G113*T109,"*") -> 51.20504361 | AU87: =IFERROR('Level 2'!AR16/H113*U109,"*") -> 51.65577123 | AV87: =IFERROR('Level 2'!AS16/I113*V109,"*") -> 56.04909658 | AW87: =IFERROR('Level 2'!AT16/J113*W109,"*") -> 58.17036516 | AX87: =IFERROR('Level 2'!AU16/K113*X109,"*") -> 60.43116111 | AY87: =IFERROR('Level 2'!AV16/L113*Y109,"*") -> 62.91610027 | AZ87: =IFERROR('Level 2'!AW16/M113*Z109,"*") -> 65.2543868 | BA87: =IFERROR('Level 2'!AX16/N113*AA109,"*") -> 62.18652851 | BB87: =IFERROR('Level 2'!AY16/O113*AB109,"*") -> * | BD87: ='Oversættelse af landenavne'!$B$16 -> Frankrig | BE87: =IFERROR('Level 2'!BB16/E113*R$109,"*") -> 44.85216846 | BF87: =IFERROR('Level 2'!BC16/F113*S$109,"*") -> 48.46227098 | BG87: =IFERROR('Level 2'!BD16/G113*T$109,"*") -> 52.98025699 | BH87: =IFERROR('Level 2'!BE16/H113*U$109,"*") -> 50.63984834 | BI87: =IFERROR('Level 2'!BF16/I113*V$109,"*") -> 52.31767267 | BJ87: =IFERROR('Level 2'!BG16/J113*W$109,"*") -> 53.74310375 | BK87: =IFERROR('Level 2'!BH16/K113*X$109,"*") -> 54.56815055 | BL87: =IFERROR('Level 2'!BI16/L113*Y$109,"*") -> 55.65801948 | BM87: =IFERROR('Level 2'!BJ16/M113*Z$109,"*") -> 56.64941272 | BN87: =IFERROR('Level 2'!BK16/N113*AA$109,"*") -> 52.6537433 | BO87: =IFERROR('Level 2'!BL16/O113*AB$109,"*") -> * | BQ87: ='Oversættelse af landenavne'!$B$16 -> Frankrig | BR87: =IFERROR('Level 2'!BO16/E113*R$109,"*") -> 41.85120963 | BS87: =IFERROR('Level 2'!BP16/F113*S$109,"*") -> 45.25782694 | BT87: =IFERROR('Level 2'!BQ16/G113*T$109,"*") -> 45.16931813 | BU87: =IFERROR('Level 2'!BR16/H113*U$109,"*") -> 45.59930788 | BV87: =IFERROR('Level 2'!BS16/I113*V$109,"*") -> 46.29297782 | BW87: =IFERROR('Level 2'!BT16/J113*W$109,"*") -> 47.27545229 | BX87: =IFERROR('Level 2'!BU16/K113*X$109,"*") -> 46.32927951 | BY87: =IFERROR('Level 2'!BV16/L113*Y$109,"*") -> 46.41351659 | BZ87: =IFERROR('Level 2'!BW16/M113*Z$109,"*") -> 45.93093623 | CA87: =IFERROR('Level 2'!BX16/N113*AA$109,"*") -> 48.18525024 | CB87: =IFERROR('Level 2'!BY16/O113*AB$109,"*") -> * | CD87: ='Oversættelse af landenavne'!$B$16 -> Frankrig | CE87: =IFERROR('Level 2'!CB16/E113*R$109,"*") -> * | CF87: =IFERROR('Level 2'!CC16/F113*S$109,"*") -> * | CG87: =IFERROR('Level 2'!CD16/G113*T$109,"*") -> * | CH87: =IFERROR('Level 2'!CE16/H113*U$109,"*") -> * | CI87: =IFERROR('Level 2'!CF16/I113*V$109,"*") -> * | CJ87: =IFERROR('Level 2'!CG16/J113*W$109,"*") -> * | CK87: =IFERROR('Level 2'!CH16/K113*X$109,"*") -> * | CL87: =IFERROR('Level 2'!CI16/L113*Y$109,"*") -> * | CM87: =IFERROR('Level 2'!CJ16/M113*Z$109,"*") -> * | CN87: =IFERROR('Level 2'!CK16/N113*AA$109,"*") -> * | CO87: =IFERROR('Level 2'!CL16/O113*AB$109,"*") -> *
D88: ='Oversættelse af landenavne'!$B$18 -> Italien | E88: =IFERROR('Level 2'!B18/E114*R$109,"*") -> * | F88: =IFERROR('Level 2'!C18/F114*S$109,"*") -> 177.7338536 | G88: =IFERROR('Level 2'!D18/G114*T$109,"*") -> 186.78724 | H88: =IFERROR('Level 2'!E18/H114*U$109,"*") -> 189.9778974 | I88: =IFERROR('Level 2'!F18/I114*V$109,"*") -> 185.1980181 | J88: =IFERROR('Level 2'!G18/J114*W$109,"*") -> 187.3996332 | K88: =IFERROR('Level 2'!H18/K114*X$109,"*") -> 205.1148691 | L88: =IFERROR('Level 2'!I18/L114*Y$109,"*") -> 198.643982 | M88: =IFERROR('Level 2'!J18/M114*Z$109,"*") -> 202.1395452 | N88: =IFERROR('Level 2'!K18/N114*AA$109,"*") -> 200.7842885 | O88: =IFERROR('Level 2'!L18/O114*AB$109,"*") -> * | Q88: ='Oversættelse af landenavne'!$B$18 -> Italien | R88: =IFERROR('Level 2'!O18/E114*R$109,"*") -> * | S88: =IFERROR('Level 2'!P18/F114*S$109,"*") -> 126.5455402 | T88: =IFERROR('Level 2'!Q18/G114*T$109,"*") -> 124.7344203 | U88: =IFERROR('Level 2'!R18/H114*U$109,"*") -> 121.2029837 | V88: =IFERROR('Level 2'!S18/I114*V$109,"*") -> 139.7933779 | W88: =IFERROR('Level 2'!T18/J114*W$109,"*") -> 148.1254138 | X88: =IFERROR('Level 2'!U18/K114*X$109,"*") -> 149.8359547 | Y88: =IFERROR('Level 2'!V18/L114*Y$109,"*") -> 149.6367947 | Z88: =IFERROR('Level 2'!W18/M114*Z$109,"*") -> 141.1255073 | AA88: =IFERROR('Level 2'!X18/N114*AA$109,"*") -> 133.8313673 | AB88: =IFERROR('Level 2'!Y18/O114*AB$109,"*") -> * | AD88: ='Oversættelse af landenavne'!$B$18 -> Italien | AE88: =IFERROR('Level 2'!AB18/E114*R109,"*") -> * | AF88: =IFERROR('Level 2'!AC18/F114*S109,"*") -> 115.8261052 | AG88: =IFERROR('Level 2'!AD18/G114*T109,"*") -> 114.0058454 | AH88: =IFERROR('Level 2'!AE18/H114*U109,"*") -> 111.5524374 | AI88: =IFERROR('Level 2'!AF18/I114*V109,"*") -> 123.8414478 | AJ88: =IFERROR('Level 2'!AG18/J114*W109,"*") -> 131.9151723 | AK88: =IFERROR('Level 2'!AH18/K114*X109,"*") -> 129.453998 | AL88: =IFERROR('Level 2'!AI18/L114*Y109,"*") -> 130.9511463 | AM88: =IFERROR('Level 2'!AJ18/M114*Z109,"*") -> 120.4867477 | AN88: =IFERROR('Level 2'!AK18/N114*AA109,"*") -> 113.6486737 | AO88: =IFERROR('Level 2'!AL18/O114*AB109,"*") -> * | AQ88: ='Oversættelse af landenavne'!$B$18 -> Italien | AR88: =IFERROR('Level 2'!AO18/E114*R109,"*") -> * | AS88: =IFERROR('Level 2'!AP18/F114*S109,"*") -> 107.1542027 | AT88: =IFERROR('Level 2'!AQ18/G114*T109,"*") -> 100.487055 | AU88: =IFERROR('Level 2'!AR18/H114*U109,"*") -> 98.75069226 | AV88: =IFERROR('Level 2'!AS18/I114*V109,"*") -> 104.5824102 | AW88: =IFERROR('Level 2'!AT18/J114*W109,"*") -> 127.33318 | AX88: =IFERROR('Level 2'!AU18/K114*X109,"*") -> 119.1677768 | AY88: =IFERROR('Level 2'!AV18/L114*Y109,"*") -> 118.0265903 | AZ88: =IFERROR('Level 2'!AW18/M114*Z109,"*") -> 111.8026794 | BA88: =IFERROR('Level 2'!AX18/N114*AA109,"*") -> 104.7116875 | BB88: =IFERROR('Level 2'!AY18/O114*AB109,"*") -> * | BD88: ='Oversættelse af landenavne'!$B$18 -> Italien | BE88: =IFERROR('Level 2'!BB18/E114*R$109,"*") -> * | BF88: =IFERROR('Level 2'!BC18/F114*S$109,"*") -> 96.07343838 | BG88: =IFERROR('Level 2'!BD18/G114*T$109,"*") -> 87.16475873 | BH88: =IFERROR('Level 2'!BE18/H114*U$109,"*") -> 87.17003669 | BI88: =IFERROR('Level 2'!BF18/I114*V$109,"*") -> 95.78939508 | BJ88: =IFERROR('Level 2'!BG18/J114*W$109,"*") -> 102.3439953 | BK88: =IFERROR('Level 2'!BH18/K114*X$109,"*") -> 102.9003086 | BL88: =IFERROR('Level 2'!BI18/L114*Y$109,"*") -> 103.2448401 | BM88: =IFERROR('Level 2'!BJ18/M114*Z$109,"*") -> 95.18641033 | BN88: =IFERROR('Level 2'!BK18/N114*AA$109,"*") -> 91.23173344 | BO88: =IFERROR('Level 2'!BL18/O114*AB$109,"*") -> * | BQ88: ='Oversættelse af landenavne'!$B$18 -> Italien | BR88: =IFERROR('Level 2'!BO18/E114*R$109,"*") -> * | BS88: =IFERROR('Level 2'!BP18/F114*S$109,"*") -> 86.71902504 | BT88: =IFERROR('Level 2'!BQ18/G114*T$109,"*") -> 73.41017552 | BU88: =IFERROR('Level 2'!BR18/H114*U$109,"*") -> 79.37081967 | BV88: =IFERROR('Level 2'!BS18/I114*V$109,"*") -> 78.39790052 | BW88: =IFERROR('Level 2'!BT18/J114*W$109,"*") -> 90.6002336 | BX88: =IFERROR('Level 2'!BU18/K114*X$109,"*") -> 87.54717108 | BY88: =IFERROR('Level 2'!BV18/L114*Y$109,"*") -> 83.46003593 | BZ88: =IFERROR('Level 2'!BW18/M114*Z$109,"*") -> 79.28441524 | CA88: =IFERROR('Level 2'!BX18/N114*AA$109,"*") -> 67.69766996 | CB88: =IFERROR('Level 2'!BY18/O114*AB$109,"*") -> * | CD88: ='Oversættelse af landenavne'!$B$18 -> Italien | CE88: =IFERROR('Level 2'!CB18/E114*R$109,"*") -> * | CF88: =IFERROR('Level 2'!CC18/F114*S$109,"*") -> 77.1638732 | CG88: =IFERROR('Level 2'!CD18/G114*T$109,"*") -> 70.50206365 | CH88: =IFERROR('Level 2'!CE18/H114*U$109,"*") -> 80.39495928 | CI88: =IFERROR('Level 2'!CF18/I114*V$109,"*") -> 70.69428548 | CJ88: =IFERROR('Level 2'!CG18/J114*W$109,"*") -> 74.96755411 | CK88: =IFERROR('Level 2'!CH18/K114*X$109,"*") -> 77.52762974 | CL88: =IFERROR('Level 2'!CI18/L114*Y$109,"*") -> 66.02515104 | CM88: =IFERROR('Level 2'!CJ18/M114*Z$109,"*") -> 64.96134165 | CN88: =IFERROR('Level 2'!CK18/N114*AA$109,"*") -> 55.5582638 | CO88: =IFERROR('Level 2'!CL18/O114*AB$109,"*") -> *
D89: ='Oversættelse af landenavne'!$B$25 -> Holland | E89: =IFERROR('Level 2'!B25/E115*R$109,"*") -> 115.5412689 | F89: =IFERROR('Level 2'!C25/F115*S$109,"*") -> 124.5863076 | G89: =IFERROR('Level 2'!D25/G115*T$109,"*") -> 138.8518219 | H89: =IFERROR('Level 2'!E25/H115*U$109,"*") -> 132.9938557 | I89: =IFERROR('Level 2'!F25/I115*V$109,"*") -> 118.8486154 | J89: =IFERROR('Level 2'!G25/J115*W$109,"*") -> 123.566717 | K89: =IFERROR('Level 2'!H25/K115*X$109,"*") -> 123.7193229 | L89: =IFERROR('Level 2'!I25/L115*Y$109,"*") -> 129.5267558 | M89: =IFERROR('Level 2'!J25/M115*Z$109,"*") -> 134.4790407 | N89: =IFERROR('Level 2'!K25/N115*AA$109,"*") -> 102.4029661 | O89: =IFERROR('Level 2'!L25/O115*AB$109,"*") -> * | Q89: ='Oversættelse af landenavne'!$B$25 -> Holland | R89: =IFERROR('Level 2'!O25/E115*R$109,"*") -> 102.3641005 | S89: =IFERROR('Level 2'!P25/F115*S$109,"*") -> 96.26410543 | T89: =IFERROR('Level 2'!Q25/G115*T$109,"*") -> 109.8315958 | U89: =IFERROR('Level 2'!R25/H115*U$109,"*") -> 100.6366676 | V89: =IFERROR('Level 2'!S25/I115*V$109,"*") -> 96.41923201 | W89: =IFERROR('Level 2'!T25/J115*W$109,"*") -> 96.38280178 | X89: =IFERROR('Level 2'!U25/K115*X$109,"*") -> 97.80693483 | Y89: =IFERROR('Level 2'!V25/L115*Y$109,"*") -> 95.56363552 | Z89: =IFERROR('Level 2'!W25/M115*Z$109,"*") -> 93.11240348 | AA89: =IFERROR('Level 2'!X25/N115*AA$109,"*") -> 102.7753405 | AB89: =IFERROR('Level 2'!Y25/O115*AB$109,"*") -> * | AD89: ='Oversættelse af landenavne'!$B$25 -> Holland | AE89: =IFERROR('Level 2'!AB25/E115*R109,"*") -> 82.39747653 | AF89: =IFERROR('Level 2'!AC25/F115*S109,"*") -> 81.94609464 | AG89: =IFERROR('Level 2'!AD25/G115*T109,"*") -> 84.79530391 | AH89: =IFERROR('Level 2'!AE25/H115*U109,"*") -> 76.80472671 | AI89: =IFERROR('Level 2'!AF25/I115*V109,"*") -> 75.03577839 | AJ89: =IFERROR('Level 2'!AG25/J115*W109,"*") -> 73.73589345 | AK89: =IFERROR('Level 2'!AH25/K115*X109,"*") -> 71.70485137 | AL89: =IFERROR('Level 2'!AI25/L115*Y109,"*") -> 68.60399682 | AM89: =IFERROR('Level 2'!AJ25/M115*Z109,"*") -> 65.49717557 | AN89: =IFERROR('Level 2'!AK25/N115*AA109,"*") -> 63.82497597 | AO89: =IFERROR('Level 2'!AL25/O115*AB109,"*") -> * | AQ89: ='Oversættelse af landenavne'!$B$25 -> Holland | AR89: =IFERROR('Level 2'!AO25/E115*R109,"*") -> 70.82727993 | AS89: =IFERROR('Level 2'!AP25/F115*S109,"*") -> 71.31546197 | AT89: =IFERROR('Level 2'!AQ25/G115*T109,"*") -> 76.59308658 | AU89: =IFERROR('Level 2'!AR25/H115*U109,"*") -> 69.0157509 | AV89: =IFERROR('Level 2'!AS25/I115*V109,"*") -> 67.40436468 | AW89: =IFERROR('Level 2'!AT25/J115*W109,"*") -> 65.42440184 | AX89: =IFERROR('Level 2'!AU25/K115*X109,"*") -> 66.31750275 | AY89: =IFERROR('Level 2'!AV25/L115*Y109,"*") -> 62.73010905 | AZ89: =IFERROR('Level 2'!AW25/M115*Z109,"*") -> 60.47622504 | BA89: =IFERROR('Level 2'!AX25/N115*AA109,"*") -> 57.64356056 | BB89: =IFERROR('Level 2'!AY25/O115*AB109,"*") -> * | BD89: ='Oversættelse af landenavne'!$B$25 -> Holland | BE89: =IFERROR('Level 2'!BB25/E115*R$109,"*") -> 64.72078727 | BF89: =IFERROR('Level 2'!BC25/F115*S$109,"*") -> 66.0982142 | BG89: =IFERROR('Level 2'!BD25/G115*T$109,"*") -> 68.27369472 | BH89: =IFERROR('Level 2'!BE25/H115*U$109,"*") -> 57.11915599 | BI89: =IFERROR('Level 2'!BF25/I115*V$109,"*") -> 56.13156576 | BJ89: =IFERROR('Level 2'!BG25/J115*W$109,"*") -> 55.20660482 | BK89: =IFERROR('Level 2'!BH25/K115*X$109,"*") -> 58.69174871 | BL89: =IFERROR('Level 2'!BI25/L115*Y$109,"*") -> 53.35448051 | BM89: =IFERROR('Level 2'!BJ25/M115*Z$109,"*") -> 50.24697508 | BN89: =IFERROR('Level 2'!BK25/N115*AA$109,"*") -> 49.22789862 | BO89: =IFERROR('Level 2'!BL25/O115*AB$109,"*") -> * | BQ89: ='Oversættelse af landenavne'!$B$25 -> Holland | BR89: =IFERROR('Level 2'!BO25/E115*R$109,"*") -> 57.93133162 | BS89: =IFERROR('Level 2'!BP25/F115*S$109,"*") -> 61.86165211 | BT89: =IFERROR('Level 2'!BQ25/G115*T$109,"*") -> 65.10998232 | BU89: =IFERROR('Level 2'!BR25/H115*U$109,"*") -> 56.61539139 | BV89: =IFERROR('Level 2'!BS25/I115*V$109,"*") -> 56.94506671 | BW89: =IFERROR('Level 2'!BT25/J115*W$109,"*") -> 53.64343437 | BX89: =IFERROR('Level 2'!BU25/K115*X$109,"*") -> 57.70533277 | BY89: =IFERROR('Level 2'!BV25/L115*Y$109,"*") -> 54.52172744 | BZ89: =IFERROR('Level 2'!BW25/M115*Z$109,"*") -> 51.7082965 | CA89: =IFERROR('Level 2'!BX25/N115*AA$109,"*") -> 46.24890324 | CB89: =IFERROR('Level 2'!BY25/O115*AB$109,"*") -> * | CD89: ='Oversættelse af landenavne'!$B$25 -> Holland | CE89: =IFERROR('Level 2'!CB25/E115*R$109,"*") -> * | CF89: =IFERROR('Level 2'!CC25/F115*S$109,"*") -> * | CG89: =IFERROR('Level 2'!CD25/G115*T$109,"*") -> 50.11164206 | CH89: =IFERROR('Level 2'!CE25/H115*U$109,"*") -> 49.05892231 | CI89: =IFERROR('Level 2'!CF25/I115*V$109,"*") -> 49.93346326 | CJ89: =IFERROR('Level 2'!CG25/J115*W$109,"*") -> 47.08574375 | CK89: =IFERROR('Level 2'!CH25/K115*X$109,"*") -> 56.03601348 | CL89: =IFERROR('Level 2'!CI25/L115*Y$109,"*") -> 49.40090221 | CM89: =IFERROR('Level 2'!CJ25/M115*Z$109,"*") -> 49.0854119 | CN89: =IFERROR('Level 2'!CK25/N115*AA$109,"*") -> 43.5678074 | CO89: =IFERROR('Level 2'!CL25/O115*AB$109,"*") -> *
D90: ='Oversættelse af landenavne'!$B$33 -> Sverige | E90: =IFERROR('Level 2'!B33/E116*R$109,"*") -> 80.22879057 | F90: =IFERROR('Level 2'!C33/F116*S$109,"*") -> 96.9789551 | G90: =IFERROR('Level 2'!D33/G116*T$109,"*") -> 104.8074122 | H90: =IFERROR('Level 2'!E33/H116*U$109,"*") -> 113.9714278 | I90: =IFERROR('Level 2'!F33/I116*V$109,"*") -> 116.9875525 | J90: =IFERROR('Level 2'!G33/J116*W$109,"*") -> 124.8155234 | K90: =IFERROR('Level 2'!H33/K116*X$109,"*") -> 105.3160468 | L90: =IFERROR('Level 2'!I33/L116*Y$109,"*") -> 100.9389431 | M90: =IFERROR('Level 2'!J33/M116*Z$109,"*") -> 100.5891379 | N90: =IFERROR('Level 2'!K33/N116*AA$109,"*") -> 93.01913067 | O90: =IFERROR('Level 2'!L33/O116*AB$109,"*") -> * | Q90: ='Oversættelse af landenavne'!$B$33 -> Sverige | R90: =IFERROR('Level 2'!O33/E116*R$109,"*") -> 62.20455863 | S90: =IFERROR('Level 2'!P33/F116*S$109,"*") -> 70.45731912 | T90: =IFERROR('Level 2'!Q33/G116*T$109,"*") -> 70.11411266 | U90: =IFERROR('Level 2'!R33/H116*U$109,"*") -> 74.94178079 | V90: =IFERROR('Level 2'!S33/I116*V$109,"*") -> 73.80906183 | W90: =IFERROR('Level 2'!T33/J116*W$109,"*") -> 66.0554376 | X90: =IFERROR('Level 2'!U33/K116*X$109,"*") -> 62.54919264 | Y90: =IFERROR('Level 2'!V33/L116*Y$109,"*") -> 58.47700051 | Z90: =IFERROR('Level 2'!W33/M116*Z$109,"*") -> 52.66311377 | AA90: =IFERROR('Level 2'!X33/N116*AA$109,"*") -> 53.24954238 | AB90: =IFERROR('Level 2'!Y33/O116*AB$109,"*") -> * | AD90: ='Oversættelse af landenavne'!$B$33 -> Sverige | AE90: =IFERROR('Level 2'!AB33/E116*R109,"*") -> 53.56969402 | AF90: =IFERROR('Level 2'!AC33/F116*S109,"*") -> 61.81354269 | AG90: =IFERROR('Level 2'!AD33/G116*T109,"*") -> 61.65676833 | AH90: =IFERROR('Level 2'!AE33/H116*U109,"*") -> 66.64190772 | AI90: =IFERROR('Level 2'!AF33/I116*V109,"*") -> 65.24160011 | AJ90: =IFERROR('Level 2'!AG33/J116*W109,"*") -> 57.24323051 | AK90: =IFERROR('Level 2'!AH33/K116*X109,"*") -> 55.18418532 | AL90: =IFERROR('Level 2'!AI33/L116*Y109,"*") -> 50.46947154 | AM90: =IFERROR('Level 2'!AJ33/M116*Z109,"*") -> 44.85431756 | AN90: =IFERROR('Level 2'!AK33/N116*AA109,"*") -> 45.87652882 | AO90: =IFERROR('Level 2'!AL33/O116*AB109,"*") -> * | AQ90: ='Oversættelse af landenavne'!$B$33 -> Sverige | AR90: =IFERROR('Level 2'!AO33/E116*R109,"*") -> 46.36000124 | AS90: =IFERROR('Level 2'!AP33/F116*S109,"*") -> 55.06718059 | AT90: =IFERROR('Level 2'!AQ33/G116*T109,"*") -> 54.19975505 | AU90: =IFERROR('Level 2'!AR33/H116*U109,"*") -> 58.86836806 | AV90: =IFERROR('Level 2'!AS33/I116*V109,"*") -> 56.74995663 | AW90: =IFERROR('Level 2'!AT33/J116*W109,"*") -> 50.05622554 | AX90: =IFERROR('Level 2'!AU33/K116*X109,"*") -> 48.45961341 | AY90: =IFERROR('Level 2'!AV33/L116*Y109,"*") -> 45.29028997 | AZ90: =IFERROR('Level 2'!AW33/M116*Z109,"*") -> 39.22902361 | BA90: =IFERROR('Level 2'!AX33/N116*AA109,"*") -> 39.54616364 | BB90: =IFERROR('Level 2'!AY33/O116*AB109,"*") -> * | BD90: ='Oversættelse af landenavne'!$B$33 -> Sverige | BE90: =IFERROR('Level 2'!BB33/E116*R$109,"*") -> 41.83298484 | BF90: =IFERROR('Level 2'!BC33/F116*S$109,"*") -> 49.54359663 | BG90: =IFERROR('Level 2'!BD33/G116*T$109,"*") -> 49.42544777 | BH90: =IFERROR('Level 2'!BE33/H116*U$109,"*") -> 56.39864973 | BI90: =IFERROR('Level 2'!BF33/I116*V$109,"*") -> 50.53286051 | BJ90: =IFERROR('Level 2'!BG33/J116*W$109,"*") -> 43.69987944 | BK90: =IFERROR('Level 2'!BH33/K116*X$109,"*") -> 43.19381107 | BL90: =IFERROR('Level 2'!BI33/L116*Y$109,"*") -> 39.89071768 | BM90: =IFERROR('Level 2'!BJ33/M116*Z$109,"*") -> 34.26988289 | BN90: =IFERROR('Level 2'!BK33/N116*AA$109,"*") -> 34.4818715 | BO90: =IFERROR('Level 2'!BL33/O116*AB$109,"*") -> * | BQ90: ='Oversættelse af landenavne'!$B$33 -> Sverige | BR90: =IFERROR('Level 2'!BO33/E116*R$109,"*") -> 40.86889802 | BS90: =IFERROR('Level 2'!BP33/F116*S$109,"*") -> 49.88091473 | BT90: =IFERROR('Level 2'!BQ33/G116*T$109,"*") -> 45.33318438 | BU90: =IFERROR('Level 2'!BR33/H116*U$109,"*") -> 52.91675175 | BV90: =IFERROR('Level 2'!BS33/I116*V$109,"*") -> 46.59031176 | BW90: =IFERROR('Level 2'!BT33/J116*W$109,"*") -> 37.16295533 | BX90: =IFERROR('Level 2'!BU33/K116*X$109,"*") -> 38.35496568 | BY90: =IFERROR('Level 2'!BV33/L116*Y$109,"*") -> 34.85846324 | BZ90: =IFERROR('Level 2'!BW33/M116*Z$109,"*") -> 28.20048678 | CA90: =IFERROR('Level 2'!BX33/N116*AA$109,"*") -> 28.59835563 | CB90: =IFERROR('Level 2'!BY33/O116*AB$109,"*") -> * | CD90: ='Oversættelse af landenavne'!$B$33 -> Sverige | CE90: =IFERROR('Level 2'!CB33/E116*R$109,"*") -> * | CF90: =IFERROR('Level 2'!CC33/F116*S$109,"*") -> * | CG90: =IFERROR('Level 2'!CD33/G116*T$109,"*") -> * | CH90: =IFERROR('Level 2'!CE33/H116*U$109,"*") -> * | CI90: =IFERROR('Level 2'!CF33/I116*V$109,"*") -> * | CJ90: =IFERROR('Level 2'!CG33/J116*W$109,"*") -> * | CK90: =IFERROR('Level 2'!CH33/K116*X$109,"*") -> * | CL90: =IFERROR('Level 2'!CI33/L116*Y$109,"*") -> * | CM90: =IFERROR('Level 2'!CJ33/M116*Z$109,"*") -> * | CN90: =IFERROR('Level 2'!CK33/N116*AA$109,"*") -> * | CO90: =IFERROR('Level 2'!CL33/O116*AB$109,"*") -> *
D91: ='Oversættelse af landenavne'!$B$34 -> UK | E91: =IFERROR('Level 2'!B34/E117*R$109,"*") -> 130.6689428 | F91: =IFERROR('Level 2'!C34/F117*S$109,"*") -> 136.1653844 | G91: =IFERROR('Level 2'!D34/G117*T$109,"*") -> 152.6612666 | H91: =IFERROR('Level 2'!E34/H117*U$109,"*") -> 151.1038704 | I91: =IFERROR('Level 2'!F34/I117*V$109,"*") -> 147.484401 | J91: =IFERROR('Level 2'!G34/J117*W$109,"*") -> 149.850163 | K91: =IFERROR('Level 2'!H34/K117*X$109,"*") -> 153.111456 | L91: =IFERROR('Level 2'!I34/L117*Y$109,"*") -> 158.8015767 | M91: =IFERROR('Level 2'!J34/M117*Z$109,"*") -> 152.9582279 | N91: =IFERROR('Level 2'!K34/N117*AA$109,"*") -> 123.0325091 | O91: =IFERROR('Level 2'!L34/O117*AB$109,"*") -> * | Q91: ='Oversættelse af landenavne'!$B$34 -> UK | R91: =IFERROR('Level 2'!O34/E117*R$109,"*") -> 108.8072863 | S91: =IFERROR('Level 2'!P34/F117*S$109,"*") -> 117.2777623 | T91: =IFERROR('Level 2'!Q34/G117*T$109,"*") -> 130.3981652 | U91: =IFERROR('Level 2'!R34/H117*U$109,"*") -> 124.4695058 | V91: =IFERROR('Level 2'!S34/I117*V$109,"*") -> 123.9479757 | W91: =IFERROR('Level 2'!T34/J117*W$109,"*") -> 127.8091188 | X91: =IFERROR('Level 2'!U34/K117*X$109,"*") -> 131.6996982 | Y91: =IFERROR('Level 2'!V34/L117*Y$109,"*") -> 135.9504323 | Z91: =IFERROR('Level 2'!W34/M117*Z$109,"*") -> 139.9175319 | AA91: =IFERROR('Level 2'!X34/N117*AA$109,"*") -> 114.4678974 | AB91: =IFERROR('Level 2'!Y34/O117*AB$109,"*") -> * | AD91: ='Oversættelse af landenavne'!$B$34 -> UK | AE91: =IFERROR('Level 2'!AB34/E117*R109,"*") -> 99.33390182 | AF91: =IFERROR('Level 2'!AC34/F117*S109,"*") -> 105.9862491 | AG91: =IFERROR('Level 2'!AD34/G117*T109,"*") -> 118.7923379 | AH91: =IFERROR('Level 2'!AE34/H117*U109,"*") -> 104.9024776 | AI91: =IFERROR('Level 2'!AF34/I117*V109,"*") -> 106.6773996 | AJ91: =IFERROR('Level 2'!AG34/J117*W109,"*") -> 112.6649439 | AK91: =IFERROR('Level 2'!AH34/K117*X109,"*") -> 117.292715 | AL91: =IFERROR('Level 2'!AI34/L117*Y109,"*") -> 121.5181305 | AM91: =IFERROR('Level 2'!AJ34/M117*Z109,"*") -> 124.9664154 | AN91: =IFERROR('Level 2'!AK34/N117*AA109,"*") -> 102.5519159 | AO91: =IFERROR('Level 2'!AL34/O117*AB109,"*") -> * | AQ91: ='Oversættelse af landenavne'!$B$34 -> UK | AR91: =IFERROR('Level 2'!AO34/E117*R109,"*") -> 89.45061127 | AS91: =IFERROR('Level 2'!AP34/F117*S109,"*") -> 97.00436358 | AT91: =IFERROR('Level 2'!AQ34/G117*T109,"*") -> 107.0191189 | AU91: =IFERROR('Level 2'!AR34/H117*U109,"*") -> 92.87745754 | AV91: =IFERROR('Level 2'!AS34/I117*V109,"*") -> 95.98859799 | AW91: =IFERROR('Level 2'!AT34/J117*W109,"*") -> 102.2955249 | AX91: =IFERROR('Level 2'!AU34/K117*X109,"*") -> 107.5059023 | AY91: =IFERROR('Level 2'!AV34/L117*Y109,"*") -> 110.4163599 | AZ91: =IFERROR('Level 2'!AW34/M117*Z109,"*") -> 114.8744117 | BA91: =IFERROR('Level 2'!AX34/N117*AA109,"*") -> 94.43415348 | BB91: =IFERROR('Level 2'!AY34/O117*AB109,"*") -> * | BD91: ='Oversættelse af landenavne'!$B$34 -> UK | BE91: =IFERROR('Level 2'!BB34/E117*R$109,"*") -> 83.75747155 | BF91: =IFERROR('Level 2'!BC34/F117*S$109,"*") -> 93.92485997 | BG91: =IFERROR('Level 2'!BD34/G117*T$109,"*") -> 104.0618648 | BH91: =IFERROR('Level 2'!BE34/H117*U$109,"*") -> 85.8628625 | BI91: =IFERROR('Level 2'!BF34/I117*V$109,"*") -> 89.72274876 | BJ91: =IFERROR('Level 2'!BG34/J117*W$109,"*") -> 99.73934249 | BK91: =IFERROR('Level 2'!BH34/K117*X$109,"*") -> 106.0652039 | BL91: =IFERROR('Level 2'!BI34/L117*Y$109,"*") -> 109.6762419 | BM91: =IFERROR('Level 2'!BJ34/M117*Z$109,"*") -> 111.9257193 | BN91: =IFERROR('Level 2'!BK34/N117*AA$109,"*") -> 93.16808044 | BO91: =IFERROR('Level 2'!BL34/O117*AB$109,"*") -> * | BQ91: ='Oversættelse af landenavne'!$B$34 -> UK | BR91: =IFERROR('Level 2'!BO34/E117*R$109,"*") -> 80.11386213 | BS91: =IFERROR('Level 2'!BP34/F117*S$109,"*") -> 96.18316262 | BT91: =IFERROR('Level 2'!BQ34/G117*T$109,"*") -> 103.0575144 | BU91: =IFERROR('Level 2'!BR34/H117*U$109,"*") -> 84.49158829 | BV91: =IFERROR('Level 2'!BS34/I117*V$109,"*") -> 87.0373848 | BW91: =IFERROR('Level 2'!BT34/J117*W$109,"*") -> 94.28936875 | BX91: =IFERROR('Level 2'!BU34/K117*X$109,"*") -> 103.7302791 | BY91: =IFERROR('Level 2'!BV34/L117*Y$109,"*") -> 106.5769976 | BZ91: =IFERROR('Level 2'!BW34/M117*Z$109,"*") -> 109.1431504 | CA91: =IFERROR('Level 2'!BX34/N117*AA$109,"*") -> 91.08278368 | CB91: =IFERROR('Level 2'!BY34/O117*AB$109,"*") -> * | CD91: ='Oversættelse af landenavne'!$B$34 -> UK | CE91: =IFERROR('Level 2'!CB34/E117*R$109,"*") -> 70.64047763 | CF91: =IFERROR('Level 2'!CC34/F117*S$109,"*") -> 83.96779831 | CG91: =IFERROR('Level 2'!CD34/G117*T$109,"*") -> 89.94516144 | CH91: =IFERROR('Level 2'!CE34/H117*U$109,"*") -> 84.91351881 | CI91: =IFERROR('Level 2'!CF34/I117*V$109,"*") -> 85.66837572 | CJ91: =IFERROR('Level 2'!CG34/J117*W$109,"*") -> 96.17033314 | CK91: =IFERROR('Level 2'!CH34/K117*X$109,"*") -> 99.75593888 | CL91: =IFERROR('Level 2'!CI34/L117*Y$109,"*") -> 103.6627828 | CM91: =IFERROR('Level 2'!CJ34/M117*Z$109,"*") -> 105.8206801 | CN91: =IFERROR('Level 2'!CK34/N117*AA$109,"*") -> 88.25273807 | CO91: =IFERROR('Level 2'!CL34/O117*AB$109,"*") -> *
D92: Kilde: Eurostat | Q92: Kilde: Eurostat | AD92: Kilde: Eurostat | AQ92: Kilde: Eurostat | BD92: Kilde: Eurostat | BQ92: Kilde: Eurostat | CD92: Kilde: Eurostat
D100: Baggrundstabeller
D101: Herunder vises de tabeller, der framkoller som resultatet er valgene truffet øverst i valgmenuen. De ganges på rådata for at få resultattabellerne som kan ses længere oppe.
D104: Tabel B - BVT Deflatoren | Q104: Tabel C - Valutakurs
D105: Tabel B fremkommer som resultat af valgene truffet for faste/løbende priser og basisår. BVT deflatoren vises for samtlige lande for det valgte år. Væles løbende priser deflaterer man ikke, hvorfor der vil stå et 1-tal i alle celler. Formlen gør at "fejlværdien" svarer til at man har valgt løbende priser (gælder både for overskrift og formler). Med denne metode kan indeksværdien ganges direkte på rådata uanset hvilken valuta der vælges. | Q105: Tabel C viser hvilken kurs der ganges på rådata (opgivet i euro) for at få priserne vist i den valuta der er valgt i valgmenuen øverst. Kursen ændres efter valgt år og valuta.
D107: =IF($E$13="faste priser","BVT deflatoren med basisåret "&$E$14&"","Prisindeks for løbende priser år "&E108&" til "&K108) -> BVT deflatoren med basisåret 2016 | Q107: ="Valutakursen for "&E15&" i fht. Euro" -> Valutakursen for DKK øre i fht. Euro
E108: ='Baggrundsdata - BVT - deflator'!S17 -> 2007 | F108: ='Baggrundsdata - BVT - deflator'!T17 -> 2008 | G108: ='Baggrundsdata - BVT - deflator'!U17 -> 2009 | H108: ='Baggrundsdata - BVT - deflator'!V17 -> 2010 | I108: ='Baggrundsdata - BVT - deflator'!W17 -> 2011 | J108: ='Baggrundsdata - BVT - deflator'!X17 -> 2012 | K108: ='Baggrundsdata - BVT - deflator'!Y17 -> 2013 | L108: ='Baggrundsdata - BVT - deflator'!Z17 -> 2014 | M108: ='Baggrundsdata - BVT - deflator'!AA17 -> 2015 | N108: ='Baggrundsdata - BVT - deflator'!AB17 -> 2016 | O108: ='Baggrundsdata - BVT - deflator'!AC17 -> 2017 | R108: =Forside!E55 -> 2007 | S108: =Forside!F55 -> 2008 | T108: =Forside!G55 -> 2009 | U108: =Forside!H55 -> 2010 | V108: =Forside!I55 -> 2011 | W108: =Forside!J55 -> 2012 | X108: =Forside!K55 -> 2013 | Y108: =Forside!L55 -> 2014 | Z108: =Forside!M55 -> 2015 | AA108: 2016 | AB108: 2017
D109: ='Baggrundsdata - BVT - deflator'!R18 -> EU-28 | E109: =IF($E$13="faste priser",HLOOKUP(E$108,'Baggrundsdata - BVT - deflator'!$S$17:$AC$27,2,FALSE),1) -> 0.8866271333 | F109: =IF($E$13="faste priser",HLOOKUP(F$108,'Baggrundsdata - BVT - deflator'!$S$17:$AC$27,2,FALSE),1) -> 0.8895595403 | G109: =IF($E$13="faste priser",HLOOKUP(G$108,'Baggrundsdata - BVT - deflator'!$S$17:$AC$27,2,FALSE),1) -> 0.8809058012 | H109: =IF($E$13="faste priser",HLOOKUP(H$108,'Baggrundsdata - BVT - deflator'!$S$17:$AC$27,2,FALSE),1) -> 0.8967605273 | I109: =IF($E$13="faste priser",HLOOKUP(I$108,'Baggrundsdata - BVT - deflator'!$S$17:$AC$27,2,FALSE),1) -> 0.9053694284 | J109: =IF($E$13="faste priser",HLOOKUP(J$108,'Baggrundsdata - BVT - deflator'!$S$17:$AC$27,2,FALSE),1) -> 0.9260935641 | K109: =IF($E$13="faste priser",HLOOKUP(K$108,'Baggrundsdata - BVT - deflator'!$S$17:$AC$27,2,FALSE),1) -> 0.9310885203 | L109: =IF($E$13="faste priser",HLOOKUP(L$108,'Baggrundsdata - BVT - deflator'!$S$17:$AC$27,2,FALSE),1) -> 0.9457057169 | M109: =IF($E$13="faste priser",HLOOKUP(M$108,'Baggrundsdata - BVT - deflator'!$S$17:$AC$27,2,FALSE),1) -> 0.9724740186 | N109: =IF($E$13="faste priser",HLOOKUP(N$108,'Baggrundsdata - BVT - deflator'!$S$17:$AC$27,2,FALSE),1) -> 1 | O109: =IF($E$13="faste priser",HLOOKUP(O$108,'Baggrundsdata - BVT - deflator'!$S$17:$AC$27,2,FALSE),1) -> 0 | Q109: Alle lande | R109: =IF($E$15="Euro",1,IF($E$15="eurocent",100,IF($E$15="DKK øre",HLOOKUP(R108,Forside!$E$55:$O$56,2,FALSE),IF($E$15="DKK",((HLOOKUP(R108,Forside!$E$55:$O$56,2,FALSE))/100),"F")))) -> 745.5974 | S109: =IF($E$15="Euro",1,IF($E$15="eurocent",100,IF($E$15="DKK øre",HLOOKUP(S108,Forside!$E$55:$O$56,2,FALSE),IF($E$15="DKK",((HLOOKUP(S108,Forside!$E$55:$O$56,2,FALSE))/100),"F")))) -> 744.6251 | T109: =IF($E$15="Euro",1,IF($E$15="eurocent",100,IF($E$15="DKK øre",HLOOKUP(T108,Forside!$E$55:$O$56,2,FALSE),IF($E$15="DKK",((HLOOKUP(T108,Forside!$E$55:$O$56,2,FALSE))/100),"F")))) -> 744.6251 | U109: =IF($E$15="Euro",1,IF($E$15="eurocent",100,IF($E$15="DKK øre",HLOOKUP(U108,Forside!$E$55:$O$56,2,FALSE),IF($E$15="DKK",((HLOOKUP(U108,Forside!$E$55:$O$56,2,FALSE))/100),"F")))) -> 744.7366 | V109: =IF($E$15="Euro",1,IF($E$15="eurocent",100,IF($E$15="DKK øre",HLOOKUP(V108,Forside!$E$55:$O$56,2,FALSE),IF($E$15="DKK",((HLOOKUP(V108,Forside!$E$55:$O$56,2,FALSE))/100),"F")))) -> 745.0529 | W109: =IF($E$15="Euro",1,IF($E$15="eurocent",100,IF($E$15="DKK øre",HLOOKUP(W108,Forside!$E$55:$O$56,2,FALSE),IF($E$15="DKK",((HLOOKUP(W108,Forside!$E$55:$O$56,2,FALSE))/100),"F")))) -> 744.3751 | X109: =IF($E$15="Euro",1,IF($E$15="eurocent",100,IF($E$15="DKK øre",HLOOKUP(X108,Forside!$E$55:$O$56,2,FALSE),IF($E$15="DKK",((HLOOKUP(X108,Forside!$E$55:$O$56,2,FALSE))/100),"F")))) -> 745.7982 | Y109: =IF($E$15="Euro",1,IF($E$15="eurocent",100,IF($E$15="DKK øre",HLOOKUP(Y108,Forside!$E$55:$O$56,2,FALSE),IF($E$15="DKK",((HLOOKUP(Y108,Forside!$E$55:$O$56,2,FALSE))/100),"F")))) -> 745.4741 | Z109: =IF($E$15="Euro",1,IF($E$15="eurocent",100,IF($E$15="DKK øre",HLOOKUP(Z108,Forside!$E$55:$O$56,2,FALSE),IF($E$15="DKK",((HLOOKUP(Z108,Forside!$E$55:$O$56,2,FALSE))/100),"F")))) -> 745.6103 | AA109: =IF($E$15="Euro",1,IF($E$15="eurocent",100,IF($E$15="DKK øre",HLOOKUP(AA108,Forside!$E$55:$O$56,2,FALSE),IF($E$15="DKK",((HLOOKUP(AA108,Forside!$E$55:$O$56,2,FALSE))/100),"F")))) -> 744.7488444 | AB109: =IF($E$15="Euro",1,IF($E$15="eurocent",100,IF($E$15="DKK øre",HLOOKUP(AB108,Forside!$E$55:$O$56,2,FALSE),IF($E$15="DKK",((HLOOKUP(AB108,Forside!$E$55:$O$56,2,FALSE))/100),"F")))) -> 0
D110: ='Baggrundsdata - BVT - deflator'!R19 -> Belgien | E110: =IF($E$13="faste priser",HLOOKUP(E$108,'Baggrundsdata - BVT - deflator'!$S$17:$AC$27,3,FALSE),1) -> 0.887172265 | F110: =IF($E$13="faste priser",HLOOKUP(F$108,'Baggrundsdata - BVT - deflator'!$S$17:$AC$27,3,FALSE),1) -> 0.9019853687 | G110: =IF($E$13="faste priser",HLOOKUP(G$108,'Baggrundsdata - BVT - deflator'!$S$17:$AC$27,3,FALSE),1) -> 0.9102591873 | H110: =IF($E$13="faste priser",HLOOKUP(H$108,'Baggrundsdata - BVT - deflator'!$S$17:$AC$27,3,FALSE),1) -> 0.9275581468 | I110: =IF($E$13="faste priser",HLOOKUP(I$108,'Baggrundsdata - BVT - deflator'!$S$17:$AC$27,3,FALSE),1) -> 0.944551012 | J110: =IF($E$13="faste priser",HLOOKUP(J$108,'Baggrundsdata - BVT - deflator'!$S$17:$AC$27,3,FALSE),1) -> 0.9629723168 | K110: =IF($E$13="faste priser",HLOOKUP(K$108,'Baggrundsdata - BVT - deflator'!$S$17:$AC$27,3,FALSE),1) -> 0.9762085716 | L110: =IF($E$13="faste priser",HLOOKUP(L$108,'Baggrundsdata - BVT - deflator'!$S$17:$AC$27,3,FALSE),1) -> 0.9828962658 | M110: =IF($E$13="faste priser",HLOOKUP(M$108,'Baggrundsdata - BVT - deflator'!$S$17:$AC$27,3,FALSE),1) -> 0.9914112496 | N110: =IF($E$13="faste priser",HLOOKUP(N$108,'Baggrundsdata - BVT - deflator'!$S$17:$AC$27,3,FALSE),1) -> 1 | O110: =IF($E$13="faste priser",HLOOKUP(O$108,'Baggrundsdata - BVT - deflator'!$S$17:$AC$27,3,FALSE),1) -> 0
D111: ='Baggrundsdata - BVT - deflator'!R20 -> Danmark | E111: =IF($E$13="faste priser",HLOOKUP(E$108,'Baggrundsdata - BVT - deflator'!$S$17:$AC$27,4,FALSE),1) -> 0.8450283177 | F111: =IF($E$13="faste priser",HLOOKUP(F$108,'Baggrundsdata - BVT - deflator'!$S$17:$AC$27,4,FALSE),1) -> 0.884291331 | G111: =IF($E$13="faste priser",HLOOKUP(G$108,'Baggrundsdata - BVT - deflator'!$S$17:$AC$27,4,FALSE),1) -> 0.8897716017 | H111: =IF($E$13="faste priser",HLOOKUP(H$108,'Baggrundsdata - BVT - deflator'!$S$17:$AC$27,4,FALSE),1) -> 0.9195085068 | I111: =IF($E$13="faste priser",HLOOKUP(I$108,'Baggrundsdata - BVT - deflator'!$S$17:$AC$27,4,FALSE),1) -> 0.9244370724 | J111: =IF($E$13="faste priser",HLOOKUP(J$108,'Baggrundsdata - BVT - deflator'!$S$17:$AC$27,4,FALSE),1) -> 0.951847621 | K111: =IF($E$13="faste priser",HLOOKUP(K$108,'Baggrundsdata - BVT - deflator'!$S$17:$AC$27,4,FALSE),1) -> 0.9660724176 | L111: =IF($E$13="faste priser",HLOOKUP(L$108,'Baggrundsdata - BVT - deflator'!$S$17:$AC$27,4,FALSE),1) -> 0.9753318682 | M111: =IF($E$13="faste priser",HLOOKUP(M$108,'Baggrundsdata - BVT - deflator'!$S$17:$AC$27,4,FALSE),1) -> 0.9875889166 | N111: =IF($E$13="faste priser",HLOOKUP(N$108,'Baggrundsdata - BVT - deflator'!$S$17:$AC$27,4,FALSE),1) -> 1 | O111: =IF($E$13="faste priser",HLOOKUP(O$108,'Baggrundsdata - BVT - deflator'!$S$17:$AC$27,4,FALSE),1) -> 0
D112: ='Baggrundsdata - BVT - deflator'!R21 -> Tyskland | E112: =IF($E$13="faste priser",HLOOKUP(E$108,'Baggrundsdata - BVT - deflator'!$S$17:$AC$27,5,FALSE),1) -> 0.86568777 | F112: =IF($E$13="faste priser",HLOOKUP(F$108,'Baggrundsdata - BVT - deflator'!$S$17:$AC$27,5,FALSE),1) -> 0.8719080551 | G112: =IF($E$13="faste priser",HLOOKUP(G$108,'Baggrundsdata - BVT - deflator'!$S$17:$AC$27,5,FALSE),1) -> 0.8896354191 | H112: =IF($E$13="faste priser",HLOOKUP(H$108,'Baggrundsdata - BVT - deflator'!$S$17:$AC$27,5,FALSE),1) -> 0.8975880492 | I112: =IF($E$13="faste priser",HLOOKUP(I$108,'Baggrundsdata - BVT - deflator'!$S$17:$AC$27,5,FALSE),1) -> 0.9064472433 | J112: =IF($E$13="faste priser",HLOOKUP(J$108,'Baggrundsdata - BVT - deflator'!$S$17:$AC$27,5,FALSE),1) -> 0.9193007041 | K112: =IF($E$13="faste priser",HLOOKUP(K$108,'Baggrundsdata - BVT - deflator'!$S$17:$AC$27,5,FALSE),1) -> 0.9394336041 | L112: =IF($E$13="faste priser",HLOOKUP(L$108,'Baggrundsdata - BVT - deflator'!$S$17:$AC$27,5,FALSE),1) -> 0.9569814504 | M112: =IF($E$13="faste priser",HLOOKUP(M$108,'Baggrundsdata - BVT - deflator'!$S$17:$AC$27,5,FALSE),1) -> 0.9782542872 | N112: =IF($E$13="faste priser",HLOOKUP(N$108,'Baggrundsdata - BVT - deflator'!$S$17:$AC$27,5,FALSE),1) -> 1 | O112: =IF($E$13="faste priser",HLOOKUP(O$108,'Baggrundsdata - BVT - deflator'!$S$17:$AC$27,5,FALSE),1) -> 0
D113: ='Baggrundsdata - BVT - deflator'!R22 -> Frankrig | E113: =IF($E$13="faste priser",HLOOKUP(E$108,'Baggrundsdata - BVT - deflator'!$S$17:$AC$27,6,FALSE),1) -> 0.9192763168 | F113: =IF($E$13="faste priser",HLOOKUP(F$108,'Baggrundsdata - BVT - deflator'!$S$17:$AC$27,6,FALSE),1) -> 0.941109165 | G113: =IF($E$13="faste priser",HLOOKUP(G$108,'Baggrundsdata - BVT - deflator'!$S$17:$AC$27,6,FALSE),1) -> 0.9437775184 | H113: =IF($E$13="faste priser",HLOOKUP(H$108,'Baggrundsdata - BVT - deflator'!$S$17:$AC$27,6,FALSE),1) -> 0.9529833374 | I113: =IF($E$13="faste priser",HLOOKUP(I$108,'Baggrundsdata - BVT - deflator'!$S$17:$AC$27,6,FALSE),1) -> 0.9584153424 | J113: =IF($E$13="faste priser",HLOOKUP(J$108,'Baggrundsdata - BVT - deflator'!$S$17:$AC$27,6,FALSE),1) -> 0.9667730063 | K113: =IF($E$13="faste priser",HLOOKUP(K$108,'Baggrundsdata - BVT - deflator'!$S$17:$AC$27,6,FALSE),1) -> 0.9731103455 | L113: =IF($E$13="faste priser",HLOOKUP(L$108,'Baggrundsdata - BVT - deflator'!$S$17:$AC$27,6,FALSE),1) -> 0.9757405795 | M113: =IF($E$13="faste priser",HLOOKUP(M$108,'Baggrundsdata - BVT - deflator'!$S$17:$AC$27,6,FALSE),1) -> 0.9877958187 | N113: =IF($E$13="faste priser",HLOOKUP(N$108,'Baggrundsdata - BVT - deflator'!$S$17:$AC$27,6,FALSE),1) -> 1 | O113: =IF($E$13="faste priser",HLOOKUP(O$108,'Baggrundsdata - BVT - deflator'!$S$17:$AC$27,6,FALSE),1) -> 0
D114: ='Baggrundsdata - BVT - deflator'!R23 -> Italien | E114: =IF($E$13="faste priser",HLOOKUP(E$108,'Baggrundsdata - BVT - deflator'!$S$17:$AC$27,7,FALSE),1) -> 0.9025137138 | F114: =IF($E$13="faste priser",HLOOKUP(F$108,'Baggrundsdata - BVT - deflator'!$S$17:$AC$27,7,FALSE),1) -> 0.9273571834 | G114: =IF($E$13="faste priser",HLOOKUP(G$108,'Baggrundsdata - BVT - deflator'!$S$17:$AC$27,7,FALSE),1) -> 0.947388885 | H114: =IF($E$13="faste priser",HLOOKUP(H$108,'Baggrundsdata - BVT - deflator'!$S$17:$AC$27,7,FALSE),1) -> 0.9453375027 | I114: =IF($E$13="faste priser",HLOOKUP(I$108,'Baggrundsdata - BVT - deflator'!$S$17:$AC$27,7,FALSE),1) -> 0.9574756362 | J114: =IF($E$13="faste priser",HLOOKUP(J$108,'Baggrundsdata - BVT - deflator'!$S$17:$AC$27,7,FALSE),1) -> 0.9666170498 | K114: =IF($E$13="faste priser",HLOOKUP(K$108,'Baggrundsdata - BVT - deflator'!$S$17:$AC$27,7,FALSE),1) -> 0.9788119036 | L114: =IF($E$13="faste priser",HLOOKUP(L$108,'Baggrundsdata - BVT - deflator'!$S$17:$AC$27,7,FALSE),1) -> 0.9834251506 | M114: =IF($E$13="faste priser",HLOOKUP(M$108,'Baggrundsdata - BVT - deflator'!$S$17:$AC$27,7,FALSE),1) -> 0.991677947 | N114: =IF($E$13="faste priser",HLOOKUP(N$108,'Baggrundsdata - BVT - deflator'!$S$17:$AC$27,7,FALSE),1) -> 1 | O114: =IF($E$13="faste priser",HLOOKUP(O$108,'Baggrundsdata - BVT - deflator'!$S$17:$AC$27,7,FALSE),1) -> 0
D115: ='Baggrundsdata - BVT - deflator'!R24 -> Holland | E115: =IF($E$13="faste priser",HLOOKUP(E$108,'Baggrundsdata - BVT - deflator'!$S$17:$AC$27,8,FALSE),1) -> 0.9279533377 | F115: =IF($E$13="faste priser",HLOOKUP(F$108,'Baggrundsdata - BVT - deflator'!$S$17:$AC$27,8,FALSE),1) -> 0.9491128532 | G115: =IF($E$13="faste priser",HLOOKUP(G$108,'Baggrundsdata - BVT - deflator'!$S$17:$AC$27,8,FALSE),1) -> 0.9532256019 | H115: =IF($E$13="faste priser",HLOOKUP(H$108,'Baggrundsdata - BVT - deflator'!$S$17:$AC$27,8,FALSE),1) -> 0.9609225919 | I115: =IF($E$13="faste priser",HLOOKUP(I$108,'Baggrundsdata - BVT - deflator'!$S$17:$AC$27,8,FALSE),1) -> 0.961652893 | J115: =IF($E$13="faste priser",HLOOKUP(J$108,'Baggrundsdata - BVT - deflator'!$S$17:$AC$27,8,FALSE),1) -> 0.9762012611 | K115: =IF($E$13="faste priser",HLOOKUP(K$108,'Baggrundsdata - BVT - deflator'!$S$17:$AC$27,8,FALSE),1) -> 0.9828892823 | L115: =IF($E$13="faste priser",HLOOKUP(L$108,'Baggrundsdata - BVT - deflator'!$S$17:$AC$27,8,FALSE),1) -> 0.9899232357 | M115: =IF($E$13="faste priser",HLOOKUP(M$108,'Baggrundsdata - BVT - deflator'!$S$17:$AC$27,8,FALSE),1) -> 0.9949488608 | N115: =IF($E$13="faste priser",HLOOKUP(N$108,'Baggrundsdata - BVT - deflator'!$S$17:$AC$27,8,FALSE),1) -> 1 | O115: =IF($E$13="faste priser",HLOOKUP(O$108,'Baggrundsdata - BVT - deflator'!$S$17:$AC$27,8,FALSE),1) -> 0
D116: ='Baggrundsdata - BVT - deflator'!R25 -> Sverige | E116: =IF($E$13="faste priser",HLOOKUP(E$108,'Baggrundsdata - BVT - deflator'!$S$17:$AC$27,9,FALSE),1) -> 0.8893773753 | F116: =IF($E$13="faste priser",HLOOKUP(F$108,'Baggrundsdata - BVT - deflator'!$S$17:$AC$27,9,FALSE),1) -> 0.8829945261 | G116: =IF($E$13="faste priser",HLOOKUP(G$108,'Baggrundsdata - BVT - deflator'!$S$17:$AC$27,9,FALSE),1) -> 0.8188165411 | H116: =IF($E$13="faste priser",HLOOKUP(H$108,'Baggrundsdata - BVT - deflator'!$S$17:$AC$27,9,FALSE),1) -> 0.9197189018 | I116: =IF($E$13="faste priser",HLOOKUP(I$108,'Baggrundsdata - BVT - deflator'!$S$17:$AC$27,9,FALSE),1) -> 0.9826828578 | J116: =IF($E$13="faste priser",HLOOKUP(J$108,'Baggrundsdata - BVT - deflator'!$S$17:$AC$27,9,FALSE),1) -> 1.030545029 | K116: =IF($E$13="faste priser",HLOOKUP(K$108,'Baggrundsdata - BVT - deflator'!$S$17:$AC$27,9,FALSE),1) -> 1.048065675 | L116: =IF($E$13="faste priser",HLOOKUP(L$108,'Baggrundsdata - BVT - deflator'!$S$17:$AC$27,9,FALSE),1) -> 1.014753456 | M116: =IF($E$13="faste priser",HLOOKUP(M$108,'Baggrundsdata - BVT - deflator'!$S$17:$AC$27,9,FALSE),1) -> 1.007349719 | N116: =IF($E$13="faste priser",HLOOKUP(N$108,'Baggrundsdata - BVT - deflator'!$S$17:$AC$27,9,FALSE),1) -> 1 | O116: =IF($E$13="faste priser",HLOOKUP(O$108,'Baggrundsdata - BVT - deflator'!$S$17:$AC$27,9,FALSE),1) -> 0
D117: ='Baggrundsdata - BVT - deflator'!R26 -> UK | E117: =IF($E$13="faste priser",HLOOKUP(E$108,'Baggrundsdata - BVT - deflator'!$S$17:$AC$27,10,FALSE),1) -> 0.8185261525 | F117: =IF($E$13="faste priser",HLOOKUP(F$108,'Baggrundsdata - BVT - deflator'!$S$17:$AC$27,10,FALSE),1) -> 0.725401099 | G117: =IF($E$13="faste priser",HLOOKUP(G$108,'Baggrundsdata - BVT - deflator'!$S$17:$AC$27,10,FALSE),1) -> 0.667259718 | H117: =IF($E$13="faste priser",HLOOKUP(H$108,'Baggrundsdata - BVT - deflator'!$S$17:$AC$27,10,FALSE),1) -> 0.706027699 | I117: =IF($E$13="faste priser",HLOOKUP(I$108,'Baggrundsdata - BVT - deflator'!$S$17:$AC$27,10,FALSE),1) -> 0.7074962366 | J117: =IF($E$13="faste priser",HLOOKUP(J$108,'Baggrundsdata - BVT - deflator'!$S$17:$AC$27,10,FALSE),1) -> 0.7716953352 | K117: =IF($E$13="faste priser",HLOOKUP(K$108,'Baggrundsdata - BVT - deflator'!$S$17:$AC$27,10,FALSE),1) -> 0.7506133482 | L117: =IF($E$13="faste priser",HLOOKUP(L$108,'Baggrundsdata - BVT - deflator'!$S$17:$AC$27,10,FALSE),1) -> 0.8057894128 | M117: =IF($E$13="faste priser",HLOOKUP(M$108,'Baggrundsdata - BVT - deflator'!$S$17:$AC$27,10,FALSE),1) -> 0.897657737 | N117: =IF($E$13="faste priser",HLOOKUP(N$108,'Baggrundsdata - BVT - deflator'!$S$17:$AC$27,10,FALSE),1) -> 1 | O117: =IF($E$13="faste priser",HLOOKUP(O$108,'Baggrundsdata - BVT - deflator'!$S$17:$AC$27,10,FALSE),1) -> 0

Sheet Alle lande, valgt år
E1: NAVN PÅ ARK: | F1: Alle lande, valgt år
E2: Data hentes fra: | F2: 'Baggrundstabeller for alle lande'
E4: Sådan bruges arket:
E5: Arket 'alle lande, udvalgt år' viser figurer og tabeller (de grå-blå) for gasprisen for industrielle forbrugere opdelt på level 1 og 2 for hvert interval. Prisen vises for alle lande i det valgte år.
E6: Året, pristypen, basisået, valuta og enhed kan ændres. Dette gøres i de farvede rullemenuer nedenfor. Til hver resultattabel hører tre figurer. En for hvert level. I resultattabellen er totalprisen for hvert level opgjort i hver sin totalprissøjle. Hvis man ønsker at sortere figurerne efter stigende priser kan man kopiere de ønskede tabeller og figurer over i et separat ark.
E7: ="Rent teknisk styrer hver menu styrer en tabel i tilsvarende farve i arket '"&'Baggrundstabeller for alle land'!E1&"'. Disse tabeller ganges sammen og heraf fremkommer resultattabellen som følge af de valg der træffes i rullemenuerne." -> Rent teknisk styrer hver menu styrer en tabel i tilsvarende farve i arket 'Baggrundstabeller for alle lande, valgt år'. Disse tabeller ganges sammen og heraf fremkommer resultattabellen som følge af de valg der træffes i rullemenuerne.
E11: Vælg | G11: Resultater vises i
E12: Vælg år | F12: 2015 | G12: ="Tabel A i '"&'Baggrundstabeller for alle land'!$E$1&"'" -> Tabel A i 'Baggrundstabeller for alle lande, valgt år'
E13: Vælg pristype | F13: faste priser | G13: ="Tabel B i '"&'Baggrundstabeller for alle land'!$E$1&"'" -> Tabel B i 'Baggrundstabeller for alle lande, valgt år'
E14: Vælg Basisår (kun ved fast pris) | F14: 2016 | G14: ="Tabel B i '"&'Baggrundstabeller for alle land'!$E$1&"'" -> Tabel B i 'Baggrundstabeller for alle lande, valgt år'
E15: Vælg valuta | F15: Euro | G15: ="Tabel C i '"&'Baggrundstabeller for alle land'!$E$1&"'" -> Tabel C i 'Baggrundstabeller for alle lande, valgt år'
E19: Resultatfigurer og -tabeller
E20: Valgene truffet ovenfor giver tabeller og figurer der er:
E21: ="Oppgjort for året "&F12&" i "&$F$13&" med basisår "&$F$14 -> Oppgjort for året 2015 i faste priser med basisår 2016
E22: ="Vist i "&F15&" / kWh." -> Vist i Euro / kWh.
D24: =D78 -> IA: <0,02 GWh | J24: =J78 -> IB: 0,02 < 0,5 GWh | P24: =P78 -> IC: 0,5 < 2 GWh | V24: =V78 -> ID: 2 < 20 GWh | AB24: =AB78 -> IE:20 < 70 GWh | AH24: =AH78 -> IF: 70 < 150 GWh | AN24: =AN78 -> IG: > 150 GWh
B26: Level 1: Elpris ekskl. PSO og afgifter | D26: ="Figur XX: "&$B$26&". Priserne er vist for år "&$F$12&" i "&$F$13&" med basisår "&$F$14&". Priserne er vist for intervallet "&D$24&" i "&$F$15&" / kWh. " -> Figur XX: Level 1: Elpris ekskl. PSO og afgifter. Priserne er vist for år 2015 i faste priser med basisår 2016. Priserne er vist for intervallet IA: <0,02 GWh i Euro / kWh. | J26: ="Figur XX: "&$B$26&". Priserne er vist for år "&$F$12&" i "&$F$13&" med basisår "&$F$14&". Priserne er vist for intervallet "&J$24&" i "&$F$15&" / kWh. " -> Figur XX: Level 1: Elpris ekskl. PSO og afgifter. Priserne er vist for år 2015 i faste priser med basisår 2016. Priserne er vist for intervallet IB: 0,02 < 0,5 GWh i Euro / kWh. | P26: ="Figur XX: "&$B$26&". Priserne er vist for år "&$F$12&" i "&$F$13&" med basisår "&$F$14&". Priserne er vist for intervallet "&P$24&" i "&$F$15&" / kWh. " -> Figur XX: Level 1: Elpris ekskl. PSO og afgifter. Priserne er vist for år 2015 i faste priser med basisår 2016. Priserne er vist for intervallet IC: 0,5 < 2 GWh i Euro / kWh. | V26: ="Figur XX: "&$B$26&". Priserne er vist for år "&$F$12&" i "&$F$13&" med basisår "&$F$14&". Priserne er vist for intervallet "&V$24&" i "&$F$15&" / kWh. " -> Figur XX: Level 1: Elpris ekskl. PSO og afgifter. Priserne er vist for år 2015 i faste priser med basisår 2016. Priserne er vist for intervallet ID: 2 < 20 GWh i Euro / kWh. | AB26: ="Figur XX: "&$B$26&". Priserne er vist for år "&$F$12&" i "&$F$13&" med basisår "&$F$14&". Priserne er vist for intervallet "&AB$24&" i "&$F$15&" / kWh. " -> Figur XX: Level 1: Elpris ekskl. PSO og afgifter. Priserne er vist for år 2015 i faste priser med basisår 2016. Priserne er vist for intervallet IE:20 < 70 GWh i Euro / kWh. | AH26: ="Figur XX: "&$B$26&". Priserne er vist for år "&$F$12&" i "&$F$13&" med basisår "&$F$14&". Priserne er vist for intervallet "&AH$24&" i "&$F$15&" / kWh. " -> Figur XX: Level 1: Elpris ekskl. PSO og afgifter. Priserne er vist for år 2015 i faste priser med basisår 2016. Priserne er vist for intervallet IF: 70 < 150 GWh i Euro / kWh. | AN26: ="Figur XX: "&$B$26&". Priserne er vist for år "&$F$12&" i "&$F$13&" med basisår "&$F$14&". Priserne er vist for intervallet "&AN$24&" i "&$F$15&" / kWh. " -> Figur XX: Level 1: Elpris ekskl. PSO og afgifter. Priserne er vist for år 2015 i faste priser med basisår 2016. Priserne er vist for intervallet IG: > 150 GWh i Euro / kWh. | AT26: =B26 -> Level 1: Elpris ekskl. PSO og afgifter
B49: Level 2: Elpris inkl. PSO og ikke-refunderbare afgifter | D49: ="Figur XX: "&$B49&". Priserne er vist for år "&$F$12&" i "&$F$13&" med basisår "&$F$14&". Priserne er vist for intervallet "&D$24&" i "&$F$15&" / kWh. " -> Figur XX: Level 2: Elpris inkl. PSO og ikke-refunderbare afgifter. Priserne er vist for år 2015 i faste priser med basisår 2016. Priserne er vist for intervallet IA: <0,02 GWh i Euro / kWh. | J49: ="Figur XX: "&$B49&". Priserne er vist for år "&$F$12&" i "&$F$13&" med basisår "&$F$14&". Priserne er vist for intervallet "&J$24&" i "&$F$15&" / kWh. " -> Figur XX: Level 2: Elpris inkl. PSO og ikke-refunderbare afgifter. Priserne er vist for år 2015 i faste priser med basisår 2016. Priserne er vist for intervallet IB: 0,02 < 0,5 GWh i Euro / kWh. | P49: ="Figur XX: "&$B49&". Priserne er vist for år "&$F$12&" i "&$F$13&" med basisår "&$F$14&". Priserne er vist for intervallet "&P$24&" i "&$F$15&" / kWh. " -> Figur XX: Level 2: Elpris inkl. PSO og ikke-refunderbare afgifter. Priserne er vist for år 2015 i faste priser med basisår 2016. Priserne er vist for intervallet IC: 0,5 < 2 GWh i Euro / kWh. | V49: ="Figur XX: "&$B49&". Priserne er vist for år "&$F$12&" i "&$F$13&" med basisår "&$F$14&". Priserne er vist for intervallet "&V$24&" i "&$F$15&" / kWh. " -> Figur XX: Level 2: Elpris inkl. PSO og ikke-refunderbare afgifter. Priserne er vist for år 2015 i faste priser med basisår 2016. Priserne er vist for intervallet ID: 2 < 20 GWh i Euro / kWh. | AB49: ="Figur XX: "&$B49&". Priserne er vist for år "&$F$12&" i "&$F$13&" med basisår "&$F$14&". Priserne er vist for intervallet "&AB$24&" i "&$F$15&" / kWh. " -> Figur XX: Level 2: Elpris inkl. PSO og ikke-refunderbare afgifter. Priserne er vist for år 2015 i faste priser med basisår 2016. Priserne er vist for intervallet IE:20 < 70 GWh i Euro / kWh. | AH49: ="Figur XX: "&$B49&". Priserne er vist for år "&$F$12&" i "&$F$13&" med basisår "&$F$14&". Priserne er vist for intervallet "&AH$24&" i "&$F$15&" / kWh. " -> Figur XX: Level 2: Elpris inkl. PSO og ikke-refunderbare afgifter. Priserne er vist for år 2015 i faste priser med basisår 2016. Priserne er vist for intervallet IF: 70 < 150 GWh i Euro / kWh. | AN49: ="Figur XX: "&$B49&". Priserne er vist for år "&$F$12&" i "&$F$13&" med basisår "&$F$14&". Priserne er vist for intervallet "&AN$24&" i "&$F$15&" / kWh. " -> Figur XX: Level 2: Elpris inkl. PSO og ikke-refunderbare afgifter. Priserne er vist for år 2015 i faste priser med basisår 2016. Priserne er vist for intervallet IG: > 150 GWh i Euro / kWh. | AT49: =B49 -> Level 2: Elpris inkl. PSO og ikke-refunderbare afgifter
D78: ='Baggrundstabeller for alle land'!D26 -> IA: <0,02 GWh | J78: ='Baggrundstabeller for alle land'!I26 -> IB: 0,02 < 0,5 GWh | P78: ='Baggrundstabeller for alle land'!N26 -> IC: 0,5 < 2 GWh | V78: ='Baggrundstabeller for alle land'!S71 -> ID: 2 < 20 GWh | AB78: ='Baggrundstabeller for alle land'!X71 -> IE:20 < 70 GWh | AH78: ='Baggrundstabeller for alle land'!AD71 -> IF: 70 < 150 GWh | AN78: ='Baggrundstabeller for alle land'!AI71 -> IG: > 150 GWh
D80: =$F$15 &" / kWh "&$F$12 -> Euro / kWh 2015 | F80: Elpris inkl. PSO, eksl. afgifter | G80: Ikke-refunderbare afgifter | H80: Elpris inkl. PSO og ikke-refunderbare afgifter | J80: =$F$15 &" / kWh "&$F$12 -> Euro / kWh 2015 | L80: Elpris inkl. PSO, eksl. afgifter | M80: Ikke-refunderbare afgifter | N80: Elpris inkl. PSO og ikke-refunderbare afgifter | P80: =$F$15 &" / kWh "&$F$12 -> Euro / kWh 2015 | R80: Elpris inkl. PSO, eksl. afgifter | S80: Ikke-refunderbare afgifter | T80: Elpris inkl. PSO og ikke-refunderbare afgifter | V80: =$F$15 &" / kWh "&$F$12 -> Euro / kWh 2015 | X80: Elpris inkl. PSO, eksl. afgifter | Y80: Ikke-refunderbare afgifter | Z80: Elpris inkl. PSO og ikke-refunderbare afgifter | AB80: =$F$15 &" / kWh "&$F$12 -> Euro / kWh 2015 | AD80: Elpris inkl. PSO, eksl. afgifter | AE80: Ikke-refunderbare afgifter | AF80: Elpris inkl. PSO og ikke-refunderbare afgifter | AH80: =$F$15 &" / kWh "&$F$12 -> Euro / kWh 2015 | AJ80: Elpris inkl. PSO, eksl. afgifter | AK80: Ikke-refunderbare afgifter | AL80: Elpris inkl. PSO og ikke-refunderbare afgifter | AN80: =$F$15 &" / kWh "&$F$12 -> Euro / kWh 2015 | AP80: Elpris inkl. PSO, eksl. afgifter | AQ80: Ikke-refunderbare afgifter | AR80: Elpris inkl. PSO og ikke-refunderbare afgifter
D81: Land | E81: orig. rækkefølge | F81: (Total pris level 1) | H81: (Total pris level 2) | J81: land | K81: orig. rækkefølge | L81: (Total pris level 1) | N81: (Total pris level 2) | Q81: orig. rækkefølge | R81: (Total pris level 1) | T81: (Total pris level 2) | W81: orig. rækkefølge | X81: (Total pris level 1) | Z81: (Total pris level 2) | AC81: orig. rækkefølge | AD81: (Total pris level 1) | AF81: (Total pris level 2) | AI81: orig. rækkefølge | AJ81: (Total pris level 1) | AL81: (Total pris level 2) | AO81: orig. rækkefølge | AP81: (Total pris level 1) | AR81: (Total pris level 2)
D82: ='Baggrundstabeller for alle land'!D29 -> EU-28 | E82: 1 | F82: ='Baggrundstabeller for alle land'!E29 -> 0.1521891559 | G82: ='Baggrundstabeller for alle land'!F29 -> 0.0445770264 | H82: =SUM(F82:G82) -> 0.1967661823 | J82: ='Baggrundstabeller for alle land'!I29 -> EU-28 | K82: 1 | L82: ='Baggrundstabeller for alle land'!J29 -> 0.112753655 | M82: ='Baggrundstabeller for alle land'!K29 -> 0.03604209401 | N82: =SUM(L82:M82) -> 0.148795749 | P82: ='Baggrundstabeller for alle land'!N29 -> EU-28 | Q82: 1 | R82: ='Baggrundstabeller for alle land'!O29 -> 0.09095358674 | S82: ='Baggrundstabeller for alle land'!P29 -> 0.03218594986 | T82: =SUM(R82:S82) -> 0.1231395366 | V82: ='Baggrundstabeller for alle land'!S29 -> EU-28 | W82: 1 | X82: ='Baggrundstabeller for alle land'!T29 -> 0.08113327296 | Y82: ='Baggrundstabeller for alle land'!U29 -> 0.02863829724 | Z82: =SUM(X82:Y82) -> 0.1097715702 | AB82: ='Baggrundstabeller for alle land'!X29 -> EU-28 | AC82: 1 | AD82: ='Baggrundstabeller for alle land'!Y29 -> 0.07280400159 | AE82: ='Baggrundstabeller for alle land'!Z29 -> 0.02298261915 | AF82: =SUM(AD82:AE82) -> 0.09578662074 | AH82: ='Baggrundstabeller for alle land'!AD29 -> EU-28 | AI82: 1 | AJ82: ='Baggrundstabeller for alle land'!AE29 -> 0.06735398452 | AK82: ='Baggrundstabeller for alle land'!AF29 -> 0.01840666142 | AL82: =SUM(AJ82:AK82) -> 0.08576064594 | AN82: ='Baggrundstabeller for alle land'!AI29 -> EU-28 | AO82: 1 | AP82: ='Baggrundstabeller for alle land'!AJ29 -> * | AQ82: ='Baggrundstabeller for alle land'!AK29 -> * | AR82: =SUM(AP82:AQ82) -> 0
D83: ='Baggrundstabeller for alle land'!D30 -> Belgien | E83: 2 | F83: ='Baggrundstabeller for alle land'!E30 -> 0.1539219976 | G83: ='Baggrundstabeller for alle land'!F30 -> 0.02597307627 | H83: 0.1798950739 | J83: ='Baggrundstabeller for alle land'!I30 -> Belgien | K83: 2 | L83: ='Baggrundstabeller for alle land'!J30 -> 0.1234603703 | M83: ='Baggrundstabeller for alle land'!K30 -> 0.02304795312 | N83: 0.1465083234 | P83: ='Baggrundstabeller for alle land'!N30 -> Belgien | Q83: 2 | R83: ='Baggrundstabeller for alle land'!O30 -> 0.09168748089 | S83: ='Baggrundstabeller for alle land'!P30 -> 0.01830723628 | T83: 0.1099947172 | V83: ='Baggrundstabeller for alle land'!S30 -> Belgien | W83: 2 | X83: ='Baggrundstabeller for alle land'!T30 -> 0.07963395617 | Y83: ='Baggrundstabeller for alle land'!U30 -> 0.01760117207 | Z83: 0.09723512825 | AB83: ='Baggrundstabeller for alle land'!X30 -> Belgien | AC83: 2 | AD83: ='Baggrundstabeller for alle land'!Y30 -> 0.06581527094 | AE83: ='Baggrundstabeller for alle land'!Z30 -> 0.01200309156 | AF83: 0.07781836249 | AH83: ='Baggrundstabeller for alle land'!AD30 -> Belgien | AI83: 2 | AJ83: ='Baggrundstabeller for alle land'!AE30 -> 0.05956155937 | AK83: ='Baggrundstabeller for alle land'!AF30 -> 0.006304144726 | AL83: 0.06586570409 | AN83: ='Baggrundstabeller for alle land'!AI30 -> Belgien | AO83: 2 | AP83: ='Baggrundstabeller for alle land'!AJ30 -> * | AQ83: ='Baggrundstabeller for alle land'!AK30 -> * | AR83: 0
D84: ='Baggrundstabeller for alle land'!D31 -> Bulgarien | E84: 3 | F84: ='Baggrundstabeller for alle land'!E31 -> 0.1074632657 | G84: ='Baggrundstabeller for alle land'!F31 -> 0.001001521582 | H84: 0.1084647873 | J84: ='Baggrundstabeller for alle land'!I31 -> Bulgarien | K84: 3 | L84: ='Baggrundstabeller for alle land'!J31 -> 0.09559523497 | M84: ='Baggrundstabeller for alle land'!K31 -> 0.001001521582 | N84: 0.09659675656 | P84: ='Baggrundstabeller for alle land'!N31 -> Bulgarien | Q84: 3 | R84: ='Baggrundstabeller for alle land'!O31 -> 0.07281061899 | S84: ='Baggrundstabeller for alle land'!P31 -> 0.001001521582 | T84: 0.07381214057 | V84: ='Baggrundstabeller for alle land'!S31 -> Bulgarien | W84: 3 | X84: ='Baggrundstabeller for alle land'!T31 -> 0.06504882673 | Y84: ='Baggrundstabeller for alle land'!U31 -> 0.001051597661 | Z84: 0.06610042439 | AB84: ='Baggrundstabeller for alle land'!X31 -> Bulgarien | AC84: 3 | AD84: ='Baggrundstabeller for alle land'!Y31 -> 0.05883939293 | AE84: ='Baggrundstabeller for alle land'!Z31 -> 0.001001521582 | AF84: 0.05984091451 | AH84: ='Baggrundstabeller for alle land'!AD31 -> Bulgarien | AI84: 3 | AJ84: ='Baggrundstabeller for alle land'!AE31 -> 0.05558444778 | AK84: ='Baggrundstabeller for alle land'!AF31 -> 0.001051597661 | AL84: 0.05663604545 | AN84: ='Baggrundstabeller for alle land'!AI31 -> Bulgarien | AO84: 3 | AP84: ='Baggrundstabeller for alle land'!AJ31 -> 0.05298049167 | AQ84: ='Baggrundstabeller for alle land'!AK31 -> 0.001051597661 | AR84: 0.05403208933
D85: ='Baggrundstabeller for alle land'!D32 -> Tjekkiet | E85: 4 | F85: ='Baggrundstabeller for alle land'!E32 -> 0.1581129398 | G85: ='Baggrundstabeller for alle land'!F32 -> 0.001067643645 | H85: 0.1591805835 | J85: ='Baggrundstabeller for alle land'!I32 -> Tjekkiet | K85: 4 | L85: ='Baggrundstabeller for alle land'!J32 -> 0.1225248183 | M85: ='Baggrundstabeller for alle land'!K32 -> 0.001016803472 | N85: 0.1235416218 | P85: ='Baggrundstabeller for alle land'!N32 -> Tjekkiet | Q85: 4 | R85: ='Baggrundstabeller for alle land'!O32 -> 0.07798882627 | S85: ='Baggrundstabeller for alle land'!P32 -> 0.001067643645 | T85: 0.07905646991 | V85: ='Baggrundstabeller for alle land'!S32 -> Tjekkiet | W85: 4 | X85: ='Baggrundstabeller for alle land'!T32 -> 0.07198968578 | Y85: ='Baggrundstabeller for alle land'!U32 -> 0.001118483819 | Z85: 0.0731081696 | AB85: ='Baggrundstabeller for alle land'!X32 -> Tjekkiet | AC85: 4 | AD85: ='Baggrundstabeller for alle land'!Y32 -> 0.07453169446 | AE85: ='Baggrundstabeller for alle land'!Z32 -> 0.001067643645 | AF85: 0.07559933811 | AH85: ='Baggrundstabeller for alle land'!AD32 -> Tjekkiet | AI85: 4 | AJ85: ='Baggrundstabeller for alle land'!AE32 -> 0.07636194071 | AK85: ='Baggrundstabeller for alle land'!AF32 -> 0.001016803472 | AL85: 0.07737874418 | AN85: ='Baggrundstabeller for alle land'!AI32 -> Tjekkiet | AO85: 4 | AP85: ='Baggrundstabeller for alle land'!AJ32 -> * | AQ85: ='Baggrundstabeller for alle land'!AK32 -> * | AR85: 0
D86: ='Baggrundstabeller for alle land'!D33 -> Danmark | E86: 5 | F86: ='Baggrundstabeller for alle land'!E33 -> 0.08130913445 | G86: ='Baggrundstabeller for alle land'!F33 -> 0.09994036824 | H86: 0.1812495027 | J86: ='Baggrundstabeller for alle land'!I33 -> Danmark | K86: 5 | L86: ='Baggrundstabeller for alle land'!J33 -> 0.06677879722 | M86: ='Baggrundstabeller for alle land'!K33 -> 0.03103518021 | N86: 0.09781397743 | P86: ='Baggrundstabeller for alle land'!N33 -> Danmark | Q86: 5 | R86: ='Baggrundstabeller for alle land'!O33 -> 0.06045025313 | S86: ='Baggrundstabeller for alle land'!P33 -> 0.0309339235 | T86: 0.09138417664 | V86: ='Baggrundstabeller for alle land'!S33 -> Danmark | W86: 5 | X86: ='Baggrundstabeller for alle land'!T33 -> 0.0608046516 | Y86: ='Baggrundstabeller for alle land'!U33 -> 0.03047826833 | Z86: 0.09128291993 | AB86: ='Baggrundstabeller for alle land'!X33 -> Danmark | AC86: 5 | AD86: ='Baggrundstabeller for alle land'!Y33 -> 0.04819819178 | AE86: ='Baggrundstabeller for alle land'!Z33 -> 0.0298707281 | AF86: 0.07806891987 | AH86: ='Baggrundstabeller for alle land'!AD33 -> Danmark | AI86: 5 | AJ86: ='Baggrundstabeller for alle land'!AE33 -> 0.04703373966 | AK86: ='Baggrundstabeller for alle land'!AF33 -> 0.02971884304 | AL86: 0.0767525827 | AN86: ='Baggrundstabeller for alle land'!AI33 -> Danmark | AO86: 5 | AP86: ='Baggrundstabeller for alle land'!AJ33 -> * | AQ86: ='Baggrundstabeller for alle land'!AK33 -> * | AR86: 0
D87: ='Baggrundstabeller for alle land'!D34 -> Tyskland | E87: 6 | F87: ='Baggrundstabeller for alle land'!E34 -> 0.1371320338 | G87: ='Baggrundstabeller for alle land'!F34 -> 0.08673613917 | H87: 0.223868173 | J87: ='Baggrundstabeller for alle land'!I34 -> Tyskland | K87: 6 | L87: ='Baggrundstabeller for alle land'!J34 -> 0.1042162568 | M87: ='Baggrundstabeller for alle land'!K34 -> 0.07344716087 | N87: 0.1776634177 | P87: ='Baggrundstabeller for alle land'!N34 -> Tyskland | Q87: 6 | R87: ='Baggrundstabeller for alle land'!O34 -> 0.08290278004 | S87: ='Baggrundstabeller for alle land'!P34 -> 0.07053380793 | T87: 0.153436588 | V87: ='Baggrundstabeller for alle land'!S34 -> Tyskland | W87: 6 | X87: ='Baggrundstabeller for alle land'!T34 -> 0.07109603393 | Y87: ='Baggrundstabeller for alle land'!U34 -> 0.0626115324 | Z87: 0.1337075663 | AB87: ='Baggrundstabeller for alle land'!X34 -> Tyskland | AC87: 6 | AD87: ='Baggrundstabeller for alle land'!Y34 -> 0.0630715355 | AE87: ='Baggrundstabeller for alle land'!Z34 -> 0.05116256648 | AF87: 0.114234102 | AH87: ='Baggrundstabeller for alle land'!AD34 -> Tyskland | AI87: 6 | AJ87: ='Baggrundstabeller for alle land'!AE34 -> 0.05668260362 | AK87: ='Baggrundstabeller for alle land'!AF34 -> 0.04303584513 | AL87: 0.09971844875 | AN87: ='Baggrundstabeller for alle land'!AI34 -> Tyskland | AO87: 6 | AP87: ='Baggrundstabeller for alle land'!AJ34 -> * | AQ87: ='Baggrundstabeller for alle land'!AK34 -> * | AR87: 0
D88: ='Baggrundstabeller for alle land'!D35 -> Estland | E88: 7 | F88: ='Baggrundstabeller for alle land'!E35 -> 0.09535815255 | G88: ='Baggrundstabeller for alle land'!F35 -> 0.01354288656 | H88: 0.1089010391 | J88: ='Baggrundstabeller for alle land'!I35 -> Estland | K88: 7 | L88: ='Baggrundstabeller for alle land'!J35 -> 0.08445283191 | M88: ='Baggrundstabeller for alle land'!K35 -> 0.01359360898 | N88: 0.09804644089 | P88: ='Baggrundstabeller for alle land'!N35 -> Estland | Q88: 7 | R88: ='Baggrundstabeller for alle land'!O35 -> 0.08009070366 | S88: ='Baggrundstabeller for alle land'!P35 -> 0.01359360898 | T88: 0.09368431264 | V88: ='Baggrundstabeller for alle land'!S35 -> Estland | W88: 7 | X88: ='Baggrundstabeller for alle land'!T35 -> 0.07298956464 | Y88: ='Baggrundstabeller for alle land'!U35 -> 0.01359360898 | Z88: 0.08658317362 | AB88: ='Baggrundstabeller for alle land'!X35 -> Estland | AC88: 7 | AD88: ='Baggrundstabeller for alle land'!Y35 -> 0.06147557494 | AE88: ='Baggrundstabeller for alle land'!Z35 -> 0.01313710719 | AF88: 0.07461268213 | AH88: ='Baggrundstabeller for alle land'!AD35 -> Estland | AI88: 7 | AJ88: ='Baggrundstabeller for alle land'!AE35 -> 0.05812789512 | AK88: ='Baggrundstabeller for alle land'!AF35 -> 0.01328927445 | AL88: 0.07141716957 | AN88: ='Baggrundstabeller for alle land'!AI35 -> Estland | AO88: 7 | AP88: ='Baggrundstabeller for alle land'!AJ35 -> * | AQ88: ='Baggrundstabeller for alle land'!AK35 -> * | AR88: 0
D89: ='Baggrundstabeller for alle land'!D36 -> Irland | E89: 8 | F89: ='Baggrundstabeller for alle land'!E36 -> 0.1804279199 | G89: ='Baggrundstabeller for alle land'!F36 -> 0.03884836996 | H89: 0.2192762899 | J89: ='Baggrundstabeller for alle land'!I36 -> Irland | K89: 8 | L89: ='Baggrundstabeller for alle land'!J36 -> 0.1570342148 | M89: ='Baggrundstabeller for alle land'!K36 -> 0.01667198438 | N89: 0.1737061992 | P89: ='Baggrundstabeller for alle land'!N36 -> Irland | Q89: 8 | R89: ='Baggrundstabeller for alle land'!O36 -> 0.1336405098 | S89: ='Baggrundstabeller for alle land'!P36 -> 0.0131788067 | T89: 0.1468193165 | V89: ='Baggrundstabeller for alle land'!S36 -> Irland | W89: 8 | X89: ='Baggrundstabeller for alle land'!T36 -> 0.1117816858 | Y89: ='Baggrundstabeller for alle land'!U36 -> 0.008838798071 | Z89: 0.1206204838 | AB89: ='Baggrundstabeller for alle land'!X36 -> Irland | AC89: 8 | AD89: ='Baggrundstabeller for alle land'!Y36 -> 0.09828531747 | AE89: ='Baggrundstabeller for alle land'!Z36 -> 0.006139524408 | AF89: 0.1044248419 | AH89: ='Baggrundstabeller for alle land'!AD36 -> Irland | AI89: 8 | AJ89: ='Baggrundstabeller for alle land'!AE36 -> 0.09103432743 | AK89: ='Baggrundstabeller for alle land'!AF36 -> 0.004234154764 | AL89: 0.0952684822 | AN89: ='Baggrundstabeller for alle land'!AI36 -> Irland | AO89: 8 | AP89: ='Baggrundstabeller for alle land'!AJ36 -> * | AQ89: ='Baggrundstabeller for alle land'!AK36 -> * | AR89: 0
D90: ='Baggrundstabeller for alle land'!D37 -> Grækenland | E90: 9 | F90: ='Baggrundstabeller for alle land'!E37 -> 0.1557890464 | G90: ='Baggrundstabeller for alle land'!F37 -> 0.06398302506 | H90: 0.2197720714 | J90: ='Baggrundstabeller for alle land'!I37 -> Grækenland | K90: 9 | L90: ='Baggrundstabeller for alle land'!J37 -> 0.1266340982 | M90: ='Baggrundstabeller for alle land'!K37 -> 0.04962754296 | N90: 0.1762616411 | P90: ='Baggrundstabeller for alle land'!N37 -> Grækenland | Q90: 9 | R90: ='Baggrundstabeller for alle land'!O37 -> 0.1015736689 | S90: ='Baggrundstabeller for alle land'!P37 -> 0.01889398504 | T90: 0.120467654 | V90: ='Baggrundstabeller for alle land'!S37 -> Grækenland | W90: 9 | X90: ='Baggrundstabeller for alle land'!T37 -> 0.08159438971 | Y90: ='Baggrundstabeller for alle land'!U37 -> 0.01208623064 | Z90: 0.09368062035 | AB90: ='Baggrundstabeller for alle land'!X37 -> Grækenland | AC90: 9 | AD90: ='Baggrundstabeller for alle land'!Y37 -> 0.06462433526 | AE90: ='Baggrundstabeller for alle land'!Z37 -> 0.007695722367 | AF90: 0.07232005763 | AH90: ='Baggrundstabeller for alle land'!AD37 -> Grækenland | AI90: 9 | AJ90: ='Baggrundstabeller for alle land'!AE37 -> 0.04168516282 | AK90: ='Baggrundstabeller for alle land'!AF37 -> 0.007399733045 | AL90: 0.04908489587 | AN90: ='Baggrundstabeller for alle land'!AI37 -> Grækenland | AO90: 9 | AP90: ='Baggrundstabeller for alle land'!AJ37 -> * | AQ90: ='Baggrundstabeller for alle land'!AK37 -> * | AR90: 0
D91: ='Baggrundstabeller for alle land'!D38 -> Spanien | E91: 10 | F91: ='Baggrundstabeller for alle land'!E38 -> 0.25879632 | G91: ='Baggrundstabeller for alle land'!F38 -> 0.01323561187 | H91: 0.2720319319 | J91: ='Baggrundstabeller for alle land'!I38 -> Spanien | K91: 10 | L91: ='Baggrundstabeller for alle land'!J38 -> 0.1474467216 | M91: ='Baggrundstabeller for alle land'!K38 -> 0.007520234017 | N91: 0.1549669557 | P91: ='Baggrundstabeller for alle land'!N38 -> Spanien | Q91: 10 | R91: ='Baggrundstabeller for alle land'!O38 -> 0.1099959562 | S91: ='Baggrundstabeller for alle land'!P38 -> 0.005615108066 | T91: 0.1156110643 | V91: ='Baggrundstabeller for alle land'!S38 -> Spanien | W91: 10 | X91: ='Baggrundstabeller for alle land'!T38 -> 0.09174685501 | Y91: ='Baggrundstabeller for alle land'!U38 -> 0.004662545091 | Z91: 0.0964094001 | AB91: ='Baggrundstabeller for alle land'!X38 -> Spanien | AC91: 10 | AD91: ='Baggrundstabeller for alle land'!Y38 -> 0.07851124314 | AE91: ='Baggrundstabeller for alle land'!Z38 -> 0.004060926369 | AF91: 0.08257216951 | AH91: ='Baggrundstabeller for alle land'!AD38 -> Spanien | AI91: 10 | AJ91: ='Baggrundstabeller for alle land'!AE38 -> 0.07409937252 | AK91: ='Baggrundstabeller for alle land'!AF38 -> 0.003760117009 | AL91: 0.07785948953 | AN91: ='Baggrundstabeller for alle land'!AI38 -> Spanien | AO91: 10 | AP91: ='Baggrundstabeller for alle land'!AJ38 -> 0.06768210616 | AQ91: ='Baggrundstabeller for alle land'!AK38 -> 0.003459307648 | AR91: 0.0711414138
D92: ='Baggrundstabeller for alle land'!D39 -> Frankrig | E92: 11 | F92: ='Baggrundstabeller for alle land'!E39 -> 0.1198628277 | G92: ='Baggrundstabeller for alle land'!F39 -> 0.03264844757 | H92: 0.1525112752 | J92: ='Baggrundstabeller for alle land'!I39 -> Frankrig | K92: 11 | L92: ='Baggrundstabeller for alle land'!J39 -> 0.09404777611 | M92: ='Baggrundstabeller for alle land'!K39 -> 0.0276372905 | N92: 0.1216850666 | P92: ='Baggrundstabeller for alle land'!N39 -> Frankrig | Q92: 11 | R92: ='Baggrundstabeller for alle land'!O39 -> 0.07380067684 | S92: ='Baggrundstabeller for alle land'!P39 -> 0.02525825634 | T92: 0.09905893318 | V92: ='Baggrundstabeller for alle land'!S39 -> Frankrig | W92: 11 | X92: ='Baggrundstabeller for alle land'!T39 -> 0.0666129566 | Y92: ='Baggrundstabeller for alle land'!U39 -> 0.02090513 | Z92: 0.08751808659 | AB92: ='Baggrundstabeller for alle land'!X39 -> Frankrig | AC92: 11 | AD92: ='Baggrundstabeller for alle land'!Y39 -> 0.06064006231 | AE92: ='Baggrundstabeller for alle land'!Z39 -> 0.0153371777 | AF92: 0.07597724001 | AH92: ='Baggrundstabeller for alle land'!AD39 -> Frankrig | AI92: 11 | AJ92: ='Baggrundstabeller for alle land'!AE39 -> 0.05542643425 | AK92: ='Baggrundstabeller for alle land'!AF39 -> 0.006175365277 | AL92: 0.06160179953 | AN92: ='Baggrundstabeller for alle land'!AI39 -> Frankrig | AO92: 11 | AP92: ='Baggrundstabeller for alle land'!AJ39 -> * | AQ92: ='Baggrundstabeller for alle land'!AK39 -> * | AR92: 0
D93: ='Baggrundstabeller for alle land'!D40 -> Kroatien | E93: 12 | F93: ='Baggrundstabeller for alle land'!E40 -> 0.1172987813 | G93: ='Baggrundstabeller for alle land'!F40 -> 0.005852433864 | H93: 0.1231512152 | J93: ='Baggrundstabeller for alle land'!I40 -> Kroatien | K93: 12 | L93: ='Baggrundstabeller for alle land'!J40 -> 0.1026426862 | M93: ='Baggrundstabeller for alle land'!K40 -> 0.005202163435 | N93: 0.1078448497 | P93: ='Baggrundstabeller for alle land'!N40 -> Kroatien | Q93: 12 | R93: ='Baggrundstabeller for alle land'!O40 -> 0.08723627914 | S93: ='Baggrundstabeller for alle land'!P40 -> 0.005202163435 | T93: 0.09243844257 | V93: ='Baggrundstabeller for alle land'!S40 -> Kroatien | W93: 12 | X93: ='Baggrundstabeller for alle land'!T40 -> 0.07518126579 | Y93: ='Baggrundstabeller for alle land'!U40 -> 0.00465193461 | Z93: 0.0798332004 | AB93: ='Baggrundstabeller for alle land'!X40 -> Kroatien | AC93: 12 | AD93: ='Baggrundstabeller for alle land'!Y40 -> 0.06177569079 | AE93: ='Baggrundstabeller for alle land'!Z40 -> 0.002851185729 | AF93: 0.06462687652 | AH93: ='Baggrundstabeller for alle land'!AD40 -> Kroatien | AI93: 12 | AJ93: ='Baggrundstabeller for alle land'!AE40 -> 0.05337219601 | AK93: ='Baggrundstabeller for alle land'!AF40 -> 0.002851185729 | AL93: 0.05622338174 | AN93: ='Baggrundstabeller for alle land'!AI40 -> Kroatien | AO93: 12 | AP93: ='Baggrundstabeller for alle land'!AJ40 -> * | AQ93: ='Baggrundstabeller for alle land'!AK40 -> * | AR93: 0
D94: ='Baggrundstabeller for alle land'!D41 -> Italien | E94: 13 | F94: ='Baggrundstabeller for alle land'!E41 -> 0.167998089 | G94: ='Baggrundstabeller for alle land'!F41 -> 0.1031080708 | H94: 0.2711061598 | J94: ='Baggrundstabeller for alle land'!I41 -> Italien | K94: 13 | L94: ='Baggrundstabeller for alle land'!J41 -> 0.1119819195 | M94: ='Baggrundstabeller for alle land'!K41 -> 0.07729323842 | N94: 0.1892751579 | P94: ='Baggrundstabeller for alle land'!N41 -> Italien | Q94: 13 | R94: ='Baggrundstabeller for alle land'!O41 -> 0.09388128503 | S94: ='Baggrundstabeller for alle land'!P41 -> 0.06771351546 | T94: 0.1615948005 | V94: ='Baggrundstabeller for alle land'!S41 -> Italien | W94: 13 | X94: ='Baggrundstabeller for alle land'!T41 -> 0.08646960463 | Y94: ='Baggrundstabeller for alle land'!U41 -> 0.06347826952 | Z94: 0.1499478742 | AB94: ='Baggrundstabeller for alle land'!X41 -> Italien | AC94: 13 | AD94: ='Baggrundstabeller for alle land'!Y41 -> 0.07724281883 | AE94: ='Baggrundstabeller for alle land'!Z41 -> 0.05041959454 | AF94: 0.1276624134 | AH94: ='Baggrundstabeller for alle land'!AD41 -> Italien | AI94: 13 | AJ94: ='Baggrundstabeller for alle land'!AE41 -> 0.06756225668 | AK94: ='Baggrundstabeller for alle land'!AF41 -> 0.0387726682 | AL94: 0.1063349249 | AN94: ='Baggrundstabeller for alle land'!AI41 -> Italien | AO94: 13 | AP94: ='Baggrundstabeller for alle land'!AJ41 -> 0.06675554317 | AQ94: ='Baggrundstabeller for alle land'!AK41 -> 0.02036951619 | AR94: 0.08712505936
D95: ='Baggrundstabeller for alle land'!D42 -> Cypern | E95: 14 | F95: ='Baggrundstabeller for alle land'!E42 -> 0.1709933063 | G95: ='Baggrundstabeller for alle land'!F42 -> 0.008433762727 | H95: 0.179427069 | J95: ='Baggrundstabeller for alle land'!I42 -> Cypern | K95: 14 | L95: ='Baggrundstabeller for alle land'!J42 -> 0.1532380163 | M95: ='Baggrundstabeller for alle land'!K42 -> 0.008433762727 | N95: 0.1616717791 | P95: ='Baggrundstabeller for alle land'!N42 -> Cypern | Q95: 14 | R95: ='Baggrundstabeller for alle land'!O42 -> 0.1299588584 | S95: ='Baggrundstabeller for alle land'!P42 -> 0.008384442477 | T95: 0.1383433009 | V95: ='Baggrundstabeller for alle land'!S42 -> Cypern | W95: 14 | X95: ='Baggrundstabeller for alle land'!T42 -> 0.1148668619 | Y95: ='Baggrundstabeller for alle land'!U42 -> 0.008433762727 | Z95: 0.1233006247 | AB95: ='Baggrundstabeller for alle land'!X42 -> Cypern | AC95: 14 | AD95: ='Baggrundstabeller for alle land'!Y42 -> 0.1101814382 | AE95: ='Baggrundstabeller for alle land'!Z42 -> 0.008384442477 | AF95: 0.1185658807 | AH95: ='Baggrundstabeller for alle land'!AD42 -> Cypern | AI95: 14 | AJ95: ='Baggrundstabeller for alle land'!AE42 -> 0.09992282623 | AK95: ='Baggrundstabeller for alle land'!AF42 -> 0.008433762727 | AL95: 0.108356589 | AN95: ='Baggrundstabeller for alle land'!AI42 -> Cypern | AO95: 14 | AP95: ='Baggrundstabeller for alle land'!AJ42 -> * | AQ95: ='Baggrundstabeller for alle land'!AK42 -> * | AR95: 0
D96: ='Baggrundstabeller for alle land'!D43 -> Letland | E96: 15 | F96: ='Baggrundstabeller for alle land'!E43 -> 0.1360464254 | G96: ='Baggrundstabeller for alle land'!F43 -> 0.02692742788 | H96: 0.1629738532 | J96: ='Baggrundstabeller for alle land'!I43 -> Letland | K96: 15 | L96: ='Baggrundstabeller for alle land'!J43 -> 0.1052434611 | M96: ='Baggrundstabeller for alle land'!K43 -> 0.02697775952 | N96: 0.1322212206 | P96: ='Baggrundstabeller for alle land'!N43 -> Letland | Q96: 15 | R96: ='Baggrundstabeller for alle land'!O43 -> 0.09185524465 | S96: ='Baggrundstabeller for alle land'!P43 -> 0.02697775952 | T96: 0.1188330042 | V96: ='Baggrundstabeller for alle land'!S43 -> Letland | W96: 15 | X96: ='Baggrundstabeller for alle land'!T43 -> 0.08138626334 | Y96: ='Baggrundstabeller for alle land'!U43 -> 0.02697775952 | Z96: 0.1083640229 | AB96: ='Baggrundstabeller for alle land'!X43 -> Letland | AC96: 15 | AD96: ='Baggrundstabeller for alle land'!Y43 -> 0.07237689962 | AE96: ='Baggrundstabeller for alle land'!Z43 -> 0.02697775952 | AF96: 0.09935465914 | AH96: ='Baggrundstabeller for alle land'!AD43 -> Letland | AI96: 15 | AJ96: ='Baggrundstabeller for alle land'!AE43 -> 0.05747873391 | AK96: ='Baggrundstabeller for alle land'!AF43 -> 0.02697775952 | AL96: 0.08445649343 | AN96: ='Baggrundstabeller for alle land'!AI43 -> Letland | AO96: 15 | AP96: ='Baggrundstabeller for alle land'!AJ43 -> * | AQ96: ='Baggrundstabeller for alle land'!AK43 -> * | AR96: 0
D97: ='Baggrundstabeller for alle land'!D44 -> Litaun | E97: 16 | F97: ='Baggrundstabeller for alle land'!E44 -> 0.1145458829 | G97: ='Baggrundstabeller for alle land'!F44 -> 0.01681270145 | H97: 0.1313585843 | J97: ='Baggrundstabeller for alle land'!I44 -> Litaun | K97: 16 | L97: ='Baggrundstabeller for alle land'!J44 -> 0.09229524534 | M97: ='Baggrundstabeller for alle land'!K44 -> 0.01701225874 | N97: 0.1093075041 | P97: ='Baggrundstabeller for alle land'!N44 -> Litaun | Q97: 16 | R97: ='Baggrundstabeller for alle land'!O44 -> 0.08211782369 | S97: ='Baggrundstabeller for alle land'!P44 -> 0.01696236941 | T97: 0.0990801931 | V97: ='Baggrundstabeller for alle land'!S44 -> Litaun | W97: 16 | X97: ='Baggrundstabeller for alle land'!T44 -> 0.07348697102 | Y97: ='Baggrundstabeller for alle land'!U44 -> 0.01676281213 | Z97: 0.09024978314 | AB97: ='Baggrundstabeller for alle land'!X44 -> Litaun | AC97: 16 | AD97: ='Baggrundstabeller for alle land'!Y44 -> 0.06700135918 | AE97: ='Baggrundstabeller for alle land'!Z44 -> 0.01676281213 | AF97: 0.08376417131 | AH97: ='Baggrundstabeller for alle land'!AD44 -> Litaun | AI97: 16 | AJ97: ='Baggrundstabeller for alle land'!AE44 -> 0.06325966005 | AK97: ='Baggrundstabeller for alle land'!AF44 -> 0.01661314416 | AL97: 0.07987280421 | AN97: ='Baggrundstabeller for alle land'!AI44 -> Litaun | AO97: 16 | AP97: ='Baggrundstabeller for alle land'!AJ44 -> * | AQ97: ='Baggrundstabeller for alle land'!AK44 -> * | AR97: 0
D98: ='Baggrundstabeller for alle land'!D45 -> luxembourg | E98: 17 | F98: ='Baggrundstabeller for alle land'!E45 -> 0.1392044388 | G98: ='Baggrundstabeller for alle land'!F45 -> 0.03140336822 | H98: 0.170607807 | J98: ='Baggrundstabeller for alle land'!I45 -> luxembourg | K98: 17 | L98: ='Baggrundstabeller for alle land'!J45 -> 0.09714451775 | M98: ='Baggrundstabeller for alle land'!K45 -> 0.008854720219 | N98: 0.105999238 | P98: ='Baggrundstabeller for alle land'!N45 -> luxembourg | Q98: 17 | R98: ='Baggrundstabeller for alle land'!O45 -> 0.08473761326 | S98: ='Baggrundstabeller for alle land'!P45 -> 0.009009163014 | T98: 0.09374677627 | V98: ='Baggrundstabeller for alle land'!S45 -> luxembourg | W98: 17 | X98: ='Baggrundstabeller for alle land'!T45 -> 0.0573497577 | Y98: ='Baggrundstabeller for alle land'!U45 -> 0.005611421534 | Z98: 0.06296117923 | AB98: ='Baggrundstabeller for alle land'!X45 -> luxembourg | AC98: 17 | AD98: ='Baggrundstabeller for alle land'!Y45 -> 0.05158389337 | AE98: ='Baggrundstabeller for alle land'!Z45 -> 0.004684764767 | AF98: 0.05626865814 | AH98: ='Baggrundstabeller for alle land'!AD45 -> luxembourg | AI98: 17 | AJ98: ='Baggrundstabeller for alle land'!AE45 -> * | AK98: ='Baggrundstabeller for alle land'!AF45 -> * | AL98: 0 | AN98: ='Baggrundstabeller for alle land'!AI45 -> luxembourg | AO98: 17 | AP98: ='Baggrundstabeller for alle land'!AJ45 -> * | AQ98: ='Baggrundstabeller for alle land'!AK45 -> * | AR98: 0
D99: ='Baggrundstabeller for alle land'!D46 -> Ungarn | E99: 18 | F99: ='Baggrundstabeller for alle land'!E46 -> 0.09893006818 | G99: ='Baggrundstabeller for alle land'!F46 -> 0.008869939888 | H99: 0.1078000081 | J99: ='Baggrundstabeller for alle land'!I46 -> Ungarn | K99: 18 | L99: ='Baggrundstabeller for alle land'!J46 -> 0.08874979626 | M99: ='Baggrundstabeller for alle land'!K46 -> 0.008869939888 | N99: 0.09761973615 | P99: ='Baggrundstabeller for alle land'!N46 -> Ungarn | Q99: 18 | R99: ='Baggrundstabeller for alle land'!O46 -> 0.07867031912 | S99: ='Baggrundstabeller for alle land'!P46 -> 0.008869939888 | T99: 0.08754025901 | V99: ='Baggrundstabeller for alle land'!S46 -> Ungarn | W99: 18 | X99: ='Baggrundstabeller for alle land'!T46 -> 0.07710800016 | Y99: ='Baggrundstabeller for alle land'!U46 -> 0.008869939888 | Z99: 0.08597794005 | AB99: ='Baggrundstabeller for alle land'!X46 -> Ungarn | AC99: 18 | AD99: ='Baggrundstabeller for alle land'!Y46 -> 0.07620084722 | AE99: ='Baggrundstabeller for alle land'!Z46 -> 0.008819542502 | AF99: 0.08502038972 | AH99: ='Baggrundstabeller for alle land'!AD46 -> Ungarn | AI99: 18 | AJ99: ='Baggrundstabeller for alle land'!AE46 -> 0.07690641062 | AK99: ='Baggrundstabeller for alle land'!AF46 -> 0.008920337274 | AL99: 0.08582674789 | AN99: ='Baggrundstabeller for alle land'!AI46 -> Ungarn | AO99: 18 | AP99: ='Baggrundstabeller for alle land'!AJ46 -> 0.07403375963 | AQ99: ='Baggrundstabeller for alle land'!AK46 -> 0.008869939888 | AR99: 0.08290369952
D100: ='Baggrundstabeller for alle land'!D47 -> Malta | E100: 19 | F100: ='Baggrundstabeller for alle land'!E47 -> * | G100: ='Baggrundstabeller for alle land'!F47 -> * | H100: 0 | J100: ='Baggrundstabeller for alle land'!I47 -> Malta | K100: 19 | L100: ='Baggrundstabeller for alle land'!J47 -> * | M100: ='Baggrundstabeller for alle land'!K47 -> * | N100: 0 | P100: ='Baggrundstabeller for alle land'!N47 -> Malta | Q100: 19 | R100: ='Baggrundstabeller for alle land'!O47 -> * | S100: ='Baggrundstabeller for alle land'!P47 -> * | T100: 0 | V100: ='Baggrundstabeller for alle land'!S47 -> Malta | W100: 19 | X100: ='Baggrundstabeller for alle land'!T47 -> * | Y100: ='Baggrundstabeller for alle land'!U47 -> * | Z100: 0 | AB100: ='Baggrundstabeller for alle land'!X47 -> Malta | AC100: 19 | AD100: ='Baggrundstabeller for alle land'!Y47 -> * | AE100: ='Baggrundstabeller for alle land'!Z47 -> * | AF100: 0 | AH100: ='Baggrundstabeller for alle land'!AD47 -> Malta | AI100: 19 | AJ100: ='Baggrundstabeller for alle land'!AE47 -> * | AK100: ='Baggrundstabeller for alle land'!AF47 -> * | AL100: 0 | AN100: ='Baggrundstabeller for alle land'!AI47 -> Malta | AO100: 19 | AP100: ='Baggrundstabeller for alle land'!AJ47 -> * | AQ100: ='Baggrundstabeller for alle land'!AK47 -> * | AR100: 0
D101: ='Baggrundstabeller for alle land'!D48 -> Holland | E101: 20 | F101: ='Baggrundstabeller for alle land'!E48 -> 0.1307102356 | G101: ='Baggrundstabeller for alle land'!F48 -> 0.04965079307 | H101: 0.1803610287 | J101: ='Baggrundstabeller for alle land'!I48 -> Holland | K101: 20 | L101: ='Baggrundstabeller for alle land'!J48 -> 0.08889904143 | M101: ='Baggrundstabeller for alle land'!K48 -> 0.03598174882 | N101: 0.1248807903 | P101: ='Baggrundstabeller for alle land'!N48 -> Holland | Q101: 20 | R101: ='Baggrundstabeller for alle land'!O48 -> 0.07206400532 | S101: ='Baggrundstabeller for alle land'!P48 -> 0.01577970549 | T101: 0.08784371081 | V101: ='Baggrundstabeller for alle land'!S48 -> Holland | W101: 20 | X101: ='Baggrundstabeller for alle land'!T48 -> 0.06693811373 | Y101: ='Baggrundstabeller for alle land'!U48 -> 0.01417158264 | Z101: 0.08110969636 | AB101: ='Baggrundstabeller for alle land'!X48 -> Holland | AC101: 20 | AD101: ='Baggrundstabeller for alle land'!Y48 -> 0.06352085267 | AE101: ='Baggrundstabeller for alle land'!Z48 -> 0.003869545613 | AF101: 0.06739039828 | AH101: ='Baggrundstabeller for alle land'!AD48 -> Holland | AI101: 20 | AJ101: ='Baggrundstabeller for alle land'!AE48 -> 0.06723963676 | AK101: ='Baggrundstabeller for alle land'!AF48 -> 0.002110661244 | AL101: 0.06935029801 | AN101: ='Baggrundstabeller for alle land'!AI48 -> Holland | AO101: 20 | AP101: ='Baggrundstabeller for alle land'!AJ48 -> 0.06487770632 | AQ101: ='Baggrundstabeller for alle land'!AK48 -> 0.0009548229436 | AR101: 0.06583252927
D102: ='Baggrundstabeller for alle land'!D49 -> Østrig | E102: 21 | F102: ='Baggrundstabeller for alle land'!E49 -> 0.1195621147 | G102: ='Baggrundstabeller for alle land'!F49 -> 0.04376328784 | H102: 0.1633254025 | J102: ='Baggrundstabeller for alle land'!I49 -> Østrig | K102: 21 | L102: ='Baggrundstabeller for alle land'!J49 -> 0.09300967902 | M102: ='Baggrundstabeller for alle land'!K49 -> 0.0339140096 | N102: 0.1269236886 | P102: ='Baggrundstabeller for alle land'!N49 -> Østrig | Q102: 21 | R102: ='Baggrundstabeller for alle land'!O49 -> 0.07412343415 | S102: ='Baggrundstabeller for alle land'!P49 -> 0.03178169163 | T102: 0.1059051258 | V102: ='Baggrundstabeller for alle land'!S49 -> Østrig | W102: 21 | X102: ='Baggrundstabeller for alle land'!T49 -> 0.06589877913 | Y102: ='Baggrundstabeller for alle land'!U49 -> 0.02579089353 | Z102: 0.09168967266 | AB102: ='Baggrundstabeller for alle land'!X49 -> Østrig | AC102: 21 | AD102: ='Baggrundstabeller for alle land'!Y49 -> 0.0568618125 | AE102: ='Baggrundstabeller for alle land'!Z49 -> 0.02178010497 | AF102: 0.07864191747 | AH102: ='Baggrundstabeller for alle land'!AD49 -> Østrig | AI102: 21 | AJ102: ='Baggrundstabeller for alle land'!AE49 -> 0.05122640073 | AK102: ='Baggrundstabeller for alle land'!AF49 -> 0.02015548175 | AL102: 0.07138188248 | AN102: ='Baggrundstabeller for alle land'!AI49 -> Østrig | AO102: 21 | AP102: ='Baggrundstabeller for alle land'!AJ49 -> 0.04559098895 | AQ102: ='Baggrundstabeller for alle land'!AK49 -> 0.01949547857 | AR102: 0.06508646752
D103: ='Baggrundstabeller for alle land'!D50 -> Polen | E103: 22 | F103: ='Baggrundstabeller for alle land'!E50 -> 0.1484163139 | G103: ='Baggrundstabeller for alle land'!F50 -> 0.004781129136 | H103: 0.1531974431 | J103: ='Baggrundstabeller for alle land'!I50 -> Polen | K103: 22 | L103: ='Baggrundstabeller for alle land'!J50 -> 0.1106202299 | M103: ='Baggrundstabeller for alle land'!K50 -> 0.004781129136 | N103: 0.115401359 | P103: ='Baggrundstabeller for alle land'!N50 -> Polen | Q103: 22 | R103: ='Baggrundstabeller for alle land'!O50 -> 0.08283935324 | S103: ='Baggrundstabeller for alle land'!P50 -> 0.004881784486 | T103: 0.08772113773 | V103: ='Baggrundstabeller for alle land'!S50 -> Polen | W103: 22 | X103: ='Baggrundstabeller for alle land'!T50 -> 0.07166660937 | Y103: ='Baggrundstabeller for alle land'!U50 -> 0.004831456811 | Z103: 0.07649806618 | AB103: ='Baggrundstabeller for alle land'!X50 -> Polen | AC103: 22 | AD103: ='Baggrundstabeller for alle land'!Y50 -> 0.06502335625 | AE103: ='Baggrundstabeller for alle land'!Z50 -> 0.004881784486 | AF103: 0.06990514074 | AH103: ='Baggrundstabeller for alle land'!AD50 -> Polen | AI103: 22 | AJ103: ='Baggrundstabeller for alle land'!AE50 -> 0.06014157177 | AK103: ='Baggrundstabeller for alle land'!AF50 -> 0.004831456811 | AL103: 0.06497302858 | AN103: ='Baggrundstabeller for alle land'!AI50 -> Polen | AO103: 22 | AP103: ='Baggrundstabeller for alle land'!AJ50 -> 0.05490749355 | AQ103: ='Baggrundstabeller for alle land'!AK50 -> 0.004831456811 | AR103: 0.05973895037
D104: ='Baggrundstabeller for alle land'!D51 -> Portugal | E104: 23 | F104: ='Baggrundstabeller for alle land'!E51 -> 0.1719805775 | G104: ='Baggrundstabeller for alle land'!F51 -> 0.02645072472 | H104: 0.1984313022 | J104: ='Baggrundstabeller for alle land'!I51 -> Portugal | K104: 23 | L104: ='Baggrundstabeller for alle land'!J51 -> 0.1258952763 | M104: ='Baggrundstabeller for alle land'!K51 -> 0.02202531501 | N104: 0.1479205913 | P104: ='Baggrundstabeller for alle land'!N51 -> Portugal | Q104: 23 | R104: ='Baggrundstabeller for alle land'!O51 -> 0.1012248888 | S104: ='Baggrundstabeller for alle land'!P51 -> 0.01546350061 | T104: 0.1166883895 | V104: ='Baggrundstabeller for alle land'!S51 -> Portugal | W104: 23 | X104: ='Baggrundstabeller for alle land'!T51 -> 0.09206886875 | Y104: ='Baggrundstabeller for alle land'!U51 -> 0.01327622914 | Z104: 0.1053450979 | AB104: ='Baggrundstabeller for alle land'!X51 -> Portugal | AC104: 23 | AD104: ='Baggrundstabeller for alle land'!Y51 -> 0.07563889936 | AE104: ='Baggrundstabeller for alle land'!Z51 -> 0.01393749726 | AF104: 0.08957639661 | AH104: ='Baggrundstabeller for alle land'!AD51 -> Portugal | AI104: 23 | AJ104: ='Baggrundstabeller for alle land'!AE51 -> 0.06922968529 | AK104: ='Baggrundstabeller for alle land'!AF51 -> 0.0138357637 | AL104: 0.08306544899 | AN104: ='Baggrundstabeller for alle land'!AI51 -> Portugal | AO104: 23 | AP104: ='Baggrundstabeller for alle land'!AJ51 -> * | AQ104: ='Baggrundstabeller for alle land'!AK51 -> * | AR104: 0
D105: ='Baggrundstabeller for alle land'!D52 -> Rumænien | E105: 24 | F105: ='Baggrundstabeller for alle land'!E52 -> 0.100574037 | G105: ='Baggrundstabeller for alle land'!F52 -> 0.01188648833 | H105: 0.1124605253 | J105: ='Baggrundstabeller for alle land'!I52 -> Rumænien | K105: 24 | L105: ='Baggrundstabeller for alle land'!J52 -> 0.08750914683 | M105: ='Baggrundstabeller for alle land'!K52 -> 0.0123476021 | N105: 0.09985674893 | P105: ='Baggrundstabeller for alle land'!N52 -> Rumænien | Q105: 24 | R105: ='Baggrundstabeller for alle land'!O52 -> 0.07111399052 | S105: ='Baggrundstabeller for alle land'!P52 -> 0.01250130669 | T105: 0.08361529721 | V105: ='Baggrundstabeller for alle land'!S52 -> Rumænien | W105: 24 | X105: ='Baggrundstabeller for alle land'!T52 -> 0.06266023804 | Y105: ='Baggrundstabeller for alle land'!U52 -> 0.01245007183 | Z105: 0.07511030987 | AB105: ='Baggrundstabeller for alle land'!X52 -> Rumænien | AC105: 24 | AD105: ='Baggrundstabeller for alle land'!Y52 -> 0.05425772043 | AE105: ='Baggrundstabeller for alle land'!Z52 -> 0.01209142778 | AF105: 0.06634914821 | AH105: ='Baggrundstabeller for alle land'!AD52 -> Rumænien | AI105: 24 | AJ105: ='Baggrundstabeller for alle land'!AE52 -> 0.05200338644 | AK105: ='Baggrundstabeller for alle land'!AF52 -> 0.01101549565 | AL105: 0.06301888208 | AN105: ='Baggrundstabeller for alle land'!AI52 -> Rumænien | AO105: 24 | AP105: ='Baggrundstabeller for alle land'!AJ52 -> * | AQ105: ='Baggrundstabeller for alle land'!AK52 -> * | AR105: 0
D106: ='Baggrundstabeller for alle land'!D53 -> Slovenien | E106: 25 | F106: ='Baggrundstabeller for alle land'!E53 -> 0.1143305125 | G106: ='Baggrundstabeller for alle land'!F53 -> 0.03013985391 | H106: 0.1444703664 | J106: ='Baggrundstabeller for alle land'!I53 -> Slovenien | K106: 25 | L106: ='Baggrundstabeller for alle land'!J53 -> 0.09052002791 | M106: ='Baggrundstabeller for alle land'!K53 -> 0.01496946078 | N106: 0.1054894887 | P106: ='Baggrundstabeller for alle land'!N53 -> Slovenien | Q106: 25 | R106: ='Baggrundstabeller for alle land'!O53 -> 0.07158215304 | S106: ='Baggrundstabeller for alle land'!P53 -> 0.01366340044 | T106: 0.08524555348 | V106: ='Baggrundstabeller for alle land'!S53 -> Slovenien | W106: 25 | X106: ='Baggrundstabeller for alle land'!T53 -> 0.0633439263 | Y106: ='Baggrundstabeller for alle land'!U53 -> 0.01080011432 | Z106: 0.07414404062 | AB106: ='Baggrundstabeller for alle land'!X53 -> Slovenien | AC106: 25 | AD106: ='Baggrundstabeller for alle land'!Y53 -> 0.05681362462 | AE106: ='Baggrundstabeller for alle land'!Z53 -> 0.008589858365 | AF106: 0.06540348299 | AH106: ='Baggrundstabeller for alle land'!AD53 -> Slovenien | AI106: 25 | AJ106: ='Baggrundstabeller for alle land'!AE53 -> 0.05621082754 | AK106: ='Baggrundstabeller for alle land'!AF53 -> 0.007032632579 | AL106: 0.06324346012 | AN106: ='Baggrundstabeller for alle land'!AI53 -> Slovenien | AO106: 25 | AP106: ='Baggrundstabeller for alle land'!AJ53 -> * | AQ106: ='Baggrundstabeller for alle land'!AK53 -> * | AR106: 0
D107: ='Baggrundstabeller for alle land'!D54 -> Slovakiet | E107: 26 | F107: ='Baggrundstabeller for alle land'!E54 -> 0.2028642911 | G107: ='Baggrundstabeller for alle land'!F54 -> 0.004488148033 | H107: 0.2073524391 | J107: ='Baggrundstabeller for alle land'!I54 -> Slovakiet | K107: 26 | L107: ='Baggrundstabeller for alle land'!J54 -> 0.1331483917 | M107: ='Baggrundstabeller for alle land'!K54 -> 0.004488148033 | N107: 0.1376365397 | P107: ='Baggrundstabeller for alle land'!N54 -> Slovakiet | Q107: 26 | R107: ='Baggrundstabeller for alle land'!O54 -> 0.1076158162 | S107: ='Baggrundstabeller for alle land'!P54 -> 0.004488148033 | T107: 0.1121039642 | V107: ='Baggrundstabeller for alle land'!S54 -> Slovakiet | W107: 26 | X107: ='Baggrundstabeller for alle land'!T54 -> 0.09504900168 | Y107: ='Baggrundstabeller for alle land'!U54 -> 0.004488148033 | Z107: 0.09953714972 | AB107: ='Baggrundstabeller for alle land'!X54 -> Slovakiet | AC107: 26 | AD107: ='Baggrundstabeller for alle land'!Y54 -> 0.09285479598 | AE107: ='Baggrundstabeller for alle land'!Z54 -> 0.004488148033 | AF107: 0.09734294401 | AH107: ='Baggrundstabeller for alle land'!AD54 -> Slovakiet | AI107: 26 | AJ107: ='Baggrundstabeller for alle land'!AE54 -> 0.09031151209 | AK107: ='Baggrundstabeller for alle land'!AF54 -> 0.004488148033 | AL107: 0.09479966013 | AN107: ='Baggrundstabeller for alle land'!AI54 -> Slovakiet | AO107: 26 | AP107: ='Baggrundstabeller for alle land'!AJ54 -> 0.06452959506 | AQ107: ='Baggrundstabeller for alle land'!AK54 -> 0.004488148033 | AR107: 0.06901774309
D108: ='Baggrundstabeller for alle land'!D55 -> Finland | E108: 27 | F108: ='Baggrundstabeller for alle land'!E55 -> 0.08348704803 | G108: ='Baggrundstabeller for alle land'!F55 -> 0.007024150675 | H108: 0.0905111987 | J108: ='Baggrundstabeller for alle land'!I55 -> Finland | K108: 27 | L108: ='Baggrundstabeller for alle land'!J55 -> 0.07706496741 | M108: ='Baggrundstabeller for alle land'!K55 -> 0.00707432318 | N108: 0.08413929059 | P108: ='Baggrundstabeller for alle land'!N55 -> Finland | Q108: 27 | R108: ='Baggrundstabeller for alle land'!O55 -> 0.06381942614 | S108: ='Baggrundstabeller for alle land'!P55 -> 0.00707432318 | T108: 0.07089374932 | V108: ='Baggrundstabeller for alle land'!S55 -> Finland | W108: 27 | X108: ='Baggrundstabeller for alle land'!T55 -> 0.0603575233 | Y108: ='Baggrundstabeller for alle land'!U55 -> 0.00707432318 | Z108: 0.06743184648 | AB108: ='Baggrundstabeller for alle land'!X55 -> Finland | AC108: 27 | AD108: ='Baggrundstabeller for alle land'!Y55 -> 0.04620887694 | AE108: ='Baggrundstabeller for alle land'!Z55 -> 0.00707432318 | AF108: 0.05328320012 | AH108: ='Baggrundstabeller for alle land'!AD55 -> Finland | AI108: 27 | AJ108: ='Baggrundstabeller for alle land'!AE55 -> 0.04375042421 | AK108: ='Baggrundstabeller for alle land'!AF55 -> 0.00707432318 | AL108: 0.05082474739 | AN108: ='Baggrundstabeller for alle land'!AI55 -> Finland | AO108: 27 | AP108: ='Baggrundstabeller for alle land'!AJ55 -> * | AQ108: ='Baggrundstabeller for alle land'!AK55 -> * | AR108: 0
D109: ='Baggrundstabeller for alle land'!D56 -> Sverige | E109: 28 | F109: ='Baggrundstabeller for alle land'!E56 -> 0.1344121088 | G109: ='Baggrundstabeller for alle land'!F56 -> 0.0004963519527 | H109: 0.1349084608 | J109: ='Baggrundstabeller for alle land'!I56 -> Sverige | K109: 28 | L109: ='Baggrundstabeller for alle land'!J56 -> 0.07013453092 | M109: ='Baggrundstabeller for alle land'!K56 -> 0.0004963519527 | N109: 0.07063088287 | P109: ='Baggrundstabeller for alle land'!N56 -> Sverige | Q109: 28 | R109: ='Baggrundstabeller for alle land'!O56 -> 0.05966150472 | S109: ='Baggrundstabeller for alle land'!P56 -> 0.0004963519527 | T109: 0.06015785667 | V109: ='Baggrundstabeller for alle land'!S56 -> Sverige | W109: 28 | X109: ='Baggrundstabeller for alle land'!T56 -> 0.05206731984 | Y109: ='Baggrundstabeller for alle land'!U56 -> 0.000545987148 | Z109: 0.05261330699 | AB109: ='Baggrundstabeller for alle land'!X56 -> Sverige | AC109: 28 | AD109: ='Baggrundstabeller for alle land'!Y56 -> 0.04546583887 | AE109: ='Baggrundstabeller for alle land'!Z56 -> 0.0004963519527 | AF109: 0.04596219082 | AH109: ='Baggrundstabeller for alle land'!AD56 -> Sverige | AI109: 28 | AJ109: ='Baggrundstabeller for alle land'!AE56 -> 0.03722639645 | AK109: ='Baggrundstabeller for alle land'!AF56 -> 0.0005956223433 | AL109: 0.0378220188 | AN109: ='Baggrundstabeller for alle land'!AI56 -> Sverige | AO109: 28 | AP109: ='Baggrundstabeller for alle land'!AJ56 -> * | AQ109: ='Baggrundstabeller for alle land'!AK56 -> * | AR109: 0
D110: ='Baggrundstabeller for alle land'!D57 -> UK | E110: 29 | F110: ='Baggrundstabeller for alle land'!E57 -> 0.1996863533 | G110: ='Baggrundstabeller for alle land'!F57 -> 0.005458650662 | H110: 0.2051450039 | J110: ='Baggrundstabeller for alle land'!I57 -> UK | K110: 29 | L110: ='Baggrundstabeller for alle land'!J57 -> 0.1809152791 | M110: ='Baggrundstabeller for alle land'!K57 -> 0.006739762551 | N110: 0.1876550416 | P110: ='Baggrundstabeller for alle land'!N57 -> UK | Q110: 29 | R110: ='Baggrundstabeller for alle land'!O57 -> 0.1613643976 | S110: ='Baggrundstabeller for alle land'!P57 -> 0.006238457899 | T110: 0.1676028555 | V110: ='Baggrundstabeller for alle land'!S57 -> UK | W110: 29 | X110: ='Baggrundstabeller for alle land'!T57 -> 0.149555888 | Y110: ='Baggrundstabeller for alle land'!U57 -> 0.004511741873 | Z110: 0.1540676299 | AB110: ='Baggrundstabeller for alle land'!X57 -> UK | AC110: 29 | AD110: ='Baggrundstabeller for alle land'!Y57 -> 0.1468822632 | AE110: ='Baggrundstabeller for alle land'!Z57 -> 0.003230629983 | AF110: 0.1501128932 | AH110: ='Baggrundstabeller for alle land'!AD57 -> UK | AI110: 29 | AJ110: ='Baggrundstabeller for alle land'!AE57 -> 0.1430946281 | AK110: ='Baggrundstabeller for alle land'!AF57 -> 0.0032863305 | AL110: 0.1463809586 | AN110: ='Baggrundstabeller for alle land'!AI57 -> UK | AO110: 29 | AP110: ='Baggrundstabeller for alle land'!AJ57 -> 0.1390841908 | AQ110: ='Baggrundstabeller for alle land'!AK57 -> 0.002840726365 | AR110: 0.1419249172
E111: Level 1 | K111: Level 1 | P111: Level 1 | V111: Level 1 | AB111: Level 1 | AH111: Level 1 | AN111: Level 1
E112: Level 2 | K112: Level 2 | P112: Level 2 | V112: Level 2 | AB112: Level 2 | AH112: Level 2 | AN112: Level 2

Sheet Baggrundstabeller for alle land
D1: NAVN PÅ ARK: | E1: Baggrundstabeller for alle lande, valgt år
D2: Data hentes fra: | E2: 'Level 1', 'Level 2', 'Afgifter og moms' og 'Baggrundsdata -BVT-deflator'
D4: Sådan bruges arket:
D5: Arket 'Baggrundstabeller for alle lande, valgt år' skal give et indblik i hvordan de grå-blå resultatfigurer og -tabeller i arket 'Alle lande, valgt år' fremkommer. Værdierne i resultattabellerne er ens for de to ark, men i dette ark ses udregningen. Nedenstående resultattabeller (de grå-blå) viser gasprisen for industrielle forbrugere opdelt på level 1 og 2 for hvert forbrugsintervalinterval. Prisen vises for alle lande i det valgte år. Resultattabellerne er fremkommet ved at gange tabel A, B og C sammen. Disse tabeller ses under resultattabellerne. Tabellerne A, B og C er et resultat af valgene truffet i rullemenuerne i arket 'Alle lande, valgt år', disse valg kan ses i de farvede kasser nedenfor. Hvis år, pristype, basisår, valuta eller enhed ønskes ændret, gøres det i arket 'Alle lande, valgt år'.
D11: ="Valg truffet i arket: "&'Baggrundstabeller for alle land'!E1 -> Valg truffet i arket: Baggrundstabeller for alle lande, valgt år
D12: Valgt år | E12: ='Alle lande, valgt år'!F12 -> 2015 | F12: Tabel A
D13: Valgt pristype | E13: ='Alle lande, valgt år'!F13 -> faste priser | F13: Tabel B
D14: Valgt basisår | E14: ='Alle lande, valgt år'!F14 -> 2016 | F14: Tabel B
D15: Valgt valuta | E15: ='Alle lande, valgt år'!F15 -> Euro | F15: Tabel C
D19: Resultattabeller:
D20: Valgene truffet ovenfor giver tabeller og figurer der er:
D21: ="Oppgjort for året "&E12&" i "&$E$13&" med basisår "&$E$14 -> Oppgjort for året 2015 i faste priser med basisår 2016
D22: ="Vist i "&E15&" / kWh" -> Vist i Euro / kWh
D25: Tal hentet for år 2014
D26: =D71 -> IA: <0,02 GWh | I26: =I71 -> IB: 0,02 < 0,5 GWh | N26: =N71 -> IC: 0,5 < 2 GWh | S26: =S71 -> ID: 2 < 20 GWh | X26: =X71 -> IE:20 < 70 GWh | AD26: =AD71 -> IF: 70 < 150 GWh | AI26: =AI71 -> IG: > 150 GWh
D28: =$E$15&" / kWh år "&$E$12 -> Euro / kWh år 2015 | E28: Elpris ekskl. PSO og afgifter | F28: PSO og Ikke-refunderbare afgifter | I28: =$E$15&" / kWh år "&$E$12 -> Euro / kWh år 2015 | J28: Elpris ekskl. PSO og afgifter | K28: PSO og Ikke-refunderbare afgifter | N28: =$E$15&" / kWh år "&$E$12 -> Euro / kWh år 2015 | O28: Elpris ekskl. PSO og afgifter | P28: PSO og Ikke-refunderbare afgifter | S28: =$E$15&" / kWh år "&$E$12 -> Euro / kWh år 2015 | T28: Elpris ekskl. PSO og afgifter | U28: PSO og Ikke-refunderbare afgifter | X28: =$E$15&" / kWh år "&$E$12 -> Euro / kWh år 2015 | Y28: Elpris ekskl. PSO og afgifter | Z28: PSO og Ikke-refunderbare afgifter | AD28: =$E$15&" / kWh år "&$E$12 -> Euro / kWh år 2015 | AE28: Elpris ekskl. PSO og afgifter | AF28: PSO og Ikke-refunderbare afgifter | AI28: =$E$15&" / kWh år "&$E$12 -> Euro / kWh år 2015 | AJ28: Elpris ekskl. PSO og afgifter | AK28: PSO og Ikke-refunderbare afgifter
D29: =D74 -> EU-28 | E29: =IFERROR(E74/$E117*$H$117,"*") -> 0.1521891559 | F29: =IFERROR(F74/$E117*$H$117,"*") -> 0.0445770264 | I29: =I74 -> EU-28 | J29: =IFERROR(J74/$E117*$H$117,"*") -> 0.112753655 | K29: =IFERROR(K74/$E117*$H$117,"*") -> 0.03604209401 | L29: =SUM(J29:K29) -> 0.148795749 | N29: =N74 -> EU-28 | O29: =IFERROR(O74/$E117*$H$117,"*") -> 0.09095358674 | P29: =IFERROR(P74/$E117*$H$117,"*") -> 0.03218594986 | Q29: =SUM(O29:P29) -> 0.1231395366 | S29: =S74 -> EU-28 | T29: =IFERROR(T74/$E117*$H$117,"*") -> 0.08113327296 | U29: =IFERROR(U74/$E117*$H$117,"*") -> 0.02863829724 | V29: =SUM(T29:U29) -> 0.1097715702 | X29: =X74 -> EU-28 | Y29: =IFERROR(Y74/$E117*$H$117,"*") -> 0.07280400159 | Z29: =IFERROR(Z74/$E117*$H$117,"*") -> 0.02298261915 | AB29: =SUM(Y29:Z29) -> 0.09578662074 | AD29: =AD74 -> EU-28 | AE29: =IFERROR(AE74/$E117*$H$117,"*") -> 0.06735398452 | AF29: =IFERROR(AF74/$E117*$H$117,"*") -> 0.01840666142 | AG29: =SUM(AE29:AF29) -> 0.08576064594 | AI29: =AI74 -> EU-28 | AJ29: =IFERROR(AJ74/$E117*$H$117,"*") -> * | AK29: =IFERROR(AK74/$E117*$H$117,"*") -> * | AM29: =SUM(AJ29:AK29) -> 0
D30: Belgien | E30: =IFERROR(E75/$E118*$H$117,"*") -> 0.1539219976 | F30: 0.02597307627 | I30: Belgien | J30: =IFERROR(J75/$E118*$H$117,"*") -> 0.1234603703 | K30: 0.02304795312 | L30: 0.1465083234 | N30: Belgien | O30: =IFERROR(O75/$E118*$H$117,"*") -> 0.09168748089 | P30: 0.01830723628 | Q30: 0.1099947172 | S30: Belgien | T30: =IFERROR(T75/$E118*$H$117,"*") -> 0.07963395617 | U30: 0.01760117207 | V30: 0.09723512825 | X30: Belgien | Y30: =IFERROR(Y75/$E118*$H$117,"*") -> 0.06581527094 | Z30: 0.01200309156 | AB30: 0.07781836249 | AD30: Belgien | AE30: =IFERROR(AE75/$E118*$H$117,"*") -> 0.05956155937 | AF30: 0.006304144726 | AG30: 0.06586570409 | AI30: Belgien | AJ30: =IFERROR(AJ75/$E118*$H$117,"*") -> * | AK30: * | AM30: 0
D31: Bulgarien | E31: =IFERROR(E76/$E119*$H$117,"*") -> 0.1074632657 | F31: 0.001001521582 | I31: Bulgarien | J31: =IFERROR(J76/$E119*$H$117,"*") -> 0.09559523497 | K31: 0.001001521582 | L31: 0.09659675656 | N31: Bulgarien | O31: =IFERROR(O76/$E119*$H$117,"*") -> 0.07281061899 | P31: 0.001001521582 | Q31: 0.07381214057 | S31: Bulgarien | T31: =IFERROR(T76/$E119*$H$117,"*") -> 0.06504882673 | U31: 0.001051597661 | V31: 0.06610042439 | X31: Bulgarien | Y31: =IFERROR(Y76/$E119*$H$117,"*") -> 0.05883939293 | Z31: 0.001001521582 | AB31: 0.05984091451 | AD31: Bulgarien | AE31: =IFERROR(AE76/$E119*$H$117,"*") -> 0.05558444778 | AF31: 0.001051597661 | AG31: 0.05663604545 | AI31: Bulgarien | AJ31: =IFERROR(AJ76/$E119*$H$117,"*") -> 0.05298049167 | AK31: 0.001051597661 | AM31: 0.05403208933
D32: Tjekkiet | E32: =IFERROR(E77/$E120*$H$117,"*") -> 0.1581129398 | F32: 0.001067643645 | I32: Tjekkiet | J32: =IFERROR(J77/$E120*$H$117,"*") -> 0.1225248183 | K32: 0.001016803472 | L32: 0.1235416218 | N32: Tjekkiet | O32: =IFERROR(O77/$E120*$H$117,"*") -> 0.07798882627 | P32: 0.001067643645 | Q32: 0.07905646991 | S32: Tjekkiet | T32: =IFERROR(T77/$E120*$H$117,"*") -> 0.07198968578 | U32: 0.001118483819 | V32: 0.0731081696 | X32: Tjekkiet | Y32: =IFERROR(Y77/$E120*$H$117,"*") -> 0.07453169446 | Z32: 0.001067643645 | AB32: 0.07559933811 | AD32: Tjekkiet | AE32: =IFERROR(AE77/$E120*$H$117,"*") -> 0.07636194071 | AF32: 0.001016803472 | AG32: 0.07737874418 | AI32: Tjekkiet | AJ32: =IFERROR(AJ77/$E120*$H$117,"*") -> * | AK32: * | AM32: 0
D33: Danmark | E33: =IFERROR(E78/$E121*$H$117,"*") -> 0.08130913445 | F33: 0.09994036824 | I33: Danmark | J33: =IFERROR(J78/$E121*$H$117,"*") -> 0.06677879722 | K33: 0.03103518021 | L33: 0.09781397743 | N33: Danmark | O33: =IFERROR(O78/$E121*$H$117,"*") -> 0.06045025313 | P33: 0.0309339235 | Q33: 0.09138417664 | S33: Danmark | T33: =IFERROR(T78/$E121*$H$117,"*") -> 0.0608046516 | U33: 0.03047826833 | V33: 0.09128291993 | X33: Danmark | Y33: =IFERROR(Y78/$E121*$H$117,"*") -> 0.04819819178 | Z33: 0.0298707281 | AB33: 0.07806891987 | AD33: Danmark | AE33: =IFERROR(AE78/$E121*$H$117,"*") -> 0.04703373966 | AF33: 0.02971884304 | AG33: 0.0767525827 | AI33: Danmark | AJ33: =IFERROR(AJ78/$E121*$H$117,"*") -> * | AK33: * | AM33: 0
D34: Tyskland | E34: =IFERROR(E79/$E122*$H$117,"*") -> 0.1371320338 | F34: 0.08673613917 | I34: Tyskland | J34: =IFERROR(J79/$E122*$H$117,"*") -> 0.1042162568 | K34: 0.07344716087 | L34: 0.1776634177 | N34: Tyskland | O34: =IFERROR(O79/$E122*$H$117,"*") -> 0.08290278004 | P34: 0.07053380793 | Q34: 0.153436588 | S34: Tyskland | T34: =IFERROR(T79/$E122*$H$117,"*") -> 0.07109603393 | U34: 0.0626115324 | V34: 0.1337075663 | X34: Tyskland | Y34: =IFERROR(Y79/$E122*$H$117,"*") -> 0.0630715355 | Z34: 0.05116256648 | AB34: 0.114234102 | AD34: Tyskland | AE34: =IFERROR(AE79/$E122*$H$117,"*") -> 0.05668260362 | AF34: 0.04303584513 | AG34: 0.09971844875 | AI34: Tyskland | AJ34: =IFERROR(AJ79/$E122*$H$117,"*") -> * | AK34: * | AM34: 0
D35: Estland | E35: =IFERROR(E80/$E123*$H$117,"*") -> 0.09535815255 | F35: 0.01354288656 | I35: Estland | J35: =IFERROR(J80/$E123*$H$117,"*") -> 0.08445283191 | K35: 0.01359360898 | L35: 0.09804644089 | N35: Estland | O35: =IFERROR(O80/$E123*$H$117,"*") -> 0.08009070366 | P35: 0.01359360898 | Q35: 0.09368431264 | S35: Estland | T35: =IFERROR(T80/$E123*$H$117,"*") -> 0.07298956464 | U35: 0.01359360898 | V35: 0.08658317362 | X35: Estland | Y35: =IFERROR(Y80/$E123*$H$117,"*") -> 0.06147557494 | Z35: 0.01313710719 | AB35: 0.07461268213 | AD35: Estland | AE35: =IFERROR(AE80/$E123*$H$117,"*") -> 0.05812789512 | AF35: 0.01328927445 | AG35: 0.07141716957 | AI35: Estland | AJ35: =IFERROR(AJ80/$E123*$H$117,"*") -> * | AK35: * | AM35: 0
D36: Irland | E36: =IFERROR(E81/$E124*$H$117,"*") -> 0.1804279199 | F36: 0.03884836996 | I36: Irland | J36: =IFERROR(J81/$E124*$H$117,"*") -> 0.1570342148 | K36: 0.01667198438 | L36: 0.1737061992 | N36: Irland | O36: =IFERROR(O81/$E124*$H$117,"*") -> 0.1336405098 | P36: 0.0131788067 | Q36: 0.1468193165 | S36: Irland | T36: =IFERROR(T81/$E124*$H$117,"*") -> 0.1117816858 | U36: 0.008838798071 | V36: 0.1206204838 | X36: Irland | Y36: =IFERROR(Y81/$E124*$H$117,"*") -> 0.09828531747 | Z36: 0.006139524408 | AB36: 0.1044248419 | AD36: Irland | AE36: =IFERROR(AE81/$E124*$H$117,"*") -> 0.09103432743 | AF36: 0.004234154764 | AG36: 0.0952684822 | AI36: Irland | AJ36: =IFERROR(AJ81/$E124*$H$117,"*") -> * | AK36: * | AM36: 0
D37: Grækenland | E37: =IFERROR(E82/$E125*$H$117,"*") -> 0.1557890464 | F37: 0.06398302506 | I37: Grækenland | J37: =IFERROR(J82/$E125*$H$117,"*") -> 0.1266340982 | K37: 0.04962754296 | L37: 0.1762616411 | N37: Grækenland | O37: =IFERROR(O82/$E125*$H$117,"*") -> 0.1015736689 | P37: =IFERROR(P82/$E125*$H$117,"*") -> 0.01889398504 | Q37: 0.120467654 | S37: Grækenland | T37: =IFERROR(T82/$E125*$H$117,"*") -> 0.08159438971 | U37: 0.01208623064 | V37: 0.09368062035 | X37: Grækenland | Y37: =IFERROR(Y82/$E125*$H$117,"*") -> 0.06462433526 | Z37: 0.007695722367 | AB37: 0.07232005763 | AD37: Grækenland | AE37: =IFERROR(AE82/$E125*$H$117,"*") -> 0.04168516282 | AF37: 0.007399733045 | AG37: 0.04908489587 | AI37: Grækenland | AJ37: =IFERROR(AJ82/$E125*$H$117,"*") -> * | AK37: * | AM37: 0
D38: Spanien | E38: =IFERROR(E83/$E126*$H$117,"*") -> 0.25879632 | F38: 0.01323561187 | I38: Spanien | J38: =IFERROR(J83/$E126*$H$117,"*") -> 0.1474467216 | K38: 0.007520234017 | L38: 0.1549669557 | N38: Spanien | O38: =IFERROR(O83/$E126*$H$117,"*") -> 0.1099959562 | P38: 0.005615108066 | Q38: 0.1156110643 | S38: Spanien | T38: =IFERROR(T83/$E126*$H$117,"*") -> 0.09174685501 | U38: 0.004662545091 | V38: 0.0964094001 | X38: Spanien | Y38: =IFERROR(Y83/$E126*$H$117,"*") -> 0.07851124314 | Z38: 0.004060926369 | AB38: 0.08257216951 | AD38: Spanien | AE38: =IFERROR(AE83/$E126*$H$117,"*") -> 0.07409937252 | AF38: 0.003760117009 | AG38: 0.07785948953 | AI38: Spanien | AJ38: =IFERROR(AJ83/$E126*$H$117,"*") -> 0.06768210616 | AK38: 0.003459307648 | AM38: 0.0711414138
D39: Frankrig | E39: =IFERROR(E84/$E127*$H$117,"*") -> 0.1198628277 | F39: 0.03264844757 | I39: Frankrig | J39: =IFERROR(J84/$E127*$H$117,"*") -> 0.09404777611 | K39: 0.0276372905 | L39: 0.1216850666 | N39: Frankrig | O39: =IFERROR(O84/$E127*$H$117,"*") -> 0.07380067684 | P39: 0.02525825634 | Q39: 0.09905893318 | S39: Frankrig | T39: =IFERROR(T84/$E127*$H$117,"*") -> 0.0666129566 | U39: 0.02090513 | V39: 0.08751808659 | X39: Frankrig | Y39: =IFERROR(Y84/$E127*$H$117,"*") -> 0.06064006231 | Z39: 0.0153371777 | AB39: 0.07597724001 | AD39: Frankrig | AE39: =IFERROR(AE84/$E127*$H$117,"*") -> 0.05542643425 | AF39: 0.006175365277 | AG39: 0.06160179953 | AI39: Frankrig | AJ39: =IFERROR(AJ84/$E127*$H$117,"*") -> * | AK39: * | AM39: 0
D40: Kroatien | E40: =IFERROR(E85/$E128*$H$117,"*") -> 0.1172987813 | F40: 0.005852433864 | I40: Kroatien | J40: =IFERROR(J85/$E128*$H$117,"*") -> 0.1026426862 | K40: 0.005202163435 | L40: 0.1078448497 | N40: Kroatien | O40: =IFERROR(O85/$E128*$H$117,"*") -> 0.08723627914 | P40: 0.005202163435 | Q40: 0.09243844257 | S40: Kroatien | T40: =IFERROR(T85/$E128*$H$117,"*") -> 0.07518126579 | U40: 0.00465193461 | V40: 0.0798332004 | X40: Kroatien | Y40: =IFERROR(Y85/$E128*$H$117,"*") -> 0.06177569079 | Z40: 0.002851185729 | AB40: 0.06462687652 | AD40: Kroatien | AE40: =IFERROR(AE85/$E128*$H$117,"*") -> 0.05337219601 | AF40: 0.002851185729 | AG40: 0.05622338174 | AI40: Kroatien | AJ40: =IFERROR(AJ85/$E128*$H$117,"*") -> * | AK40: * | AM40: 0
D41: Italien | E41: =IFERROR(E86/$E129*$H$117,"*") -> 0.167998089 | F41: 0.1031080708 | I41: Italien | J41: =IFERROR(J86/$E129*$H$117,"*") -> 0.1119819195 | K41: 0.07729323842 | L41: 0.1892751579 | N41: Italien | O41: =IFERROR(O86/$E129*$H$117,"*") -> 0.09388128503 | P41: 0.06771351546 | Q41: 0.1615948005 | S41: Italien | T41: =IFERROR(T86/$E129*$H$117,"*") -> 0.08646960463 | U41: 0.06347826952 | V41: 0.1499478742 | X41: Italien | Y41: =IFERROR(Y86/$E129*$H$117,"*") -> 0.07724281883 | Z41: 0.05041959454 | AB41: 0.1276624134 | AD41: Italien | AE41: =IFERROR(AE86/$E129*$H$117,"*") -> 0.06756225668 | AF41: 0.0387726682 | AG41: 0.1063349249 | AI41: Italien | AJ41: =IFERROR(AJ86/$E129*$H$117,"*") -> 0.06675554317 | AK41: 0.02036951619 | AM41: 0.08712505936
D42: Cypern | E42: =IFERROR(E87/$E130*$H$117,"*") -> 0.1709933063 | F42: 0.008433762727 | I42: Cypern | J42: =IFERROR(J87/$E130*$H$117,"*") -> 0.1532380163 | K42: 0.008433762727 | L42: 0.1616717791 | N42: Cypern | O42: =IFERROR(O87/$E130*$H$117,"*") -> 0.1299588584 | P42: 0.008384442477 | Q42: 0.1383433009 | S42: Cypern | T42: =IFERROR(T87/$E130*$H$117,"*") -> 0.1148668619 | U42: 0.008433762727 | V42: 0.1233006247 | X42: Cypern | Y42: =IFERROR(Y87/$E130*$H$117,"*") -> 0.1101814382 | Z42: 0.008384442477 | AB42: 0.1185658807 | AD42: Cypern | AE42: =IFERROR(AE87/$E130*$H$117,"*") -> 0.09992282623 | AF42: 0.008433762727 | AG42: 0.108356589 | AI42: Cypern | AJ42: =IFERROR(AJ87/$E130*$H$117,"*") -> * | AK42: * | AM42: 0
D43: Letland | E43: =IFERROR(E88/$E131*$H$117,"*") -> 0.1360464254 | F43: 0.02692742788 | I43: Letland | J43: =IFERROR(J88/$E131*$H$117,"*") -> 0.1052434611 | K43: =IFERROR(K88/$E131*$H$117,"*") -> 0.02697775952 | L43: 0.1322212206 | N43: Letland | O43: =IFERROR(O88/$E131*$H$117,"*") -> 0.09185524465 | P43: 0.02697775952 | Q43: 0.1188330042 | S43: Letland | T43: =IFERROR(T88/$E131*$H$117,"*") -> 0.08138626334 | U43: 0.02697775952 | V43: 0.1083640229 | X43: Letland | Y43: =IFERROR(Y88/$E131*$H$117,"*") -> 0.07237689962 | Z43: 0.02697775952 | AB43: 0.09935465914 | AD43: Letland | AE43: =IFERROR(AE88/$E131*$H$117,"*") -> 0.05747873391 | AF43: 0.02697775952 | AG43: 0.08445649343 | AI43: Letland | AJ43: =IFERROR(AJ88/$E131*$H$117,"*") -> * | AK43: * | AM43: 0
D44: Litaun | E44: =IFERROR(E89/$E132*$H$117,"*") -> 0.1145458829 | F44: 0.01681270145 | I44: Litaun | J44: =IFERROR(J89/$E132*$H$117,"*") -> 0.09229524534 | K44: 0.01701225874 | L44: 0.1093075041 | N44: Litaun | O44: =IFERROR(O89/$E132*$H$117,"*") -> 0.08211782369 | P44: 0.01696236941 | Q44: 0.0990801931 | S44: Litaun | T44: =IFERROR(T89/$E132*$H$117,"*") -> 0.07348697102 | U44: 0.01676281213 | V44: 0.09024978314 | X44: Litaun | Y44: =IFERROR(Y89/$E132*$H$117,"*") -> 0.06700135918 | Z44: 0.01676281213 | AB44: 0.08376417131 | AD44: Litaun | AE44: =IFERROR(AE89/$E132*$H$117,"*") -> 0.06325966005 | AF44: 0.01661314416 | AG44: 0.07987280421 | AI44: Litaun | AJ44: =IFERROR(AJ89/$E132*$H$117,"*") -> * | AK44: * | AM44: 0
D45: luxembourg | E45: =IFERROR(E90/$E133*$H$117,"*") -> 0.1392044388 | F45: 0.03140336822 | I45: luxembourg | J45: =IFERROR(J90/$E133*$H$117,"*") -> 0.09714451775 | K45: 0.008854720219 | L45: 0.105999238 | N45: luxembourg | O45: =IFERROR(O90/$E133*$H$117,"*") -> 0.08473761326 | P45: 0.009009163014 | Q45: 0.09374677627 | S45: luxembourg | T45: =IFERROR(T90/$E133*$H$117,"*") -> 0.0573497577 | U45: 0.005611421534 | V45: 0.06296117923 | X45: luxembourg | Y45: =IFERROR(Y90/$E133*$H$117,"*") -> 0.05158389337 | Z45: 0.004684764767 | AB45: 0.05626865814 | AD45: luxembourg | AE45: =IFERROR(AE90/$E133*$H$117,"*") -> * | AF45: * | AG45: 0 | AI45: luxembourg | AJ45: =IFERROR(AJ90/$E133*$H$117,"*") -> * | AK45: * | AM45: 0
D46: Ungarn | E46: =IFERROR(E91/$E134*$H$117,"*") -> 0.09893006818 | F46: 0.008869939888 | I46: Ungarn | J46: =IFERROR(J91/$E134*$H$117,"*") -> 0.08874979626 | K46: 0.008869939888 | L46: 0.09761973615 | N46: Ungarn | O46: =IFERROR(O91/$E134*$H$117,"*") -> 0.07867031912 | P46: 0.008869939888 | Q46: 0.08754025901 | S46: Ungarn | T46: =IFERROR(T91/$E134*$H$117,"*") -> 0.07710800016 | U46: 0.008869939888 | V46: 0.08597794005 | X46: Ungarn | Y46: =IFERROR(Y91/$E134*$H$117,"*") -> 0.07620084722 | Z46: 0.008819542502 | AB46: 0.08502038972 | AD46: Ungarn | AE46: =IFERROR(AE91/$E134*$H$117,"*") -> 0.07690641062 | AF46: 0.008920337274 | AG46: 0.08582674789 | AI46: Ungarn | AJ46: =IFERROR(AJ91/$E134*$H$117,"*") -> 0.07403375963 | AK46: 0.008869939888 | AM46: 0.08290369952
D47: Malta | E47: =IFERROR(E92/$E135*$H$117,"*") -> * | F47: * | I47: Malta | J47: =IFERROR(J92/$E135*$H$117,"*") -> * | K47: * | L47: 0 | N47: Malta | O47: =IFERROR(O92/$E135*$H$117,"*") -> * | P47: * | Q47: 0 | S47: Malta | T47: =IFERROR(T92/$E135*$H$117,"*") -> * | U47: * | V47: 0 | X47: Malta | Y47: =IFERROR(Y92/$E135*$H$117,"*") -> * | Z47: * | AB47: 0 | AD47: Malta | AE47: =IFERROR(AE92/$E135*$H$117,"*") -> * | AF47: * | AG47: 0 | AI47: Malta | AJ47: =IFERROR(AJ92/$E135*$H$117,"*") -> * | AK47: * | AM47: 0
D48: Holland | E48: =IFERROR(E93/$E136*$H$117,"*") -> 0.1307102356 | F48: 0.04965079307 | I48: Holland | J48: =IFERROR(J93/$E136*$H$117,"*") -> 0.08889904143 | K48: 0.03598174882 | L48: 0.1248807903 | N48: Holland | O48: =IFERROR(O93/$E136*$H$117,"*") -> 0.07206400532 | P48: 0.01577970549 | Q48: 0.08784371081 | S48: Holland | T48: =IFERROR(T93/$E136*$H$117,"*") -> 0.06693811373 | U48: 0.01417158264 | V48: 0.08110969636 | X48: Holland | Y48: =IFERROR(Y93/$E136*$H$117,"*") -> 0.06352085267 | Z48: 0.003869545613 | AB48: 0.06739039828 | AD48: Holland | AE48: =IFERROR(AE93/$E136*$H$117,"*") -> 0.06723963676 | AF48: 0.002110661244 | AG48: 0.06935029801 | AI48: Holland | AJ48: =IFERROR(AJ93/$E136*$H$117,"*") -> 0.06487770632 | AK48: 0.0009548229436 | AM48: 0.06583252927
D49: Østrig | E49: =IFERROR(E94/$E137*$H$117,"*") -> 0.1195621147 | F49: 0.04376328784 | I49: Østrig | J49: =IFERROR(J94/$E137*$H$117,"*") -> 0.09300967902 | K49: 0.0339140096 | L49: 0.1269236886 | N49: Østrig | O49: =IFERROR(O94/$E137*$H$117,"*") -> 0.07412343415 | P49: 0.03178169163 | Q49: 0.1059051258 | S49: Østrig | T49: =IFERROR(T94/$E137*$H$117,"*") -> 0.06589877913 | U49: 0.02579089353 | V49: 0.09168967266 | X49: Østrig | Y49: =IFERROR(Y94/$E137*$H$117,"*") -> 0.0568618125 | Z49: 0.02178010497 | AB49: 0.07864191747 | AD49: Østrig | AE49: =IFERROR(AE94/$E137*$H$117,"*") -> 0.05122640073 | AF49: 0.02015548175 | AG49: 0.07138188248 | AI49: Østrig | AJ49: =IFERROR(AJ94/$E137*$H$117,"*") -> 0.04559098895 | AK49: 0.01949547857 | AM49: 0.06508646752
D50: Polen | E50: =IFERROR(E95/$E138*$H$117,"*") -> 0.1484163139 | F50: 0.004781129136 | I50: Polen | J50: =IFERROR(J95/$E138*$H$117,"*") -> 0.1106202299 | K50: 0.004781129136 | L50: 0.115401359 | N50: Polen | O50: =IFERROR(O95/$E138*$H$117,"*") -> 0.08283935324 | P50: 0.004881784486 | Q50: 0.08772113773 | S50: Polen | T50: =IFERROR(T95/$E138*$H$117,"*") -> 0.07166660937 | U50: 0.004831456811 | V50: 0.07649806618 | X50: Polen | Y50: =IFERROR(Y95/$E138*$H$117,"*") -> 0.06502335625 | Z50: 0.004881784486 | AB50: 0.06990514074 | AD50: Polen | AE50: =IFERROR(AE95/$E138*$H$117,"*") -> 0.06014157177 | AF50: 0.004831456811 | AG50: 0.06497302858 | AI50: Polen | AJ50: =IFERROR(AJ95/$E138*$H$117,"*") -> 0.05490749355 | AK50: 0.004831456811 | AM50: 0.05973895037
D51: Portugal | E51: =IFERROR(E96/$E139*$H$117,"*") -> 0.1719805775 | F51: 0.02645072472 | I51: Portugal | J51: =IFERROR(J96/$E139*$H$117,"*") -> 0.1258952763 | K51: 0.02202531501 | L51: 0.1479205913 | N51: Portugal | O51: =IFERROR(O96/$E139*$H$117,"*") -> 0.1012248888 | P51: 0.01546350061 | Q51: 0.1166883895 | S51: Portugal | T51: =IFERROR(T96/$E139*$H$117,"*") -> 0.09206886875 | U51: 0.01327622914 | V51: 0.1053450979 | X51: Portugal | Y51: =IFERROR(Y96/$E139*$H$117,"*") -> 0.07563889936 | Z51: 0.01393749726 | AB51: 0.08957639661 | AD51: Portugal | AE51: =IFERROR(AE96/$E139*$H$117,"*") -> 0.06922968529 | AF51: 0.0138357637 | AG51: 0.08306544899 | AI51: Portugal | AJ51: =IFERROR(AJ96/$E139*$H$117,"*") -> * | AK51: * | AM51: 0
D52: Rumænien | E52: =IFERROR(E97/$E140*$H$117,"*") -> 0.100574037 | F52: 0.01188648833 | I52: Rumænien | J52: =IFERROR(J97/$E140*$H$117,"*") -> 0.08750914683 | K52: 0.0123476021 | L52: 0.09985674893 | N52: Rumænien | O52: =IFERROR(O97/$E140*$H$117,"*") -> 0.07111399052 | P52: 0.01250130669 | Q52: 0.08361529721 | S52: Rumænien | T52: =IFERROR(T97/$E140*$H$117,"*") -> 0.06266023804 | U52: 0.01245007183 | V52: 0.07511030987 | X52: Rumænien | Y52: =IFERROR(Y97/$E140*$H$117,"*") -> 0.05425772043 | Z52: 0.01209142778 | AB52: 0.06634914821 | AD52: Rumænien | AE52: =IFERROR(AE97/$E140*$H$117,"*") -> 0.05200338644 | AF52: 0.01101549565 | AG52: 0.06301888208 | AI52: Rumænien | AJ52: =IFERROR(AJ97/$E140*$H$117,"*") -> * | AK52: * | AM52: 0
D53: Slovenien | E53: =IFERROR(E98/$E141*$H$117,"*") -> 0.1143305125 | F53: 0.03013985391 | I53: Slovenien | J53: =IFERROR(J98/$E141*$H$117,"*") -> 0.09052002791 | K53: 0.01496946078 | L53: 0.1054894887 | N53: Slovenien | O53: =IFERROR(O98/$E141*$H$117,"*") -> 0.07158215304 | P53: 0.01366340044 | Q53: 0.08524555348 | S53: Slovenien | T53: =IFERROR(T98/$E141*$H$117,"*") -> 0.0633439263 | U53: 0.01080011432 | V53: 0.07414404062 | X53: Slovenien | Y53: =IFERROR(Y98/$E141*$H$117,"*") -> 0.05681362462 | Z53: 0.008589858365 | AB53: 0.06540348299 | AD53: Slovenien | AE53: =IFERROR(AE98/$E141*$H$117,"*") -> 0.05621082754 | AF53: 0.007032632579 | AG53: 0.06324346012 | AI53: Slovenien | AJ53: =IFERROR(AJ98/$E141*$H$117,"*") -> * | AK53: * | AM53: 0
D54: Slovakiet | E54: =IFERROR(E99/$E142*$H$117,"*") -> 0.2028642911 | F54: 0.004488148033 | I54: Slovakiet | J54: =IFERROR(J99/$E142*$H$117,"*") -> 0.1331483917 | K54: 0.004488148033 | L54: 0.1376365397 | N54: Slovakiet | O54: =IFERROR(O99/$E142*$H$117,"*") -> 0.1076158162 | P54: 0.004488148033 | Q54: 0.1121039642 | S54: Slovakiet | T54: =IFERROR(T99/$E142*$H$117,"*") -> 0.09504900168 | U54: 0.004488148033 | V54: 0.09953714972 | X54: Slovakiet | Y54: =IFERROR(Y99/$E142*$H$117,"*") -> 0.09285479598 | Z54: 0.004488148033 | AB54: 0.09734294401 | AD54: Slovakiet | AE54: =IFERROR(AE99/$E142*$H$117,"*") -> 0.09031151209 | AF54: 0.004488148033 | AG54: 0.09479966013 | AI54: Slovakiet | AJ54: =IFERROR(AJ99/$E142*$H$117,"*") -> 0.06452959506 | AK54: 0.004488148033 | AM54: 0.06901774309
D55: Finland | E55: =IFERROR(E100/$E143*$H$117,"*") -> 0.08348704803 | F55: 0.007024150675 | I55: Finland | J55: =IFERROR(J100/$E143*$H$117,"*") -> 0.07706496741 | K55: 0.00707432318 | L55: 0.08413929059 | N55: Finland | O55: =IFERROR(O100/$E143*$H$117,"*") -> 0.06381942614 | P55: 0.00707432318 | Q55: 0.07089374932 | S55: Finland | T55: =IFERROR(T100/$E143*$H$117,"*") -> 0.0603575233 | U55: 0.00707432318 | V55: 0.06743184648 | X55: Finland | Y55: =IFERROR(Y100/$E143*$H$117,"*") -> 0.04620887694 | Z55: 0.00707432318 | AB55: 0.05328320012 | AD55: Finland | AE55: =IFERROR(AE100/$E143*$H$117,"*") -> 0.04375042421 | AF55: 0.00707432318 | AG55: 0.05082474739 | AI55: Finland | AJ55: =IFERROR(AJ100/$E143*$H$117,"*") -> * | AK55: * | AM55: 0
D56: Sverige | E56: =IFERROR(E101/$E144*$H$117,"*") -> 0.1344121088 | F56: 0.0004963519527 | I56: Sverige | J56: =IFERROR(J101/$E144*$H$117,"*") -> 0.07013453092 | K56: 0.0004963519527 | L56: 0.07063088287 | N56: Sverige | O56: =IFERROR(O101/$E144*$H$117,"*") -> 0.05966150472 | P56: 0.0004963519527 | Q56: 0.06015785667 | S56: Sverige | T56: =IFERROR(T101/$E144*$H$117,"*") -> 0.05206731984 | U56: 0.000545987148 | V56: 0.05261330699 | X56: Sverige | Y56: =IFERROR(Y101/$E144*$H$117,"*") -> 0.04546583887 | Z56: 0.0004963519527 | AB56: 0.04596219082 | AD56: Sverige | AE56: =IFERROR(AE101/$E144*$H$117,"*") -> 0.03722639645 | AF56: 0.0005956223433 | AG56: 0.0378220188 | AI56: Sverige | AJ56: =IFERROR(AJ101/$E144*$H$117,"*") -> * | AK56: * | AM56: 0
D57: UK | E57: =IFERROR(E102/$E145*$H$117,"*") -> 0.1996863533 | F57: 0.005458650662 | I57: UK | J57: =IFERROR(J102/$E145*$H$117,"*") -> 0.1809152791 | K57: 0.006739762551 | L57: 0.1876550416 | N57: UK | O57: =IFERROR(O102/$E145*$H$117,"*") -> 0.1613643976 | P57: 0.006238457899 | Q57: 0.1676028555 | S57: UK | T57: =IFERROR(T102/$E145*$H$117,"*") -> 0.149555888 | U57: 0.004511741873 | V57: 0.1540676299 | X57: UK | Y57: =IFERROR(Y102/$E145*$H$117,"*") -> 0.1468822632 | Z57: 0.003230629983 | AB57: 0.1501128932 | AD57: UK | AE57: =IFERROR(AE102/$E145*$H$117,"*") -> 0.1430946281 | AF57: 0.0032863305 | AG57: 0.1463809586 | AI57: UK | AJ57: =IFERROR(AJ102/$E145*$H$117,"*") -> 0.1390841908 | AK57: 0.002840726365 | AM57: 0.1419249172
D58: Level 1 | I58: Level 1 | N58: Level 1 | S58: Level 1 | X58: Level 1 | AD58: Level 1 | AI58: Level 1
D59: Level 2 | I59: Level 2 | N59: Level 2 | S59: Level 2 | X59: Level 2 | AD59: Level 2 | AI59: Level 2
D64: Baggrundstabeller
D66: Tabel A
D67: Nedenstående tabeller (de orange) henter data fra 'Level 1' og 'Afgifter og moms', der hentes data fra det år der er valgt i valgmenuen øverst. Priserne vises i original enheden i Eurostat EURO / GJ.
D68: 'Gaspris inkl. PSO, eksl. afgifter' udgør level 1 prisen. 'Ikke refundrebare afgifter' svarer til level 2 prisen fratrukket level 1 prisen. 'Ikke refunderbare afgifter' er level 3 prisen fratrukket level 2 prisen. Beregningen er foretaget i arket "Afgifter og moms".
D70: Data er hentet for år 2014
D71: IA: <0,02 GWh | I71: IB: 0,02 < 0,5 GWh | N71: IC: 0,5 < 2 GWh | S71: ID: 2 < 20 GWh | X71: IE:20 < 70 GWh | AD71: IF: 70 < 150 GWh | AI71: IG: > 150 GWh
D73: ="Euro/kWH år "&$E$12 -> Euro/kWH år 2015 | E73: Elpris ekskl. PSO og afgifter | F73: PSO og Ikke-refunderbare afgifter | I73: ="Euro/kWH år "&$E$12 -> Euro/kWH år 2015 | J73: Elpris ekskl. PSO og afgifter | K73: PSO og Ikke-refunderbare afgifter | N73: ="Euro/kWH år "&$E$12 -> Euro/kWH år 2015 | O73: Elpris ekskl. PSO og afgifter | P73: PSO og Ikke-refunderbare afgifter | S73: ="Euro/kWH år "&$E$12 -> Euro/kWH år 2015 | T73: Elpris ekskl. PSO og afgifter | U73: PSO og Ikke-refunderbare afgifter | X73: ="Euro/kWH år "&$E$12 -> Euro/kWH år 2015 | Y73: Elpris ekskl. PSO og afgifter | Z73: PSO og Ikke-refunderbare afgifter | AD73: ="Euro/kWH år "&$E$12 -> Euro/kWH år 2015 | AE73: Elpris ekskl. PSO og afgifter | AF73: PSO og Ikke-refunderbare afgifter | AI73: ="Euro/kWH år "&$E$12 -> Euro/kWH år 2015 | AJ73: Elpris ekskl. PSO og afgifter | AK73: PSO og Ikke-refunderbare afgifter
D74: ='Oversættelse af landenavne'!$B6 -> EU-28 | E74: =HLOOKUP($E$12,'Level 1'!$B$5:$L$34,'Oversættelse af landenavne'!$E6,FALSE) -> 0.148 | F74: =HLOOKUP($E$12,'Afgifter og Moms'!$B$5:$L$34,'Oversættelse af landenavne'!$E6,FALSE) -> 0.04335 | I74: ='Oversættelse af landenavne'!$B6 -> EU-28 | J74: =HLOOKUP($E$12,'Level 1'!$O$5:$Y$34,'Oversættelse af landenavne'!$E6,FALSE) -> 0.10965 | K74: =HLOOKUP($E$12,'Afgifter og Moms'!$O$5:$Y$34,'Oversættelse af landenavne'!E6,FALSE) -> 0.03505 | N74: ='Oversættelse af landenavne'!$B6 -> EU-28 | O74: =HLOOKUP($E$12,'Level 1'!$AB$5:$AL$34,'Oversættelse af landenavne'!E6,FALSE) -> 0.08845 | P74: =HLOOKUP($E$12,'Afgifter og Moms'!$AB$5:$AL$34,'Oversættelse af landenavne'!E6,FALSE) -> 0.0313 | S74: ='Oversættelse af landenavne'!$B6 -> EU-28 | T74: =HLOOKUP($E$12,'Level 1'!$AO$5:$AY$34,'Oversættelse af landenavne'!E6,FALSE) -> 0.0789 | U74: =HLOOKUP($E$12,'Afgifter og Moms'!$AO$5:$AY$34,'Oversættelse af landenavne'!E6,FALSE) -> 0.02785 | X74: ='Oversættelse af landenavne'!$B6 -> EU-28 | Y74: =HLOOKUP($E$12,'Level 1'!$BB$5:$BL$34,'Oversættelse af landenavne'!$E6,FALSE) -> 0.0708 | Z74: =HLOOKUP($E$12,'Afgifter og Moms'!$BB$5:$BL$34,'Oversættelse af landenavne'!$E6,FALSE) -> 0.02235 | AD74: ='Oversættelse af landenavne'!$B6 -> EU-28 | AE74: =HLOOKUP($E$12,'Level 1'!$BO$5:$BY$34,'Oversættelse af landenavne'!$E6,FALSE) -> 0.0655 | AF74: =HLOOKUP($E$12,'Afgifter og Moms'!$BO$5:$BY$34,'Oversættelse af landenavne'!$E6,FALSE) -> 0.0179 | AI74: ='Oversættelse af landenavne'!$B6 -> EU-28 | AJ74: =HLOOKUP($E$12,'Level 1'!$CB$5:$CL$34,'Oversættelse af landenavne'!$E6,FALSE) -> * | AK74: =HLOOKUP($E$12,'Afgifter og Moms'!$CB$5:$CL$34,'Oversættelse af landenavne'!$E6,FALSE) -> *
D75: ='Oversættelse af landenavne'!$B7 -> Belgien | E75: =HLOOKUP($E$12,'Level 1'!$B$5:$L$34,'Oversættelse af landenavne'!$E7,FALSE) -> 0.1526 | F75: =HLOOKUP($E$12,'Afgifter og Moms'!$B$5:$L$34,'Oversættelse af landenavne'!$E7,FALSE) -> 0.02575 | I75: ='Oversættelse af landenavne'!$B7 -> Belgien | J75: =HLOOKUP($E$12,'Level 1'!$O$5:$Y$34,'Oversættelse af landenavne'!$E7,FALSE) -> 0.1224 | K75: =HLOOKUP($E$12,'Afgifter og Moms'!$O$5:$Y$34,'Oversættelse af landenavne'!E7,FALSE) -> 0.02285 | N75: ='Oversættelse af landenavne'!$B7 -> Belgien | O75: =HLOOKUP($E$12,'Level 1'!$AB$5:$AL$34,'Oversættelse af landenavne'!E7,FALSE) -> 0.0909 | P75: =HLOOKUP($E$12,'Afgifter og Moms'!$AB$5:$AL$34,'Oversættelse af landenavne'!E7,FALSE) -> 0.01815 | S75: ='Oversættelse af landenavne'!$B7 -> Belgien | T75: =HLOOKUP($E$12,'Level 1'!$AO$5:$AY$34,'Oversættelse af landenavne'!E7,FALSE) -> 0.07895 | U75: =HLOOKUP($E$12,'Afgifter og Moms'!$AO$5:$AY$34,'Oversættelse af landenavne'!E7,FALSE) -> 0.01745 | X75: ='Oversættelse af landenavne'!$B7 -> Belgien | Y75: =HLOOKUP($E$12,'Level 1'!$BB$5:$BL$34,'Oversættelse af landenavne'!$E7,FALSE) -> 0.06525 | Z75: =HLOOKUP($E$12,'Afgifter og Moms'!$BB$5:$BL$34,'Oversættelse af landenavne'!$E7,FALSE) -> 0.0119 | AD75: ='Oversættelse af landenavne'!$B7 -> Belgien | AE75: =HLOOKUP($E$12,'Level 1'!$BO$5:$BY$34,'Oversættelse af landenavne'!$E7,FALSE) -> 0.05905 | AF75: =HLOOKUP($E$12,'Afgifter og Moms'!$BO$5:$BY$34,'Oversættelse af landenavne'!$E7,FALSE) -> 0.00625 | AI75: ='Oversættelse af landenavne'!$B7 -> Belgien | AJ75: =HLOOKUP($E$12,'Level 1'!$CB$5:$CL$34,'Oversættelse af landenavne'!$E7,FALSE) -> * | AK75: =HLOOKUP($E$12,'Afgifter og Moms'!$CB$5:$CL$34,'Oversættelse af landenavne'!$E7,FALSE) -> *
D76: ='Oversættelse af landenavne'!$B8 -> Bulgarien | E76: =HLOOKUP($E$12,'Level 1'!$B$5:$L$34,'Oversættelse af landenavne'!$E8,FALSE) -> 0.1073 | F76: =HLOOKUP($E$12,'Afgifter og Moms'!$B$5:$L$34,'Oversættelse af landenavne'!$E8,FALSE) -> 0.001 | I76: ='Oversættelse af landenavne'!$B8 -> Bulgarien | J76: =HLOOKUP($E$12,'Level 1'!$O$5:$Y$34,'Oversættelse af landenavne'!$E8,FALSE) -> 0.09545 | K76: =HLOOKUP($E$12,'Afgifter og Moms'!$O$5:$Y$34,'Oversættelse af landenavne'!E8,FALSE) -> 0.001 | N76: ='Oversættelse af landenavne'!$B8 -> Bulgarien | O76: =HLOOKUP($E$12,'Level 1'!$AB$5:$AL$34,'Oversættelse af landenavne'!E8,FALSE) -> 0.0727 | P76: =HLOOKUP($E$12,'Afgifter og Moms'!$AB$5:$AL$34,'Oversættelse af landenavne'!E8,FALSE) -> 0.001 | S76: ='Oversættelse af landenavne'!$B8 -> Bulgarien | T76: =HLOOKUP($E$12,'Level 1'!$AO$5:$AY$34,'Oversættelse af landenavne'!E8,FALSE) -> 0.06495 | U76: =HLOOKUP($E$12,'Afgifter og Moms'!$AO$5:$AY$34,'Oversættelse af landenavne'!E8,FALSE) -> 0.00105 | X76: ='Oversættelse af landenavne'!$B8 -> Bulgarien | Y76: =HLOOKUP($E$12,'Level 1'!$BB$5:$BL$34,'Oversættelse af landenavne'!$E8,FALSE) -> 0.05875 | Z76: =HLOOKUP($E$12,'Afgifter og Moms'!$BB$5:$BL$34,'Oversættelse af landenavne'!$E8,FALSE) -> 0.001 | AD76: ='Oversættelse af landenavne'!$B8 -> Bulgarien | AE76: =HLOOKUP($E$12,'Level 1'!$BO$5:$BY$34,'Oversættelse af landenavne'!$E8,FALSE) -> 0.0555 | AF76: =HLOOKUP($E$12,'Afgifter og Moms'!$BO$5:$BY$34,'Oversættelse af landenavne'!$E8,FALSE) -> 0.00105 | AI76: ='Oversættelse af landenavne'!$B8 -> Bulgarien | AJ76: =HLOOKUP($E$12,'Level 1'!$CB$5:$CL$34,'Oversættelse af landenavne'!$E8,FALSE) -> 0.0529 | AK76: =HLOOKUP($E$12,'Afgifter og Moms'!$CB$5:$CL$34,'Oversættelse af landenavne'!$E8,FALSE) -> 0.00105
D77: ='Oversættelse af landenavne'!$B9 -> Tjekkiet | E77: =HLOOKUP($E$12,'Level 1'!$B$5:$L$34,'Oversættelse af landenavne'!$E9,FALSE) -> 0.1555 | F77: =HLOOKUP($E$12,'Afgifter og Moms'!$B$5:$L$34,'Oversættelse af landenavne'!$E9,FALSE) -> 0.00105 | I77: ='Oversættelse af landenavne'!$B9 -> Tjekkiet | J77: =HLOOKUP($E$12,'Level 1'!$O$5:$Y$34,'Oversættelse af landenavne'!$E9,FALSE) -> 0.1205 | K77: =HLOOKUP($E$12,'Afgifter og Moms'!$O$5:$Y$34,'Oversættelse af landenavne'!E9,FALSE) -> 0.001 | N77: ='Oversættelse af landenavne'!$B9 -> Tjekkiet | O77: =HLOOKUP($E$12,'Level 1'!$AB$5:$AL$34,'Oversættelse af landenavne'!E9,FALSE) -> 0.0767 | P77: =HLOOKUP($E$12,'Afgifter og Moms'!$AB$5:$AL$34,'Oversættelse af landenavne'!E9,FALSE) -> 0.00105 | S77: ='Oversættelse af landenavne'!$B9 -> Tjekkiet | T77: =HLOOKUP($E$12,'Level 1'!$AO$5:$AY$34,'Oversættelse af landenavne'!E9,FALSE) -> 0.0708 | U77: =HLOOKUP($E$12,'Afgifter og Moms'!$AO$5:$AY$34,'Oversættelse af landenavne'!E9,FALSE) -> 0.0011 | X77: ='Oversættelse af landenavne'!$B9 -> Tjekkiet | Y77: =HLOOKUP($E$12,'Level 1'!$BB$5:$BL$34,'Oversættelse af landenavne'!$E9,FALSE) -> 0.0733 | Z77: =HLOOKUP($E$12,'Afgifter og Moms'!$BB$5:$BL$34,'Oversættelse af landenavne'!$E9,FALSE) -> 0.00105 | AD77: ='Oversættelse af landenavne'!$B9 -> Tjekkiet | AE77: =HLOOKUP($E$12,'Level 1'!$BO$5:$BY$34,'Oversættelse af landenavne'!$E9,FALSE) -> 0.0751 | AF77: =HLOOKUP($E$12,'Afgifter og Moms'!$BO$5:$BY$34,'Oversættelse af landenavne'!$E9,FALSE) -> 0.001 | AI77: ='Oversættelse af landenavne'!$B9 -> Tjekkiet | AJ77: =HLOOKUP($E$12,'Level 1'!$CB$5:$CL$34,'Oversættelse af landenavne'!$E9,FALSE) -> * | AK77: =HLOOKUP($E$12,'Afgifter og Moms'!$CB$5:$CL$34,'Oversættelse af landenavne'!$E9,FALSE) -> *
D78: ='Oversættelse af landenavne'!$B10 -> Danmark | E78: =HLOOKUP($E$12,'Level 1'!$B$5:$L$34,'Oversættelse af landenavne'!$E10,FALSE) -> 0.0803 | F78: =HLOOKUP($E$12,'Afgifter og Moms'!$B$5:$L$34,'Oversættelse af landenavne'!$E10,FALSE) -> 0.0987 | I78: ='Oversættelse af landenavne'!$B10 -> Danmark | J78: =HLOOKUP($E$12,'Level 1'!$O$5:$Y$34,'Oversættelse af landenavne'!$E10,FALSE) -> 0.06595 | K78: =HLOOKUP($E$12,'Afgifter og Moms'!$O$5:$Y$34,'Oversættelse af landenavne'!E10,FALSE) -> 0.03065 | N78: ='Oversættelse af landenavne'!$B10 -> Danmark | O78: =HLOOKUP($E$12,'Level 1'!$AB$5:$AL$34,'Oversættelse af landenavne'!E10,FALSE) -> 0.0597 | P78: =HLOOKUP($E$12,'Afgifter og Moms'!$AB$5:$AL$34,'Oversættelse af landenavne'!E10,FALSE) -> 0.03055 | S78: ='Oversættelse af landenavne'!$B10 -> Danmark | T78: =HLOOKUP($E$12,'Level 1'!$AO$5:$AY$34,'Oversættelse af landenavne'!E10,FALSE) -> 0.06005 | U78: =HLOOKUP($E$12,'Afgifter og Moms'!$AO$5:$AY$34,'Oversættelse af landenavne'!E10,FALSE) -> 0.0301 | X78: ='Oversættelse af landenavne'!$B10 -> Danmark | Y78: =HLOOKUP($E$12,'Level 1'!$BB$5:$BL$34,'Oversættelse af landenavne'!$E10,FALSE) -> 0.0476 | Z78: =HLOOKUP($E$12,'Afgifter og Moms'!$BB$5:$BL$34,'Oversættelse af landenavne'!$E10,FALSE) -> 0.0295 | AD78: ='Oversættelse af landenavne'!$B10 -> Danmark | AE78: =HLOOKUP($E$12,'Level 1'!$BO$5:$BY$34,'Oversættelse af landenavne'!$E10,FALSE) -> 0.04645 | AF78: =HLOOKUP($E$12,'Afgifter og Moms'!$BO$5:$BY$34,'Oversættelse af landenavne'!$E10,FALSE) -> 0.02935 | AI78: ='Oversættelse af landenavne'!$B10 -> Danmark | AJ78: =HLOOKUP($E$12,'Level 1'!$CB$5:$CL$34,'Oversættelse af landenavne'!$E10,FALSE) -> * | AK78: =HLOOKUP($E$12,'Afgifter og Moms'!$CB$5:$CL$34,'Oversættelse af landenavne'!$E10,FALSE) -> *
D79: ='Oversættelse af landenavne'!$B11 -> Tyskland | E79: =HLOOKUP($E$12,'Level 1'!$B$5:$L$34,'Oversættelse af landenavne'!$E11,FALSE) -> 0.13415 | F79: =HLOOKUP($E$12,'Afgifter og Moms'!$B$5:$L$34,'Oversættelse af landenavne'!$E11,FALSE) -> 0.08485 | I79: ='Oversættelse af landenavne'!$B11 -> Tyskland | J79: =HLOOKUP($E$12,'Level 1'!$O$5:$Y$34,'Oversættelse af landenavne'!$E11,FALSE) -> 0.10195 | K79: =HLOOKUP($E$12,'Afgifter og Moms'!$O$5:$Y$34,'Oversættelse af landenavne'!E11,FALSE) -> 0.07185 | N79: ='Oversættelse af landenavne'!$B11 -> Tyskland | O79: =HLOOKUP($E$12,'Level 1'!$AB$5:$AL$34,'Oversættelse af landenavne'!E11,FALSE) -> 0.0811 | P79: =HLOOKUP($E$12,'Afgifter og Moms'!$AB$5:$AL$34,'Oversættelse af landenavne'!E11,FALSE) -> 0.069 | S79: ='Oversættelse af landenavne'!$B11 -> Tyskland | T79: =HLOOKUP($E$12,'Level 1'!$AO$5:$AY$34,'Oversættelse af landenavne'!E11,FALSE) -> 0.06955 | U79: =HLOOKUP($E$12,'Afgifter og Moms'!$AO$5:$AY$34,'Oversættelse af landenavne'!E11,FALSE) -> 0.06125 | X79: ='Oversættelse af landenavne'!$B11 -> Tyskland | Y79: =HLOOKUP($E$12,'Level 1'!$BB$5:$BL$34,'Oversættelse af landenavne'!$E11,FALSE) -> 0.0617 | Z79: =HLOOKUP($E$12,'Afgifter og Moms'!$BB$5:$BL$34,'Oversættelse af landenavne'!$E11,FALSE) -> 0.05005 | AD79: ='Oversættelse af landenavne'!$B11 -> Tyskland | AE79: =HLOOKUP($E$12,'Level 1'!$BO$5:$BY$34,'Oversættelse af landenavne'!$E11,FALSE) -> 0.05545 | AF79: =HLOOKUP($E$12,'Afgifter og Moms'!$BO$5:$BY$34,'Oversættelse af landenavne'!$E11,FALSE) -> 0.0421 | AI79: ='Oversættelse af landenavne'!$B11 -> Tyskland | AJ79: =HLOOKUP($E$12,'Level 1'!$CB$5:$CL$34,'Oversættelse af landenavne'!$E11,FALSE) -> * | AK79: =HLOOKUP($E$12,'Afgifter og Moms'!$CB$5:$CL$34,'Oversættelse af landenavne'!$E11,FALSE) -> *
D80: ='Oversættelse af landenavne'!$B12 -> Estland | E80: =HLOOKUP($E$12,'Level 1'!$B$5:$L$34,'Oversættelse af landenavne'!$E12,FALSE) -> 0.094 | F80: =HLOOKUP($E$12,'Afgifter og Moms'!$B$5:$L$34,'Oversættelse af landenavne'!$E12,FALSE) -> 0.01335 | I80: ='Oversættelse af landenavne'!$B12 -> Estland | J80: =HLOOKUP($E$12,'Level 1'!$O$5:$Y$34,'Oversættelse af landenavne'!$E12,FALSE) -> 0.08325 | K80: =HLOOKUP($E$12,'Afgifter og Moms'!$O$5:$Y$34,'Oversættelse af landenavne'!E12,FALSE) -> 0.0134 | N80: ='Oversættelse af landenavne'!$B12 -> Estland | O80: =HLOOKUP($E$12,'Level 1'!$AB$5:$AL$34,'Oversættelse af landenavne'!E12,FALSE) -> 0.07895 | P80: =HLOOKUP($E$12,'Afgifter og Moms'!$AB$5:$AL$34,'Oversættelse af landenavne'!E12,FALSE) -> 0.0134 | S80: ='Oversættelse af landenavne'!$B12 -> Estland | T80: =HLOOKUP($E$12,'Level 1'!$AO$5:$AY$34,'Oversættelse af landenavne'!E12,FALSE) -> 0.07195 | U80: =HLOOKUP($E$12,'Afgifter og Moms'!$AO$5:$AY$34,'Oversættelse af landenavne'!E12,FALSE) -> 0.0134 | X80: ='Oversættelse af landenavne'!$B12 -> Estland | Y80: =HLOOKUP($E$12,'Level 1'!$BB$5:$BL$34,'Oversættelse af landenavne'!$E12,FALSE) -> 0.0606 | Z80: =HLOOKUP($E$12,'Afgifter og Moms'!$BB$5:$BL$34,'Oversættelse af landenavne'!$E12,FALSE) -> 0.01295 | AD80: ='Oversættelse af landenavne'!$B12 -> Estland | AE80: =HLOOKUP($E$12,'Level 1'!$BO$5:$BY$34,'Oversættelse af landenavne'!$E12,FALSE) -> 0.0573 | AF80: =HLOOKUP($E$12,'Afgifter og Moms'!$BO$5:$BY$34,'Oversættelse af landenavne'!$E12,FALSE) -> 0.0131 | AI80: ='Oversættelse af landenavne'!$B12 -> Estland | AJ80: =HLOOKUP($E$12,'Level 1'!$CB$5:$CL$34,'Oversættelse af landenavne'!$E12,FALSE) -> * | AK80: =HLOOKUP($E$12,'Afgifter og Moms'!$CB$5:$CL$34,'Oversættelse af landenavne'!$E12,FALSE) -> *
D81: ='Oversættelse af landenavne'!$B13 -> Irland | E81: =HLOOKUP($E$12,'Level 1'!$B$5:$L$34,'Oversættelse af landenavne'!$E13,FALSE) -> 0.17045 | F81: =HLOOKUP($E$12,'Afgifter og Moms'!$B$5:$L$34,'Oversættelse af landenavne'!$E13,FALSE) -> 0.0367 | I81: ='Oversættelse af landenavne'!$B13 -> Irland | J81: =HLOOKUP($E$12,'Level 1'!$O$5:$Y$34,'Oversættelse af landenavne'!$E13,FALSE) -> 0.14835 | K81: =HLOOKUP($E$12,'Afgifter og Moms'!$O$5:$Y$34,'Oversættelse af landenavne'!E13,FALSE) -> 0.01575 | N81: ='Oversættelse af landenavne'!$B13 -> Irland | O81: =HLOOKUP($E$12,'Level 1'!$AB$5:$AL$34,'Oversættelse af landenavne'!E13,FALSE) -> 0.12625 | P81: =HLOOKUP($E$12,'Afgifter og Moms'!$AB$5:$AL$34,'Oversættelse af landenavne'!E13,FALSE) -> 0.01245 | S81: ='Oversættelse af landenavne'!$B13 -> Irland | T81: =HLOOKUP($E$12,'Level 1'!$AO$5:$AY$34,'Oversættelse af landenavne'!E13,FALSE) -> 0.1056 | U81: =HLOOKUP($E$12,'Afgifter og Moms'!$AO$5:$AY$34,'Oversættelse af landenavne'!E13,FALSE) -> 0.00835 | X81: ='Oversættelse af landenavne'!$B13 -> Irland | Y81: =HLOOKUP($E$12,'Level 1'!$BB$5:$BL$34,'Oversættelse af landenavne'!$E13,FALSE) -> 0.09285 | Z81: =HLOOKUP($E$12,'Afgifter og Moms'!$BB$5:$BL$34,'Oversættelse af landenavne'!$E13,FALSE) -> 0.0058 | AD81: ='Oversættelse af landenavne'!$B13 -> Irland | AE81: =HLOOKUP($E$12,'Level 1'!$BO$5:$BY$34,'Oversættelse af landenavne'!$E13,FALSE) -> 0.086 | AF81: =HLOOKUP($E$12,'Afgifter og Moms'!$BO$5:$BY$34,'Oversættelse af landenavne'!$E13,FALSE) -> 0.004 | AI81: ='Oversættelse af landenavne'!$B13 -> Irland | AJ81: =HLOOKUP($E$12,'Level 1'!$CB$5:$CL$34,'Oversættelse af landenavne'!$E13,FALSE) -> * | AK81: =HLOOKUP($E$12,'Afgifter og Moms'!$CB$5:$CL$34,'Oversættelse af landenavne'!$E13,FALSE) -> *
D82: ='Oversættelse af landenavne'!$B14 -> Grækenland | E82: =HLOOKUP($E$12,'Level 1'!$B$5:$L$34,'Oversættelse af landenavne'!$E14,FALSE) -> 0.1579 | F82: =HLOOKUP($E$12,'Afgifter og Moms'!$B$5:$L$34,'Oversættelse af landenavne'!$E14,FALSE) -> 0.06485 | I82: ='Oversættelse af landenavne'!$B14 -> Grækenland | J82: =HLOOKUP($E$12,'Level 1'!$O$5:$Y$34,'Oversættelse af landenavne'!$E14,FALSE) -> 0.12835 | K82: =HLOOKUP($E$12,'Afgifter og Moms'!$O$5:$Y$34,'Oversættelse af landenavne'!E14,FALSE) -> 0.0503 | N82: ='Oversættelse af landenavne'!$B14 -> Grækenland | O82: =HLOOKUP($E$12,'Level 1'!$AB$5:$AL$34,'Oversættelse af landenavne'!E14,FALSE) -> 0.10295 | P82: =HLOOKUP($E$12,'Afgifter og Moms'!$AB$5:$AL$34,'Oversættelse af landenavne'!E14,FALSE) -> 0.01915 | S82: ='Oversættelse af landenavne'!$B14 -> Grækenland | T82: =HLOOKUP($E$12,'Level 1'!$AO$5:$AY$34,'Oversættelse af landenavne'!E14,FALSE) -> 0.0827 | U82: =HLOOKUP($E$12,'Afgifter og Moms'!$AO$5:$AY$34,'Oversættelse af landenavne'!E14,FALSE) -> 0.01225 | X82: ='Oversættelse af landenavne'!$B14 -> Grækenland | Y82: =HLOOKUP($E$12,'Level 1'!$BB$5:$BL$34,'Oversættelse af landenavne'!$E14,FALSE) -> 0.0655 | Z82: =HLOOKUP($E$12,'Afgifter og Moms'!$BB$5:$BL$34,'Oversættelse af landenavne'!$E14,FALSE) -> 0.0078 | AD82: ='Oversættelse af landenavne'!$B14 -> Grækenland | AE82: =HLOOKUP($E$12,'Level 1'!$BO$5:$BY$34,'Oversættelse af landenavne'!$E14,FALSE) -> 0.04225 | AF82: =HLOOKUP($E$12,'Afgifter og Moms'!$BO$5:$BY$34,'Oversættelse af landenavne'!$E14,FALSE) -> 0.0075 | AI82: ='Oversættelse af landenavne'!$B14 -> Grækenland | AJ82: =HLOOKUP($E$12,'Level 1'!$CB$5:$CL$34,'Oversættelse af landenavne'!$E14,FALSE) -> * | AK82: =HLOOKUP($E$12,'Afgifter og Moms'!$CB$5:$CL$34,'Oversættelse af landenavne'!$E14,FALSE) -> *
D83: ='Oversættelse af landenavne'!$B15 -> Spanien | E83: =HLOOKUP($E$12,'Level 1'!$B$5:$L$34,'Oversættelse af landenavne'!$E15,FALSE) -> 0.2581 | F83: =HLOOKUP($E$12,'Afgifter og Moms'!$B$5:$L$34,'Oversættelse af landenavne'!$E15,FALSE) -> 0.0132 | I83: ='Oversættelse af landenavne'!$B15 -> Spanien | J83: =HLOOKUP($E$12,'Level 1'!$O$5:$Y$34,'Oversættelse af landenavne'!$E15,FALSE) -> 0.14705 | K83: =HLOOKUP($E$12,'Afgifter og Moms'!$O$5:$Y$34,'Oversættelse af landenavne'!E15,FALSE) -> 0.0075 | N83: ='Oversættelse af landenavne'!$B15 -> Spanien | O83: =HLOOKUP($E$12,'Level 1'!$AB$5:$AL$34,'Oversættelse af landenavne'!E15,FALSE) -> 0.1097 | P83: =HLOOKUP($E$12,'Afgifter og Moms'!$AB$5:$AL$34,'Oversættelse af landenavne'!E15,FALSE) -> 0.0056 | S83: ='Oversættelse af landenavne'!$B15 -> Spanien | T83: =HLOOKUP($E$12,'Level 1'!$AO$5:$AY$34,'Oversættelse af landenavne'!E15,FALSE) -> 0.0915 | U83: =HLOOKUP($E$12,'Afgifter og Moms'!$AO$5:$AY$34,'Oversættelse af landenavne'!E15,FALSE) -> 0.00465 | X83: ='Oversættelse af landenavne'!$B15 -> Spanien | Y83: =HLOOKUP($E$12,'Level 1'!$BB$5:$BL$34,'Oversættelse af landenavne'!$E15,FALSE) -> 0.0783 | Z83: =HLOOKUP($E$12,'Afgifter og Moms'!$BB$5:$BL$34,'Oversættelse af landenavne'!$E15,FALSE) -> 0.00405 | AD83: ='Oversættelse af landenavne'!$B15 -> Spanien | AE83: =HLOOKUP($E$12,'Level 1'!$BO$5:$BY$34,'Oversættelse af landenavne'!$E15,FALSE) -> 0.0739 | AF83: =HLOOKUP($E$12,'Afgifter og Moms'!$BO$5:$BY$34,'Oversættelse af landenavne'!$E15,FALSE) -> 0.00375 | AI83: ='Oversættelse af landenavne'!$B15 -> Spanien | AJ83: =HLOOKUP($E$12,'Level 1'!$CB$5:$CL$34,'Oversættelse af landenavne'!$E15,FALSE) -> 0.0675 | AK83: =HLOOKUP($E$12,'Afgifter og Moms'!$CB$5:$CL$34,'Oversættelse af landenavne'!$E15,FALSE) -> 0.00345
D84: ='Oversættelse af landenavne'!$B16 -> Frankrig | E84: =HLOOKUP($E$12,'Level 1'!$B$5:$L$34,'Oversættelse af landenavne'!$E16,FALSE) -> 0.1184 | F84: =HLOOKUP($E$12,'Afgifter og Moms'!$B$5:$L$34,'Oversættelse af landenavne'!$E16,FALSE) -> 0.03225 | I84: ='Oversættelse af landenavne'!$B16 -> Frankrig | J84: =HLOOKUP($E$12,'Level 1'!$O$5:$Y$34,'Oversættelse af landenavne'!$E16,FALSE) -> 0.0929 | K84: =HLOOKUP($E$12,'Afgifter og Moms'!$O$5:$Y$34,'Oversættelse af landenavne'!E16,FALSE) -> 0.0273 | N84: ='Oversættelse af landenavne'!$B16 -> Frankrig | O84: =HLOOKUP($E$12,'Level 1'!$AB$5:$AL$34,'Oversættelse af landenavne'!E16,FALSE) -> 0.0729 | P84: =HLOOKUP($E$12,'Afgifter og Moms'!$AB$5:$AL$34,'Oversættelse af landenavne'!E16,FALSE) -> 0.02495 | S84: ='Oversættelse af landenavne'!$B16 -> Frankrig | T84: =HLOOKUP($E$12,'Level 1'!$AO$5:$AY$34,'Oversættelse af landenavne'!E16,FALSE) -> 0.0658 | U84: =HLOOKUP($E$12,'Afgifter og Moms'!$AO$5:$AY$34,'Oversættelse af landenavne'!E16,FALSE) -> 0.02065 | X84: ='Oversættelse af landenavne'!$B16 -> Frankrig | Y84: =HLOOKUP($E$12,'Level 1'!$BB$5:$BL$34,'Oversættelse af landenavne'!$E16,FALSE) -> 0.0599 | Z84: =HLOOKUP($E$12,'Afgifter og Moms'!$BB$5:$BL$34,'Oversættelse af landenavne'!$E16,FALSE) -> 0.01515 | AD84: ='Oversættelse af landenavne'!$B16 -> Frankrig | AE84: =HLOOKUP($E$12,'Level 1'!$BO$5:$BY$34,'Oversættelse af landenavne'!$E16,FALSE) -> 0.05475 | AF84: =HLOOKUP($E$12,'Afgifter og Moms'!$BO$5:$BY$34,'Oversættelse af landenavne'!$E16,FALSE) -> 0.0061 | AI84: ='Oversættelse af landenavne'!$B16 -> Frankrig | AJ84: =HLOOKUP($E$12,'Level 1'!$CB$5:$CL$34,'Oversættelse af landenavne'!$E16,FALSE) -> * | AK84: =HLOOKUP($E$12,'Afgifter og Moms'!$CB$5:$CL$34,'Oversættelse af landenavne'!$E16,FALSE) -> *
D85: ='Oversættelse af landenavne'!$B17 -> Kroatien | E85: =HLOOKUP($E$12,'Level 1'!$B$5:$L$34,'Oversættelse af landenavne'!$E17,FALSE) -> 0.11725 | F85: =HLOOKUP($E$12,'Afgifter og Moms'!$B$5:$L$34,'Oversættelse af landenavne'!$E17,FALSE) -> 0.00585 | I85: ='Oversættelse af landenavne'!$B17 -> Kroatien | J85: =HLOOKUP($E$12,'Level 1'!$O$5:$Y$34,'Oversættelse af landenavne'!$E17,FALSE) -> 0.1026 | K85: =HLOOKUP($E$12,'Afgifter og Moms'!$O$5:$Y$34,'Oversættelse af landenavne'!E17,FALSE) -> 0.0052 | N85: ='Oversættelse af landenavne'!$B17 -> Kroatien | O85: =HLOOKUP($E$12,'Level 1'!$AB$5:$AL$34,'Oversættelse af landenavne'!E17,FALSE) -> 0.0872 | P85: =HLOOKUP($E$12,'Afgifter og Moms'!$AB$5:$AL$34,'Oversættelse af landenavne'!E17,FALSE) -> 0.0052 | S85: ='Oversættelse af landenavne'!$B17 -> Kroatien | T85: =HLOOKUP($E$12,'Level 1'!$AO$5:$AY$34,'Oversættelse af landenavne'!E17,FALSE) -> 0.07515 | U85: =HLOOKUP($E$12,'Afgifter og Moms'!$AO$5:$AY$34,'Oversættelse af landenavne'!E17,FALSE) -> 0.00465 | X85: ='Oversættelse af landenavne'!$B17 -> Kroatien | Y85: =HLOOKUP($E$12,'Level 1'!$BB$5:$BL$34,'Oversættelse af landenavne'!$E17,FALSE) -> 0.06175 | Z85: =HLOOKUP($E$12,'Afgifter og Moms'!$BB$5:$BL$34,'Oversættelse af landenavne'!$E17,FALSE) -> 0.00285 | AD85: ='Oversættelse af landenavne'!$B17 -> Kroatien | AE85: =HLOOKUP($E$12,'Level 1'!$BO$5:$BY$34,'Oversættelse af landenavne'!$E17,FALSE) -> 0.05335 | AF85: =HLOOKUP($E$12,'Afgifter og Moms'!$BO$5:$BY$34,'Oversættelse af landenavne'!$E17,FALSE) -> 0.00285 | AI85: ='Oversættelse af landenavne'!$B17 -> Kroatien | AJ85: =HLOOKUP($E$12,'Level 1'!$CB$5:$CL$34,'Oversættelse af landenavne'!$E17,FALSE) -> * | AK85: =HLOOKUP($E$12,'Afgifter og Moms'!$CB$5:$CL$34,'Oversættelse af landenavne'!$E17,FALSE) -> *
D86: ='Oversættelse af landenavne'!$B18 -> Italien | E86: =HLOOKUP($E$12,'Level 1'!$B$5:$L$34,'Oversættelse af landenavne'!$E18,FALSE) -> 0.1666 | F86: =HLOOKUP($E$12,'Afgifter og Moms'!$B$5:$L$34,'Oversættelse af landenavne'!$E18,FALSE) -> 0.10225 | I86: ='Oversættelse af landenavne'!$B18 -> Italien | J86: =HLOOKUP($E$12,'Level 1'!$O$5:$Y$34,'Oversættelse af landenavne'!$E18,FALSE) -> 0.11105 | K86: =HLOOKUP($E$12,'Afgifter og Moms'!$O$5:$Y$34,'Oversættelse af landenavne'!E18,FALSE) -> 0.07665 | N86: ='Oversættelse af landenavne'!$B18 -> Italien | O86: =HLOOKUP($E$12,'Level 1'!$AB$5:$AL$34,'Oversættelse af landenavne'!E18,FALSE) -> 0.0931 | P86: =HLOOKUP($E$12,'Afgifter og Moms'!$AB$5:$AL$34,'Oversættelse af landenavne'!E18,FALSE) -> 0.06715 | S86: ='Oversættelse af landenavne'!$B18 -> Italien | T86: =HLOOKUP($E$12,'Level 1'!$AO$5:$AY$34,'Oversættelse af landenavne'!E18,FALSE) -> 0.08575 | U86: =HLOOKUP($E$12,'Afgifter og Moms'!$AO$5:$AY$34,'Oversættelse af landenavne'!E18,FALSE) -> 0.06295 | X86: ='Oversættelse af landenavne'!$B18 -> Italien | Y86: =HLOOKUP($E$12,'Level 1'!$BB$5:$BL$34,'Oversættelse af landenavne'!$E18,FALSE) -> 0.0766 | Z86: =HLOOKUP($E$12,'Afgifter og Moms'!$BB$5:$BL$34,'Oversættelse af landenavne'!$E18,FALSE) -> 0.05 | AD86: ='Oversættelse af landenavne'!$B18 -> Italien | AE86: =HLOOKUP($E$12,'Level 1'!$BO$5:$BY$34,'Oversættelse af landenavne'!$E18,FALSE) -> 0.067 | AF86: =HLOOKUP($E$12,'Afgifter og Moms'!$BO$5:$BY$34,'Oversættelse af landenavne'!$E18,FALSE) -> 0.03845 | AI86: ='Oversættelse af landenavne'!$B18 -> Italien | AJ86: =HLOOKUP($E$12,'Level 1'!$CB$5:$CL$34,'Oversættelse af landenavne'!$E18,FALSE) -> 0.0662 | AK86: =HLOOKUP($E$12,'Afgifter og Moms'!$CB$5:$CL$34,'Oversættelse af landenavne'!$E18,FALSE) -> 0.0202
D87: ='Oversættelse af landenavne'!$B19 -> Cypern | E87: =HLOOKUP($E$12,'Level 1'!$B$5:$L$34,'Oversættelse af landenavne'!$E19,FALSE) -> 0.17335 | F87: =HLOOKUP($E$12,'Afgifter og Moms'!$B$5:$L$34,'Oversættelse af landenavne'!$E19,FALSE) -> 0.00855 | I87: ='Oversættelse af landenavne'!$B19 -> Cypern | J87: =HLOOKUP($E$12,'Level 1'!$O$5:$Y$34,'Oversættelse af landenavne'!$E19,FALSE) -> 0.15535 | K87: =HLOOKUP($E$12,'Afgifter og Moms'!$O$5:$Y$34,'Oversættelse af landenavne'!E19,FALSE) -> 0.00855 | N87: ='Oversættelse af landenavne'!$B19 -> Cypern | O87: =HLOOKUP($E$12,'Level 1'!$AB$5:$AL$34,'Oversættelse af landenavne'!E19,FALSE) -> 0.13175 | P87: =HLOOKUP($E$12,'Afgifter og Moms'!$AB$5:$AL$34,'Oversættelse af landenavne'!E19,FALSE) -> 0.0085 | S87: ='Oversættelse af landenavne'!$B19 -> Cypern | T87: =HLOOKUP($E$12,'Level 1'!$AO$5:$AY$34,'Oversættelse af landenavne'!E19,FALSE) -> 0.11645 | U87: =HLOOKUP($E$12,'Afgifter og Moms'!$AO$5:$AY$34,'Oversættelse af landenavne'!E19,FALSE) -> 0.00855 | X87: ='Oversættelse af landenavne'!$B19 -> Cypern | Y87: =HLOOKUP($E$12,'Level 1'!$BB$5:$BL$34,'Oversættelse af landenavne'!$E19,FALSE) -> 0.1117 | Z87: =HLOOKUP($E$12,'Afgifter og Moms'!$BB$5:$BL$34,'Oversættelse af landenavne'!$E19,FALSE) -> 0.0085 | AD87: ='Oversættelse af landenavne'!$B19 -> Cypern | AE87: =HLOOKUP($E$12,'Level 1'!$BO$5:$BY$34,'Oversættelse af landenavne'!$E19,FALSE) -> 0.1013 | AF87: =HLOOKUP($E$12,'Afgifter og Moms'!$BO$5:$BY$34,'Oversættelse af landenavne'!$E19,FALSE) -> 0.00855 | AI87: ='Oversættelse af landenavne'!$B19 -> Cypern | AJ87: =HLOOKUP($E$12,'Level 1'!$CB$5:$CL$34,'Oversættelse af landenavne'!$E19,FALSE) -> * | AK87: =HLOOKUP($E$12,'Afgifter og Moms'!$CB$5:$CL$34,'Oversættelse af landenavne'!$E19,FALSE) -> *
D88: ='Oversættelse af landenavne'!$B20 -> Letland | E88: =HLOOKUP($E$12,'Level 1'!$B$5:$L$34,'Oversættelse af landenavne'!$E20,FALSE) -> 0.13515 | F88: =HLOOKUP($E$12,'Afgifter og Moms'!$B$5:$L$34,'Oversættelse af landenavne'!$E20,FALSE) -> 0.02675 | I88: ='Oversættelse af landenavne'!$B20 -> Letland | J88: =HLOOKUP($E$12,'Level 1'!$O$5:$Y$34,'Oversættelse af landenavne'!$E20,FALSE) -> 0.10455 | K88: =HLOOKUP($E$12,'Afgifter og Moms'!$O$5:$Y$34,'Oversættelse af landenavne'!E20,FALSE) -> 0.0268 | N88: ='Oversættelse af landenavne'!$B20 -> Letland | O88: =HLOOKUP($E$12,'Level 1'!$AB$5:$AL$34,'Oversættelse af landenavne'!E20,FALSE) -> 0.09125 | P88: =HLOOKUP($E$12,'Afgifter og Moms'!$AB$5:$AL$34,'Oversættelse af landenavne'!E20,FALSE) -> 0.0268 | S88: ='Oversættelse af landenavne'!$B20 -> Letland | T88: =HLOOKUP($E$12,'Level 1'!$AO$5:$AY$34,'Oversættelse af landenavne'!E20,FALSE) -> 0.08085 | U88: =HLOOKUP($E$12,'Afgifter og Moms'!$AO$5:$AY$34,'Oversættelse af landenavne'!E20,FALSE) -> 0.0268 | X88: ='Oversættelse af landenavne'!$B20 -> Letland | Y88: =HLOOKUP($E$12,'Level 1'!$BB$5:$BL$34,'Oversættelse af landenavne'!$E20,FALSE) -> 0.0719 | Z88: =HLOOKUP($E$12,'Afgifter og Moms'!$BB$5:$BL$34,'Oversættelse af landenavne'!$E20,FALSE) -> 0.0268 | AD88: ='Oversættelse af landenavne'!$B20 -> Letland | AE88: =HLOOKUP($E$12,'Level 1'!$BO$5:$BY$34,'Oversættelse af landenavne'!$E20,FALSE) -> 0.0571 | AF88: =HLOOKUP($E$12,'Afgifter og Moms'!$BO$5:$BY$34,'Oversættelse af landenavne'!$E20,FALSE) -> 0.0268 | AI88: ='Oversættelse af landenavne'!$B20 -> Letland | AJ88: =HLOOKUP($E$12,'Level 1'!$CB$5:$CL$34,'Oversættelse af landenavne'!$E20,FALSE) -> * | AK88: =HLOOKUP($E$12,'Afgifter og Moms'!$CB$5:$CL$34,'Oversættelse af landenavne'!$E20,FALSE) -> *
D89: ='Oversættelse af landenavne'!$B21 -> Litaun | E89: =HLOOKUP($E$12,'Level 1'!$B$5:$L$34,'Oversættelse af landenavne'!$E21,FALSE) -> 0.1148 | F89: =HLOOKUP($E$12,'Afgifter og Moms'!$B$5:$L$34,'Oversættelse af landenavne'!$E21,FALSE) -> 0.01685 | I89: ='Oversættelse af landenavne'!$B21 -> Litaun | J89: =HLOOKUP($E$12,'Level 1'!$O$5:$Y$34,'Oversættelse af landenavne'!$E21,FALSE) -> 0.0925 | K89: =HLOOKUP($E$12,'Afgifter og Moms'!$O$5:$Y$34,'Oversættelse af landenavne'!E21,FALSE) -> 0.01705 | N89: ='Oversættelse af landenavne'!$B21 -> Litaun | O89: =HLOOKUP($E$12,'Level 1'!$AB$5:$AL$34,'Oversættelse af landenavne'!E21,FALSE) -> 0.0823 | P89: =HLOOKUP($E$12,'Afgifter og Moms'!$AB$5:$AL$34,'Oversættelse af landenavne'!E21,FALSE) -> 0.017 | S89: ='Oversættelse af landenavne'!$B21 -> Litaun | T89: =HLOOKUP($E$12,'Level 1'!$AO$5:$AY$34,'Oversættelse af landenavne'!E21,FALSE) -> 0.07365 | U89: =HLOOKUP($E$12,'Afgifter og Moms'!$AO$5:$AY$34,'Oversættelse af landenavne'!E21,FALSE) -> 0.0168 | X89: ='Oversættelse af landenavne'!$B21 -> Litaun | Y89: =HLOOKUP($E$12,'Level 1'!$BB$5:$BL$34,'Oversættelse af landenavne'!$E21,FALSE) -> 0.06715 | Z89: =HLOOKUP($E$12,'Afgifter og Moms'!$BB$5:$BL$34,'Oversættelse af landenavne'!$E21,FALSE) -> 0.0168 | AD89: ='Oversættelse af landenavne'!$B21 -> Litaun | AE89: =HLOOKUP($E$12,'Level 1'!$BO$5:$BY$34,'Oversættelse af landenavne'!$E21,FALSE) -> 0.0634 | AF89: =HLOOKUP($E$12,'Afgifter og Moms'!$BO$5:$BY$34,'Oversættelse af landenavne'!$E21,FALSE) -> 0.01665 | AI89: ='Oversættelse af landenavne'!$B21 -> Litaun | AJ89: =HLOOKUP($E$12,'Level 1'!$CB$5:$CL$34,'Oversættelse af landenavne'!$E21,FALSE) -> * | AK89: =HLOOKUP($E$12,'Afgifter og Moms'!$CB$5:$CL$34,'Oversættelse af landenavne'!$E21,FALSE) -> *
D90: ='Oversættelse af landenavne'!$B22 -> luxembourg | E90: =HLOOKUP($E$12,'Level 1'!$B$5:$L$34,'Oversættelse af landenavne'!$E22,FALSE) -> 0.1352 | F90: =HLOOKUP($E$12,'Afgifter og Moms'!$B$5:$L$34,'Oversættelse af landenavne'!$E22,FALSE) -> 0.0305 | I90: ='Oversættelse af landenavne'!$B22 -> luxembourg | J90: =HLOOKUP($E$12,'Level 1'!$O$5:$Y$34,'Oversættelse af landenavne'!$E22,FALSE) -> 0.09435 | K90: =HLOOKUP($E$12,'Afgifter og Moms'!$O$5:$Y$34,'Oversættelse af landenavne'!E22,FALSE) -> 0.0086 | N90: ='Oversættelse af landenavne'!$B22 -> luxembourg | O90: =HLOOKUP($E$12,'Level 1'!$AB$5:$AL$34,'Oversættelse af landenavne'!E22,FALSE) -> 0.0823 | P90: =HLOOKUP($E$12,'Afgifter og Moms'!$AB$5:$AL$34,'Oversættelse af landenavne'!E22,FALSE) -> 0.00875 | S90: ='Oversættelse af landenavne'!$B22 -> luxembourg | T90: =HLOOKUP($E$12,'Level 1'!$AO$5:$AY$34,'Oversættelse af landenavne'!E22,FALSE) -> 0.0557 | U90: =HLOOKUP($E$12,'Afgifter og Moms'!$AO$5:$AY$34,'Oversættelse af landenavne'!E22,FALSE) -> 0.00545 | X90: ='Oversættelse af landenavne'!$B22 -> luxembourg | Y90: =HLOOKUP($E$12,'Level 1'!$BB$5:$BL$34,'Oversættelse af landenavne'!$E22,FALSE) -> 0.0501 | Z90: =HLOOKUP($E$12,'Afgifter og Moms'!$BB$5:$BL$34,'Oversættelse af landenavne'!$E22,FALSE) -> 0.00455 | AD90: ='Oversættelse af landenavne'!$B22 -> luxembourg | AE90: =HLOOKUP($E$12,'Level 1'!$BO$5:$BY$34,'Oversættelse af landenavne'!$E22,FALSE) -> * | AF90: =HLOOKUP($E$12,'Afgifter og Moms'!$BO$5:$BY$34,'Oversættelse af landenavne'!$E22,FALSE) -> * | AI90: ='Oversættelse af landenavne'!$B22 -> luxembourg | AJ90: =HLOOKUP($E$12,'Level 1'!$CB$5:$CL$34,'Oversættelse af landenavne'!$E22,FALSE) -> * | AK90: =HLOOKUP($E$12,'Afgifter og Moms'!$CB$5:$CL$34,'Oversættelse af landenavne'!$E22,FALSE) -> *
D91: ='Oversættelse af landenavne'!$B23 -> Ungarn | E91: =HLOOKUP($E$12,'Level 1'!$B$5:$L$34,'Oversættelse af landenavne'!$E23,FALSE) -> 0.09815 | F91: =HLOOKUP($E$12,'Afgifter og Moms'!$B$5:$L$34,'Oversættelse af landenavne'!$E23,FALSE) -> 0.0088 | I91: ='Oversættelse af landenavne'!$B23 -> Ungarn | J91: =HLOOKUP($E$12,'Level 1'!$O$5:$Y$34,'Oversættelse af landenavne'!$E23,FALSE) -> 0.08805 | K91: =HLOOKUP($E$12,'Afgifter og Moms'!$O$5:$Y$34,'Oversættelse af landenavne'!E23,FALSE) -> 0.0088 | N91: ='Oversættelse af landenavne'!$B23 -> Ungarn | O91: =HLOOKUP($E$12,'Level 1'!$AB$5:$AL$34,'Oversættelse af landenavne'!E23,FALSE) -> 0.07805 | P91: =HLOOKUP($E$12,'Afgifter og Moms'!$AB$5:$AL$34,'Oversættelse af landenavne'!E23,FALSE) -> 0.0088 | S91: ='Oversættelse af landenavne'!$B23 -> Ungarn | T91: =HLOOKUP($E$12,'Level 1'!$AO$5:$AY$34,'Oversættelse af landenavne'!E23,FALSE) -> 0.0765 | U91: =HLOOKUP($E$12,'Afgifter og Moms'!$AO$5:$AY$34,'Oversættelse af landenavne'!E23,FALSE) -> 0.0088 | X91: ='Oversættelse af landenavne'!$B23 -> Ungarn | Y91: =HLOOKUP($E$12,'Level 1'!$BB$5:$BL$34,'Oversættelse af landenavne'!$E23,FALSE) -> 0.0756 | Z91: =HLOOKUP($E$12,'Afgifter og Moms'!$BB$5:$BL$34,'Oversættelse af landenavne'!$E23,FALSE) -> 0.00875 | AD91: ='Oversættelse af landenavne'!$B23 -> Ungarn | AE91: =HLOOKUP($E$12,'Level 1'!$BO$5:$BY$34,'Oversættelse af landenavne'!$E23,FALSE) -> 0.0763 | AF91: =HLOOKUP($E$12,'Afgifter og Moms'!$BO$5:$BY$34,'Oversættelse af landenavne'!$E23,FALSE) -> 0.00885 | AI91: ='Oversættelse af landenavne'!$B23 -> Ungarn | AJ91: =HLOOKUP($E$12,'Level 1'!$CB$5:$CL$34,'Oversættelse af landenavne'!$E23,FALSE) -> 0.07345 | AK91: =HLOOKUP($E$12,'Afgifter og Moms'!$CB$5:$CL$34,'Oversættelse af landenavne'!$E23,FALSE) -> 0.0088
D92: ='Oversættelse af landenavne'!$B24 -> Malta | E92: =HLOOKUP($E$12,'Level 1'!$B$5:$L$34,'Oversættelse af landenavne'!$E24,FALSE) -> 0.208 | F92: =HLOOKUP($E$12,'Afgifter og Moms'!$B$5:$L$34,'Oversættelse af landenavne'!$E24,FALSE) -> 0 | I92: ='Oversættelse af landenavne'!$B24 -> Malta | J92: =HLOOKUP($E$12,'Level 1'!$O$5:$Y$34,'Oversættelse af landenavne'!$E24,FALSE) -> 0.16695 | K92: =HLOOKUP($E$12,'Afgifter og Moms'!$O$5:$Y$34,'Oversættelse af landenavne'!E24,FALSE) -> 0 | N92: ='Oversættelse af landenavne'!$B24 -> Malta | O92: =HLOOKUP($E$12,'Level 1'!$AB$5:$AL$34,'Oversættelse af landenavne'!E24,FALSE) -> 0.1502 | P92: =HLOOKUP($E$12,'Afgifter og Moms'!$AB$5:$AL$34,'Oversættelse af landenavne'!E24,FALSE) -> 0 | S92: ='Oversættelse af landenavne'!$B24 -> Malta | T92: =HLOOKUP($E$12,'Level 1'!$AO$5:$AY$34,'Oversættelse af landenavne'!E24,FALSE) -> 0.13255 | U92: =HLOOKUP($E$12,'Afgifter og Moms'!$AO$5:$AY$34,'Oversættelse af landenavne'!E24,FALSE) -> 0 | X92: ='Oversættelse af landenavne'!$B24 -> Malta | Y92: =HLOOKUP($E$12,'Level 1'!$BB$5:$BL$34,'Oversættelse af landenavne'!$E24,FALSE) -> 0.1198 | Z92: =HLOOKUP($E$12,'Afgifter og Moms'!$BB$5:$BL$34,'Oversættelse af landenavne'!$E24,FALSE) -> 0 | AD92: ='Oversættelse af landenavne'!$B24 -> Malta | AE92: =HLOOKUP($E$12,'Level 1'!$BO$5:$BY$34,'Oversættelse af landenavne'!$E24,FALSE) -> 0.10635 | AF92: =HLOOKUP($E$12,'Afgifter og Moms'!$BO$5:$BY$34,'Oversættelse af landenavne'!$E24,FALSE) -> 0 | AI92: ='Oversættelse af landenavne'!$B24 -> Malta | AJ92: =HLOOKUP($E$12,'Level 1'!$CB$5:$CL$34,'Oversættelse af landenavne'!$E24,FALSE) -> * | AK92: =HLOOKUP($E$12,'Afgifter og Moms'!$CB$5:$CL$34,'Oversættelse af landenavne'!$E24,FALSE) -> *
D93: ='Oversættelse af landenavne'!$B25 -> Holland | E93: =HLOOKUP($E$12,'Level 1'!$B$5:$L$34,'Oversættelse af landenavne'!$E25,FALSE) -> 0.13005 | F93: =HLOOKUP($E$12,'Afgifter og Moms'!$B$5:$L$34,'Oversættelse af landenavne'!$E25,FALSE) -> 0.0494 | I93: ='Oversættelse af landenavne'!$B25 -> Holland | J93: =HLOOKUP($E$12,'Level 1'!$O$5:$Y$34,'Oversættelse af landenavne'!$E25,FALSE) -> 0.08845 | K93: =HLOOKUP($E$12,'Afgifter og Moms'!$O$5:$Y$34,'Oversættelse af landenavne'!E25,FALSE) -> 0.0358 | N93: ='Oversættelse af landenavne'!$B25 -> Holland | O93: =HLOOKUP($E$12,'Level 1'!$AB$5:$AL$34,'Oversættelse af landenavne'!E25,FALSE) -> 0.0717 | P93: =HLOOKUP($E$12,'Afgifter og Moms'!$AB$5:$AL$34,'Oversættelse af landenavne'!E25,FALSE) -> 0.0157 | S93: ='Oversættelse af landenavne'!$B25 -> Holland | T93: =HLOOKUP($E$12,'Level 1'!$AO$5:$AY$34,'Oversættelse af landenavne'!E25,FALSE) -> 0.0666 | U93: =HLOOKUP($E$12,'Afgifter og Moms'!$AO$5:$AY$34,'Oversættelse af landenavne'!E25,FALSE) -> 0.0141 | X93: ='Oversættelse af landenavne'!$B25 -> Holland | Y93: =HLOOKUP($E$12,'Level 1'!$BB$5:$BL$34,'Oversættelse af landenavne'!$E25,FALSE) -> 0.0632 | Z93: =HLOOKUP($E$12,'Afgifter og Moms'!$BB$5:$BL$34,'Oversættelse af landenavne'!$E25,FALSE) -> 0.00385 | AD93: ='Oversættelse af landenavne'!$B25 -> Holland | AE93: =HLOOKUP($E$12,'Level 1'!$BO$5:$BY$34,'Oversættelse af landenavne'!$E25,FALSE) -> 0.0669 | AF93: =HLOOKUP($E$12,'Afgifter og Moms'!$BO$5:$BY$34,'Oversættelse af landenavne'!$E25,FALSE) -> 0.0021 | AI93: ='Oversættelse af landenavne'!$B25 -> Holland | AJ93: =HLOOKUP($E$12,'Level 1'!$CB$5:$CL$34,'Oversættelse af landenavne'!$E25,FALSE) -> 0.06455 | AK93: =HLOOKUP($E$12,'Afgifter og Moms'!$CB$5:$CL$34,'Oversættelse af landenavne'!$E25,FALSE) -> 0.00095
D94: ='Oversættelse af landenavne'!$B26 -> Østrig | E94: =HLOOKUP($E$12,'Level 1'!$B$5:$L$34,'Oversættelse af landenavne'!$E26,FALSE) -> 0.11775 | F94: =HLOOKUP($E$12,'Afgifter og Moms'!$B$5:$L$34,'Oversættelse af landenavne'!$E26,FALSE) -> 0.0431 | I94: ='Oversættelse af landenavne'!$B26 -> Østrig | J94: =HLOOKUP($E$12,'Level 1'!$O$5:$Y$34,'Oversættelse af landenavne'!$E26,FALSE) -> 0.0916 | K94: =HLOOKUP($E$12,'Afgifter og Moms'!$O$5:$Y$34,'Oversættelse af landenavne'!E26,FALSE) -> 0.0334 | N94: ='Oversættelse af landenavne'!$B26 -> Østrig | O94: =HLOOKUP($E$12,'Level 1'!$AB$5:$AL$34,'Oversættelse af landenavne'!E26,FALSE) -> 0.073 | P94: =HLOOKUP($E$12,'Afgifter og Moms'!$AB$5:$AL$34,'Oversættelse af landenavne'!E26,FALSE) -> 0.0313 | S94: ='Oversættelse af landenavne'!$B26 -> Østrig | T94: =HLOOKUP($E$12,'Level 1'!$AO$5:$AY$34,'Oversættelse af landenavne'!E26,FALSE) -> 0.0649 | U94: =HLOOKUP($E$12,'Afgifter og Moms'!$AO$5:$AY$34,'Oversættelse af landenavne'!E26,FALSE) -> 0.0254 | X94: ='Oversættelse af landenavne'!$B26 -> Østrig | Y94: =HLOOKUP($E$12,'Level 1'!$BB$5:$BL$34,'Oversættelse af landenavne'!$E26,FALSE) -> 0.056 | Z94: =HLOOKUP($E$12,'Afgifter og Moms'!$BB$5:$BL$34,'Oversættelse af landenavne'!$E26,FALSE) -> 0.02145 | AD94: ='Oversættelse af landenavne'!$B26 -> Østrig | AE94: =HLOOKUP($E$12,'Level 1'!$BO$5:$BY$34,'Oversættelse af landenavne'!$E26,FALSE) -> 0.05045 | AF94: =HLOOKUP($E$12,'Afgifter og Moms'!$BO$5:$BY$34,'Oversættelse af landenavne'!$E26,FALSE) -> 0.01985 | AI94: ='Oversættelse af landenavne'!$B26 -> Østrig | AJ94: =HLOOKUP($E$12,'Level 1'!$CB$5:$CL$34,'Oversættelse af landenavne'!$E26,FALSE) -> 0.0449 | AK94: =HLOOKUP($E$12,'Afgifter og Moms'!$CB$5:$CL$34,'Oversættelse af landenavne'!$E26,FALSE) -> 0.0192
D95: ='Oversættelse af landenavne'!$B27 -> Polen | E95: =HLOOKUP($E$12,'Level 1'!$B$5:$L$34,'Oversættelse af landenavne'!$E27,FALSE) -> 0.14745 | F95: =HLOOKUP($E$12,'Afgifter og Moms'!$B$5:$L$34,'Oversættelse af landenavne'!$E27,FALSE) -> 0.00475 | I95: ='Oversættelse af landenavne'!$B27 -> Polen | J95: =HLOOKUP($E$12,'Level 1'!$O$5:$Y$34,'Oversættelse af landenavne'!$E27,FALSE) -> 0.1099 | K95: =HLOOKUP($E$12,'Afgifter og Moms'!$O$5:$Y$34,'Oversættelse af landenavne'!E27,FALSE) -> 0.00475 | N95: ='Oversættelse af landenavne'!$B27 -> Polen | O95: =HLOOKUP($E$12,'Level 1'!$AB$5:$AL$34,'Oversættelse af landenavne'!E27,FALSE) -> 0.0823 | P95: =HLOOKUP($E$12,'Afgifter og Moms'!$AB$5:$AL$34,'Oversættelse af landenavne'!E27,FALSE) -> 0.00485 | S95: ='Oversættelse af landenavne'!$B27 -> Polen | T95: =HLOOKUP($E$12,'Level 1'!$AO$5:$AY$34,'Oversættelse af landenavne'!E27,FALSE) -> 0.0712 | U95: =HLOOKUP($E$12,'Afgifter og Moms'!$AO$5:$AY$34,'Oversættelse af landenavne'!E27,FALSE) -> 0.0048 | X95: ='Oversættelse af landenavne'!$B27 -> Polen | Y95: =HLOOKUP($E$12,'Level 1'!$BB$5:$BL$34,'Oversættelse af landenavne'!$E27,FALSE) -> 0.0646 | Z95: =HLOOKUP($E$12,'Afgifter og Moms'!$BB$5:$BL$34,'Oversættelse af landenavne'!$E27,FALSE) -> 0.00485 | AD95: ='Oversættelse af landenavne'!$B27 -> Polen | AE95: =HLOOKUP($E$12,'Level 1'!$BO$5:$BY$34,'Oversættelse af landenavne'!$E27,FALSE) -> 0.05975 | AF95: =HLOOKUP($E$12,'Afgifter og Moms'!$BO$5:$BY$34,'Oversættelse af landenavne'!$E27,FALSE) -> 0.0048 | AI95: ='Oversættelse af landenavne'!$B27 -> Polen | AJ95: =HLOOKUP($E$12,'Level 1'!$CB$5:$CL$34,'Oversættelse af landenavne'!$E27,FALSE) -> 0.05455 | AK95: =HLOOKUP($E$12,'Afgifter og Moms'!$CB$5:$CL$34,'Oversættelse af landenavne'!$E27,FALSE) -> 0.0048
D96: ='Oversættelse af landenavne'!$B28 -> Portugal | E96: =HLOOKUP($E$12,'Level 1'!$B$5:$L$34,'Oversættelse af landenavne'!$E28,FALSE) -> 0.16905 | F96: =HLOOKUP($E$12,'Afgifter og Moms'!$B$5:$L$34,'Oversættelse af landenavne'!$E28,FALSE) -> 0.026 | I96: ='Oversættelse af landenavne'!$B28 -> Portugal | J96: =HLOOKUP($E$12,'Level 1'!$O$5:$Y$34,'Oversættelse af landenavne'!$E28,FALSE) -> 0.12375 | K96: =HLOOKUP($E$12,'Afgifter og Moms'!$O$5:$Y$34,'Oversættelse af landenavne'!E28,FALSE) -> 0.02165 | N96: ='Oversættelse af landenavne'!$B28 -> Portugal | O96: =HLOOKUP($E$12,'Level 1'!$AB$5:$AL$34,'Oversættelse af landenavne'!E28,FALSE) -> 0.0995 | P96: =HLOOKUP($E$12,'Afgifter og Moms'!$AB$5:$AL$34,'Oversættelse af landenavne'!E28,FALSE) -> 0.0152 | S96: ='Oversættelse af landenavne'!$B28 -> Portugal | T96: =HLOOKUP($E$12,'Level 1'!$AO$5:$AY$34,'Oversættelse af landenavne'!E28,FALSE) -> 0.0905 | U96: =HLOOKUP($E$12,'Afgifter og Moms'!$AO$5:$AY$34,'Oversættelse af landenavne'!E28,FALSE) -> 0.01305 | X96: ='Oversættelse af landenavne'!$B28 -> Portugal | Y96: =HLOOKUP($E$12,'Level 1'!$BB$5:$BL$34,'Oversættelse af landenavne'!$E28,FALSE) -> 0.07435 | Z96: =HLOOKUP($E$12,'Afgifter og Moms'!$BB$5:$BL$34,'Oversættelse af landenavne'!$E28,FALSE) -> 0.0137 | AD96: ='Oversættelse af landenavne'!$B28 -> Portugal | AE96: =HLOOKUP($E$12,'Level 1'!$BO$5:$BY$34,'Oversættelse af landenavne'!$E28,FALSE) -> 0.06805 | AF96: =HLOOKUP($E$12,'Afgifter og Moms'!$BO$5:$BY$34,'Oversættelse af landenavne'!$E28,FALSE) -> 0.0136 | AI96: ='Oversættelse af landenavne'!$B28 -> Portugal | AJ96: =HLOOKUP($E$12,'Level 1'!$CB$5:$CL$34,'Oversættelse af landenavne'!$E28,FALSE) -> * | AK96: =HLOOKUP($E$12,'Afgifter og Moms'!$CB$5:$CL$34,'Oversættelse af landenavne'!$E28,FALSE) -> *
D97: ='Oversættelse af landenavne'!$B29 -> Rumænien | E97: =HLOOKUP($E$12,'Level 1'!$B$5:$L$34,'Oversættelse af landenavne'!$E29,FALSE) -> 0.09815 | F97: =HLOOKUP($E$12,'Afgifter og Moms'!$B$5:$L$34,'Oversættelse af landenavne'!$E29,FALSE) -> 0.0116 | I97: ='Oversættelse af landenavne'!$B29 -> Rumænien | J97: =HLOOKUP($E$12,'Level 1'!$O$5:$Y$34,'Oversættelse af landenavne'!$E29,FALSE) -> 0.0854 | K97: =HLOOKUP($E$12,'Afgifter og Moms'!$O$5:$Y$34,'Oversættelse af landenavne'!E29,FALSE) -> 0.01205 | N97: ='Oversættelse af landenavne'!$B29 -> Rumænien | O97: =HLOOKUP($E$12,'Level 1'!$AB$5:$AL$34,'Oversættelse af landenavne'!E29,FALSE) -> 0.0694 | P97: =HLOOKUP($E$12,'Afgifter og Moms'!$AB$5:$AL$34,'Oversættelse af landenavne'!E29,FALSE) -> 0.0122 | S97: ='Oversættelse af landenavne'!$B29 -> Rumænien | T97: =HLOOKUP($E$12,'Level 1'!$AO$5:$AY$34,'Oversættelse af landenavne'!E29,FALSE) -> 0.06115 | U97: =HLOOKUP($E$12,'Afgifter og Moms'!$AO$5:$AY$34,'Oversættelse af landenavne'!E29,FALSE) -> 0.01215 | X97: ='Oversættelse af landenavne'!$B29 -> Rumænien | Y97: =HLOOKUP($E$12,'Level 1'!$BB$5:$BL$34,'Oversættelse af landenavne'!$E29,FALSE) -> 0.05295 | Z97: =HLOOKUP($E$12,'Afgifter og Moms'!$BB$5:$BL$34,'Oversættelse af landenavne'!$E29,FALSE) -> 0.0118 | AD97: ='Oversættelse af landenavne'!$B29 -> Rumænien | AE97: =HLOOKUP($E$12,'Level 1'!$BO$5:$BY$34,'Oversættelse af landenavne'!$E29,FALSE) -> 0.05075 | AF97: =HLOOKUP($E$12,'Afgifter og Moms'!$BO$5:$BY$34,'Oversættelse af landenavne'!$E29,FALSE) -> 0.01075 | AI97: ='Oversættelse af landenavne'!$B29 -> Rumænien | AJ97: =HLOOKUP($E$12,'Level 1'!$CB$5:$CL$34,'Oversættelse af landenavne'!$E29,FALSE) -> * | AK97: =HLOOKUP($E$12,'Afgifter og Moms'!$CB$5:$CL$34,'Oversættelse af landenavne'!$E29,FALSE) -> *
D98: ='Oversættelse af landenavne'!$B30 -> Slovenien | E98: =HLOOKUP($E$12,'Level 1'!$B$5:$L$34,'Oversættelse af landenavne'!$E30,FALSE) -> 0.1138 | F98: =HLOOKUP($E$12,'Afgifter og Moms'!$B$5:$L$34,'Oversættelse af landenavne'!$E30,FALSE) -> 0.03 | I98: ='Oversættelse af landenavne'!$B30 -> Slovenien | J98: =HLOOKUP($E$12,'Level 1'!$O$5:$Y$34,'Oversættelse af landenavne'!$E30,FALSE) -> 0.0901 | K98: =HLOOKUP($E$12,'Afgifter og Moms'!$O$5:$Y$34,'Oversættelse af landenavne'!E30,FALSE) -> 0.0149 | N98: ='Oversættelse af landenavne'!$B30 -> Slovenien | O98: =HLOOKUP($E$12,'Level 1'!$AB$5:$AL$34,'Oversættelse af landenavne'!E30,FALSE) -> 0.07125 | P98: =HLOOKUP($E$12,'Afgifter og Moms'!$AB$5:$AL$34,'Oversættelse af landenavne'!E30,FALSE) -> 0.0136 | S98: ='Oversættelse af landenavne'!$B30 -> Slovenien | T98: =HLOOKUP($E$12,'Level 1'!$AO$5:$AY$34,'Oversættelse af landenavne'!E30,FALSE) -> 0.06305 | U98: =HLOOKUP($E$12,'Afgifter og Moms'!$AO$5:$AY$34,'Oversættelse af landenavne'!E30,FALSE) -> 0.01075 | X98: ='Oversættelse af landenavne'!$B30 -> Slovenien | Y98: =HLOOKUP($E$12,'Level 1'!$BB$5:$BL$34,'Oversættelse af landenavne'!$E30,FALSE) -> 0.05655 | Z98: =HLOOKUP($E$12,'Afgifter og Moms'!$BB$5:$BL$34,'Oversættelse af landenavne'!$E30,FALSE) -> 0.00855 | AD98: ='Oversættelse af landenavne'!$B30 -> Slovenien | AE98: =HLOOKUP($E$12,'Level 1'!$BO$5:$BY$34,'Oversættelse af landenavne'!$E30,FALSE) -> 0.05595 | AF98: =HLOOKUP($E$12,'Afgifter og Moms'!$BO$5:$BY$34,'Oversættelse af landenavne'!$E30,FALSE) -> 0.007 | AI98: ='Oversættelse af landenavne'!$B30 -> Slovenien | AJ98: =HLOOKUP($E$12,'Level 1'!$CB$5:$CL$34,'Oversættelse af landenavne'!$E30,FALSE) -> * | AK98: =HLOOKUP($E$12,'Afgifter og Moms'!$CB$5:$CL$34,'Oversættelse af landenavne'!$E30,FALSE) -> *
D99: ='Oversættelse af landenavne'!$B31 -> Slovakiet | E99: =HLOOKUP($E$12,'Level 1'!$B$5:$L$34,'Oversættelse af landenavne'!$E31,FALSE) -> 0.2034 | F99: =HLOOKUP($E$12,'Afgifter og Moms'!$B$5:$L$34,'Oversættelse af landenavne'!$E31,FALSE) -> 0.0045 | I99: ='Oversættelse af landenavne'!$B31 -> Slovakiet | J99: =HLOOKUP($E$12,'Level 1'!$O$5:$Y$34,'Oversættelse af landenavne'!$E31,FALSE) -> 0.1335 | K99: =HLOOKUP($E$12,'Afgifter og Moms'!$O$5:$Y$34,'Oversættelse af landenavne'!E31,FALSE) -> 0.0045 | N99: ='Oversættelse af landenavne'!$B31 -> Slovakiet | O99: =HLOOKUP($E$12,'Level 1'!$AB$5:$AL$34,'Oversættelse af landenavne'!E31,FALSE) -> 0.1079 | P99: =HLOOKUP($E$12,'Afgifter og Moms'!$AB$5:$AL$34,'Oversættelse af landenavne'!E31,FALSE) -> 0.0045 | S99: ='Oversættelse af landenavne'!$B31 -> Slovakiet | T99: =HLOOKUP($E$12,'Level 1'!$AO$5:$AY$34,'Oversættelse af landenavne'!E31,FALSE) -> 0.0953 | U99: =HLOOKUP($E$12,'Afgifter og Moms'!$AO$5:$AY$34,'Oversættelse af landenavne'!E31,FALSE) -> 0.0045 | X99: ='Oversættelse af landenavne'!$B31 -> Slovakiet | Y99: =HLOOKUP($E$12,'Level 1'!$BB$5:$BL$34,'Oversættelse af landenavne'!$E31,FALSE) -> 0.0931 | Z99: =HLOOKUP($E$12,'Afgifter og Moms'!$BB$5:$BL$34,'Oversættelse af landenavne'!$E31,FALSE) -> 0.0045 | AD99: ='Oversættelse af landenavne'!$B31 -> Slovakiet | AE99: =HLOOKUP($E$12,'Level 1'!$BO$5:$BY$34,'Oversættelse af landenavne'!$E31,FALSE) -> 0.09055 | AF99: =HLOOKUP($E$12,'Afgifter og Moms'!$BO$5:$BY$34,'Oversættelse af landenavne'!$E31,FALSE) -> 0.0045 | AI99: ='Oversættelse af landenavne'!$B31 -> Slovakiet | AJ99: =HLOOKUP($E$12,'Level 1'!$CB$5:$CL$34,'Oversættelse af landenavne'!$E31,FALSE) -> 0.0647 | AK99: =HLOOKUP($E$12,'Afgifter og Moms'!$CB$5:$CL$34,'Oversættelse af landenavne'!$E31,FALSE) -> 0.0045
D100: ='Oversættelse af landenavne'!$B32 -> Finland | E100: =HLOOKUP($E$12,'Level 1'!$B$5:$L$34,'Oversættelse af landenavne'!$E32,FALSE) -> 0.0832 | F100: =HLOOKUP($E$12,'Afgifter og Moms'!$B$5:$L$34,'Oversættelse af landenavne'!$E32,FALSE) -> 0.007 | I100: ='Oversættelse af landenavne'!$B32 -> Finland | J100: =HLOOKUP($E$12,'Level 1'!$O$5:$Y$34,'Oversættelse af landenavne'!$E32,FALSE) -> 0.0768 | K100: =HLOOKUP($E$12,'Afgifter og Moms'!$O$5:$Y$34,'Oversættelse af landenavne'!E32,FALSE) -> 0.00705 | N100: ='Oversættelse af landenavne'!$B32 -> Finland | O100: =HLOOKUP($E$12,'Level 1'!$AB$5:$AL$34,'Oversættelse af landenavne'!E32,FALSE) -> 0.0636 | P100: =HLOOKUP($E$12,'Afgifter og Moms'!$AB$5:$AL$34,'Oversættelse af landenavne'!E32,FALSE) -> 0.00705 | S100: ='Oversættelse af landenavne'!$B32 -> Finland | T100: =HLOOKUP($E$12,'Level 1'!$AO$5:$AY$34,'Oversættelse af landenavne'!E32,FALSE) -> 0.06015 | U100: =HLOOKUP($E$12,'Afgifter og Moms'!$AO$5:$AY$34,'Oversættelse af landenavne'!E32,FALSE) -> 0.00705 | X100: ='Oversættelse af landenavne'!$B32 -> Finland | Y100: =HLOOKUP($E$12,'Level 1'!$BB$5:$BL$34,'Oversættelse af landenavne'!$E32,FALSE) -> 0.04605 | Z100: =HLOOKUP($E$12,'Afgifter og Moms'!$BB$5:$BL$34,'Oversættelse af landenavne'!$E32,FALSE) -> 0.00705 | AD100: ='Oversættelse af landenavne'!$B32 -> Finland | AE100: =HLOOKUP($E$12,'Level 1'!$BO$5:$BY$34,'Oversættelse af landenavne'!$E32,FALSE) -> 0.0436 | AF100: =HLOOKUP($E$12,'Afgifter og Moms'!$BO$5:$BY$34,'Oversættelse af landenavne'!$E32,FALSE) -> 0.00705 | AI100: ='Oversættelse af landenavne'!$B32 -> Finland | AJ100: =HLOOKUP($E$12,'Level 1'!$CB$5:$CL$34,'Oversættelse af landenavne'!$E32,FALSE) -> * | AK100: =HLOOKUP($E$12,'Afgifter og Moms'!$CB$5:$CL$34,'Oversættelse af landenavne'!$E32,FALSE) -> *
D101: ='Oversættelse af landenavne'!$B33 -> Sverige | E101: =HLOOKUP($E$12,'Level 1'!$B$5:$L$34,'Oversættelse af landenavne'!$E33,FALSE) -> 0.1354 | F101: =HLOOKUP($E$12,'Afgifter og Moms'!$B$5:$L$34,'Oversættelse af landenavne'!$E33,FALSE) -> 0.0005 | I101: ='Oversættelse af landenavne'!$B33 -> Sverige | J101: =HLOOKUP($E$12,'Level 1'!$O$5:$Y$34,'Oversættelse af landenavne'!$E33,FALSE) -> 0.07065 | K101: =HLOOKUP($E$12,'Afgifter og Moms'!$O$5:$Y$34,'Oversættelse af landenavne'!E33,FALSE) -> 0.0005 | N101: ='Oversættelse af landenavne'!$B33 -> Sverige | O101: =HLOOKUP($E$12,'Level 1'!$AB$5:$AL$34,'Oversættelse af landenavne'!E33,FALSE) -> 0.0601 | P101: =HLOOKUP($E$12,'Afgifter og Moms'!$AB$5:$AL$34,'Oversættelse af landenavne'!E33,FALSE) -> 0.0005 | S101: ='Oversættelse af landenavne'!$B33 -> Sverige | T101: =HLOOKUP($E$12,'Level 1'!$AO$5:$AY$34,'Oversættelse af landenavne'!E33,FALSE) -> 0.05245 | U101: =HLOOKUP($E$12,'Afgifter og Moms'!$AO$5:$AY$34,'Oversættelse af landenavne'!E33,FALSE) -> 0.00055 | X101: ='Oversættelse af landenavne'!$B33 -> Sverige | Y101: =HLOOKUP($E$12,'Level 1'!$BB$5:$BL$34,'Oversættelse af landenavne'!$E33,FALSE) -> 0.0458 | Z101: =HLOOKUP($E$12,'Afgifter og Moms'!$BB$5:$BL$34,'Oversættelse af landenavne'!$E33,FALSE) -> 0.0005 | AD101: ='Oversættelse af landenavne'!$B33 -> Sverige | AE101: =HLOOKUP($E$12,'Level 1'!$BO$5:$BY$34,'Oversættelse af landenavne'!$E33,FALSE) -> 0.0375 | AF101: =HLOOKUP($E$12,'Afgifter og Moms'!$BO$5:$BY$34,'Oversættelse af landenavne'!$E33,FALSE) -> 0.0006 | AI101: ='Oversættelse af landenavne'!$B33 -> Sverige | AJ101: =HLOOKUP($E$12,'Level 1'!$CB$5:$CL$34,'Oversættelse af landenavne'!$E33,FALSE) -> * | AK101: =HLOOKUP($E$12,'Afgifter og Moms'!$CB$5:$CL$34,'Oversættelse af landenavne'!$E33,FALSE) -> *
D102: ='Oversættelse af landenavne'!$B34 -> UK | E102: =HLOOKUP($E$12,'Level 1'!$B$5:$L$34,'Oversættelse af landenavne'!$E34,FALSE) -> 0.17925 | F102: =HLOOKUP($E$12,'Afgifter og Moms'!$B$5:$L$34,'Oversættelse af landenavne'!$E34,FALSE) -> 0.0049 | I102: ='Oversættelse af landenavne'!$B34 -> UK | J102: =HLOOKUP($E$12,'Level 1'!$O$5:$Y$34,'Oversættelse af landenavne'!$E34,FALSE) -> 0.1624 | K102: =HLOOKUP($E$12,'Afgifter og Moms'!$O$5:$Y$34,'Oversættelse af landenavne'!E34,FALSE) -> 0.00605 | N102: ='Oversættelse af landenavne'!$B34 -> UK | O102: =HLOOKUP($E$12,'Level 1'!$AB$5:$AL$34,'Oversættelse af landenavne'!E34,FALSE) -> 0.14485 | P102: =HLOOKUP($E$12,'Afgifter og Moms'!$AB$5:$AL$34,'Oversættelse af landenavne'!E34,FALSE) -> 0.0056 | S102: ='Oversættelse af landenavne'!$B34 -> UK | T102: =HLOOKUP($E$12,'Level 1'!$AO$5:$AY$34,'Oversættelse af landenavne'!E34,FALSE) -> 0.13425 | U102: =HLOOKUP($E$12,'Afgifter og Moms'!$AO$5:$AY$34,'Oversættelse af landenavne'!E34,FALSE) -> 0.00405 | X102: ='Oversættelse af landenavne'!$B34 -> UK | Y102: =HLOOKUP($E$12,'Level 1'!$BB$5:$BL$34,'Oversættelse af landenavne'!$E34,FALSE) -> 0.13185 | Z102: =HLOOKUP($E$12,'Afgifter og Moms'!$BB$5:$BL$34,'Oversættelse af landenavne'!$E34,FALSE) -> 0.0029 | AD102: ='Oversættelse af landenavne'!$B34 -> UK | AE102: =HLOOKUP($E$12,'Level 1'!$BO$5:$BY$34,'Oversættelse af landenavne'!$E34,FALSE) -> 0.12845 | AF102: =HLOOKUP($E$12,'Afgifter og Moms'!$BO$5:$BY$34,'Oversættelse af landenavne'!$E34,FALSE) -> 0.00295 | AI102: ='Oversættelse af landenavne'!$B34 -> UK | AJ102: =HLOOKUP($E$12,'Level 1'!$CB$5:$CL$34,'Oversættelse af landenavne'!$E34,FALSE) -> 0.12485 | AK102: =HLOOKUP($E$12,'Afgifter og Moms'!$CB$5:$CL$34,'Oversættelse af landenavne'!$E34,FALSE) -> 0.00255
D103: Level 1 | I103: Level 1 | N103: Level 1 | S103: Level 1 | X103: Level 1 | AD103: Level 1 | AI103: Level 1
D104: Level 2 | I104: Level 2 | N104: Level 2 | S104: Level 2 | X104: Level 2 | AD104: Level 2 | AI104: Level 2
D110: Herunder vises de tabeller der er resultatet er valgene truffet øverst i valgmenuen
D113: Tabel B - BVT Deflatoren | H113: Tabel C
D114: Tabel B fremkommer som resultat af valgene truffet for faste/løbende priser og basisår. BVT deflatoren vises for samtlige lande for det valgte år. Væles løbende priser deflaterer man ikke, hvorfor der vil stå et 1-tal i alle celler. Formlen gør at "fejlværdien" svarer til at man har valgt løbende priser (gælder både for overskrift og formler). Med denne metode kan indeksværdien ganges direkte på rådata uanset hvilken valuta der vælges. | H114: Tabel C viser hvilken kurs der ganges på rådata (opgivet i euro) for at få priserne vist i den valuta der er valgt i valgmenuen øverst. Kursen ændres efter valgt år og valuta.
E116: =IF(E13="faste priser","BVT deflatoenfor år "&E12&" med basisåret "&E14&"","Prisindeks for løbende priser år "&E12) -> BVT deflatoenfor år 2015 med basisåret 2016 | H116: ="Valutakursen for "&E15&" i fht. Euro år "&E12 -> Valutakursen for Euro i fht. Euro år 2015
D117: ='Baggrundsdata - BVT - deflator'!B18 -> European Union (28 countries) | E117: =IF($E$13="faste priser",HLOOKUP($E$12,'Baggrundsdata - BVT - deflator'!$C$17:$M$46,'Oversættelse af landenavne'!$E6,FALSE),1) -> 0.9724740186 | H117: =IF($E$15="Euro",1,IF($E$15="eurocent",100,IF($E$15="DKK øre",HLOOKUP(E12,Forside!$E$55:$M$56,2,FALSE),IF($E$15="DKK",((HLOOKUP(E12,Forside!$E$55:$M$56,2,FALSE))/100),"F")))) -> 1
D118: ='Baggrundsdata - BVT - deflator'!B19 -> Belgium | E118: =IF($E$13="faste priser",HLOOKUP($E$12,'Baggrundsdata - BVT - deflator'!$C$17:$M$46,'Oversættelse af landenavne'!$E7,FALSE),1) -> 0.9914112496
D119: ='Baggrundsdata - BVT - deflator'!B20 -> Bulgaria | E119: =IF($E$13="faste priser",HLOOKUP($E$12,'Baggrundsdata - BVT - deflator'!$C$17:$M$46,'Oversættelse af landenavne'!$E8,FALSE),1) -> 0.99848073
D120: ='Baggrundsdata - BVT - deflator'!B21 -> Czech Republic | E120: =IF($E$13="faste priser",HLOOKUP($E$12,'Baggrundsdata - BVT - deflator'!$C$17:$M$46,'Oversættelse af landenavne'!$E9,FALSE),1) -> 0.983474219
D121: ='Baggrundsdata - BVT - deflator'!B22 -> Denmark | E121: =IF($E$13="faste priser",HLOOKUP($E$12,'Baggrundsdata - BVT - deflator'!$C$17:$M$46,'Oversættelse af landenavne'!$E10,FALSE),1) -> 0.9875889166
D122: ='Baggrundsdata - BVT - deflator'!B23 -> Germany (until 1990 former territory of the FRG) | E122: =IF($E$13="faste priser",HLOOKUP($E$12,'Baggrundsdata - BVT - deflator'!$C$17:$M$46,'Oversættelse af landenavne'!$E11,FALSE),1) -> 0.9782542872
D123: ='Baggrundsdata - BVT - deflator'!B24 -> Estonia | E123: =IF($E$13="faste priser",HLOOKUP($E$12,'Baggrundsdata - BVT - deflator'!$C$17:$M$46,'Oversættelse af landenavne'!$E12,FALSE),1) -> 0.9857573526
D124: ='Baggrundsdata - BVT - deflator'!B25 -> Ireland | E124: =IF($E$13="faste priser",HLOOKUP($E$12,'Baggrundsdata - BVT - deflator'!$C$17:$M$46,'Oversættelse af landenavne'!$E13,FALSE),1) -> 0.9446985816
D125: ='Baggrundsdata - BVT - deflator'!B26 -> Greece | E125: =IF($E$13="faste priser",HLOOKUP($E$12,'Baggrundsdata - BVT - deflator'!$C$17:$M$46,'Oversættelse af landenavne'!$E14,FALSE),1) -> 1.013550077
D126: ='Baggrundsdata - BVT - deflator'!B27 -> Spain | E126: =IF($E$13="faste priser",HLOOKUP($E$12,'Baggrundsdata - BVT - deflator'!$C$17:$M$46,'Oversættelse af landenavne'!$E15,FALSE),1) -> 0.9973093899
D127: ='Baggrundsdata - BVT - deflator'!B28 -> France | E127: =IF($E$13="faste priser",HLOOKUP($E$12,'Baggrundsdata - BVT - deflator'!$C$17:$M$46,'Oversættelse af landenavne'!$E16,FALSE),1) -> 0.9877958187
D128: ='Baggrundsdata - BVT - deflator'!B29 -> Croatia | E128: =IF($E$13="faste priser",HLOOKUP($E$12,'Baggrundsdata - BVT - deflator'!$C$17:$M$46,'Oversættelse af landenavne'!$E17,FALSE),1) -> 0.9995841279
D129: ='Baggrundsdata - BVT - deflator'!B30 -> Italy | E129: =IF($E$13="faste priser",HLOOKUP($E$12,'Baggrundsdata - BVT - deflator'!$C$17:$M$46,'Oversættelse af landenavne'!$E18,FALSE),1) -> 0.991677947
D130: ='Baggrundsdata - BVT - deflator'!B31 -> Cyprus | E130: =IF($E$13="faste priser",HLOOKUP($E$12,'Baggrundsdata - BVT - deflator'!$C$17:$M$46,'Oversættelse af landenavne'!$E19,FALSE),1) -> 1.013782374
D131: ='Baggrundsdata - BVT - deflator'!B32 -> Latvia | E131: =IF($E$13="faste priser",HLOOKUP($E$12,'Baggrundsdata - BVT - deflator'!$C$17:$M$46,'Oversættelse af landenavne'!$E20,FALSE),1) -> 0.9934108864
D132: ='Baggrundsdata - BVT - deflator'!B33 -> Lithuania | E132: =IF($E$13="faste priser",HLOOKUP($E$12,'Baggrundsdata - BVT - deflator'!$C$17:$M$46,'Oversættelse af landenavne'!$E21,FALSE),1) -> 1.002218475
D133: ='Baggrundsdata - BVT - deflator'!B34 -> Luxembourg | E133: =IF($E$13="faste priser",HLOOKUP($E$12,'Baggrundsdata - BVT - deflator'!$C$17:$M$46,'Oversættelse af landenavne'!$E22,FALSE),1) -> 0.9712333972
D134: ='Baggrundsdata - BVT - deflator'!B35 -> Hungary | E134: =IF($E$13="faste priser",HLOOKUP($E$12,'Baggrundsdata - BVT - deflator'!$C$17:$M$46,'Oversættelse af landenavne'!$E23,FALSE),1) -> 0.9921149536
D135: ='Baggrundsdata - BVT - deflator'!B36 -> Malta | E135: =IF($E$13="faste priser",HLOOKUP($E$12,'Baggrundsdata - BVT - deflator'!$C$17:$M$46,'Oversættelse af landenavne'!$E24,FALSE),1) -> *
D136: ='Baggrundsdata - BVT - deflator'!B37 -> Netherlands | E136: =IF($E$13="faste priser",HLOOKUP($E$12,'Baggrundsdata - BVT - deflator'!$C$17:$M$46,'Oversættelse af landenavne'!$E25,FALSE),1) -> 0.9949488608
D137: ='Baggrundsdata - BVT - deflator'!B38 -> Austria | E137: =IF($E$13="faste priser",HLOOKUP($E$12,'Baggrundsdata - BVT - deflator'!$C$17:$M$46,'Oversættelse af landenavne'!$E26,FALSE),1) -> 0.9848437385
D138: ='Baggrundsdata - BVT - deflator'!B39 -> Poland | E138: =IF($E$13="faste priser",HLOOKUP($E$12,'Baggrundsdata - BVT - deflator'!$C$17:$M$46,'Oversættelse af landenavne'!$E27,FALSE),1) -> 0.9934891664
D139: ='Baggrundsdata - BVT - deflator'!B40 -> Portugal | E139: =IF($E$13="faste priser",HLOOKUP($E$12,'Baggrundsdata - BVT - deflator'!$C$17:$M$46,'Oversættelse af landenavne'!$E28,FALSE),1) -> 0.9829598346
D140: ='Baggrundsdata - BVT - deflator'!B41 -> Romania | E140: =IF($E$13="faste priser",HLOOKUP($E$12,'Baggrundsdata - BVT - deflator'!$C$17:$M$46,'Oversættelse af landenavne'!$E29,FALSE),1) -> 0.9758979843
D141: ='Baggrundsdata - BVT - deflator'!B42 -> Slovenia | E141: =IF($E$13="faste priser",HLOOKUP($E$12,'Baggrundsdata - BVT - deflator'!$C$17:$M$46,'Oversættelse af landenavne'!$E30,FALSE),1) -> 0.9953598345
D142: ='Baggrundsdata - BVT - deflator'!B43 -> Slovakia | E142: =IF($E$13="faste priser",HLOOKUP($E$12,'Baggrundsdata - BVT - deflator'!$C$17:$M$46,'Oversættelse af landenavne'!$E31,FALSE),1) -> 1.002640725
D143: ='Baggrundsdata - BVT - deflator'!B44 -> Finland | E143: =IF($E$13="faste priser",HLOOKUP($E$12,'Baggrundsdata - BVT - deflator'!$C$17:$M$46,'Oversættelse af landenavne'!$E32,FALSE),1) -> 0.9965617657
D144: ='Baggrundsdata - BVT - deflator'!B45 -> Sweden | E144: =IF($E$13="faste priser",HLOOKUP($E$12,'Baggrundsdata - BVT - deflator'!$C$17:$M$46,'Oversættelse af landenavne'!$E33,FALSE),1) -> 1.007349719
D145: ='Baggrundsdata - BVT - deflator'!B46 -> United Kingdom | E145: =IF($E$13="faste priser",HLOOKUP($E$12,'Baggrundsdata - BVT - deflator'!$C$17:$M$46,'Oversættelse af landenavne'!$E34,FALSE),1) -> 0.897657737

Sheet Baggrundsdata - BVT - deflator
B1: Samlet BVT-deflator for forskellige basisår
B2: NAVN PÅ ARK: | C2: Baggrundsdata - BVT deflator
B3: Data hentes fra: | C3: Kun baggrundsdata længere nede på BVT arket benyttes
B5: Sådan bruges arket:
B6: ="Arket 'Baggrundsdata -BVT deflator' viser deflatoren for det enkelte land i det enkte år for "&C17&" til "&I17&". Basisået retter sig efter de valg der er truffuet i akrene '"&'Udvalgte lande, 10 års oversigt'!E1&"' og ' "&'Alle lande, valgt år'!F1&"'" -> Arket 'Baggrundsdata -BVT deflator' viser deflatoren for det enkelte land i det enkte år for 2007 til 2013. Basisået retter sig efter de valg der er truffuet i akrene 'Udvalgte lande, 10 års oversigt' og ' Alle lande, valgt år'
B7: Nederst i arket er der en baggrundsdata tabel med rådata fra eurostat. De øverste tabeller er bearbejdet og fungerer som baggrundsdata for deflatortabellerne (de røde) i ovennævnte ark. Der træffes ingen valg i arket, det bruges som baggrundsdata og til at kontrollere at man har trukket korrekt data.
B9: BVT-indekset er hentet for alle erhverv samlet (Total - all NACE acticities)
B12: Baggrundsdata til tabel B i arket 'Baggrundstabeller for alle lande, valgt år' | R12: Baggrundsdata til tabel B i arket 'Udvalgte lande, 7 års oversigt'
B13: Baggrundstal til tabel B: BVT-deflator for forskellige basisår | R13: Baggrundstal til tabel B: BVT-deflator for forskellige basisår
B15: Vælg Basisår | C15: ='Alle lande, valgt år'!F14 -> 2016 | R15: Valgt Basisår | S15: ='Udvalgte lande, 10 års oversigt'!E14 -> 2016
B17: Dansk | C17: ='Baggrundsdata - BVT - deflator'!B67+0 -> 2007 | D17: ='Baggrundsdata - BVT - deflator'!C67+0 -> 2008 | E17: ='Baggrundsdata - BVT - deflator'!D67+0 -> 2009 | F17: ='Baggrundsdata - BVT - deflator'!E67+0 -> 2010 | G17: ='Baggrundsdata - BVT - deflator'!F67+0 -> 2011 | H17: ='Baggrundsdata - BVT - deflator'!G67+0 -> 2012 | I17: ='Baggrundsdata - BVT - deflator'!H67+0 -> 2013 | J17: ='Baggrundsdata - BVT - deflator'!I67+0 -> 2014 | K17: ='Baggrundsdata - BVT - deflator'!J67+0 -> 2015 | L17: ='Baggrundsdata - BVT - deflator'!K67+0 -> 2016 | M17: ='Baggrundsdata - BVT - deflator'!L67+0 -> 2017 | O17: Tjek: Er BVT trukket for de korrekte lande (jf. level 1) | R17: Dansk | S17: ='Baggrundsdata - BVT - deflator'!C17+0 -> 2007 | T17: ='Baggrundsdata - BVT - deflator'!D17+0 -> 2008 | U17: ='Baggrundsdata - BVT - deflator'!E17+0 -> 2009 | V17: ='Baggrundsdata - BVT - deflator'!F17+0 -> 2010 | W17: ='Baggrundsdata - BVT - deflator'!G17+0 -> 2011 | X17: ='Baggrundsdata - BVT - deflator'!H17+0 -> 2012 | Y17: ='Baggrundsdata - BVT - deflator'!I17+0 -> 2013 | Z17: ='Baggrundsdata - BVT - deflator'!J17+0 -> 2014 | AA17: ='Baggrundsdata - BVT - deflator'!K17+0 -> 2015 | AB17: ='Baggrundsdata - BVT - deflator'!L17+0 -> 2016 | AC17: ='Baggrundsdata - BVT - deflator'!M17+0 -> 2017 | AE17: Tjek: Er BVT trukket for de korrekte lande (jf liste på forsiden)
B18: =A68 -> European Union (28 countries) | C18: =IFERROR('Baggrundsdata - BVT - deflator'!B68/IF($M$17=$C$15,$L68,IF($L$17=$C$15,$K68,IF($K$17=$C$15,$J68,IF($J$17=$C$15,$I68,IF($I$17=$C$15,'Baggrundsdata - BVT - deflator'!$H68,IF($H$17=$C$15,'Baggrundsdata - BVT - deflator'!$G68,IF($C$15=$G$17,'Baggrundsdata - BVT - deflator'!$F68,IF($F$17=$C$15,'Baggrundsdata - BVT - deflator'!$E68,IF($E$17=$C$15,'Baggrundsdata - BVT - deflator'!$D68,IF($D$17=$C$15,'Baggrundsdata - BVT - deflator'!$C68,IF('Baggrundsdata - BVT - deflator'!$C$17='Baggrundsdata - BVT - deflator'!$C$15,'Baggrundsdata - BVT - deflator'!$B68,"*"))))))))))),"*") -> 0.8866271333 | D18: =IFERROR('Baggrundsdata - BVT - deflator'!C68/IF($M$17=$C$15,$L68,IF($L$17=$C$15,$K68,IF($K$17=$C$15,$J68,IF($J$17=$C$15,$I68,IF($I$17=$C$15,'Baggrundsdata - BVT - deflator'!$H68,IF($H$17=$C$15,'Baggrundsdata - BVT - deflator'!$G68,IF($C$15=$G$17,'Baggrundsdata - BVT - deflator'!$F68,IF($F$17=$C$15,'Baggrundsdata - BVT - deflator'!$E68,IF($E$17=$C$15,'Baggrundsdata - BVT - deflator'!$D68,IF($D$17=$C$15,'Baggrundsdata - BVT - deflator'!$C68,IF('Baggrundsdata - BVT - deflator'!$C$17='Baggrundsdata - BVT - deflator'!$C$15,'Baggrundsdata - BVT - deflator'!$B68,"*"))))))))))),"*") -> 0.8895595403 | E18: =IFERROR('Baggrundsdata - BVT - deflator'!D68/IF($M$17=$C$15,$L68,IF($L$17=$C$15,$K68,IF($K$17=$C$15,$J68,IF($J$17=$C$15,$I68,IF($I$17=$C$15,'Baggrundsdata - BVT - deflator'!$H68,IF($H$17=$C$15,'Baggrundsdata - BVT - deflator'!$G68,IF($C$15=$G$17,'Baggrundsdata - BVT - deflator'!$F68,IF($F$17=$C$15,'Baggrundsdata - BVT - deflator'!$E68,IF($E$17=$C$15,'Baggrundsdata - BVT - deflator'!$D68,IF($D$17=$C$15,'Baggrundsdata - BVT - deflator'!$C68,IF('Baggrundsdata - BVT - deflator'!$C$17='Baggrundsdata - BVT - deflator'!$C$15,'Baggrundsdata - BVT - deflator'!$B68,"*"))))))))))),"*") -> 0.8809058012 | F18: =IFERROR('Baggrundsdata - BVT - deflator'!E68/IF($M$17=$C$15,$L68,IF($L$17=$C$15,$K68,IF($K$17=$C$15,$J68,IF($J$17=$C$15,$I68,IF($I$17=$C$15,'Baggrundsdata - BVT - deflator'!$H68,IF($H$17=$C$15,'Baggrundsdata - BVT - deflator'!$G68,IF($C$15=$G$17,'Baggrundsdata - BVT - deflator'!$F68,IF($F$17=$C$15,'Baggrundsdata - BVT - deflator'!$E68,IF($E$17=$C$15,'Baggrundsdata - BVT - deflator'!$D68,IF($D$17=$C$15,'Baggrundsdata - BVT - deflator'!$C68,IF('Baggrundsdata - BVT - deflator'!$C$17='Baggrundsdata - BVT - deflator'!$C$15,'Baggrundsdata - BVT - deflator'!$B68,"*"))))))))))),"*") -> 0.8967605273 | G18: =IFERROR('Baggrundsdata - BVT - deflator'!F68/IF($M$17=$C$15,$L68,IF($L$17=$C$15,$K68,IF($K$17=$C$15,$J68,IF($J$17=$C$15,$I68,IF($I$17=$C$15,'Baggrundsdata - BVT - deflator'!$H68,IF($H$17=$C$15,'Baggrundsdata - BVT - deflator'!$G68,IF($C$15=$G$17,'Baggrundsdata - BVT - deflator'!$F68,IF($F$17=$C$15,'Baggrundsdata - BVT - deflator'!$E68,IF($E$17=$C$15,'Baggrundsdata - BVT - deflator'!$D68,IF($D$17=$C$15,'Baggrundsdata - BVT - deflator'!$C68,IF('Baggrundsdata - BVT - deflator'!$C$17='Baggrundsdata - BVT - deflator'!$C$15,'Baggrundsdata - BVT - deflator'!$B68,"*"))))))))))),"*") -> 0.9053694284 | H18: =IFERROR('Baggrundsdata - BVT - deflator'!G68/IF($M$17=$C$15,$L68,IF($L$17=$C$15,$K68,IF($K$17=$C$15,$J68,IF($J$17=$C$15,$I68,IF($I$17=$C$15,'Baggrundsdata - BVT - deflator'!$H68,IF($H$17=$C$15,'Baggrundsdata - BVT - deflator'!$G68,IF($C$15=$G$17,'Baggrundsdata - BVT - deflator'!$F68,IF($F$17=$C$15,'Baggrundsdata - BVT - deflator'!$E68,IF($E$17=$C$15,'Baggrundsdata - BVT - deflator'!$D68,IF($D$17=$C$15,'Baggrundsdata - BVT - deflator'!$C68,IF('Baggrundsdata - BVT - deflator'!$C$17='Baggrundsdata - BVT - deflator'!$C$15,'Baggrundsdata - BVT - deflator'!$B68,"*"))))))))))),"*") -> 0.9260935641 | I18: =IFERROR('Baggrundsdata - BVT - deflator'!H68/IF($M$17=$C$15,$L68,IF($L$17=$C$15,$K68,IF($K$17=$C$15,$J68,IF($J$17=$C$15,$I68,IF($I$17=$C$15,'Baggrundsdata - BVT - deflator'!$H68,IF($H$17=$C$15,'Baggrundsdata - BVT - deflator'!$G68,IF($C$15=$G$17,'Baggrundsdata - BVT - deflator'!$F68,IF($F$17=$C$15,'Baggrundsdata - BVT - deflator'!$E68,IF($E$17=$C$15,'Baggrundsdata - BVT - deflator'!$D68,IF($D$17=$C$15,'Baggrundsdata - BVT - deflator'!$C68,IF('Baggrundsdata - BVT - deflator'!$C$17='Baggrundsdata - BVT - deflator'!$C$15,'Baggrundsdata - BVT - deflator'!$B68,"*"))))))))))),"*") -> 0.9310885203 | J18: =IFERROR('Baggrundsdata - BVT - deflator'!I68/IF($M$17=$C$15,$L68,IF($L$17=$C$15,$K68,IF($K$17=$C$15,$J68,IF($J$17=$C$15,$I68,IF($I$17=$C$15,'Baggrundsdata - BVT - deflator'!$H68,IF($H$17=$C$15,'Baggrundsdata - BVT - deflator'!$G68,IF($C$15=$G$17,'Baggrundsdata - BVT - deflator'!$F68,IF($F$17=$C$15,'Baggrundsdata - BVT - deflator'!$E68,IF($E$17=$C$15,'Baggrundsdata - BVT - deflator'!$D68,IF($D$17=$C$15,'Baggrundsdata - BVT - deflator'!$C68,IF('Baggrundsdata - BVT - deflator'!$C$17='Baggrundsdata - BVT - deflator'!$C$15,'Baggrundsdata - BVT - deflator'!$B68,"*"))))))))))),"*") -> 0.9457057169 | K18: =IFERROR('Baggrundsdata - BVT - deflator'!J68/IF($M$17=$C$15,$L68,IF($L$17=$C$15,$K68,IF($K$17=$C$15,$J68,IF($J$17=$C$15,$I68,IF($I$17=$C$15,'Baggrundsdata - BVT - deflator'!$H68,IF($H$17=$C$15,'Baggrundsdata - BVT - deflator'!$G68,IF($C$15=$G$17,'Baggrundsdata - BVT - deflator'!$F68,IF($F$17=$C$15,'Baggrundsdata - BVT - deflator'!$E68,IF($E$17=$C$15,'Baggrundsdata - BVT - deflator'!$D68,IF($D$17=$C$15,'Baggrundsdata - BVT - deflator'!$C68,IF('Baggrundsdata - BVT - deflator'!$C$17='Baggrundsdata - BVT - deflator'!$C$15,'Baggrundsdata - BVT - deflator'!$B68,"*"))))))))))),"*") -> 0.9724740186 | L18: =IFERROR('Baggrundsdata - BVT - deflator'!K68/IF($M$17=$C$15,$L68,IF($L$17=$C$15,$K68,IF($K$17=$C$15,$J68,IF($J$17=$C$15,$I68,IF($I$17=$C$15,'Baggrundsdata - BVT - deflator'!$H68,IF($H$17=$C$15,'Baggrundsdata - BVT - deflator'!$G68,IF($C$15=$G$17,'Baggrundsdata - BVT - deflator'!$F68,IF($F$17=$C$15,'Baggrundsdata - BVT - deflator'!$E68,IF($E$17=$C$15,'Baggrundsdata - BVT - deflator'!$D68,IF($D$17=$C$15,'Baggrundsdata - BVT - deflator'!$C68,IF('Baggrundsdata - BVT - deflator'!$C$17='Baggrundsdata - BVT - deflator'!$C$15,'Baggrundsdata - BVT - deflator'!$B68,"*"))))))))))),"*") -> 1 | M18: =IFERROR('Baggrundsdata - BVT - deflator'!L68/IF($M$17=$C$15,$L68,IF($L$17=$C$15,$K68,IF($K$17=$C$15,$J68,IF($J$17=$C$15,$I68,IF($I$17=$C$15,'Baggrundsdata - BVT - deflator'!$H68,IF($H$17=$C$15,'Baggrundsdata - BVT - deflator'!$G68,IF($C$15=$G$17,'Baggrundsdata - BVT - deflator'!$F68,IF($F$17=$C$15,'Baggrundsdata - BVT - deflator'!$E68,IF($E$17=$C$15,'Baggrundsdata - BVT - deflator'!$D68,IF($D$17=$C$15,'Baggrundsdata - BVT - deflator'!$C68,IF('Baggrundsdata - BVT - deflator'!$C$17='Baggrundsdata - BVT - deflator'!$C$15,'Baggrundsdata - BVT - deflator'!$B68,"*"))))))))))),"*") -> 0 | O18: =IF(A68='Level 1'!A51,"sand","falsk") -> sand | R18: EU-28 | S18: =IFERROR('Baggrundsdata - BVT - deflator'!B68/IF($AC$17=$S$15,$L68,IF($AB$17=$S$15,$K68,IF($AA$17=$S$15,$J68,IF($Z$17=$S$15,$I68,IF($Y$17=$S$15,'Baggrundsdata - BVT - deflator'!$H68,IF($X$17=$S$15,'Baggrundsdata - BVT - deflator'!$G68,IF($S$15=$W$17,'Baggrundsdata - BVT - deflator'!$F68,IF($V$17=$S$15,'Baggrundsdata - BVT - deflator'!$E68,IF($U$17=$S$15,'Baggrundsdata - BVT - deflator'!$D68,IF($T$17=$S$15,'Baggrundsdata - BVT - deflator'!$C68,IF($S$17=$S$15,'Baggrundsdata - BVT - deflator'!$B68,"*"))))))))))),"*") -> 0.8866271333 | T18: =IFERROR('Baggrundsdata - BVT - deflator'!C68/IF($AC$17=$S$15,$L68,IF($AB$17=$S$15,$K68,IF($AA$17=$S$15,$J68,IF($Z$17=$S$15,$I68,IF($Y$17=$S$15,'Baggrundsdata - BVT - deflator'!$H68,IF($X$17=$S$15,'Baggrundsdata - BVT - deflator'!$G68,IF($S$15=$W$17,'Baggrundsdata - BVT - deflator'!$F68,IF($V$17=$S$15,'Baggrundsdata - BVT - deflator'!$E68,IF($U$17=$S$15,'Baggrundsdata - BVT - deflator'!$D68,IF($T$17=$S$15,'Baggrundsdata - BVT - deflator'!$C68,IF($S$17=$S$15,'Baggrundsdata - BVT - deflator'!$B68,"*"))))))))))),"*") -> 0.8895595403 | U18: =IFERROR('Baggrundsdata - BVT - deflator'!D68/IF($AC$17=$S$15,$L68,IF($AB$17=$S$15,$K68,IF($AA$17=$S$15,$J68,IF($Z$17=$S$15,$I68,IF($Y$17=$S$15,'Baggrundsdata - BVT - deflator'!$H68,IF($X$17=$S$15,'Baggrundsdata - BVT - deflator'!$G68,IF($S$15=$W$17,'Baggrundsdata - BVT - deflator'!$F68,IF($V$17=$S$15,'Baggrundsdata - BVT - deflator'!$E68,IF($U$17=$S$15,'Baggrundsdata - BVT - deflator'!$D68,IF($T$17=$S$15,'Baggrundsdata - BVT - deflator'!$C68,IF($S$17=$S$15,'Baggrundsdata - BVT - deflator'!$B68,"*"))))))))))),"*") -> 0.8809058012 | V18: =IFERROR('Baggrundsdata - BVT - deflator'!E68/IF($AC$17=$S$15,$L68,IF($AB$17=$S$15,$K68,IF($AA$17=$S$15,$J68,IF($Z$17=$S$15,$I68,IF($Y$17=$S$15,'Baggrundsdata - BVT - deflator'!$H68,IF($X$17=$S$15,'Baggrundsdata - BVT - deflator'!$G68,IF($S$15=$W$17,'Baggrundsdata - BVT - deflator'!$F68,IF($V$17=$S$15,'Baggrundsdata - BVT - deflator'!$E68,IF($U$17=$S$15,'Baggrundsdata - BVT - deflator'!$D68,IF($T$17=$S$15,'Baggrundsdata - BVT - deflator'!$C68,IF($S$17=$S$15,'Baggrundsdata - BVT - deflator'!$B68,"*"))))))))))),"*") -> 0.8967605273 | W18: =IFERROR('Baggrundsdata - BVT - deflator'!F68/IF($AC$17=$S$15,$L68,IF($AB$17=$S$15,$K68,IF($AA$17=$S$15,$J68,IF($Z$17=$S$15,$I68,IF($Y$17=$S$15,'Baggrundsdata - BVT - deflator'!$H68,IF($X$17=$S$15,'Baggrundsdata - BVT - deflator'!$G68,IF($S$15=$W$17,'Baggrundsdata - BVT - deflator'!$F68,IF($V$17=$S$15,'Baggrundsdata - BVT - deflator'!$E68,IF($U$17=$S$15,'Baggrundsdata - BVT - deflator'!$D68,IF($T$17=$S$15,'Baggrundsdata - BVT - deflator'!$C68,IF($S$17=$S$15,'Baggrundsdata - BVT - deflator'!$B68,"*"))))))))))),"*") -> 0.9053694284 | X18: =IFERROR('Baggrundsdata - BVT - deflator'!G68/IF($AC$17=$S$15,$L68,IF($AB$17=$S$15,$K68,IF($AA$17=$S$15,$J68,IF($Z$17=$S$15,$I68,IF($Y$17=$S$15,'Baggrundsdata - BVT - deflator'!$H68,IF($X$17=$S$15,'Baggrundsdata - BVT - deflator'!$G68,IF($S$15=$W$17,'Baggrundsdata - BVT - deflator'!$F68,IF($V$17=$S$15,'Baggrundsdata - BVT - deflator'!$E68,IF($U$17=$S$15,'Baggrundsdata - BVT - deflator'!$D68,IF($T$17=$S$15,'Baggrundsdata - BVT - deflator'!$C68,IF($S$17=$S$15,'Baggrundsdata - BVT - deflator'!$B68,"*"))))))))))),"*") -> 0.9260935641 | Y18: =IFERROR('Baggrundsdata - BVT - deflator'!H68/IF($AC$17=$S$15,$L68,IF($AB$17=$S$15,$K68,IF($AA$17=$S$15,$J68,IF($Z$17=$S$15,$I68,IF($Y$17=$S$15,'Baggrundsdata - BVT - deflator'!$H68,IF($X$17=$S$15,'Baggrundsdata - BVT - deflator'!$G68,IF($S$15=$W$17,'Baggrundsdata - BVT - deflator'!$F68,IF($V$17=$S$15,'Baggrundsdata - BVT - deflator'!$E68,IF($U$17=$S$15,'Baggrundsdata - BVT - deflator'!$D68,IF($T$17=$S$15,'Baggrundsdata - BVT - deflator'!$C68,IF($S$17=$S$15,'Baggrundsdata - BVT - deflator'!$B68,"*"))))))))))),"*") -> 0.9310885203 | Z18: =IFERROR('Baggrundsdata - BVT - deflator'!I68/IF($AC$17=$S$15,$L68,IF($AB$17=$S$15,$K68,IF($AA$17=$S$15,$J68,IF($Z$17=$S$15,$I68,IF($Y$17=$S$15,'Baggrundsdata - BVT - deflator'!$H68,IF($X$17=$S$15,'Baggrundsdata - BVT - deflator'!$G68,IF($S$15=$W$17,'Baggrundsdata - BVT - deflator'!$F68,IF($V$17=$S$15,'Baggrundsdata - BVT - deflator'!$E68,IF($U$17=$S$15,'Baggrundsdata - BVT - deflator'!$D68,IF($T$17=$S$15,'Baggrundsdata - BVT - deflator'!$C68,IF($S$17=$S$15,'Baggrundsdata - BVT - deflator'!$B68,"*"))))))))))),"*") -> 0.9457057169 | AA18: =IFERROR('Baggrundsdata - BVT - deflator'!J68/IF($AC$17=$S$15,$L68,IF($AB$17=$S$15,$K68,IF($AA$17=$S$15,$J68,IF($Z$17=$S$15,$I68,IF($Y$17=$S$15,'Baggrundsdata - BVT - deflator'!$H68,IF($X$17=$S$15,'Baggrundsdata - BVT - deflator'!$G68,IF($S$15=$W$17,'Baggrundsdata - BVT - deflator'!$F68,IF($V$17=$S$15,'Baggrundsdata - BVT - deflator'!$E68,IF($U$17=$S$15,'Baggrundsdata - BVT - deflator'!$D68,IF($T$17=$S$15,'Baggrundsdata - BVT - deflator'!$C68,IF($S$17=$S$15,'Baggrundsdata - BVT - deflator'!$B68,"*"))))))))))),"*") -> 0.9724740186 | AB18: =IFERROR('Baggrundsdata - BVT - deflator'!K68/IF($AC$17=$S$15,$L68,IF($AB$17=$S$15,$K68,IF($AA$17=$S$15,$J68,IF($Z$17=$S$15,$I68,IF($Y$17=$S$15,'Baggrundsdata - BVT - deflator'!$H68,IF($X$17=$S$15,'Baggrundsdata - BVT - deflator'!$G68,IF($S$15=$W$17,'Baggrundsdata - BVT - deflator'!$F68,IF($V$17=$S$15,'Baggrundsdata - BVT - deflator'!$E68,IF($U$17=$S$15,'Baggrundsdata - BVT - deflator'!$D68,IF($T$17=$S$15,'Baggrundsdata - BVT - deflator'!$C68,IF($S$17=$S$15,'Baggrundsdata - BVT - deflator'!$B68,"*"))))))))))),"*") -> 1 | AC18: =IFERROR('Baggrundsdata - BVT - deflator'!L68/IF($AC$17=$S$15,$L68,IF($AB$17=$S$15,$K68,IF($AA$17=$S$15,$J68,IF($Z$17=$S$15,$I68,IF($Y$17=$S$15,'Baggrundsdata - BVT - deflator'!$H68,IF($X$17=$S$15,'Baggrundsdata - BVT - deflator'!$G68,IF($S$15=$W$17,'Baggrundsdata - BVT - deflator'!$F68,IF($V$17=$S$15,'Baggrundsdata - BVT - deflator'!$E68,IF($U$17=$S$15,'Baggrundsdata - BVT - deflator'!$D68,IF($T$17=$S$15,'Baggrundsdata - BVT - deflator'!$C68,IF($S$17=$S$15,'Baggrundsdata - BVT - deflator'!$B68,"*"))))))))))),"*") -> 0 | AE18: =IF(R18=Forside!B39,"sand","falsk") -> sand
B19: =A69 -> Belgium | C19: =IFERROR('Baggrundsdata - BVT - deflator'!B69/IF($M$17=$C$15,$L69,IF($L$17=$C$15,$K69,IF($K$17=$C$15,$J69,IF($J$17=$C$15,$I69,IF($I$17=$C$15,'Baggrundsdata - BVT - deflator'!$H69,IF($H$17=$C$15,'Baggrundsdata - BVT - deflator'!$G69,IF($C$15=$G$17,'Baggrundsdata - BVT - deflator'!$F69,IF($F$17=$C$15,'Baggrundsdata - BVT - deflator'!$E69,IF($E$17=$C$15,'Baggrundsdata - BVT - deflator'!$D69,IF($D$17=$C$15,'Baggrundsdata - BVT - deflator'!$C69,IF('Baggrundsdata - BVT - deflator'!$C$17='Baggrundsdata - BVT - deflator'!$C$15,'Baggrundsdata - BVT - deflator'!$B69,"*"))))))))))),"*") -> 0.887172265 | D19: =IFERROR('Baggrundsdata - BVT - deflator'!C69/IF($M$17=$C$15,$L69,IF($L$17=$C$15,$K69,IF($K$17=$C$15,$J69,IF($J$17=$C$15,$I69,IF($I$17=$C$15,'Baggrundsdata - BVT - deflator'!$H69,IF($H$17=$C$15,'Baggrundsdata - BVT - deflator'!$G69,IF($C$15=$G$17,'Baggrundsdata - BVT - deflator'!$F69,IF($F$17=$C$15,'Baggrundsdata - BVT - deflator'!$E69,IF($E$17=$C$15,'Baggrundsdata - BVT - deflator'!$D69,IF($D$17=$C$15,'Baggrundsdata - BVT - deflator'!$C69,IF('Baggrundsdata - BVT - deflator'!$C$17='Baggrundsdata - BVT - deflator'!$C$15,'Baggrundsdata - BVT - deflator'!$B69,"*"))))))))))),"*") -> 0.9019853687 | E19: =IFERROR('Baggrundsdata - BVT - deflator'!D69/IF($M$17=$C$15,$L69,IF($L$17=$C$15,$K69,IF($K$17=$C$15,$J69,IF($J$17=$C$15,$I69,IF($I$17=$C$15,'Baggrundsdata - BVT - deflator'!$H69,IF($H$17=$C$15,'Baggrundsdata - BVT - deflator'!$G69,IF($C$15=$G$17,'Baggrundsdata - BVT - deflator'!$F69,IF($F$17=$C$15,'Baggrundsdata - BVT - deflator'!$E69,IF($E$17=$C$15,'Baggrundsdata - BVT - deflator'!$D69,IF($D$17=$C$15,'Baggrundsdata - BVT - deflator'!$C69,IF('Baggrundsdata - BVT - deflator'!$C$17='Baggrundsdata - BVT - deflator'!$C$15,'Baggrundsdata - BVT - deflator'!$B69,"*"))))))))))),"*") -> 0.9102591873 | F19: =IFERROR('Baggrundsdata - BVT - deflator'!E69/IF($M$17=$C$15,$L69,IF($L$17=$C$15,$K69,IF($K$17=$C$15,$J69,IF($J$17=$C$15,$I69,IF($I$17=$C$15,'Baggrundsdata - BVT - deflator'!$H69,IF($H$17=$C$15,'Baggrundsdata - BVT - deflator'!$G69,IF($C$15=$G$17,'Baggrundsdata - BVT - deflator'!$F69,IF($F$17=$C$15,'Baggrundsdata - BVT - deflator'!$E69,IF($E$17=$C$15,'Baggrundsdata - BVT - deflator'!$D69,IF($D$17=$C$15,'Baggrundsdata - BVT - deflator'!$C69,IF('Baggrundsdata - BVT - deflator'!$C$17='Baggrundsdata - BVT - deflator'!$C$15,'Baggrundsdata - BVT - deflator'!$B69,"*"))))))))))),"*") -> 0.9275581468 | G19: =IFERROR('Baggrundsdata - BVT - deflator'!F69/IF($M$17=$C$15,$L69,IF($L$17=$C$15,$K69,IF($K$17=$C$15,$J69,IF($J$17=$C$15,$I69,IF($I$17=$C$15,'Baggrundsdata - BVT - deflator'!$H69,IF($H$17=$C$15,'Baggrundsdata - BVT - deflator'!$G69,IF($C$15=$G$17,'Baggrundsdata - BVT - deflator'!$F69,IF($F$17=$C$15,'Baggrundsdata - BVT - deflator'!$E69,IF($E$17=$C$15,'Baggrundsdata - BVT - deflator'!$D69,IF($D$17=$C$15,'Baggrundsdata - BVT - deflator'!$C69,IF('Baggrundsdata - BVT - deflator'!$C$17='Baggrundsdata - BVT - deflator'!$C$15,'Baggrundsdata - BVT - deflator'!$B69,"*"))))))))))),"*") -> 0.944551012 | H19: =IFERROR('Baggrundsdata - BVT - deflator'!G69/IF($M$17=$C$15,$L69,IF($L$17=$C$15,$K69,IF($K$17=$C$15,$J69,IF($J$17=$C$15,$I69,IF($I$17=$C$15,'Baggrundsdata - BVT - deflator'!$H69,IF($H$17=$C$15,'Baggrundsdata - BVT - deflator'!$G69,IF($C$15=$G$17,'Baggrundsdata - BVT - deflator'!$F69,IF($F$17=$C$15,'Baggrundsdata - BVT - deflator'!$E69,IF($E$17=$C$15,'Baggrundsdata - BVT - deflator'!$D69,IF($D$17=$C$15,'Baggrundsdata - BVT - deflator'!$C69,IF('Baggrundsdata - BVT - deflator'!$C$17='Baggrundsdata - BVT - deflator'!$C$15,'Baggrundsdata - BVT - deflator'!$B69,"*"))))))))))),"*") -> 0.9629723168 | I19: =IFERROR('Baggrundsdata - BVT - deflator'!H69/IF($M$17=$C$15,$L69,IF($L$17=$C$15,$K69,IF($K$17=$C$15,$J69,IF($J$17=$C$15,$I69,IF($I$17=$C$15,'Baggrundsdata - BVT - deflator'!$H69,IF($H$17=$C$15,'Baggrundsdata - BVT - deflator'!$G69,IF($C$15=$G$17,'Baggrundsdata - BVT - deflator'!$F69,IF($F$17=$C$15,'Baggrundsdata - BVT - deflator'!$E69,IF($E$17=$C$15,'Baggrundsdata - BVT - deflator'!$D69,IF($D$17=$C$15,'Baggrundsdata - BVT - deflator'!$C69,IF('Baggrundsdata - BVT - deflator'!$C$17='Baggrundsdata - BVT - deflator'!$C$15,'Baggrundsdata - BVT - deflator'!$B69,"*"))))))))))),"*") -> 0.9762085716 | J19: =IFERROR('Baggrundsdata - BVT - deflator'!I69/IF($M$17=$C$15,$L69,IF($L$17=$C$15,$K69,IF($K$17=$C$15,$J69,IF($J$17=$C$15,$I69,IF($I$17=$C$15,'Baggrundsdata - BVT - deflator'!$H69,IF($H$17=$C$15,'Baggrundsdata - BVT - deflator'!$G69,IF($C$15=$G$17,'Baggrundsdata - BVT - deflator'!$F69,IF($F$17=$C$15,'Baggrundsdata - BVT - deflator'!$E69,IF($E$17=$C$15,'Baggrundsdata - BVT - deflator'!$D69,IF($D$17=$C$15,'Baggrundsdata - BVT - deflator'!$C69,IF('Baggrundsdata - BVT - deflator'!$C$17='Baggrundsdata - BVT - deflator'!$C$15,'Baggrundsdata - BVT - deflator'!$B69,"*"))))))))))),"*") -> 0.9828962658 | K19: =IFERROR('Baggrundsdata - BVT - deflator'!J69/IF($M$17=$C$15,$L69,IF($L$17=$C$15,$K69,IF($K$17=$C$15,$J69,IF($J$17=$C$15,$I69,IF($I$17=$C$15,'Baggrundsdata - BVT - deflator'!$H69,IF($H$17=$C$15,'Baggrundsdata - BVT - deflator'!$G69,IF($C$15=$G$17,'Baggrundsdata - BVT - deflator'!$F69,IF($F$17=$C$15,'Baggrundsdata - BVT - deflator'!$E69,IF($E$17=$C$15,'Baggrundsdata - BVT - deflator'!$D69,IF($D$17=$C$15,'Baggrundsdata - BVT - deflator'!$C69,IF('Baggrundsdata - BVT - deflator'!$C$17='Baggrundsdata - BVT - deflator'!$C$15,'Baggrundsdata - BVT - deflator'!$B69,"*"))))))))))),"*") -> 0.9914112496 | L19: =IFERROR('Baggrundsdata - BVT - deflator'!K69/IF($M$17=$C$15,$L69,IF($L$17=$C$15,$K69,IF($K$17=$C$15,$J69,IF($J$17=$C$15,$I69,IF($I$17=$C$15,'Baggrundsdata - BVT - deflator'!$H69,IF($H$17=$C$15,'Baggrundsdata - BVT - deflator'!$G69,IF($C$15=$G$17,'Baggrundsdata - BVT - deflator'!$F69,IF($F$17=$C$15,'Baggrundsdata - BVT - deflator'!$E69,IF($E$17=$C$15,'Baggrundsdata - BVT - deflator'!$D69,IF($D$17=$C$15,'Baggrundsdata - BVT - deflator'!$C69,IF('Baggrundsdata - BVT - deflator'!$C$17='Baggrundsdata - BVT - deflator'!$C$15,'Baggrundsdata - BVT - deflator'!$B69,"*"))))))))))),"*") -> 1 | M19: =IFERROR('Baggrundsdata - BVT - deflator'!L69/IF($M$17=$C$15,$L69,IF($L$17=$C$15,$K69,IF($K$17=$C$15,$J69,IF($J$17=$C$15,$I69,IF($I$17=$C$15,'Baggrundsdata - BVT - deflator'!$H69,IF($H$17=$C$15,'Baggrundsdata - BVT - deflator'!$G69,IF($C$15=$G$17,'Baggrundsdata - BVT - deflator'!$F69,IF($F$17=$C$15,'Baggrundsdata - BVT - deflator'!$E69,IF($E$17=$C$15,'Baggrundsdata - BVT - deflator'!$D69,IF($D$17=$C$15,'Baggrundsdata - BVT - deflator'!$C69,IF('Baggrundsdata - BVT - deflator'!$C$17='Baggrundsdata - BVT - deflator'!$C$15,'Baggrundsdata - BVT - deflator'!$B69,"*"))))))))))),"*") -> 0 | O19: =IF(A69='Level 1'!A52,"sand","falsk") -> sand | R19: Belgien | S19: =IFERROR('Baggrundsdata - BVT - deflator'!B69/IF($AC$17=$S$15,$L69,IF($AB$17=$S$15,$K69,IF($AA$17=$S$15,$J69,IF($Z$17=$S$15,$I69,IF($Y$17=$S$15,'Baggrundsdata - BVT - deflator'!$H69,IF($X$17=$S$15,'Baggrundsdata - BVT - deflator'!$G69,IF($S$15=$W$17,'Baggrundsdata - BVT - deflator'!$F69,IF($V$17=$S$15,'Baggrundsdata - BVT - deflator'!$E69,IF($U$17=$S$15,'Baggrundsdata - BVT - deflator'!$D69,IF($T$17=$S$15,'Baggrundsdata - BVT - deflator'!$C69,IF($S$17=$S$15,'Baggrundsdata - BVT - deflator'!$B69,"*"))))))))))),"*") -> 0.887172265 | T19: =IFERROR('Baggrundsdata - BVT - deflator'!C69/IF($AC$17=$S$15,$L69,IF($AB$17=$S$15,$K69,IF($AA$17=$S$15,$J69,IF($Z$17=$S$15,$I69,IF($Y$17=$S$15,'Baggrundsdata - BVT - deflator'!$H69,IF($X$17=$S$15,'Baggrundsdata - BVT - deflator'!$G69,IF($S$15=$W$17,'Baggrundsdata - BVT - deflator'!$F69,IF($V$17=$S$15,'Baggrundsdata - BVT - deflator'!$E69,IF($U$17=$S$15,'Baggrundsdata - BVT - deflator'!$D69,IF($T$17=$S$15,'Baggrundsdata - BVT - deflator'!$C69,IF($S$17=$S$15,'Baggrundsdata - BVT - deflator'!$B69,"*"))))))))))),"*") -> 0.9019853687 | U19: =IFERROR('Baggrundsdata - BVT - deflator'!D69/IF($AC$17=$S$15,$L69,IF($AB$17=$S$15,$K69,IF($AA$17=$S$15,$J69,IF($Z$17=$S$15,$I69,IF($Y$17=$S$15,'Baggrundsdata - BVT - deflator'!$H69,IF($X$17=$S$15,'Baggrundsdata - BVT - deflator'!$G69,IF($S$15=$W$17,'Baggrundsdata - BVT - deflator'!$F69,IF($V$17=$S$15,'Baggrundsdata - BVT - deflator'!$E69,IF($U$17=$S$15,'Baggrundsdata - BVT - deflator'!$D69,IF($T$17=$S$15,'Baggrundsdata - BVT - deflator'!$C69,IF($S$17=$S$15,'Baggrundsdata - BVT - deflator'!$B69,"*"))))))))))),"*") -> 0.9102591873 | V19: =IFERROR('Baggrundsdata - BVT - deflator'!E69/IF($AC$17=$S$15,$L69,IF($AB$17=$S$15,$K69,IF($AA$17=$S$15,$J69,IF($Z$17=$S$15,$I69,IF($Y$17=$S$15,'Baggrundsdata - BVT - deflator'!$H69,IF($X$17=$S$15,'Baggrundsdata - BVT - deflator'!$G69,IF($S$15=$W$17,'Baggrundsdata - BVT - deflator'!$F69,IF($V$17=$S$15,'Baggrundsdata - BVT - deflator'!$E69,IF($U$17=$S$15,'Baggrundsdata - BVT - deflator'!$D69,IF($T$17=$S$15,'Baggrundsdata - BVT - deflator'!$C69,IF($S$17=$S$15,'Baggrundsdata - BVT - deflator'!$B69,"*"))))))))))),"*") -> 0.9275581468 | W19: =IFERROR('Baggrundsdata - BVT - deflator'!F69/IF($AC$17=$S$15,$L69,IF($AB$17=$S$15,$K69,IF($AA$17=$S$15,$J69,IF($Z$17=$S$15,$I69,IF($Y$17=$S$15,'Baggrundsdata - BVT - deflator'!$H69,IF($X$17=$S$15,'Baggrundsdata - BVT - deflator'!$G69,IF($S$15=$W$17,'Baggrundsdata - BVT - deflator'!$F69,IF($V$17=$S$15,'Baggrundsdata - BVT - deflator'!$E69,IF($U$17=$S$15,'Baggrundsdata - BVT - deflator'!$D69,IF($T$17=$S$15,'Baggrundsdata - BVT - deflator'!$C69,IF($S$17=$S$15,'Baggrundsdata - BVT - deflator'!$B69,"*"))))))))))),"*") -> 0.944551012 | X19: =IFERROR('Baggrundsdata - BVT - deflator'!G69/IF($AC$17=$S$15,$L69,IF($AB$17=$S$15,$K69,IF($AA$17=$S$15,$J69,IF($Z$17=$S$15,$I69,IF($Y$17=$S$15,'Baggrundsdata - BVT - deflator'!$H69,IF($X$17=$S$15,'Baggrundsdata - BVT - deflator'!$G69,IF($S$15=$W$17,'Baggrundsdata - BVT - deflator'!$F69,IF($V$17=$S$15,'Baggrundsdata - BVT - deflator'!$E69,IF($U$17=$S$15,'Baggrundsdata - BVT - deflator'!$D69,IF($T$17=$S$15,'Baggrundsdata - BVT - deflator'!$C69,IF($S$17=$S$15,'Baggrundsdata - BVT - deflator'!$B69,"*"))))))))))),"*") -> 0.9629723168 | Y19: =IFERROR('Baggrundsdata - BVT - deflator'!H69/IF($AC$17=$S$15,$L69,IF($AB$17=$S$15,$K69,IF($AA$17=$S$15,$J69,IF($Z$17=$S$15,$I69,IF($Y$17=$S$15,'Baggrundsdata - BVT - deflator'!$H69,IF($X$17=$S$15,'Baggrundsdata - BVT - deflator'!$G69,IF($S$15=$W$17,'Baggrundsdata - BVT - deflator'!$F69,IF($V$17=$S$15,'Baggrundsdata - BVT - deflator'!$E69,IF($U$17=$S$15,'Baggrundsdata - BVT - deflator'!$D69,IF($T$17=$S$15,'Baggrundsdata - BVT - deflator'!$C69,IF($S$17=$S$15,'Baggrundsdata - BVT - deflator'!$B69,"*"))))))))))),"*") -> 0.9762085716 | Z19: =IFERROR('Baggrundsdata - BVT - deflator'!I69/IF($AC$17=$S$15,$L69,IF($AB$17=$S$15,$K69,IF($AA$17=$S$15,$J69,IF($Z$17=$S$15,$I69,IF($Y$17=$S$15,'Baggrundsdata - BVT - deflator'!$H69,IF($X$17=$S$15,'Baggrundsdata - BVT - deflator'!$G69,IF($S$15=$W$17,'Baggrundsdata - BVT - deflator'!$F69,IF($V$17=$S$15,'Baggrundsdata - BVT - deflator'!$E69,IF($U$17=$S$15,'Baggrundsdata - BVT - deflator'!$D69,IF($T$17=$S$15,'Baggrundsdata - BVT - deflator'!$C69,IF($S$17=$S$15,'Baggrundsdata - BVT - deflator'!$B69,"*"))))))))))),"*") -> 0.9828962658 | AA19: =IFERROR('Baggrundsdata - BVT - deflator'!J69/IF($AC$17=$S$15,$L69,IF($AB$17=$S$15,$K69,IF($AA$17=$S$15,$J69,IF($Z$17=$S$15,$I69,IF($Y$17=$S$15,'Baggrundsdata - BVT - deflator'!$H69,IF($X$17=$S$15,'Baggrundsdata - BVT - deflator'!$G69,IF($S$15=$W$17,'Baggrundsdata - BVT - deflator'!$F69,IF($V$17=$S$15,'Baggrundsdata - BVT - deflator'!$E69,IF($U$17=$S$15,'Baggrundsdata - BVT - deflator'!$D69,IF($T$17=$S$15,'Baggrundsdata - BVT - deflator'!$C69,IF($S$17=$S$15,'Baggrundsdata - BVT - deflator'!$B69,"*"))))))))))),"*") -> 0.9914112496 | AB19: =IFERROR('Baggrundsdata - BVT - deflator'!K69/IF($AC$17=$S$15,$L69,IF($AB$17=$S$15,$K69,IF($AA$17=$S$15,$J69,IF($Z$17=$S$15,$I69,IF($Y$17=$S$15,'Baggrundsdata - BVT - deflator'!$H69,IF($X$17=$S$15,'Baggrundsdata - BVT - deflator'!$G69,IF($S$15=$W$17,'Baggrundsdata - BVT - deflator'!$F69,IF($V$17=$S$15,'Baggrundsdata - BVT - deflator'!$E69,IF($U$17=$S$15,'Baggrundsdata - BVT - deflator'!$D69,IF($T$17=$S$15,'Baggrundsdata - BVT - deflator'!$C69,IF($S$17=$S$15,'Baggrundsdata - BVT - deflator'!$B69,"*"))))))))))),"*") -> 1 | AC19: =IFERROR('Baggrundsdata - BVT - deflator'!L69/IF($AC$17=$S$15,$L69,IF($AB$17=$S$15,$K69,IF($AA$17=$S$15,$J69,IF($Z$17=$S$15,$I69,IF($Y$17=$S$15,'Baggrundsdata - BVT - deflator'!$H69,IF($X$17=$S$15,'Baggrundsdata - BVT - deflator'!$G69,IF($S$15=$W$17,'Baggrundsdata - BVT - deflator'!$F69,IF($V$17=$S$15,'Baggrundsdata - BVT - deflator'!$E69,IF($U$17=$S$15,'Baggrundsdata - BVT - deflator'!$D69,IF($T$17=$S$15,'Baggrundsdata - BVT - deflator'!$C69,IF($S$17=$S$15,'Baggrundsdata - BVT - deflator'!$B69,"*"))))))))))),"*") -> 0 | AE19: =IF(R19=Forside!B40,"sand","falsk") -> sand
